Workbook

Sheet Forside
B1: Navn på filen: | C1: EU - Elpriser - forbrugere (2007-2017)
B3: Sidst opdateret | C3: 2016-12-08
B4: Opdateret af | C4: b014318
B6: Datakilder: | C6: =LEFT(B55,34) -> Danmarks Statistik, DNVALA: Valuta
C7: ="Eurostat: "&RIGHT('Baggrundsdata - HICP - deflator'!A59,15) -> Eurostat: [prc_hicp_aind]
C8: ="Eurostat: "&RIGHT('Level 1'!A40,12) -> Eurostat: [nrg_pc_204]
B11: Kode til at låse arkene op: | C11: ens1256
B14: Oversigt over ark:
B15: Forside | C15: Formål, oversigt og smådata
B16: ='Udvalgte lande, 10 års oversigt'!E1 -> Udvalgte lande, 10 års oversigt | C16: Her findes sammenligning af relevante lande for en 10 års periode.
B17: ='Alle lande, valgt år'!F1 -> Alle lande, valgt år | C17: Her findes resultattabellerne for alle EU lande i de enheder du vælger.
B18: ='Baggrundstabeller for alle land'!E1 -> Baggrundstabeller for alle lande, valgt år | C18: Her findes baggrundstabeller for resultattabellerne.
B19: ='Baggrundsdata - HICP - deflator'!C2 -> Baggrundsdata - HICP deflator | C19: HICP deflatorerne der bruges i til beregning af priser i det valte år for resultattabellerne. Og kontrol af at man har hentet korrekt data
B20: Level 1 | C20: Rådata fra Eurostat og samling af dette
B21: Level 2 | C21: Rådata fra Eurostat og samling af dette
B22: Level 3 | C22: Rådata fra Eurostat og samling af dette
B23: Afgifter og moms | C23: Bearbejelse af rådata fra Eurostat. Dette ark opdateres automatisk når level 1, 2 og 3 er opdateret. Tallene danner baggrund for figurer og tabeller resultatark.
B26: Arkene har farvekoder, de er opdelt således:
B27: Beskrivelser og forklaringer
B28: Resultattabeller
B29: Baggrundstabeller og rådata
B31: Formålet med dette ark er at give et overblik over elprisen for forbrugere i de europæiske lande. Særligt at kunne sammenligne den danske elpris med de øvrige elpriser. For at gøre det mere overskueligt træffes valg omkring enheder en rullemenuer øverst i de to ark med resultattabeller. Når man vælger tilpasses tabeller og figurer til valgene. Rådata opdateres halvårligt, når eurostat opdaterer deres databank. På forsiden findes også tabeller med grundlæggende oplysninger, der bruges til enhedsomregning. Det drejer sig om de udvalgte sammenligningslande og valutakursomregning. Det er vigigt kun at hente data 10 år tilbage, dvs. at man skal have hele år, og således 20xx S1 som det første data, for halvårsopdateringer har man således kun data for fx 6,5 år mens man for årsopdateringerne har data for 7 år. OBS: På nogle ark står der at data trækkes fra BVT-baggrundssata, dette ark er skjult for overskuelighedens skyld, da al vigtig information fra det trækkes ud i de to B tabeller som er synlige.
B34: Tabel 1
B35: Sammenligningslande
B36: Disse lande bruges til grundlag for sammenligning over tid. De er taget fra det effektive kronekurs indeks og udgøres af de europæiske lande som danmark har mest samhandel med.
B37: EU-28
B38: Belgien
B39: Danmark
B40: Tyskland
B41: Frankrig
B42: Italien
B43: Holland
B44: Sverige
B45: UK
B46: Norge
B50: Tabel 2
B51: Valutakurser efter opgørelsesmetode, kurstype, valuta og tid
B52: Enhed: DKK pr. 100 enheder valuta og indekstal
E53: 2007 | F53: 2008 | G53: 2009 | H53: 2010 | I53: 2011 | J53: 2012 | K53: 2013 | L53: 2014 | M53: 2015 | N53: 2016 | O53: 2017
B54: Årsgennemsnit | C54: Valutakurser (DKK pr. 100 enheder valuta) | D54: Euro (Jan. 1999-) | E54: 745.5974 | F54: 744.6251 | G54: 744.6251 | H54: 744.7366 | I54: 745.0529 | J54: 744.3751 | K54: 745.7982 | L54: 745.4741 | M54: 745.6103 | N54: 744.7488444
B55: Danmarks Statistik, DNVALA: Valutakurser efter valuta, kurstype og opgørelsesmetode (årsobservationer)
B56: OBS! Årstallene skal være formateret som tal!
B57: Bemærk: Når der ikke er data for året bruges gennemsnit for de tilgængelige måneder.

Sheet Udvalgte lande, 10 års oversigt
D1: NAVN PÅ ARK: | E1: Udvalgte lande, 10 års oversigt
D2: Data hentes fra: | E2: 'Forside', 'Level 1', 'Level 2', Level 3', 'Afgifter og moms' og 'Baggrindsdata -BVT-deflator'
D4: Sådan bruges arket:
D5: ="Arket 'Udvalgte lande, 10 års oversigt' viser figurer og tabeller (de grå-blå) for elsprisen for private forbrugere på level 1, 2 og 3 for hvert interval. Prisen vises for udvalgte lande for årene "&E47&" til "&M47&". Landene er valgt på baggrund af Nationalbankens effektive kronekursindeks og udgøres af de europæiske lande Danmark har mest samhandel med." -> Arket 'Udvalgte lande, 10 års oversigt' viser figurer og tabeller (de grå-blå) for elsprisen for private forbrugere på level 1, 2 og 3 for hvert interval. Prisen vises for udvalgte lande for årene 2007 til 2015. Landene er valgt på baggrund af Nationalbankens effektive kronekursindeks og udgøres af de europæiske lande Danmark har mest samhandel med.
D6: Pristypen, basisået og valuta kan ændres. Dette gøres i de farvede rullemenuer nedenfor. Rent teknisk styrer hver menu en tabel længere nede i tilsvarende farve. Disse tabeller ganges på rådata (arkene level1, 2 og 3) for hvert level, heraf fremkommer resultattabellerne med som følge af de valg man traf i rullemenuerne. Til hver resultattabel er tilkoblet en figur der viser prisudviklingen grafisk.
D12: Vælg | F12: Vises i
D13: Vælg pristype | E13: faste priser | F13: Tabel B
D14: Vælg Basisår (kun ved fast pris) | E14: 2016 | F14: Tabel B
D15: Vælg valuta | E15: DKK øre | F15: Tabel C
D19: Resultattabeller:
D20: Valgene truffet ovenfor giver tabeller og figurer der er:
D21: ="Oppgjort i "&$E$13&" med basisår "&$E$14 -> Oppgjort i faste priser med basisår 2016
D22: ="Vist i "&E15&" / kWh" -> Vist i DKK øre / kWh
D26: IA: < 1000 kWh | Q26: IB: 1000 < 2500 kWh | AD26: IC: 2500 < 5 000 kWh | AQ26: ID: 5 000 < 15 000 kWh | BD26: IE: > 15 000 kWh
B27: Level 1: Elspris ekskl. PSO og afgifter | D27: ="Figur XX: "&$B$27&" for intervalet "&D26&". Priserne er vist i "&$E$15&" / kWh i "&$E$13&" med basisår "&$E$14&". " -> Figur XX: Level 1: Elspris ekskl. PSO og afgifter for intervalet IA: < 1000 kWh. Priserne er vist i DKK øre / kWh i faste priser med basisår 2016. | Q27: ="Figur XX: "&$B$27&" for intervalet "&Q26&". Priserne er vist i "&$E$15&" / kWh i "&$E$13&" med basisår "&$E$14&". " -> Figur XX: Level 1: Elspris ekskl. PSO og afgifter for intervalet IB: 1000 < 2500 kWh. Priserne er vist i DKK øre / kWh i faste priser med basisår 2016. | AD27: ="Figur XX: "&$B$27&" for intervalet "&AD26&". Priserne er vist i "&$E$15&" / kWh i "&$E$13&" med basisår "&$E$14&". " -> Figur XX: Level 1: Elspris ekskl. PSO og afgifter for intervalet IC: 2500 < 5 000 kWh. Priserne er vist i DKK øre / kWh i faste priser med basisår 2016. | AQ27: ="Figur XX: "&$B$27&" for intervalet "&AQ26&". Priserne er vist i "&$E$15&" / kWh i "&$E$13&" med basisår "&$E$14&". " -> Figur XX: Level 1: Elspris ekskl. PSO og afgifter for intervalet ID: 5 000 < 15 000 kWh. Priserne er vist i DKK øre / kWh i faste priser med basisår 2016. | BD27: ="Figur XX: "&$B$27&" for intervalet "&BD26&". Priserne er vist i "&$E$15&" / kWh i "&$E$13&" med basisår "&$E$14&". " -> Figur XX: Level 1: Elspris ekskl. PSO og afgifter for intervalet IE: > 15 000 kWh. Priserne er vist i DKK øre / kWh i faste priser med basisår 2016. | BQ27: =B27 -> Level 1: Elspris ekskl. PSO og afgifter
D46: Kilde: Eurostat | Q46: Kilde: Eurostat | AD46: Kilde: Eurostat | AQ46: Kilde: Eurostat | BD46: Kilde: Eurostat
D47: =$E$15&"/kWh" -> DKK øre/kWh | E47: ='Level 1'!B$5 -> 2007 | F47: ='Level 1'!C$5 -> 2008 | G47: ='Level 1'!D$5 -> 2009 | H47: ='Level 1'!E$5 -> 2010 | I47: ='Level 1'!F$5 -> 2011 | J47: ='Level 1'!G$5 -> 2012 | K47: ='Level 1'!H$5 -> 2013 | L47: ='Level 1'!I$5 -> 2014 | M47: ='Level 1'!J$5 -> 2015 | N47: ='Level 1'!K$5 -> 2016 | O47: ='Level 1'!L$5 -> 2017 | Q47: =$E$15&"/kWh" -> DKK øre/kWh | R47: ='Level 1'!O$5 -> 2007 | S47: ='Level 1'!P$5 -> 2008 | T47: ='Level 1'!Q$5 -> 2009 | U47: ='Level 1'!R$5 -> 2010 | V47: ='Level 1'!S$5 -> 2011 | W47: ='Level 1'!T$5 -> 2012 | X47: ='Level 1'!U$5 -> 2013 | Y47: ='Level 1'!V$5 -> 2014 | Z47: ='Level 1'!W$5 -> 2015 | AA47: ='Level 1'!X$5 -> 2016 | AB47: ='Level 1'!Y$5 -> 2017 | AD47: =$E$15&"/kWh" -> DKK øre/kWh | AE47: ='Level 1'!AB$5 -> 2007 | AF47: ='Level 1'!AC$5 -> 2008 | AG47: ='Level 1'!AD$5 -> 2009 | AH47: ='Level 1'!AE$5 -> 2010 | AI47: ='Level 1'!AF$5 -> 2011 | AJ47: ='Level 1'!AG$5 -> 2012 | AK47: ='Level 1'!AH$5 -> 2013 | AL47: ='Level 1'!AI$5 -> 2014 | AM47: ='Level 1'!AJ$5 -> 2015 | AN47: ='Level 1'!AK$5 -> 2016 | AO47: ='Level 1'!AL$5 -> 2017 | AQ47: =$E$15&"/kWh" -> DKK øre/kWh | AR47: ='Level 1'!AO$5 -> 2007 | AS47: ='Level 1'!AP$5 -> 2008 | AT47: ='Level 1'!AQ$5 -> 2009 | AU47: ='Level 1'!AR$5 -> 2010 | AV47: ='Level 1'!AS$5 -> 2011 | AW47: ='Level 1'!AT$5 -> 2012 | AX47: ='Level 1'!AU$5 -> 2013 | AY47: ='Level 1'!AV$5 -> 2014 | AZ47: ='Level 1'!AW$5 -> 2015 | BA47: ='Level 1'!AX$5 -> 2016 | BB47: ='Level 1'!AY$5 -> 2017 | BD47: =$E$15&"/kWh" -> DKK øre/kWh | BE47: ='Level 1'!BB$5 -> 2007 | BF47: ='Level 1'!BC$5 -> 2008 | BG47: ='Level 1'!BD$5 -> 2009 | BH47: ='Level 1'!BE$5 -> 2010 | BI47: ='Level 1'!BF$5 -> 2011 | BJ47: ='Level 1'!BG$5 -> 2012 | BK47: ='Level 1'!BH$5 -> 2013 | BL47: ='Level 1'!BI$5 -> 2014 | BM47: ='Level 1'!BJ$5 -> 2015 | BN47: ='Level 1'!BK$5 -> 2016 | BO47: ='Level 1'!BL$5 -> 2017
D48: ='Oversættelse af landenavne'!$B$6 -> EU-28 | E48: =IFERROR('Level 1'!B6/E141*R$141,"*") -> 162.526562 | F48: =IFERROR('Level 1'!C6/F141*S$141,"*") -> 164.2537411 | G48: =IFERROR('Level 1'!D6/G141*T$141,"*") -> 164.0966636 | H48: =IFERROR('Level 1'!E6/H141*U$141,"*") -> 164.7521742 | I48: =IFERROR('Level 1'!F6/I141*V$141,"*") -> 164.4321698 | J48: =IFERROR('Level 1'!G6/J141*W$141,"*") -> 163.8388147 | K48: =IFERROR('Level 1'!H6/K141*X$141,"*") -> 169.9563149 | L48: =IFERROR('Level 1'!I6/L141*Y$141,"*") -> 172.3191464 | M48: =IFERROR('Level 1'!J6/M141*Z$141,"*") -> 176.9156326 | N48: =IFERROR('Level 1'!K6/N141*AA$141,"*") -> 179.4099966 | O48: =IFERROR('Level 1'!L6/O141*AB$141,"*") -> * | Q48: ='Oversættelse af landenavne'!$B$6 -> EU-28 | R48: =IFERROR('Level 1'!O6/E141*R$141,"*") -> 110.3872837 | S48: =IFERROR('Level 1'!P6/F141*S$141,"*") -> 109.9584091 | T48: =IFERROR('Level 1'!Q6/G141*T$141,"*") -> 110.4512561 | U48: =IFERROR('Level 1'!R6/H141*U$141,"*") -> 109.9420172 | V48: =IFERROR('Level 1'!S6/I141*V$141,"*") -> 112.2228098 | W48: =IFERROR('Level 1'!T6/J141*W$141,"*") -> 114.9226364 | X48: =IFERROR('Level 1'!U6/K141*X$141,"*") -> 115.3783717 | Y48: =IFERROR('Level 1'!V6/L141*Y$141,"*") -> 116.3452368 | Z48: =IFERROR('Level 1'!W6/M141*Z$141,"*") -> 118.7638444 | AA48: =IFERROR('Level 1'!X6/N141*AA$141,"*") -> 115.8829202 | AB48: =IFERROR('Level 1'!Y6/O141*AB$141,"*") -> * | AD48: ='Oversættelse af landenavne'!$B$6 -> EU-28 | AE48: =IFERROR('Level 1'!AB6/E141*R$141,"*") -> 100.1487126 | AF48: =IFERROR('Level 1'!AC6/F141*S$141,"*") -> 100.2184068 | AG48: =IFERROR('Level 1'!AD6/G141*T$141,"*") -> 99.77963715 | AH48: =IFERROR('Level 1'!AE6/H141*U$141,"*") -> 99.00411348 | AI48: =IFERROR('Level 1'!AF6/I141*V$141,"*") -> 101.2190433 | AJ48: =IFERROR('Level 1'!AG6/J141*W$141,"*") -> 103.1113542 | AK48: =IFERROR('Level 1'!AH6/K141*X$141,"*") -> 103.2332799 | AL48: =IFERROR('Level 1'!AI6/L141*Y$141,"*") -> 103.2275163 | AM48: =IFERROR('Level 1'!AJ6/M141*Z$141,"*") -> 105.157817 | AN48: =IFERROR('Level 1'!AK6/N141*AA$141,"*") -> 100.7645187 | AO48: =IFERROR('Level 1'!AL6/O141*AB$141,"*") -> * | AQ48: ='Oversættelse af landenavne'!$B$6 -> EU-28 | AR48: =IFERROR('Level 1'!AO6/E141*R$141,"*") -> 92.49129386 | AS48: =IFERROR('Level 1'!AP6/F141*S$141,"*") -> 92.63363902 | AT48: =IFERROR('Level 1'!AQ6/G141*T$141,"*") -> 94.15651486 | AU48: =IFERROR('Level 1'!AR6/H141*U$141,"*") -> 92.81132978 | AV48: =IFERROR('Level 1'!AS6/I141*V$141,"*") -> 94.74164888 | AW48: =IFERROR('Level 1'!AT6/J141*W$141,"*") -> 95.66758789 | AX48: =IFERROR('Level 1'!AU6/K141*X$141,"*") -> 96.14864305 | AY48: =IFERROR('Level 1'!AV6/L141*Y$141,"*") -> 95.66246728 | AZ48: =IFERROR('Level 1'!AW6/M141*Z$141,"*") -> 97.66518278 | BA48: =IFERROR('Level 1'!AX6/N141*AA$141,"*") -> 92.12543206 | BB48: =IFERROR('Level 1'!AY6/O141*AB$141,"*") -> * | BD48: ='Oversættelse af landenavne'!$B$6 -> EU-28 | BE48: =IFERROR('Level 1'!BB6/E141*R$141,"*") -> 85.95237448 | BF48: =IFERROR('Level 1'!BC6/F141*S$141,"*") -> 89.27644674 | BG48: =IFERROR('Level 1'!BD6/G141*T$141,"*") -> 93.08935296 | BH48: =IFERROR('Level 1'!BE6/H141*U$141,"*") -> 90.47898267 | BI48: =IFERROR('Level 1'!BF6/I141*V$141,"*") -> 91.03470628 | BJ48: =IFERROR('Level 1'!BG6/J141*W$141,"*") -> 91.52794237 | BK48: =IFERROR('Level 1'!BH6/K141*X$141,"*") -> 90.22603658 | BL48: =IFERROR('Level 1'!BI6/L141*Y$141,"*") -> 90.55699085 | BM48: =IFERROR('Level 1'!BJ6/M141*Z$141,"*") -> 93.34107545 | BN48: =IFERROR('Level 1'!BK6/N141*AA$141,"*") -> 86.98666503 | BO48: =IFERROR('Level 1'!BL6/O141*AB$141,"*") -> *
D49: ='Oversættelse af landenavne'!$B$7 -> Belgien | E49: =IFERROR('Level 1'!B7/E142*R$141,"*") -> 163.1506178 | F49: =IFERROR('Level 1'!C7/F142*S$141,"*") -> 206.5489226 | G49: =IFERROR('Level 1'!D7/G142*T$141,"*") -> 173.1007368 | H49: =IFERROR('Level 1'!E7/H142*U$141,"*") -> 179.716783 | I49: =IFERROR('Level 1'!F7/I142*V$141,"*") -> 180.7300957 | J49: =IFERROR('Level 1'!G7/J142*W$141,"*") -> 177.8996848 | K49: =IFERROR('Level 1'!H7/K142*X$141,"*") -> 167.3907884 | L49: =IFERROR('Level 1'!I7/L142*Y$141,"*") -> 167.1514927 | M49: =IFERROR('Level 1'!J7/M142*Z$141,"*") -> 178.0371545 | N49: =IFERROR('Level 1'!K7/N142*AA$141,"*") -> 187.6022339 | O49: =IFERROR('Level 1'!L7/O142*AB$141,"*") -> * | Q49: ='Oversættelse af landenavne'!$B$7 -> Belgien | R49: =IFERROR('Level 1'!O7/E142*R$141,"*") -> 124.0397649 | S49: =IFERROR('Level 1'!P7/F142*S$141,"*") -> 147.4397992 | T49: =IFERROR('Level 1'!Q7/G142*T$141,"*") -> 133.4266141 | U49: =IFERROR('Level 1'!R7/H142*U$141,"*") -> 134.0246962 | V49: =IFERROR('Level 1'!S7/I142*V$141,"*") -> 140.5984837 | W49: =IFERROR('Level 1'!T7/J142*W$141,"*") -> 138.7540861 | X49: =IFERROR('Level 1'!U7/K142*X$141,"*") -> 134.7245444 | Y49: =IFERROR('Level 1'!V7/L142*Y$141,"*") -> 136.8460854 | Z49: =IFERROR('Level 1'!W7/M142*Z$141,"*") -> 147.388955 | AA49: =IFERROR('Level 1'!X7/N142*AA$141,"*") -> 132.0439701 | AB49: =IFERROR('Level 1'!Y7/O142*AB$141,"*") -> * | AD49: ='Oversættelse af landenavne'!$B$7 -> Belgien | AE49: =IFERROR('Level 1'!AB7/E142*R$141,"*") -> 112.0190574 | AF49: =IFERROR('Level 1'!AC7/F142*S$141,"*") -> 129.8319406 | AG49: =IFERROR('Level 1'!AD7/G142*T$141,"*") -> 117.4403989 | AH49: =IFERROR('Level 1'!AE7/H142*U$141,"*") -> 118.3600004 | AI49: =IFERROR('Level 1'!AF7/I142*V$141,"*") -> 124.7270022 | AJ49: =IFERROR('Level 1'!AG7/J142*W$141,"*") -> 125.5266311 | AK49: =IFERROR('Level 1'!AH7/K142*X$141,"*") -> 122.3182008 | AL49: =IFERROR('Level 1'!AI7/L142*Y$141,"*") -> 126.4675213 | AM49: =IFERROR('Level 1'!AJ7/M142*Z$141,"*") -> 137.260419 | AN49: =IFERROR('Level 1'!AK7/N142*AA$141,"*") -> 116.7021439 | AO49: =IFERROR('Level 1'!AL7/O142*AB$141,"*") -> * | AQ49: ='Oversættelse af landenavne'!$B$7 -> Belgien | AR49: =IFERROR('Level 1'!AO7/E142*R$141,"*") -> 98.34332488 | AS49: =IFERROR('Level 1'!AP7/F142*S$141,"*") -> 115.6374258 | AT49: =IFERROR('Level 1'!AQ7/G142*T$141,"*") -> 102.6198452 | AU49: =IFERROR('Level 1'!AR7/H142*U$141,"*") -> 103.6718051 | AV49: =IFERROR('Level 1'!AS7/I142*V$141,"*") -> 109.721954 | AW49: =IFERROR('Level 1'!AT7/J142*W$141,"*") -> 110.6121963 | AX49: =IFERROR('Level 1'!AU7/K142*X$141,"*") -> 109.2289392 | AY49: =IFERROR('Level 1'!AV7/L142*Y$141,"*") -> 111.9752718 | AZ49: =IFERROR('Level 1'!AW7/M142*Z$141,"*") -> 122.2551805 | BA49: =IFERROR('Level 1'!AX7/N142*AA$141,"*") -> 107.4672583 | BB49: =IFERROR('Level 1'!AY7/O142*AB$141,"*") -> * | BD49: ='Oversættelse af landenavne'!$B$7 -> Belgien | BE49: =IFERROR('Level 1'!BB7/E142*R$141,"*") -> 84.14495291 | BF49: =IFERROR('Level 1'!BC7/F142*S$141,"*") -> 102.608443 | BG49: =IFERROR('Level 1'!BD7/G142*T$141,"*") -> 84.80187613 | BH49: =IFERROR('Level 1'!BE7/H142*U$141,"*") -> 85.4437954 | BI49: =IFERROR('Level 1'!BF7/I142*V$141,"*") -> 91.84192269 | BJ49: =IFERROR('Level 1'!BG7/J142*W$141,"*") -> 93.2823132 | BK49: =IFERROR('Level 1'!BH7/K142*X$141,"*") -> 93.3700658 | BL49: =IFERROR('Level 1'!BI7/L142*Y$141,"*") -> 97.03013945 | BM49: =IFERROR('Level 1'!BJ7/M142*Z$141,"*") -> 101.0227681 | BN49: =IFERROR('Level 1'!BK7/N142*AA$141,"*") -> 76.70913098 | BO49: =IFERROR('Level 1'!BL7/O142*AB$141,"*") -> *
D50: ='Oversættelse af landenavne'!$B$10 -> Danmark | E50: =IFERROR('Level 1'!B10/E143*R$141,"*") -> 105.8662732 | F50: =IFERROR('Level 1'!C10/F143*S$141,"*") -> 116.2535891 | G50: =IFERROR('Level 1'!D10/G143*T$141,"*") -> 103.1278357 | H50: =IFERROR('Level 1'!E10/H143*U$141,"*") -> 103.8852355 | I50: =IFERROR('Level 1'!F10/I143*V$141,"*") -> 110.7067426 | J50: =IFERROR('Level 1'!G10/J143*W$141,"*") -> 101.2840402 | K50: =IFERROR('Level 1'!H10/K143*X$141,"*") -> 95.93014028 | L50: =IFERROR('Level 1'!I10/L143*Y$141,"*") -> 93.44585101 | M50: =IFERROR('Level 1'!J10/M143*Z$141,"*") -> 88.68130522 | N50: =IFERROR('Level 1'!K10/N143*AA$141,"*") -> 115.1381714 | O50: =IFERROR('Level 1'!L10/O143*AB$141,"*") -> * | Q50: ='Oversættelse af landenavne'!$B$10 -> Danmark | R50: =IFERROR('Level 1'!O10/E143*R$141,"*") -> 105.8662732 | S50: =IFERROR('Level 1'!P10/F143*S$141,"*") -> 116.2535891 | T50: =IFERROR('Level 1'!Q10/G143*T$141,"*") -> 103.1278357 | U50: =IFERROR('Level 1'!R10/H143*U$141,"*") -> 103.8852355 | V50: =IFERROR('Level 1'!S10/I143*V$141,"*") -> 110.7067426 | W50: =IFERROR('Level 1'!T10/J143*W$141,"*") -> 101.2840402 | X50: =IFERROR('Level 1'!U10/K143*X$141,"*") -> 95.93014028 | Y50: =IFERROR('Level 1'!V10/L143*Y$141,"*") -> 93.44585101 | Z50: =IFERROR('Level 1'!W10/M143*Z$141,"*") -> 88.68130522 | AA50: =IFERROR('Level 1'!X10/N143*AA$141,"*") -> 85.12479292 | AB50: =IFERROR('Level 1'!Y10/O143*AB$141,"*") -> * | AD50: ='Oversættelse af landenavne'!$B$10 -> Danmark | AE50: =IFERROR('Level 1'!AB10/E143*R$141,"*") -> 87.18898363 | AF50: =IFERROR('Level 1'!AC10/F143*S$141,"*") -> 97.60065573 | AG50: =IFERROR('Level 1'!AD10/G143*T$141,"*") -> 84.17110866 | AH50: =IFERROR('Level 1'!AE10/H143*U$141,"*") -> 84.73387339 | AI50: =IFERROR('Level 1'!AF10/I143*V$141,"*") -> 91.73396403 | AJ50: =IFERROR('Level 1'!AG10/J143*W$141,"*") -> 82.69393156 | AK50: =IFERROR('Level 1'!AH10/K143*X$141,"*") -> 78.33793587 | AL50: =IFERROR('Level 1'!AI10/L143*Y$141,"*") -> 76.64281252 | AM50: =IFERROR('Level 1'!AJ10/M143*Z$141,"*") -> 72.17029557 | AN50: =IFERROR('Level 1'!AK10/N143*AA$141,"*") -> 70.15534115 | AO50: =IFERROR('Level 1'!AL10/O143*AB$141,"*") -> * | AQ50: ='Oversættelse af landenavne'!$B$10 -> Danmark | AR50: =IFERROR('Level 1'!AO10/E143*R$141,"*") -> 73.86019061 | AS50: =IFERROR('Level 1'!AP10/F143*S$141,"*") -> 83.93820015 | AT50: =IFERROR('Level 1'!AQ10/G143*T$141,"*") -> 70.3181158 | AU50: =IFERROR('Level 1'!AR10/H143*U$141,"*") -> 70.65782049 | AV50: =IFERROR('Level 1'!AS10/I143*V$141,"*") -> 77.74588695 | AW50: =IFERROR('Level 1'!AT10/J143*W$141,"*") -> 69.04358809 | AX50: =IFERROR('Level 1'!AU10/K143*X$141,"*") -> 65.48209419 | AY50: =IFERROR('Level 1'!AV10/L143*Y$141,"*") -> 63.50725237 | AZ50: =IFERROR('Level 1'!AW10/M143*Z$141,"*") -> 59.8804264 | BA50: =IFERROR('Level 1'!AX10/N143*AA$141,"*") -> 61.14388013 | BB50: =IFERROR('Level 1'!AY10/O143*AB$141,"*") -> * | BD50: ='Oversættelse af landenavne'!$B$10 -> Danmark | BE50: =IFERROR('Level 1'!BB10/E143*R$141,"*") -> 73.86019061 | BF50: =IFERROR('Level 1'!BC10/F143*S$141,"*") -> 83.93820015 | BG50: =IFERROR('Level 1'!BD10/G143*T$141,"*") -> 70.3181158 | BH50: =IFERROR('Level 1'!BE10/H143*U$141,"*") -> 70.65782049 | BI50: =IFERROR('Level 1'!BF10/I143*V$141,"*") -> 77.74588695 | BJ50: =IFERROR('Level 1'!BG10/J143*W$141,"*") -> 69.04358809 | BK50: =IFERROR('Level 1'!BH10/K143*X$141,"*") -> 65.48209419 | BL50: =IFERROR('Level 1'!BI10/L143*Y$141,"*") -> 63.50725237 | BM50: =IFERROR('Level 1'!BJ10/M143*Z$141,"*") -> 59.8804264 | BN50: =IFERROR('Level 1'!BK10/N143*AA$141,"*") -> 58.16488475 | BO50: =IFERROR('Level 1'!BL10/O143*AB$141,"*") -> *
D51: ='Oversættelse af landenavne'!$B$11 -> Tyskland | E51: =IFERROR('Level 1'!B11/E144*R$141,"*") -> 188.6289998 | F51: =IFERROR('Level 1'!C11/F144*S$141,"*") -> 192.9122594 | G51: =IFERROR('Level 1'!D11/G144*T$141,"*") -> 198.7249935 | H51: =IFERROR('Level 1'!E11/H144*U$141,"*") -> 196.6888884 | I51: =IFERROR('Level 1'!F11/I144*V$141,"*") -> 192.9705324 | J51: =IFERROR('Level 1'!G11/J144*W$141,"*") -> 193.4255669 | K51: =IFERROR('Level 1'!H11/K144*X$141,"*") -> 195.7890809 | L51: =IFERROR('Level 1'!I11/L144*Y$141,"*") -> 191.9332446 | M51: =IFERROR('Level 1'!J11/M144*Z$141,"*") -> 194.7990874 | N51: =IFERROR('Level 1'!K11/N144*AA$141,"*") -> 198.0287177 | O51: =IFERROR('Level 1'!L11/O144*AB$141,"*") -> * | Q51: ='Oversættelse af landenavne'!$B$11 -> Tyskland | R51: =IFERROR('Level 1'!O11/E144*R$141,"*") -> 120.5824641 | S51: =IFERROR('Level 1'!P11/F144*S$141,"*") -> 123.0794003 | T51: =IFERROR('Level 1'!Q11/G144*T$141,"*") -> 128.2344745 | U51: =IFERROR('Level 1'!R11/H144*U$141,"*") -> 126.4999906 | V51: =IFERROR('Level 1'!S11/I144*V$141,"*") -> 125.1848496 | W51: =IFERROR('Level 1'!T11/J144*W$141,"*") -> 125.5623099 | X51: =IFERROR('Level 1'!U11/K144*X$141,"*") -> 128.2911907 | Y51: =IFERROR('Level 1'!V11/L144*Y$141,"*") -> 123.0255123 | Z51: =IFERROR('Level 1'!W11/M144*Z$141,"*") -> 122.7383522 | AA51: =IFERROR('Level 1'!X11/N144*AA$141,"*") -> 120.6493128 | AB51: =IFERROR('Level 1'!Y11/O144*AB$141,"*") -> * | AD51: ='Oversættelse af landenavne'!$B$11 -> Tyskland | AE51: =IFERROR('Level 1'!AB11/E144*R$141,"*") -> 104.4881241 | AF51: =IFERROR('Level 1'!AC11/F144*S$141,"*") -> 107.0608293 | AG51: =IFERROR('Level 1'!AD11/G144*T$141,"*") -> 111.6841747 | AH51: =IFERROR('Level 1'!AE11/H144*U$141,"*") -> 110.022597 | AI51: =IFERROR('Level 1'!AF11/I144*V$141,"*") -> 109.3707935 | AJ51: =IFERROR('Level 1'!AG11/J144*W$141,"*") -> 109.7810458 | AK51: =IFERROR('Level 1'!AH11/K144*X$141,"*") -> 112.3207078 | AL51: =IFERROR('Level 1'!AI11/L144*Y$141,"*") -> 107.3765476 | AM51: =IFERROR('Level 1'!AJ11/M144*Z$141,"*") -> 106.6543662 | AN51: =IFERROR('Level 1'!AK11/N144*AA$141,"*") -> 103.3711396 | AO51: =IFERROR('Level 1'!AL11/O144*AB$141,"*") -> * | AQ51: ='Oversættelse af landenavne'!$B$11 -> Tyskland | AR51: =IFERROR('Level 1'!AO11/E144*R$141,"*") -> 95.85722161 | AS51: =IFERROR('Level 1'!AP11/F144*S$141,"*") -> 96.63861976 | AT51: =IFERROR('Level 1'!AQ11/G144*T$141,"*") -> 101.3655282 | AU51: =IFERROR('Level 1'!AR11/H144*U$141,"*") -> 100.9040393 | AV51: =IFERROR('Level 1'!AS11/I144*V$141,"*") -> 102.303277 | AW51: =IFERROR('Level 1'!AT11/J144*W$141,"*") -> 100.8778144 | AX51: =IFERROR('Level 1'!AU11/K144*X$141,"*") -> 103.2431456 | AY51: =IFERROR('Level 1'!AV11/L144*Y$141,"*") -> 98.26354668 | AZ51: =IFERROR('Level 1'!AW11/M144*Z$141,"*") -> 97.32490803 | BA51: =IFERROR('Level 1'!AX11/N144*AA$141,"*") -> 93.8383544 | BB51: =IFERROR('Level 1'!AY11/O144*AB$141,"*") -> * | BD51: ='Oversættelse af landenavne'!$B$11 -> Tyskland | BE51: =IFERROR('Level 1'!BB11/E144*R$141,"*") -> 92.1046553 | BF51: =IFERROR('Level 1'!BC11/F144*S$141,"*") -> 93.7593323 | BG51: =IFERROR('Level 1'!BD11/G144*T$141,"*") -> 99.01854187 | BH51: =IFERROR('Level 1'!BE11/H144*U$141,"*") -> 98.38443787 | BI51: =IFERROR('Level 1'!BF11/I144*V$141,"*") -> 98.43761882 | BJ51: =IFERROR('Level 1'!BG11/J144*W$141,"*") -> 97.78269967 | BK51: =IFERROR('Level 1'!BH11/K144*X$141,"*") -> 100.2675131 | BL51: =IFERROR('Level 1'!BI11/L144*Y$141,"*") -> 95.12628408 | BM51: =IFERROR('Level 1'!BJ11/M144*Z$141,"*") -> 93.81703174 | BN51: =IFERROR('Level 1'!BK11/N144*AA$141,"*") -> 90.63593437 | BO51: =IFERROR('Level 1'!BL11/O144*AB$141,"*") -> *
D52: ='Oversættelse af landenavne'!$B$16 -> Frankrig | E52: =IFERROR('Level 1'!B16/E145*R$141,"*") -> 154.1389029 | F52: =IFERROR('Level 1'!C16/F145*S$141,"*") -> 148.8331793 | G52: =IFERROR('Level 1'!D16/G145*T$141,"*") -> 145.4874936 | H52: =IFERROR('Level 1'!E16/H145*U$141,"*") -> 145.4753222 | I52: =IFERROR('Level 1'!F16/I145*V$141,"*") -> 154.0672092 | J52: =IFERROR('Level 1'!G16/J145*W$141,"*") -> 153.6235165 | K52: =IFERROR('Level 1'!H16/K145*X$141,"*") -> 170.0246896 | L52: =IFERROR('Level 1'!I16/L145*Y$141,"*") -> 156.6076858 | M52: =IFERROR('Level 1'!J16/M145*Z$141,"*") -> 162.0178122 | N52: =IFERROR('Level 1'!K16/N145*AA$141,"*") -> 160.7168006 | O52: =IFERROR('Level 1'!L16/O145*AB$141,"*") -> * | Q52: ='Oversættelse af landenavne'!$B$16 -> Frankrig | R52: =IFERROR('Level 1'!O16/E145*R$141,"*") -> 91.53299914 | S52: =IFERROR('Level 1'!P16/F145*S$141,"*") -> 87.04803896 | T52: =IFERROR('Level 1'!Q16/G145*T$141,"*") -> 86.51043537 | U52: =IFERROR('Level 1'!R16/H145*U$141,"*") -> 89.32208559 | V52: =IFERROR('Level 1'!S16/I145*V$141,"*") -> 91.161277 | W52: =IFERROR('Level 1'!T16/J145*W$141,"*") -> 91.53006554 | X52: =IFERROR('Level 1'!U16/K145*X$141,"*") -> 96.32477439 | Y52: =IFERROR('Level 1'!V16/L145*Y$141,"*") -> 93.50158444 | Z52: =IFERROR('Level 1'!W16/M145*Z$141,"*") -> 94.66586583 | AA52: =IFERROR('Level 1'!X16/N145*AA$141,"*") -> 93.24255532 | AB52: =IFERROR('Level 1'!Y16/O145*AB$141,"*") -> * | AD52: ='Oversættelse af landenavne'!$B$16 -> Frankrig | AE52: =IFERROR('Level 1'!AB16/E145*R$141,"*") -> 77.02776976 | AF52: =IFERROR('Level 1'!AC16/F145*S$141,"*") -> 73.60946827 | AG52: =IFERROR('Level 1'!AD16/G145*T$141,"*") -> 73.20733953 | AH52: =IFERROR('Level 1'!AE16/H145*U$141,"*") -> 76.68067241 | AI52: =IFERROR('Level 1'!AF16/I145*V$141,"*") -> 77.9444422 | AJ52: =IFERROR('Level 1'!AG16/J145*W$141,"*") -> 77.89147961 | AK52: =IFERROR('Level 1'!AH16/K145*X$141,"*") -> 81.02856558 | AL52: =IFERROR('Level 1'!AI16/L145*Y$141,"*") -> 80.58163707 | AM52: =IFERROR('Level 1'!AJ16/M145*Z$141,"*") -> 81.12084837 | AN52: =IFERROR('Level 1'!AK16/N145*AA$141,"*") -> 80.95419939 | AO52: =IFERROR('Level 1'!AL16/O145*AB$141,"*") -> * | AQ52: ='Oversættelse af landenavne'!$B$16 -> Frankrig | AR52: =IFERROR('Level 1'!AO16/E145*R$141,"*") -> 67.10752669 | AS52: =IFERROR('Level 1'!AP16/F145*S$141,"*") -> 63.68187551 | AT52: =IFERROR('Level 1'!AQ16/G145*T$141,"*") -> 65.99141784 | AU52: =IFERROR('Level 1'!AR16/H145*U$141,"*") -> 68.08134119 | AV52: =IFERROR('Level 1'!AS16/I145*V$141,"*") -> 69.45621105 | AW52: =IFERROR('Level 1'!AT16/J145*W$141,"*") -> 69.36736341 | AX52: =IFERROR('Level 1'!AU16/K145*X$141,"*") -> 72.00868815 | AY52: =IFERROR('Level 1'!AV16/L145*Y$141,"*") -> 71.58248297 | AZ52: =IFERROR('Level 1'!AW16/M145*Z$141,"*") -> 72.79980459 | BA52: =IFERROR('Level 1'!AX16/N145*AA$141,"*") -> 72.98538676 | BB52: =IFERROR('Level 1'!AY16/O145*AB$141,"*") -> * | BD52: ='Oversættelse af landenavne'!$B$16 -> Frankrig | BE52: =IFERROR('Level 1'!BB16/E145*R$141,"*") -> 61.43881636 | BF52: =IFERROR('Level 1'!BC16/F145*S$141,"*") -> 61.26051143 | BG52: =IFERROR('Level 1'!BD16/G145*T$141,"*") -> 63.16954903 | BH52: =IFERROR('Level 1'!BE16/H145*U$141,"*") -> 65.54513291 | BI52: =IFERROR('Level 1'!BF16/I145*V$141,"*") -> 67.13066827 | BJ52: =IFERROR('Level 1'!BG16/J145*W$141,"*") -> 67.17003568 | BK52: =IFERROR('Level 1'!BH16/K145*X$141,"*") -> 63.55255306 | BL52: =IFERROR('Level 1'!BI16/L145*Y$141,"*") -> 65.0851684 | BM52: =IFERROR('Level 1'!BJ16/M145*Z$141,"*") -> 70.44901643 | BN52: =IFERROR('Level 1'!BK16/N145*AA$141,"*") -> 70.90008999 | BO52: =IFERROR('Level 1'!BL16/O145*AB$141,"*") -> *
D53: ='Oversættelse af landenavne'!$B$18 -> Italien | E53: =IFERROR('Level 1'!B18/E146*R$141,"*") -> * | F53: =IFERROR('Level 1'!C18/F146*S$141,"*") -> * | G53: =IFERROR('Level 1'!D18/G146*T$141,"*") -> * | H53: =IFERROR('Level 1'!E18/H146*U$141,"*") -> 175.8242837 | I53: =IFERROR('Level 1'!F18/I146*V$141,"*") -> 159.6071822 | J53: =IFERROR('Level 1'!G18/J146*W$141,"*") -> 143.9884247 | K53: =IFERROR('Level 1'!H18/K146*X$141,"*") -> 149.5335863 | L53: =IFERROR('Level 1'!I18/L146*Y$141,"*") -> 154.6222285 | M53: =IFERROR('Level 1'!J18/M146*Z$141,"*") -> 152.1448045 | N53: =IFERROR('Level 1'!K18/N146*AA$141,"*") -> 163.0999969 | O53: =IFERROR('Level 1'!L18/O146*AB$141,"*") -> * | Q53: ='Oversættelse af landenavne'!$B$18 -> Italien | R53: =IFERROR('Level 1'!O18/E146*R$141,"*") -> * | S53: =IFERROR('Level 1'!P18/F146*S$141,"*") -> * | T53: =IFERROR('Level 1'!Q18/G146*T$141,"*") -> * | U53: =IFERROR('Level 1'!R18/H146*U$141,"*") -> 100.8735474 | V53: =IFERROR('Level 1'!S18/I146*V$141,"*") -> 99.2702675 | W53: =IFERROR('Level 1'!T18/J146*W$141,"*") -> 106.2023485 | X53: =IFERROR('Level 1'!U18/K146*X$141,"*") -> 104.0445259 | Y53: =IFERROR('Level 1'!V18/L146*Y$141,"*") -> 106.5922319 | Z53: =IFERROR('Level 1'!W18/M146*Z$141,"*") -> 103.3703969 | AA53: =IFERROR('Level 1'!X18/N146*AA$141,"*") -> 105.7543359 | AB53: =IFERROR('Level 1'!Y18/O146*AB$141,"*") -> * | AD53: ='Oversættelse af landenavne'!$B$18 -> Italien | AE53: =IFERROR('Level 1'!AB18/E146*R$141,"*") -> * | AF53: =IFERROR('Level 1'!AC18/F146*S$141,"*") -> * | AG53: =IFERROR('Level 1'!AD18/G146*T$141,"*") -> * | AH53: =IFERROR('Level 1'!AE18/H146*U$141,"*") -> 111.6613011 | AI53: =IFERROR('Level 1'!AF18/I146*V$141,"*") -> 109.9133549 | AJ53: =IFERROR('Level 1'!AG18/J146*W$141,"*") -> 112.4495454 | AK53: =IFERROR('Level 1'!AH18/K146*X$141,"*") -> 112.2812282 | AL53: =IFERROR('Level 1'!AI18/L146*Y$141,"*") -> 112.3065317 | AM53: =IFERROR('Level 1'!AJ18/M146*Z$141,"*") -> 111.4310488 | AN53: =IFERROR('Level 1'!AK18/N146*AA$141,"*") -> 107.3927834 | AO53: =IFERROR('Level 1'!AL18/O146*AB$141,"*") -> * | AQ53: ='Oversættelse af landenavne'!$B$18 -> Italien | AR53: =IFERROR('Level 1'!AO18/E146*R$141,"*") -> * | AS53: =IFERROR('Level 1'!AP18/F146*S$141,"*") -> * | AT53: =IFERROR('Level 1'!AQ18/G146*T$141,"*") -> * | AU53: =IFERROR('Level 1'!AR18/H146*U$141,"*") -> 139.757764 | AV53: =IFERROR('Level 1'!AS18/I146*V$141,"*") -> 135.3080745 | AW53: =IFERROR('Level 1'!AT18/J146*W$141,"*") -> 135.5831051 | AX53: =IFERROR('Level 1'!AU18/K146*X$141,"*") -> 137.2908515 | AY53: =IFERROR('Level 1'!AV18/L146*Y$141,"*") -> 135.6119111 | AZ53: =IFERROR('Level 1'!AW18/M146*Z$141,"*") -> 136.8818108 | BA53: =IFERROR('Level 1'!AX18/N146*AA$141,"*") -> 118.9363905 | BB53: =IFERROR('Level 1'!AY18/O146*AB$141,"*") -> * | BD53: ='Oversættelse af landenavne'!$B$18 -> Italien | BE53: =IFERROR('Level 1'!BB18/E146*R$141,"*") -> * | BF53: =IFERROR('Level 1'!BC18/F146*S$141,"*") -> * | BG53: =IFERROR('Level 1'!BD18/G146*T$141,"*") -> * | BH53: =IFERROR('Level 1'!BE18/H146*U$141,"*") -> 167.61271 | BI53: =IFERROR('Level 1'!BF18/I146*V$141,"*") -> 154.2856385 | BJ53: =IFERROR('Level 1'!BG18/J146*W$141,"*") -> 154.7790376 | BK53: =IFERROR('Level 1'!BH18/K146*X$141,"*") -> 150.656773 | BL53: =IFERROR('Level 1'!BI18/L146*Y$141,"*") -> 155.7800278 | BM53: =IFERROR('Level 1'!BJ18/M146*Z$141,"*") -> 154.0106961 | BN53: =IFERROR('Level 1'!BK18/N146*AA$141,"*") -> 117.4468928 | BO53: =IFERROR('Level 1'!BL18/O146*AB$141,"*") -> *
D54: ='Oversættelse af landenavne'!$B$25 -> Holland | E54: =IFERROR('Level 1'!B25/E147*R$141,"*") -> 205.1832718 | F54: =IFERROR('Level 1'!C25/F147*S$141,"*") -> 203.732255 | G54: =IFERROR('Level 1'!D25/G147*T$141,"*") -> 283.708456 | H54: =IFERROR('Level 1'!E25/H147*U$141,"*") -> 261.7536058 | I54: =IFERROR('Level 1'!F25/I147*V$141,"*") -> 267.9111652 | J54: =IFERROR('Level 1'!G25/J147*W$141,"*") -> 281.6027513 | K54: =IFERROR('Level 1'!H25/K147*X$141,"*") -> 286.1515813 | L54: =IFERROR('Level 1'!I25/L147*Y$141,"*") -> 280.9177718 | M54: =IFERROR('Level 1'!J25/M147*Z$141,"*") -> 269.4702422 | N54: =IFERROR('Level 1'!K25/N147*AA$141,"*") -> 265.8008626 | O54: =IFERROR('Level 1'!L25/O147*AB$141,"*") -> * | Q54: ='Oversættelse af landenavne'!$B$25 -> Holland | R54: =IFERROR('Level 1'!O25/E147*R$141,"*") -> 127.1349883 | S54: =IFERROR('Level 1'!P25/F147*S$141,"*") -> 126.8989228 | T54: =IFERROR('Level 1'!Q25/G147*T$141,"*") -> 154.6794048 | U54: =IFERROR('Level 1'!R25/H147*U$141,"*") -> 138.2749805 | V54: =IFERROR('Level 1'!S25/I147*V$141,"*") -> 139.199818 | W54: =IFERROR('Level 1'!T25/J147*W$141,"*") -> 142.9356038 | X54: =IFERROR('Level 1'!U25/K147*X$141,"*") -> 142.2680896 | Y54: =IFERROR('Level 1'!V25/L147*Y$141,"*") -> 138.6060638 | Z54: =IFERROR('Level 1'!W25/M147*Z$141,"*") -> 132.1386728 | AA54: =IFERROR('Level 1'!X25/N147*AA$141,"*") -> 128.0968012 | AB54: =IFERROR('Level 1'!Y25/O147*AB$141,"*") -> * | AD54: ='Oversættelse af landenavne'!$B$25 -> Holland | AE54: =IFERROR('Level 1'!AB25/E147*R$141,"*") -> 109.4198037 | AF54: =IFERROR('Level 1'!AC25/F147*S$141,"*") -> 109.1776865 | AG54: =IFERROR('Level 1'!AD25/G147*T$141,"*") -> 118.6789086 | AH54: =IFERROR('Level 1'!AE25/H147*U$141,"*") -> 103.9393287 | AI54: =IFERROR('Level 1'!AF25/I147*V$141,"*") -> 103.2223842 | AJ54: =IFERROR('Level 1'!AG25/J147*W$141,"*") -> 104.5194972 | AK54: =IFERROR('Level 1'!AH25/K147*X$141,"*") -> 102.1084414 | AL54: =IFERROR('Level 1'!AI25/L147*Y$141,"*") -> 99.2289158 | AM54: =IFERROR('Level 1'!AJ25/M147*Z$141,"*") -> 94.25667837 | AN54: =IFERROR('Level 1'!AK25/N147*AA$141,"*") -> 89.81671064 | AO54: =IFERROR('Level 1'!AL25/O147*AB$141,"*") -> * | AQ54: ='Oversættelse af landenavne'!$B$25 -> Holland | AR54: =IFERROR('Level 1'!AO25/E147*R$141,"*") -> 100.5410716 | AS54: =IFERROR('Level 1'!AP25/F147*S$141,"*") -> 100.1311813 | AT54: =IFERROR('Level 1'!AQ25/G147*T$141,"*") -> 94.01038671 | AU54: =IFERROR('Level 1'!AR25/H147*U$141,"*") -> 79.94085653 | AV54: =IFERROR('Level 1'!AS25/I147*V$141,"*") -> 77.81257952 | AW54: =IFERROR('Level 1'!AT25/J147*W$141,"*") -> 77.94739546 | AX54: =IFERROR('Level 1'!AU25/K147*X$141,"*") -> 74.64660523 | AY54: =IFERROR('Level 1'!AV25/L147*Y$141,"*") -> 72.27877647 | AZ54: =IFERROR('Level 1'!AW25/M147*Z$141,"*") -> 68.4416309 | BA54: =IFERROR('Level 1'!AX25/N147*AA$141,"*") -> 63.75050108 | BB54: =IFERROR('Level 1'!AY25/O147*AB$141,"*") -> * | BD54: ='Oversættelse af landenavne'!$B$25 -> Holland | BE54: =IFERROR('Level 1'!BB25/E147*R$141,"*") -> 90.47850849 | BF54: =IFERROR('Level 1'!BC25/F147*S$141,"*") -> * | BG54: =IFERROR('Level 1'!BD25/G147*T$141,"*") -> 118.0652637 | BH54: =IFERROR('Level 1'!BE25/H147*U$141,"*") -> 103.3312593 | BI54: =IFERROR('Level 1'!BF25/I147*V$141,"*") -> 104.0931252 | BJ54: =IFERROR('Level 1'!BG25/J147*W$141,"*") -> 107.9034986 | BK54: =IFERROR('Level 1'!BH25/K147*X$141,"*") -> 104.6630308 | BL54: =IFERROR('Level 1'!BI25/L147*Y$141,"*") -> 100.8758688 | BM54: =IFERROR('Level 1'!BJ25/M147*Z$141,"*") -> 94.66762703 | BN54: =IFERROR('Level 1'!BK25/N147*AA$141,"*") -> 90.78488414 | BO54: =IFERROR('Level 1'!BL25/O147*AB$141,"*") -> *
D55: ='Oversættelse af landenavne'!$B$33 -> Sverige | E55: =IFERROR('Level 1'!B33/E148*R$141,"*") -> 164.8082193 | F55: =IFERROR('Level 1'!C33/F148*S$141,"*") -> 167.334315 | G55: =IFERROR('Level 1'!D33/G148*T$141,"*") -> 147.7877438 | H55: =IFERROR('Level 1'!E33/H148*U$141,"*") -> 188.5271481 | I55: =IFERROR('Level 1'!F33/I148*V$141,"*") -> 192.6614464 | J55: =IFERROR('Level 1'!G33/J148*W$141,"*") -> 192.8762019 | K55: =IFERROR('Level 1'!H33/K148*X$141,"*") -> 195.0016176 | L55: =IFERROR('Level 1'!I33/L148*Y$141,"*") -> 192.067225 | M55: =IFERROR('Level 1'!J33/M148*Z$141,"*") -> 183.4741962 | N55: =IFERROR('Level 1'!K33/N148*AA$141,"*") -> 194.8262977 | O55: =IFERROR('Level 1'!L33/O148*AB$141,"*") -> * | Q55: ='Oversættelse af landenavne'!$B$33 -> Sverige | R55: =IFERROR('Level 1'!O33/E148*R$141,"*") -> 87.23174074 | S55: =IFERROR('Level 1'!P33/F148*S$141,"*") -> 101.9838632 | T55: =IFERROR('Level 1'!Q33/G148*T$141,"*") -> 94.37812485 | U55: =IFERROR('Level 1'!R33/H148*U$141,"*") -> 106.0465208 | V55: =IFERROR('Level 1'!S33/I148*V$141,"*") -> 115.3282164 | W55: =IFERROR('Level 1'!T33/J148*W$141,"*") -> 112.1090549 | X55: =IFERROR('Level 1'!U33/K148*X$141,"*") -> 113.6435778 | Y55: =IFERROR('Level 1'!V33/L148*Y$141,"*") -> 108.3756611 | Z55: =IFERROR('Level 1'!W33/M148*Z$141,"*") -> 102.4557154 | AA55: =IFERROR('Level 1'!X33/N148*AA$141,"*") -> 105.3819615 | AB55: =IFERROR('Level 1'!Y33/O148*AB$141,"*") -> * | AD55: ='Oversættelse af landenavne'!$B$33 -> Sverige | AE55: =IFERROR('Level 1'!AB33/E148*R$141,"*") -> 82.80118755 | AF55: =IFERROR('Level 1'!AC33/F148*S$141,"*") -> 89.74579962 | AG55: =IFERROR('Level 1'!AD33/G148*T$141,"*") -> 83.16527459 | AH55: =IFERROR('Level 1'!AE33/H148*U$141,"*") -> 96.24684233 | AI55: =IFERROR('Level 1'!AF33/I148*V$141,"*") -> 104.2367507 | AJ55: =IFERROR('Level 1'!AG33/J148*W$141,"*") -> 100.9399386 | AK55: =IFERROR('Level 1'!AH33/K148*X$141,"*") -> 101.555448 | AL55: =IFERROR('Level 1'!AI33/L148*Y$141,"*") -> 92.9150244 | AM55: =IFERROR('Level 1'!AJ33/M148*Z$141,"*") -> 89.54081397 | AN55: =IFERROR('Level 1'!AK33/N148*AA$141,"*") -> 90.71040925 | AO55: =IFERROR('Level 1'!AL33/O148*AB$141,"*") -> * | AQ55: ='Oversættelse af landenavne'!$B$33 -> Sverige | AR55: =IFERROR('Level 1'!AO33/E148*R$141,"*") -> 72.39356731 | AS55: =IFERROR('Level 1'!AP33/F148*S$141,"*") -> 75.4074743 | AT55: =IFERROR('Level 1'!AQ33/G148*T$141,"*") -> 68.66384986 | AU55: =IFERROR('Level 1'!AR33/H148*U$141,"*") -> 80.76957233 | AV55: =IFERROR('Level 1'!AS33/I148*V$141,"*") -> 86.58251455 | AW55: =IFERROR('Level 1'!AT33/J148*W$141,"*") -> 81.9448429 | AX55: =IFERROR('Level 1'!AU33/K148*X$141,"*") -> 82.49485457 | AY55: =IFERROR('Level 1'!AV33/L148*Y$141,"*") -> 74.7705119 | AZ55: =IFERROR('Level 1'!AW33/M148*Z$141,"*") -> 70.01828849 | BA55: =IFERROR('Level 1'!AX33/N148*AA$141,"*") -> 69.11269276 | BB55: =IFERROR('Level 1'!AY33/O148*AB$141,"*") -> * | BD55: ='Oversættelse af landenavne'!$B$33 -> Sverige | BE55: =IFERROR('Level 1'!BB33/E148*R$141,"*") -> 62.11134008 | BF55: =IFERROR('Level 1'!BC33/F148*S$141,"*") -> 66.52175157 | BG55: =IFERROR('Level 1'!BD33/G148*T$141,"*") -> 62.28480784 | BH55: =IFERROR('Level 1'!BE33/H148*U$141,"*") -> 71.78653371 | BI55: =IFERROR('Level 1'!BF33/I148*V$141,"*") -> 75.72132146 | BJ55: =IFERROR('Level 1'!BG33/J148*W$141,"*") -> 70.8896972 | BK55: =IFERROR('Level 1'!BH33/K148*X$141,"*") -> 70.78566299 | BL55: =IFERROR('Level 1'!BI33/L148*Y$141,"*") -> 62.18275636 | BM55: =IFERROR('Level 1'!BJ33/M148*Z$141,"*") -> 58.11705662 | BN55: =IFERROR('Level 1'!BK33/N148*AA$141,"*") -> 57.49461079 | BO55: =IFERROR('Level 1'!BL33/O148*AB$141,"*") -> *
D56: ='Oversættelse af landenavne'!$B$34 -> UK | E56: =IFERROR('Level 1'!B34/E149*R$141,"*") -> 146.7496105 | F56: =IFERROR('Level 1'!C34/F149*S$141,"*") -> 137.4083862 | G56: =IFERROR('Level 1'!D34/G149*T$141,"*") -> 135.7264111 | H56: =IFERROR('Level 1'!E34/H149*U$141,"*") -> 120.707308 | I56: =IFERROR('Level 1'!F34/I149*V$141,"*") -> 124.0026481 | J56: =IFERROR('Level 1'!G34/J149*W$141,"*") -> 141.67139 | K56: =IFERROR('Level 1'!H34/K149*X$141,"*") -> 153.740431 | L56: =IFERROR('Level 1'!I34/L149*Y$141,"*") -> 174.1427498 | M56: =IFERROR('Level 1'!J34/M149*Z$141,"*") -> 185.8060868 | N56: =IFERROR('Level 1'!K34/N149*AA$141,"*") -> 175.9096771 | O56: =IFERROR('Level 1'!L34/O149*AB$141,"*") -> * | Q56: ='Oversættelse af landenavne'!$B$34 -> UK | R56: =IFERROR('Level 1'!O34/E149*R$141,"*") -> 141.4629786 | S56: =IFERROR('Level 1'!P34/F149*S$141,"*") -> 133.4962473 | T56: =IFERROR('Level 1'!Q34/G149*T$141,"*") -> 126.0961558 | U56: =IFERROR('Level 1'!R34/H149*U$141,"*") -> 121.1654793 | V56: =IFERROR('Level 1'!S34/I149*V$141,"*") -> 123.8431078 | W56: =IFERROR('Level 1'!T34/J149*W$141,"*") -> 139.8511179 | X56: =IFERROR('Level 1'!U34/K149*X$141,"*") -> 138.9001825 | Y56: =IFERROR('Level 1'!V34/L149*Y$141,"*") -> 154.6858758 | Z56: =IFERROR('Level 1'!W34/M149*Z$141,"*") -> 169.5517822 | AA56: =IFERROR('Level 1'!X34/N149*AA$141,"*") -> 157.4399057 | AB56: =IFERROR('Level 1'!Y34/O149*AB$141,"*") -> * | AD56: ='Oversættelse af landenavne'!$B$34 -> UK | AE56: =IFERROR('Level 1'!AB34/E149*R$141,"*") -> 128.6109941 | AF56: =IFERROR('Level 1'!AC34/F149*S$141,"*") -> 128.5291495 | AG56: =IFERROR('Level 1'!AD34/G149*T$141,"*") -> 117.798659 | AH56: =IFERROR('Level 1'!AE34/H149*U$141,"*") -> 112.5018768 | AI56: =IFERROR('Level 1'!AF34/I149*V$141,"*") -> 114.6296592 | AJ56: =IFERROR('Level 1'!AG34/J149*W$141,"*") -> 127.9612555 | AK56: =IFERROR('Level 1'!AH34/K149*X$141,"*") -> 127.5807073 | AL56: =IFERROR('Level 1'!AI34/L149*Y$141,"*") -> 139.5154778 | AM56: =IFERROR('Level 1'!AJ34/M149*Z$141,"*") -> 152.961953 | AN56: =IFERROR('Level 1'!AK34/N149*AA$141,"*") -> 138.4488102 | AO56: =IFERROR('Level 1'!AL34/O149*AB$141,"*") -> * | AQ56: ='Oversættelse af landenavne'!$B$34 -> UK | AR56: =IFERROR('Level 1'!AO34/E149*R$141,"*") -> 116.3970513 | AS56: =IFERROR('Level 1'!AP34/F149*S$141,"*") -> 115.3421643 | AT56: =IFERROR('Level 1'!AQ34/G149*T$141,"*") -> 105.0729645 | AU56: =IFERROR('Level 1'!AR34/H149*U$141,"*") -> 101.0059427 | AV56: =IFERROR('Level 1'!AS34/I149*V$141,"*") -> 101.8265553 | AW56: =IFERROR('Level 1'!AT34/J149*W$141,"*") -> 114.4834961 | AX56: =IFERROR('Level 1'!AU34/K149*X$141,"*") -> 116.2612321 | AY56: =IFERROR('Level 1'!AV34/L149*Y$141,"*") -> 125.8360281 | AZ56: =IFERROR('Level 1'!AW34/M149*Z$141,"*") -> 139.5036871 | BA56: =IFERROR('Level 1'!AX34/N149*AA$141,"*") -> 127.5010022 | BB56: =IFERROR('Level 1'!AY34/O149*AB$141,"*") -> * | BD56: ='Oversættelse af landenavne'!$B$34 -> UK | BE56: =IFERROR('Level 1'!BB34/E149*R$141,"*") -> 97.71154191 | BF56: =IFERROR('Level 1'!BC34/F149*S$141,"*") -> 113.2762032 | BG56: =IFERROR('Level 1'!BD34/G149*T$141,"*") -> 102.1494941 | BH56: =IFERROR('Level 1'!BE34/H149*U$141,"*") -> 92.46729597 | BI56: =IFERROR('Level 1'!BF34/I149*V$141,"*") -> 93.96919874 | BJ56: =IFERROR('Level 1'!BG34/J149*W$141,"*") -> 105.4983232 | BK56: =IFERROR('Level 1'!BH34/K149*X$141,"*") -> 106.6832146 | BL56: =IFERROR('Level 1'!BI34/L149*Y$141,"*") -> 115.9212225 | BM56: =IFERROR('Level 1'!BJ34/M149*Z$141,"*") -> 127.8721664 | BN56: =IFERROR('Level 1'!BK34/N149*AA$141,"*") -> 115.361596 | BO56: =IFERROR('Level 1'!BL34/O149*AB$141,"*") -> *
D57: Kilde: Eurostat | Q57: Kilde: Eurostat | AD57: Kilde: Eurostat | AQ57: Kilde: Eurostat | BD57: Kilde: Eurostat
B62: Level 2: Elpris inkl. PSO og afgifter | D62: ="Figur XX: "&$B$62&" for forbrugsinterval "&D26&". Priserne er vist i "&$E$15&" / kWh i "&$E$13&" med basisår "&$E$14&". " -> Figur XX: Level 2: Elpris inkl. PSO og afgifter for forbrugsinterval IA: < 1000 kWh. Priserne er vist i DKK øre / kWh i faste priser med basisår 2016. | Q62: ="Figur XX: "&$B$62&" for forbrugsinterval "&Q26&". Priserne er vist i "&$E$15&" / kWh i "&$E$13&" med basisår "&$E$14&". " -> Figur XX: Level 2: Elpris inkl. PSO og afgifter for forbrugsinterval IB: 1000 < 2500 kWh. Priserne er vist i DKK øre / kWh i faste priser med basisår 2016. | AD62: ="Figur XX: "&$B$62&" for forbrugsinterval "&AD26&". Priserne er vist i "&$E$15&" / kWh i "&$E$13&" med basisår "&$E$14&". " -> Figur XX: Level 2: Elpris inkl. PSO og afgifter for forbrugsinterval IC: 2500 < 5 000 kWh. Priserne er vist i DKK øre / kWh i faste priser med basisår 2016. | AQ62: ="Figur XX: "&$B$62&" for forbrugsinterval "&AQ26&". Priserne er vist i "&$E$15&" / kWh i "&$E$13&" med basisår "&$E$14&". " -> Figur XX: Level 2: Elpris inkl. PSO og afgifter for forbrugsinterval ID: 5 000 < 15 000 kWh. Priserne er vist i DKK øre / kWh i faste priser med basisår 2016. | BD62: ="Figur XX: "&$B$62&" for forbrugsinterval "&BD26&". Priserne er vist i "&$E$15&" / kWh i "&$E$13&" med basisår "&$E$14&". " -> Figur XX: Level 2: Elpris inkl. PSO og afgifter for forbrugsinterval IE: > 15 000 kWh. Priserne er vist i DKK øre / kWh i faste priser med basisår 2016. | BQ62: =B62 -> Level 2: Elpris inkl. PSO og afgifter
D81: Kilde: Eurostat | Q81: Kilde: Eurostat | AD81: Kilde: Eurostat | AQ81: Kilde: Eurostat | BD81: Kilde: Eurostat
D82: =$E$15&"/kWh" -> DKK øre/kWh | E82: ='Level 1'!B$5 -> 2007 | F82: ='Level 1'!C$5 -> 2008 | G82: ='Level 1'!D$5 -> 2009 | H82: ='Level 1'!E$5 -> 2010 | I82: ='Level 1'!F$5 -> 2011 | J82: ='Level 1'!G$5 -> 2012 | K82: ='Level 1'!H$5 -> 2013 | L82: ='Level 1'!I$5 -> 2014 | M82: ='Level 1'!J$5 -> 2015 | N82: ='Level 1'!K$5 -> 2016 | O82: ='Level 1'!L$5 -> 2017 | Q82: =$E$15&"/kWh" -> DKK øre/kWh | R82: ='Level 1'!O5 -> 2007 | S82: ='Level 1'!P5 -> 2008 | T82: ='Level 1'!Q5 -> 2009 | U82: ='Level 1'!R5 -> 2010 | V82: ='Level 1'!S5 -> 2011 | W82: ='Level 1'!T5 -> 2012 | X82: ='Level 1'!U5 -> 2013 | Y82: ='Level 1'!V5 -> 2014 | Z82: ='Level 1'!W5 -> 2015 | AA82: ='Level 1'!X5 -> 2016 | AB82: ='Level 1'!Y5 -> 2017 | AD82: =$E$15&"/kWh" -> DKK øre/kWh | AE82: ='Level 1'!AB5 -> 2007 | AF82: ='Level 1'!AC5 -> 2008 | AG82: ='Level 1'!AD5 -> 2009 | AH82: ='Level 1'!AE5 -> 2010 | AI82: ='Level 1'!AF5 -> 2011 | AJ82: ='Level 1'!AG5 -> 2012 | AK82: ='Level 1'!AH5 -> 2013 | AL82: ='Level 1'!AI5 -> 2014 | AM82: ='Level 1'!AJ5 -> 2015 | AN82: ='Level 1'!AK5 -> 2016 | AO82: ='Level 1'!AL5 -> 2017 | AQ82: =$E$15&"/kWh" -> DKK øre/kWh | AR82: ='Level 1'!AO5 -> 2007 | AS82: ='Level 1'!AP5 -> 2008 | AT82: ='Level 1'!AQ5 -> 2009 | AU82: ='Level 1'!AR5 -> 2010 | AV82: ='Level 1'!AS5 -> 2011 | AW82: ='Level 1'!AT5 -> 2012 | AX82: ='Level 1'!AU5 -> 2013 | AY82: ='Level 1'!AV5 -> 2014 | AZ82: ='Level 1'!AW5 -> 2015 | BA82: ='Level 1'!AX5 -> 2016 | BB82: ='Level 1'!AY5 -> 2017 | BD82: =$E$15&"/kWh" -> DKK øre/kWh | BE82: ='Level 1'!BB5 -> 2007 | BF82: ='Level 1'!BC5 -> 2008 | BG82: ='Level 1'!BD5 -> 2009 | BH82: ='Level 1'!BE5 -> 2010 | BI82: ='Level 1'!BF5 -> 2011 | BJ82: ='Level 1'!BG5 -> 2012 | BK82: ='Level 1'!BH5 -> 2013 | BL82: ='Level 1'!BI5 -> 2014 | BM82: ='Level 1'!BJ5 -> 2015 | BN82: ='Level 1'!BK5 -> 2016 | BO82: ='Level 1'!BL5 -> 2017
D83: ='Oversættelse af landenavne'!$B$6 -> EU-28 | E83: =IFERROR('Level 2'!B6/E141*R$141,"*") -> 179.9923598 | F83: =IFERROR('Level 2'!C6/F141*S$141,"*") -> 181.7028517 | G83: =IFERROR('Level 2'!D6/G141*T$141,"*") -> 179.9399133 | H83: =IFERROR('Level 2'!E6/H141*U$141,"*") -> 184.7379762 | I83: =IFERROR('Level 2'!F6/I141*V$141,"*") -> 185.3081098 | J83: =IFERROR('Level 2'!G6/J141*W$141,"*") -> 185.4485239 | K83: =IFERROR('Level 2'!H6/K141*X$141,"*") -> 195.7458924 | L83: =IFERROR('Level 2'!I6/L141*Y$141,"*") -> 202.1694137 | M83: =IFERROR('Level 2'!J6/M141*Z$141,"*") -> 209.0109465 | N83: =IFERROR('Level 2'!K6/N141*AA$141,"*") -> 212.1044709 | O83: =IFERROR('Level 2'!L6/O141*AB$141,"*") -> * | Q83: ='Oversættelse af landenavne'!$B$6 -> EU-28 | R83: =IFERROR('Level 2'!O6/E141*R$141,"*") -> 125.0138139 | S83: =IFERROR('Level 2'!P6/F141*S$141,"*") -> 124.2990082 | T83: =IFERROR('Level 2'!Q6/G141*T$141,"*") -> 124.2422713 | U83: =IFERROR('Level 2'!R6/H141*U$141,"*") -> 126.3086598 | V83: =IFERROR('Level 2'!S6/I141*V$141,"*") -> 130.2892774 | W83: =IFERROR('Level 2'!T6/J141*W$141,"*") -> 134.1776848 | X83: =IFERROR('Level 2'!U6/K141*X$141,"*") -> 138.206646 | Y83: =IFERROR('Level 2'!V6/L141*Y$141,"*") -> 141.2390927 | Z83: =IFERROR('Level 2'!W6/M141*Z$141,"*") -> 145.4540241 | AA83: =IFERROR('Level 2'!X6/N141*AA$141,"*") -> 144.1833763 | AB83: =IFERROR('Level 2'!Y6/O141*AB$141,"*") -> * | AD83: ='Oversættelse af landenavne'!$B$6 -> EU-28 | AE83: =IFERROR('Level 2'!AB6/E141*R$141,"*") -> 116.5820495 | AF83: =IFERROR('Level 2'!AC6/F141*S$141,"*") -> 116.5070064 | AG83: =IFERROR('Level 2'!AD6/G141*T$141,"*") -> 116.2796018 | AH83: =IFERROR('Level 2'!AE6/H141*U$141,"*") -> 117.7433161 | AI83: =IFERROR('Level 2'!AF6/I141*V$141,"*") -> 122.1340037 | AJ83: =IFERROR('Level 2'!AG6/J141*W$141,"*") -> 125.2147826 | AK83: =IFERROR('Level 2'!AH6/K141*X$141,"*") -> 128.8729181 | AL83: =IFERROR('Level 2'!AI6/L141*Y$141,"*") -> 130.9908736 | AM83: =IFERROR('Level 2'!AJ6/M141*Z$141,"*") -> 134.3082647 | AN83: =IFERROR('Level 2'!AK6/N141*AA$141,"*") -> 131.448171 | AO83: =IFERROR('Level 2'!AL6/O141*AB$141,"*") -> * | AQ83: ='Oversættelse af landenavne'!$B$6 -> EU-28 | AR83: =IFERROR('Level 2'!AO6/E141*R$141,"*") -> 109.5268996 | AS83: =IFERROR('Level 2'!AP6/F141*S$141,"*") -> 109.4610473 | AT83: =IFERROR('Level 2'!AQ6/G141*T$141,"*") -> 112.0519989 | AU83: =IFERROR('Level 2'!AR6/H141*U$141,"*") -> 112.6764931 | AV83: =IFERROR('Level 2'!AS6/I141*V$141,"*") -> 116.8272227 | AW83: =IFERROR('Level 2'!AT6/J141*W$141,"*") -> 119.7458931 | AX83: =IFERROR('Level 2'!AU6/K141*X$141,"*") -> 123.5500692 | AY83: =IFERROR('Level 2'!AV6/L141*Y$141,"*") -> 125.4009359 | AZ83: =IFERROR('Level 2'!AW6/M141*Z$141,"*") -> 128.4185323 | BA83: =IFERROR('Level 2'!AX6/N141*AA$141,"*") -> 124.5220068 | BB83: =IFERROR('Level 2'!AY6/O141*AB$141,"*") -> * | BD83: ='Oversættelse af landenavne'!$B$6 -> EU-28 | BE83: =IFERROR('Level 2'!BB6/E141*R$141,"*") -> 101.9555193 | BF83: =IFERROR('Level 2'!BC6/F141*S$141,"*") -> 104.4045354 | BG83: =IFERROR('Level 2'!BD6/G141*T$141,"*") -> 109.3430495 | BH83: =IFERROR('Level 2'!BE6/H141*U$141,"*") -> 108.8964822 | BI83: =IFERROR('Level 2'!BF6/I141*V$141,"*") -> 112.066728 | BJ83: =IFERROR('Level 2'!BG6/J141*W$141,"*") -> 115.1125283 | BK83: =IFERROR('Level 2'!BH6/K141*X$141,"*") -> 116.8777657 | BL83: =IFERROR('Level 2'!BI6/L141*Y$141,"*") -> 119.4010694 | BM83: =IFERROR('Level 2'!BJ6/M141*Z$141,"*") -> 123.2743357 | BN83: =IFERROR('Level 2'!BK6/N141*AA$141,"*") -> 118.9363905 | BO83: =IFERROR('Level 2'!BL6/O141*AB$141,"*") -> *
D84: ='Oversættelse af landenavne'!$B$7 -> Belgien | E84: =IFERROR('Level 2'!B7/E142*R$141,"*") -> 175.9552845 | F84: =IFERROR('Level 2'!C7/F142*S$141,"*") -> 219.4530269 | G84: =IFERROR('Level 2'!D7/G142*T$141,"*") -> 186.0479059 | H84: =IFERROR('Level 2'!E7/H142*U$141,"*") -> 194.3642908 | I84: =IFERROR('Level 2'!F7/I142*V$141,"*") -> 195.498844 | J84: =IFERROR('Level 2'!G7/J142*W$141,"*") -> 190.8204163 | K84: =IFERROR('Level 2'!H7/K142*X$141,"*") -> 182.0735253 | L84: =IFERROR('Level 2'!I7/L142*Y$141,"*") -> 181.1908594 | M84: =IFERROR('Level 2'!J7/M142*Z$141,"*") -> 193.2299585 | N84: =IFERROR('Level 2'!K7/N142*AA$141,"*") -> 253.0656573 | O84: =IFERROR('Level 2'!L7/O142*AB$141,"*") -> * | Q84: ='Oversættelse af landenavne'!$B$7 -> Belgien | R84: =IFERROR('Level 2'!O7/E142*R$141,"*") -> 144.9453433 | S84: =IFERROR('Level 2'!P7/F142*S$141,"*") -> 159.594633 | T84: =IFERROR('Level 2'!Q7/G142*T$141,"*") -> 146.0407371 | U84: =IFERROR('Level 2'!R7/H142*U$141,"*") -> 147.9398286 | V84: =IFERROR('Level 2'!S7/I142*V$141,"*") -> 154.5007988 | W84: =IFERROR('Level 2'!T7/J142*W$141,"*") -> 150.946349 | X84: =IFERROR('Level 2'!U7/K142*X$141,"*") -> 147.8896857 | Y84: =IFERROR('Level 2'!V7/L142*Y$141,"*") -> 150.5835303 | Z84: =IFERROR('Level 2'!W7/M142*Z$141,"*") -> 162.0190625 | AA84: =IFERROR('Level 2'!X7/N142*AA$141,"*") -> 174.4201794 | AB84: =IFERROR('Level 2'!Y7/O142*AB$141,"*") -> * | AD84: ='Oversættelse af landenavne'!$B$7 -> Belgien | AE84: =IFERROR('Level 2'!AB7/E142*R$141,"*") -> 123.9526584 | AF84: =IFERROR('Level 2'!AC7/F142*S$141,"*") -> 141.9035222 | AG84: =IFERROR('Level 2'!AD7/G142*T$141,"*") -> 130.0545219 | AH84: =IFERROR('Level 2'!AE7/H142*U$141,"*") -> 132.2344453 | AI84: =IFERROR('Level 2'!AF7/I142*V$141,"*") -> 138.8262339 | AJ84: =IFERROR('Level 2'!AG7/J142*W$141,"*") -> 144.2367703 | AK84: =IFERROR('Level 2'!AH7/K142*X$141,"*") -> 136.9250579 | AL84: =IFERROR('Level 2'!AI7/L142*Y$141,"*") -> 141.2616927 | AM84: =IFERROR('Level 2'!AJ7/M142*Z$141,"*") -> 152.5282491 | AN84: =IFERROR('Level 2'!AK7/N142*AA$141,"*") -> 156.9930564 | AO84: =IFERROR('Level 2'!AL7/O142*AB$141,"*") -> * | AQ84: ='Oversættelse af landenavne'!$B$7 -> Belgien | AR84: =IFERROR('Level 2'!AO7/E142*R$141,"*") -> 113.9354021 | AS84: =IFERROR('Level 2'!AP7/F142*S$141,"*") -> 127.7506335 | AT84: =IFERROR('Level 2'!AQ7/G142*T$141,"*") -> 115.1507066 | AU84: =IFERROR('Level 2'!AR7/H142*U$141,"*") -> 117.5869375 | AV84: =IFERROR('Level 2'!AS7/I142*V$141,"*") -> 123.8999523 | AW84: =IFERROR('Level 2'!AT7/J142*W$141,"*") -> 123.2262041 | AX84: =IFERROR('Level 2'!AU7/K142*X$141,"*") -> 124.1013756 | AY84: =IFERROR('Level 2'!AV7/L142*Y$141,"*") -> 126.8449236 | AZ84: =IFERROR('Level 2'!AW7/M142*Z$141,"*") -> 137.2979321 | BA84: =IFERROR('Level 2'!AX7/N142*AA$141,"*") -> 143.736527 | BB84: =IFERROR('Level 2'!AY7/O142*AB$141,"*") -> * | BD84: ='Oversættelse af landenavne'!$B$7 -> Belgien | BE84: =IFERROR('Level 2'!BB7/E142*R$141,"*") -> 100.5209893 | BF84: =IFERROR('Level 2'!BC7/F142*S$141,"*") -> 114.9297814 | BG84: =IFERROR('Level 2'!BD7/G142*T$141,"*") -> 97.1245837 | BH84: =IFERROR('Level 2'!BE7/H142*U$141,"*") -> 99.39961532 | BI84: =IFERROR('Level 2'!BF7/I142*V$141,"*") -> 105.8230044 | BJ84: =IFERROR('Level 2'!BG7/J142*W$141,"*") -> 109.4236424 | BK84: =IFERROR('Level 2'!BH7/K142*X$141,"*") -> 106.6869667 | BL84: =IFERROR('Level 2'!BI7/L142*Y$141,"*") -> 108.767352 | BM84: =IFERROR('Level 2'!BJ7/M142*Z$141,"*") -> 113.6271684 | BN84: =IFERROR('Level 2'!BK7/N142*AA$141,"*") -> 110.222829 | BO84: =IFERROR('Level 2'!BL7/O142*AB$141,"*") -> *
D85: ='Oversættelse af landenavne'!$B$10 -> Danmark | E85: =IFERROR('Level 2'!B10/E143*R$141,"*") -> 181.6790895 | F85: =IFERROR('Level 2'!C10/F143*S$141,"*") -> 196.0194226 | G85: =IFERROR('Level 2'!D10/G143*T$141,"*") -> 189.2027183 | H85: =IFERROR('Level 2'!E10/H143*U$141,"*") -> 189.8086345 | I85: =IFERROR('Level 2'!F10/I143*V$141,"*") -> 200.8950627 | J85: =IFERROR('Level 2'!G10/J143*W$141,"*") -> 198.6841429 | K85: =IFERROR('Level 2'!H10/K143*X$141,"*") -> 196.0703808 | L85: =IFERROR('Level 2'!I10/L143*Y$141,"*") -> 198.7548717 | M85: =IFERROR('Level 2'!J10/M143*Z$141,"*") -> 199.1407069 | N85: =IFERROR('Level 2'!K10/N143*AA$141,"*") -> 229.0102697 | O85: =IFERROR('Level 2'!L10/O143*AB$141,"*") -> * | Q85: ='Oversættelse af landenavne'!$B$10 -> Danmark | R85: =IFERROR('Level 2'!O10/E143*R$141,"*") -> 181.6790895 | S85: =IFERROR('Level 2'!P10/F143*S$141,"*") -> 196.0194226 | T85: =IFERROR('Level 2'!Q10/G143*T$141,"*") -> 189.2027183 | U85: =IFERROR('Level 2'!R10/H143*U$141,"*") -> 189.8086345 | V85: =IFERROR('Level 2'!S10/I143*V$141,"*") -> 200.8950627 | W85: =IFERROR('Level 2'!T10/J143*W$141,"*") -> 198.6841429 | X85: =IFERROR('Level 2'!U10/K143*X$141,"*") -> 196.0703808 | Y85: =IFERROR('Level 2'!V10/L143*Y$141,"*") -> 198.7548717 | Z85: =IFERROR('Level 2'!W10/M143*Z$141,"*") -> 199.1407069 | AA85: =IFERROR('Level 2'!X10/N143*AA$141,"*") -> 198.9968912 | AB85: =IFERROR('Level 2'!Y10/O143*AB$141,"*") -> * | AD85: ='Oversættelse af landenavne'!$B$10 -> Danmark | AE85: =IFERROR('Level 2'!AB10/E143*R$141,"*") -> 163.0866967 | AF85: =IFERROR('Level 2'!AC10/F143*S$141,"*") -> 177.3664892 | AG85: =IFERROR('Level 2'!AD10/G143*T$141,"*") -> 170.2459912 | AH85: =IFERROR('Level 2'!AE10/H143*U$141,"*") -> 170.5779707 | AI85: =IFERROR('Level 2'!AF10/I143*V$141,"*") -> 181.9222842 | AJ85: =IFERROR('Level 2'!AG10/J143*W$141,"*") -> 180.0563261 | AK85: =IFERROR('Level 2'!AH10/K143*X$141,"*") -> 178.4781764 | AL85: =IFERROR('Level 2'!AI10/L143*Y$141,"*") -> 181.91441 | AM85: =IFERROR('Level 2'!AJ10/M143*Z$141,"*") -> 182.5549868 | AN85: =IFERROR('Level 2'!AK10/N143*AA$141,"*") -> 183.9529646 | AO85: =IFERROR('Level 2'!AL10/O143*AB$141,"*") -> * | AQ85: ='Oversættelse af landenavne'!$B$10 -> Danmark | AR85: =IFERROR('Level 2'!AO10/E143*R$141,"*") -> 144.3245104 | AS85: =IFERROR('Level 2'!AP10/F143*S$141,"*") -> 158.3045003 | AT85: =IFERROR('Level 2'!AQ10/G143*T$141,"*") -> 151.0462292 | AU85: =IFERROR('Level 2'!AR10/H143*U$141,"*") -> 147.6597775 | AV85: =IFERROR('Level 2'!AS10/I143*V$141,"*") -> 159.124037 | AW85: =IFERROR('Level 2'!AT10/J143*W$141,"*") -> 157.6576962 | AX85: =IFERROR('Level 2'!AU10/K143*X$141,"*") -> 135.0239279 | AY85: =IFERROR('Level 2'!AV10/L143*Y$141,"*") -> 137.605284 | AZ85: =IFERROR('Level 2'!AW10/M143*Z$141,"*") -> 133.7317071 | BA85: =IFERROR('Level 2'!AX10/N143*AA$141,"*") -> 144.8536502 | BB85: =IFERROR('Level 2'!AY10/O143*AB$141,"*") -> * | BD85: ='Oversættelse af landenavne'!$B$10 -> Danmark | BE85: =IFERROR('Level 2'!BB10/E143*R$141,"*") -> 144.3245104 | BF85: =IFERROR('Level 2'!BC10/F143*S$141,"*") -> 158.3045003 | BG85: =IFERROR('Level 2'!BD10/G143*T$141,"*") -> 151.0462292 | BH85: =IFERROR('Level 2'!BE10/H143*U$141,"*") -> 147.6597775 | BI85: =IFERROR('Level 2'!BF10/I143*V$141,"*") -> 159.124037 | BJ85: =IFERROR('Level 2'!BG10/J143*W$141,"*") -> 157.6576962 | BK85: =IFERROR('Level 2'!BH10/K143*X$141,"*") -> 135.0239279 | BL85: =IFERROR('Level 2'!BI10/L143*Y$141,"*") -> 137.605284 | BM85: =IFERROR('Level 2'!BJ10/M143*Z$141,"*") -> 133.7317071 | BN85: =IFERROR('Level 2'!BK10/N143*AA$141,"*") -> 131.8205455 | BO85: =IFERROR('Level 2'!BL10/O143*AB$141,"*") -> *
D86: ='Oversættelse af landenavne'!$B$11 -> Tyskland | E86: =IFERROR('Level 2'!B11/E144*R$141,"*") -> 230.2407907 | F86: =IFERROR('Level 2'!C11/F144*S$141,"*") -> 235.128291 | G86: =IFERROR('Level 2'!D11/G144*T$141,"*") -> 243.1558717 | H86: =IFERROR('Level 2'!E11/H144*U$141,"*") -> 248.3207214 | I86: =IFERROR('Level 2'!F11/I144*V$141,"*") -> 251.5411108 | J86: =IFERROR('Level 2'!G11/J144*W$141,"*") -> 255.1368057 | K86: =IFERROR('Level 2'!H11/K144*X$141,"*") -> 269.8032294 | L86: =IFERROR('Level 2'!I11/L144*Y$141,"*") -> 271.9707894 | M86: =IFERROR('Level 2'!J11/M144*Z$141,"*") -> 273.5770325 | N86: =IFERROR('Level 2'!K11/N144*AA$141,"*") -> 285.0898577 | O86: =IFERROR('Level 2'!L11/O144*AB$141,"*") -> * | Q86: ='Oversættelse af landenavne'!$B$11 -> Tyskland | R86: =IFERROR('Level 2'!O11/E144*R$141,"*") -> 161.1101802 | S86: =IFERROR('Level 2'!P11/F144*S$141,"*") -> 164.2815983 | T86: =IFERROR('Level 2'!Q11/G144*T$141,"*") -> 172.2202347 | U86: =IFERROR('Level 2'!R11/H144*U$141,"*") -> 178.6917351 | V86: =IFERROR('Level 2'!S11/I144*V$141,"*") -> 182.1544989 | W86: =IFERROR('Level 2'!T11/J144*W$141,"*") -> 185.3247727 | X86: =IFERROR('Level 2'!U11/K144*X$141,"*") -> 200.8363562 | Y86: =IFERROR('Level 2'!V11/L144*Y$141,"*") -> 202.6895735 | Z86: =IFERROR('Level 2'!W11/M144*Z$141,"*") -> 201.2923903 | AA86: =IFERROR('Level 2'!X11/N144*AA$141,"*") -> 204.2101331 | AB86: =IFERROR('Level 2'!Y11/O144*AB$141,"*") -> * | AD86: ='Oversættelse af landenavne'!$B$11 -> Tyskland | AE86: =IFERROR('Level 2'!AB11/E144*R$141,"*") -> 144.5154981 | AF86: =IFERROR('Level 2'!AC11/F144*S$141,"*") -> 147.7358337 | AG86: =IFERROR('Level 2'!AD11/G144*T$141,"*") -> 155.6294696 | AH86: =IFERROR('Level 2'!AE11/H144*U$141,"*") -> 161.7744111 | AI86: =IFERROR('Level 2'!AF11/I144*V$141,"*") -> 165.9890193 | AJ86: =IFERROR('Level 2'!AG11/J144*W$141,"*") -> 169.2760295 | AK86: =IFERROR('Level 2'!AH11/K144*X$141,"*") -> 184.8658732 | AL86: =IFERROR('Level 2'!AI11/L144*Y$141,"*") -> 186.8912154 | AM86: =IFERROR('Level 2'!AJ11/M144*Z$141,"*") -> 184.9471795 | AN86: =IFERROR('Level 2'!AK11/N144*AA$141,"*") -> 185.8148367 | AO86: =IFERROR('Level 2'!AL11/O144*AB$141,"*") -> * | AQ86: ='Oversættelse af landenavne'!$B$11 -> Tyskland | AR86: =IFERROR('Level 2'!AO11/E144*R$141,"*") -> 135.7178149 | AS86: =IFERROR('Level 2'!AP11/F144*S$141,"*") -> 137.1919642 | AT86: =IFERROR('Level 2'!AQ11/G144*T$141,"*") -> 144.9871007 | AU86: =IFERROR('Level 2'!AR11/H144*U$141,"*") -> 152.335904 | AV86: =IFERROR('Level 2'!AS11/I144*V$141,"*") -> 158.1796088 | AW86: =IFERROR('Level 2'!AT11/J144*W$141,"*") -> 160.7931224 | AX86: =IFERROR('Level 2'!AU11/K144*X$141,"*") -> 175.9766422 | AY86: =IFERROR('Level 2'!AV11/L144*Y$141,"*") -> 177.5167759 | AZ86: =IFERROR('Level 2'!AW11/M144*Z$141,"*") -> 175.5430856 | BA86: =IFERROR('Level 2'!AX11/N144*AA$141,"*") -> 175.9841519 | BB86: =IFERROR('Level 2'!AY11/O144*AB$141,"*") -> * | BD86: ='Oversættelse af landenavne'!$B$11 -> Tyskland | BE86: =IFERROR('Level 2'!BB11/E144*R$141,"*") -> 129.7137088 | BF86: =IFERROR('Level 2'!BC11/F144*S$141,"*") -> 132.0822428 | BG86: =IFERROR('Level 2'!BD11/G144*T$141,"*") -> 140.4549893 | BH86: =IFERROR('Level 2'!BE11/H144*U$141,"*") -> 147.4966695 | BI86: =IFERROR('Level 2'!BF11/I144*V$141,"*") -> 152.4006451 | BJ86: =IFERROR('Level 2'!BG11/J144*W$141,"*") -> 154.6411042 | BK86: =IFERROR('Level 2'!BH11/K144*X$141,"*") -> 170.2890409 | BL86: =IFERROR('Level 2'!BI11/L144*Y$141,"*") -> 169.636271 | BM86: =IFERROR('Level 2'!BJ11/M144*Z$141,"*") -> 167.9302477 | BN86: =IFERROR('Level 2'!BK11/N144*AA$141,"*") -> 167.7174398 | BO86: =IFERROR('Level 2'!BL11/O144*AB$141,"*") -> *
D87: ='Oversættelse af landenavne'!$B$16 -> Frankrig | E87: =IFERROR('Level 2'!B16/E145*R$141,"*") -> 171.7285776 | F87: =IFERROR('Level 2'!C16/F145*S$141,"*") -> 165.7423718 | G87: =IFERROR('Level 2'!D16/G145*T$141,"*") -> 162.4187065 | H87: =IFERROR('Level 2'!E16/H145*U$141,"*") -> 164.4968843 | I87: =IFERROR('Level 2'!F16/I145*V$141,"*") -> 169.764623 | J87: =IFERROR('Level 2'!G16/J145*W$141,"*") -> 170.2171293 | K87: =IFERROR('Level 2'!H16/K145*X$141,"*") -> 189.9060027 | L87: =IFERROR('Level 2'!I16/L145*Y$141,"*") -> 179.3109459 | M87: =IFERROR('Level 2'!J16/M145*Z$141,"*") -> 187.3167704 | N87: =IFERROR('Level 2'!K16/N145*AA$141,"*") -> 188.198033 | O87: =IFERROR('Level 2'!L16/O145*AB$141,"*") -> * | Q87: ='Oversættelse af landenavne'!$B$16 -> Frankrig | R87: =IFERROR('Level 2'!O16/E145*R$141,"*") -> 103.4539635 | S87: =IFERROR('Level 2'!P16/F145*S$141,"*") -> 98.34773804 | T87: =IFERROR('Level 2'!Q16/G145*T$141,"*") -> 97.95916027 | U87: =IFERROR('Level 2'!R16/H145*U$141,"*") -> 102.9542051 | V87: =IFERROR('Level 2'!S16/I145*V$141,"*") -> 106.4323413 | W87: =IFERROR('Level 2'!T16/J145*W$141,"*") -> 107.6311739 | X87: =IFERROR('Level 2'!U16/K145*X$141,"*") -> 115.4920139 | Y87: =IFERROR('Level 2'!V16/L145*Y$141,"*") -> 115.1966406 | Z87: =IFERROR('Level 2'!W16/M145*Z$141,"*") -> 118.7707729 | AA87: =IFERROR('Level 2'!X16/N145*AA$141,"*") -> 119.4577146 | AB87: =IFERROR('Level 2'!Y16/O145*AB$141,"*") -> * | AD87: ='Oversættelse af landenavne'!$B$16 -> Frankrig | AE87: =IFERROR('Level 2'!AB16/E145*R$141,"*") -> 87.44819316 | AF87: =IFERROR('Level 2'!AC16/F145*S$141,"*") -> 83.5774171 | AG87: =IFERROR('Level 2'!AD16/G145*T$141,"*") -> 83.28544243 | AH87: =IFERROR('Level 2'!AE16/H145*U$141,"*") -> 89.16357257 | AI87: =IFERROR('Level 2'!AF16/I145*V$141,"*") -> 93.09922932 | AJ87: =IFERROR('Level 2'!AG16/J145*W$141,"*") -> 93.87893311 | AK87: =IFERROR('Level 2'!AH16/K145*X$141,"*") -> 100.0454738 | AL87: =IFERROR('Level 2'!AI16/L145*Y$141,"*") -> 101.9406252 | AM87: =IFERROR('Level 2'!AJ16/M145*Z$141,"*") -> 104.9272427 | AN87: =IFERROR('Level 2'!AK16/N145*AA$141,"*") -> 107.0204089 | AO87: =IFERROR('Level 2'!AL16/O145*AB$141,"*") -> * | AQ87: ='Oversættelse af landenavne'!$B$16 -> Frankrig | AR87: =IFERROR('Level 2'!AO16/E145*R$141,"*") -> 76.52758944 | AS87: =IFERROR('Level 2'!AP16/F145*S$141,"*") -> 72.68127871 | AT87: =IFERROR('Level 2'!AQ16/G145*T$141,"*") -> 75.34389734 | AU87: =IFERROR('Level 2'!AR16/H145*U$141,"*") -> 79.77167626 | AV87: =IFERROR('Level 2'!AS16/I145*V$141,"*") -> 84.64975721 | AW87: =IFERROR('Level 2'!AT16/J145*W$141,"*") -> 85.35481691 | AX87: =IFERROR('Level 2'!AU16/K145*X$141,"*") -> 91.0255964 | AY87: =IFERROR('Level 2'!AV16/L145*Y$141,"*") -> 92.90413022 | AZ87: =IFERROR('Level 2'!AW16/M145*Z$141,"*") -> 96.41962843 | BA87: =IFERROR('Level 2'!AX16/N145*AA$141,"*") -> 98.82817166 | BB87: =IFERROR('Level 2'!AY16/O145*AB$141,"*") -> * | BD87: ='Oversættelse af landenavne'!$B$16 -> Frankrig | BE87: =IFERROR('Level 2'!BB16/E145*R$141,"*") -> 70.35869879 | BF87: =IFERROR('Level 2'!BC16/F145*S$141,"*") -> 69.97742214 | BG87: =IFERROR('Level 2'!BD16/G145*T$141,"*") -> 72.11890441 | BH87: =IFERROR('Level 2'!BE16/H145*U$141,"*") -> 77.0373267 | BI87: =IFERROR('Level 2'!BF16/I145*V$141,"*") -> 82.36297348 | BJ87: =IFERROR('Level 2'!BG16/J145*W$141,"*") -> 83.15748918 | BK87: =IFERROR('Level 2'!BH16/K145*X$141,"*") -> 82.64462696 | BL87: =IFERROR('Level 2'!BI16/L145*Y$141,"*") -> 86.44415654 | BM87: =IFERROR('Level 2'!BJ16/M145*Z$141,"*") -> 94.14346847 | BN87: =IFERROR('Level 2'!BK16/N145*AA$141,"*") -> 96.74287489 | BO87: =IFERROR('Level 2'!BL16/O145*AB$141,"*") -> *
D88: ='Oversættelse af landenavne'!$B$18 -> Italien | E88: =IFERROR('Level 2'!B18/E146*R$141,"*") -> * | F88: =IFERROR('Level 2'!C18/F146*S$141,"*") -> 206.5434766 | G88: =IFERROR('Level 2'!D18/G146*T$141,"*") -> 212.1564907 | H88: =IFERROR('Level 2'!E18/H146*U$141,"*") -> 204.7660557 | I88: =IFERROR('Level 2'!F18/I146*V$141,"*") -> 185.0410308 | J88: =IFERROR('Level 2'!G18/J146*W$141,"*") -> 179.6921019 | K88: =IFERROR('Level 2'!H18/K146*X$141,"*") -> 188.6953618 | L88: =IFERROR('Level 2'!I18/L146*Y$141,"*") -> 198.3571632 | M88: =IFERROR('Level 2'!J18/M146*Z$141,"*") -> 199.351863 | N88: =IFERROR('Level 2'!K18/N146*AA$141,"*") -> 213.3705439 | O88: =IFERROR('Level 2'!L18/O146*AB$141,"*") -> * | Q88: ='Oversættelse af landenavne'!$B$18 -> Italien | R88: =IFERROR('Level 2'!O18/E146*R$141,"*") -> * | S88: =IFERROR('Level 2'!P18/F146*S$141,"*") -> 125.8637194 | T88: =IFERROR('Level 2'!Q18/G146*T$141,"*") -> 125.8784269 | U88: =IFERROR('Level 2'!R18/H146*U$141,"*") -> 118.9068073 | V88: =IFERROR('Level 2'!S18/I146*V$141,"*") -> 119.8521204 | W88: =IFERROR('Level 2'!T18/J146*W$141,"*") -> 132.9706409 | X88: =IFERROR('Level 2'!U18/K146*X$141,"*") -> 134.8572804 | Y88: =IFERROR('Level 2'!V18/L146*Y$141,"*") -> 142.9321905 | Z88: =IFERROR('Level 2'!W18/M146*Z$141,"*") -> 142.9272997 | AA88: =IFERROR('Level 2'!X18/N146*AA$141,"*") -> 146.0452484 | AB88: =IFERROR('Level 2'!Y18/O146*AB$141,"*") -> * | AD88: ='Oversættelse af landenavne'!$B$18 -> Italien | AE88: =IFERROR('Level 2'!AB18/E146*R$141,"*") -> * | AF88: =IFERROR('Level 2'!AC18/F146*S$141,"*") -> 159.6692385 | AG88: =IFERROR('Level 2'!AD18/G146*T$141,"*") -> 152.3877608 | AH88: =IFERROR('Level 2'!AE18/H146*U$141,"*") -> 142.535208 | AI88: =IFERROR('Level 2'!AF18/I146*V$141,"*") -> 144.503389 | AJ88: =IFERROR('Level 2'!AG18/J146*W$141,"*") -> 152.3180206 | AK88: =IFERROR('Level 2'!AH18/K146*X$141,"*") -> 157.0214975 | AL88: =IFERROR('Level 2'!AI18/L146*Y$141,"*") -> 162.4280367 | AM88: =IFERROR('Level 2'!AJ18/M146*Z$141,"*") -> 165.4672708 | AN88: =IFERROR('Level 2'!AK18/N146*AA$141,"*") -> 163.3978965 | AO88: =IFERROR('Level 2'!AL18/O146*AB$141,"*") -> * | AQ88: ='Oversættelse af landenavne'!$B$18 -> Italien | AR88: =IFERROR('Level 2'!AO18/E146*R$141,"*") -> * | AS88: =IFERROR('Level 2'!AP18/F146*S$141,"*") -> 176.736903 | AT88: =IFERROR('Level 2'!AQ18/G146*T$141,"*") -> 194.4017824 | AU88: =IFERROR('Level 2'!AR18/H146*U$141,"*") -> 180.050829 | AV88: =IFERROR('Level 2'!AS18/I146*V$141,"*") -> 177.0195862 | AW88: =IFERROR('Level 2'!AT18/J146*W$141,"*") -> 188.0216978 | AX88: =IFERROR('Level 2'!AU18/K146*X$141,"*") -> 195.8088774 | AY88: =IFERROR('Level 2'!AV18/L146*Y$141,"*") -> 201.6438193 | AZ88: =IFERROR('Level 2'!AW18/M146*Z$141,"*") -> 206.5168869 | BA88: =IFERROR('Level 2'!AX18/N146*AA$141,"*") -> 191.6238777 | BB88: =IFERROR('Level 2'!AY18/O146*AB$141,"*") -> * | BD88: ='Oversættelse af landenavne'!$B$18 -> Italien | BE88: =IFERROR('Level 2'!BB18/E146*R$141,"*") -> * | BF88: =IFERROR('Level 2'!BC18/F146*S$141,"*") -> 168.9863694 | BG88: =IFERROR('Level 2'!BD18/G146*T$141,"*") -> 224.8793346 | BH88: =IFERROR('Level 2'!BE18/H146*U$141,"*") -> 204.8868141 | BI88: =IFERROR('Level 2'!BF18/I146*V$141,"*") -> 197.4840521 | BJ88: =IFERROR('Level 2'!BG18/J146*W$141,"*") -> 210.3601597 | BK88: =IFERROR('Level 2'!BH18/K146*X$141,"*") -> 209.6989526 | BL88: =IFERROR('Level 2'!BI18/L146*Y$141,"*") -> 224.3142765 | BM88: =IFERROR('Level 2'!BJ18/M146*Z$141,"*") -> 226.817788 | BN88: =IFERROR('Level 2'!BK18/N146*AA$141,"*") -> 194.1560237 | BO88: =IFERROR('Level 2'!BL18/O146*AB$141,"*") -> *
D89: ='Oversættelse af landenavne'!$B$25 -> Holland | E89: =IFERROR('Level 2'!B25/E147*R$141,"*") -> * | F89: =IFERROR('Level 2'!C25/F147*S$141,"*") -> * | G89: =IFERROR('Level 2'!D25/G147*T$141,"*") -> * | H89: =IFERROR('Level 2'!E25/H147*U$141,"*") -> * | I89: =IFERROR('Level 2'!F25/I147*V$141,"*") -> * | J89: =IFERROR('Level 2'!G25/J147*W$141,"*") -> * | K89: =IFERROR('Level 2'!H25/K147*X$141,"*") -> * | L89: =IFERROR('Level 2'!I25/L147*Y$141,"*") -> * | M89: =IFERROR('Level 2'!J25/M147*Z$141,"*") -> * | N89: =IFERROR('Level 2'!K25/N147*AA$141,"*") -> * | O89: =IFERROR('Level 2'!L25/O147*AB$141,"*") -> * | Q89: ='Oversættelse af landenavne'!$B$25 -> Holland | R89: =IFERROR('Level 2'!O25/E147*R$141,"*") -> 97.20097711 | S89: =IFERROR('Level 2'!P25/F147*S$141,"*") -> 94.92634265 | T89: =IFERROR('Level 2'!Q25/G147*T$141,"*") -> 96.71042393 | U89: =IFERROR('Level 2'!R25/H147*U$141,"*") -> 83.54873494 | V89: =IFERROR('Level 2'!S25/I147*V$141,"*") -> 84.97640296 | W89: =IFERROR('Level 2'!T25/J147*W$141,"*") -> 86.17667155 | X89: =IFERROR('Level 2'!U25/K147*X$141,"*") -> 86.48036499 | Y89: =IFERROR('Level 2'!V25/L147*Y$141,"*") -> 75.79726688 | Z89: =IFERROR('Level 2'!W25/M147*Z$141,"*") -> 89.84832005 | AA89: =IFERROR('Level 2'!X25/N147*AA$141,"*") -> 70.22981603 | AB89: =IFERROR('Level 2'!Y25/O147*AB$141,"*") -> * | AD89: ='Oversættelse af landenavne'!$B$25 -> Holland | AE89: =IFERROR('Level 2'!AB25/E147*R$141,"*") -> 124.3445297 | AF89: =IFERROR('Level 2'!AC25/F147*S$141,"*") -> 123.8421128 | AG89: =IFERROR('Level 2'!AD25/G147*T$141,"*") -> 133.5700229 | AH89: =IFERROR('Level 2'!AE25/H147*U$141,"*") -> 121.1274236 | AI89: =IFERROR('Level 2'!AF25/I147*V$141,"*") -> 119.8456209 | AJ89: =IFERROR('Level 2'!AG25/J147*W$141,"*") -> 119.4783215 | AK89: =IFERROR('Level 2'!AH25/K147*X$141,"*") -> 118.0746252 | AL89: =IFERROR('Level 2'!AI25/L147*Y$141,"*") -> 112.629124 | AM89: =IFERROR('Level 2'!AJ25/M147*Z$141,"*") -> 118.3158543 | AN89: =IFERROR('Level 2'!AK25/N147*AA$141,"*") -> 99.72187027 | AO89: =IFERROR('Level 2'!AL25/O147*AB$141,"*") -> * | AQ89: ='Oversættelse af landenavne'!$B$25 -> Holland | AR89: =IFERROR('Level 2'!AO25/E147*R$141,"*") -> 136.9438734 | AS89: =IFERROR('Level 2'!AP25/F147*S$141,"*") -> 134.8714137 | AT89: =IFERROR('Level 2'!AQ25/G147*T$141,"*") -> 146.1292869 | AU89: =IFERROR('Level 2'!AR25/H147*U$141,"*") -> 133.9374188 | AV89: =IFERROR('Level 2'!AS25/I147*V$141,"*") -> 130.5319874 | AW89: =IFERROR('Level 2'!AT25/J147*W$141,"*") -> 129.24578 | AX89: =IFERROR('Level 2'!AU25/K147*X$141,"*") -> 126.7151482 | AY89: =IFERROR('Level 2'!AV25/L147*Y$141,"*") -> 124.0455024 | AZ89: =IFERROR('Level 2'!AW25/M147*Z$141,"*") -> 125.9744429 | BA89: =IFERROR('Level 2'!AX25/N147*AA$141,"*") -> 108.2120071 | BB89: =IFERROR('Level 2'!AY25/O147*AB$141,"*") -> * | BD89: ='Oversættelse af landenavne'!$B$25 -> Holland | BE89: =IFERROR('Level 2'!BB25/E147*R$141,"*") -> 125.9934371 | BF89: =IFERROR('Level 2'!BC25/F147*S$141,"*") -> * | BG89: =IFERROR('Level 2'!BD25/G147*T$141,"*") -> 159.1794668 | BH89: =IFERROR('Level 2'!BE25/H147*U$141,"*") -> 145.3285855 | BI89: =IFERROR('Level 2'!BF25/I147*V$141,"*") -> 145.8095335 | BJ89: =IFERROR('Level 2'!BG25/J147*W$141,"*") -> 149.0114245 | BK89: =IFERROR('Level 2'!BH25/K147*X$141,"*") -> 147.1518635 | BL89: =IFERROR('Level 2'!BI25/L147*Y$141,"*") -> 146.4290904 | BM89: =IFERROR('Level 2'!BJ25/M147*Z$141,"*") -> 142.3003123 | BN89: =IFERROR('Level 2'!BK25/N147*AA$141,"*") -> 149.6945177 | BO89: =IFERROR('Level 2'!BL25/O147*AB$141,"*") -> *
D90: ='Oversættelse af landenavne'!$B$33 -> Sverige | E90: =IFERROR('Level 2'!B33/E148*R$141,"*") -> 188.0059271 | F90: =IFERROR('Level 2'!C33/F148*S$141,"*") -> 188.6600495 | G90: =IFERROR('Level 2'!D33/G148*T$141,"*") -> 167.5984333 | H90: =IFERROR('Level 2'!E33/H148*U$141,"*") -> 210.5764247 | I90: =IFERROR('Level 2'!F33/I148*V$141,"*") -> 215.6887109 | J90: =IFERROR('Level 2'!G33/J148*W$141,"*") -> 216.8480127 | K90: =IFERROR('Level 2'!H33/K148*X$141,"*") -> 219.1778773 | L90: =IFERROR('Level 2'!I33/L148*Y$141,"*") -> 215.1258763 | M90: =IFERROR('Level 2'!J33/M148*Z$141,"*") -> 205.8124705 | N90: =IFERROR('Level 2'!K33/N148*AA$141,"*") -> 216.9453384 | O90: =IFERROR('Level 2'!L33/O148*AB$141,"*") -> * | Q90: ='Oversættelse af landenavne'!$B$33 -> Sverige | R90: =IFERROR('Level 2'!O33/E148*R$141,"*") -> 110.3458532 | S90: =IFERROR('Level 2'!P33/F148*S$141,"*") -> 123.7134943 | T90: =IFERROR('Level 2'!Q33/G148*T$141,"*") -> 114.5057854 | U90: =IFERROR('Level 2'!R33/H148*U$141,"*") -> 127.6680337 | V90: =IFERROR('Level 2'!S33/I148*V$141,"*") -> 138.2787234 | W90: =IFERROR('Level 2'!T33/J148*W$141,"*") -> 136.0808657 | X90: =IFERROR('Level 2'!U33/K148*X$141,"*") -> 137.8198374 | Y90: =IFERROR('Level 2'!V33/L148*Y$141,"*") -> 131.4343124 | Z90: =IFERROR('Level 2'!W33/M148*Z$141,"*") -> 124.7564465 | AA90: =IFERROR('Level 2'!X33/N148*AA$141,"*") -> 127.5010022 | AB90: =IFERROR('Level 2'!Y33/O148*AB$141,"*") -> * | AD90: ='Oversættelse af landenavne'!$B$33 -> Sverige | AE90: =IFERROR('Level 2'!AB33/E148*R$141,"*") -> 105.9988953 | AF90: =IFERROR('Level 2'!AC33/F148*S$141,"*") -> 111.435041 | AG90: =IFERROR('Level 2'!AD33/G148*T$141,"*") -> 103.3325565 | AH90: =IFERROR('Level 2'!AE33/H148*U$141,"*") -> 117.8683552 | AI90: =IFERROR('Level 2'!AF33/I148*V$141,"*") -> 127.1872576 | AJ90: =IFERROR('Level 2'!AG33/J148*W$141,"*") -> 124.8737592 | AK90: =IFERROR('Level 2'!AH33/K148*X$141,"*") -> 125.7317076 | AL90: =IFERROR('Level 2'!AI33/L148*Y$141,"*") -> 115.9358746 | AM90: =IFERROR('Level 2'!AJ33/M148*Z$141,"*") -> 111.8790883 | AN90: =IFERROR('Level 2'!AK33/N148*AA$141,"*") -> 112.8294499 | AO90: =IFERROR('Level 2'!AL33/O148*AB$141,"*") -> * | AQ90: ='Oversættelse af landenavne'!$B$33 -> Sverige | AR90: =IFERROR('Level 2'!AO33/E148*R$141,"*") -> 95.50767973 | AS90: =IFERROR('Level 2'!AP33/F148*S$141,"*") -> 96.77359851 | AT90: =IFERROR('Level 2'!AQ33/G148*T$141,"*") -> 88.434918 | AU90: =IFERROR('Level 2'!AR33/H148*U$141,"*") -> 102.7799613 | AV90: =IFERROR('Level 2'!AS33/I148*V$141,"*") -> 109.4946427 | AW90: =IFERROR('Level 2'!AT33/J148*W$141,"*") -> 105.9166537 | AX90: =IFERROR('Level 2'!AU33/K148*X$141,"*") -> 106.6711142 | AY90: =IFERROR('Level 2'!AV33/L148*Y$141,"*") -> 97.8291632 | AZ90: =IFERROR('Level 2'!AW33/M148*Z$141,"*") -> 92.35656284 | BA90: =IFERROR('Level 2'!AX33/N148*AA$141,"*") -> 91.23173344 | BB90: =IFERROR('Level 2'!AY33/O148*AB$141,"*") -> * | BD90: ='Oversættelse af landenavne'!$B$33 -> Sverige | BE90: =IFERROR('Level 2'!BB33/E148*R$141,"*") -> 85.35084552 | BF90: =IFERROR('Level 2'!BC33/F148*S$141,"*") -> 88.25138262 | BG90: =IFERROR('Level 2'!BD33/G148*T$141,"*") -> 82.05587597 | BH90: =IFERROR('Level 2'!BE33/H148*U$141,"*") -> 93.40804658 | BI90: =IFERROR('Level 2'!BF33/I148*V$141,"*") -> 98.2496619 | BJ90: =IFERROR('Level 2'!BG33/J148*W$141,"*") -> 94.86150799 | BK90: =IFERROR('Level 2'!BH33/K148*X$141,"*") -> 94.96192262 | BL90: =IFERROR('Level 2'!BI33/L148*Y$141,"*") -> 85.24140765 | BM90: =IFERROR('Level 2'!BJ33/M148*Z$141,"*") -> 80.41778764 | BN90: =IFERROR('Level 2'!BK33/N148*AA$141,"*") -> 79.61365147 | BO90: =IFERROR('Level 2'!BL33/O148*AB$141,"*") -> *
D91: ='Oversættelse af landenavne'!$B$34 -> UK | E91: =IFERROR('Level 2'!B34/E149*R$141,"*") -> 146.7496105 | F91: =IFERROR('Level 2'!C34/F149*S$141,"*") -> 137.4083862 | G91: =IFERROR('Level 2'!D34/G149*T$141,"*") -> 135.7264111 | H91: =IFERROR('Level 2'!E34/H149*U$141,"*") -> 120.707308 | I91: =IFERROR('Level 2'!F34/I149*V$141,"*") -> 124.0026481 | J91: =IFERROR('Level 2'!G34/J149*W$141,"*") -> 141.67139 | K91: =IFERROR('Level 2'!H34/K149*X$141,"*") -> 153.740431 | L91: =IFERROR('Level 2'!I34/L149*Y$141,"*") -> 174.1427498 | M91: =IFERROR('Level 2'!J34/M149*Z$141,"*") -> 185.8060868 | N91: =IFERROR('Level 2'!K34/N149*AA$141,"*") -> 175.9096771 | O91: =IFERROR('Level 2'!L34/O149*AB$141,"*") -> * | Q91: ='Oversættelse af landenavne'!$B$34 -> UK | R91: =IFERROR('Level 2'!O34/E149*R$141,"*") -> 141.4629786 | S91: =IFERROR('Level 2'!P34/F149*S$141,"*") -> 133.4962473 | T91: =IFERROR('Level 2'!Q34/G149*T$141,"*") -> 126.0961558 | U91: =IFERROR('Level 2'!R34/H149*U$141,"*") -> 121.1654793 | V91: =IFERROR('Level 2'!S34/I149*V$141,"*") -> 123.8431078 | W91: =IFERROR('Level 2'!T34/J149*W$141,"*") -> 139.8511179 | X91: =IFERROR('Level 2'!U34/K149*X$141,"*") -> 138.9001825 | Y91: =IFERROR('Level 2'!V34/L149*Y$141,"*") -> 154.6858758 | Z91: =IFERROR('Level 2'!W34/M149*Z$141,"*") -> 169.5517822 | AA91: =IFERROR('Level 2'!X34/N149*AA$141,"*") -> 157.4399057 | AB91: =IFERROR('Level 2'!Y34/O149*AB$141,"*") -> * | AD91: ='Oversættelse af landenavne'!$B$34 -> UK | AE91: =IFERROR('Level 2'!AB34/E149*R$141,"*") -> 128.6109941 | AF91: =IFERROR('Level 2'!AC34/F149*S$141,"*") -> 128.5291495 | AG91: =IFERROR('Level 2'!AD34/G149*T$141,"*") -> 117.798659 | AH91: =IFERROR('Level 2'!AE34/H149*U$141,"*") -> 112.5018768 | AI91: =IFERROR('Level 2'!AF34/I149*V$141,"*") -> 114.6296592 | AJ91: =IFERROR('Level 2'!AG34/J149*W$141,"*") -> 127.9612555 | AK91: =IFERROR('Level 2'!AH34/K149*X$141,"*") -> 127.5807073 | AL91: =IFERROR('Level 2'!AI34/L149*Y$141,"*") -> 139.5154778 | AM91: =IFERROR('Level 2'!AJ34/M149*Z$141,"*") -> 152.961953 | AN91: =IFERROR('Level 2'!AK34/N149*AA$141,"*") -> 138.4488102 | AO91: =IFERROR('Level 2'!AL34/O149*AB$141,"*") -> * | AQ91: ='Oversættelse af landenavne'!$B$34 -> UK | AR91: =IFERROR('Level 2'!AO34/E149*R$141,"*") -> 116.3970513 | AS91: =IFERROR('Level 2'!AP34/F149*S$141,"*") -> 115.3421643 | AT91: =IFERROR('Level 2'!AQ34/G149*T$141,"*") -> 105.0729645 | AU91: =IFERROR('Level 2'!AR34/H149*U$141,"*") -> 101.0059427 | AV91: =IFERROR('Level 2'!AS34/I149*V$141,"*") -> 101.8265553 | AW91: =IFERROR('Level 2'!AT34/J149*W$141,"*") -> 114.4834961 | AX91: =IFERROR('Level 2'!AU34/K149*X$141,"*") -> 116.2612321 | AY91: =IFERROR('Level 2'!AV34/L149*Y$141,"*") -> 125.8360281 | AZ91: =IFERROR('Level 2'!AW34/M149*Z$141,"*") -> 139.5036871 | BA91: =IFERROR('Level 2'!AX34/N149*AA$141,"*") -> 127.5010022 | BB91: =IFERROR('Level 2'!AY34/O149*AB$141,"*") -> * | BD91: ='Oversættelse af landenavne'!$B$34 -> UK | BE91: =IFERROR('Level 2'!BB34/E149*R$141,"*") -> 97.71154191 | BF91: =IFERROR('Level 2'!BC34/F149*S$141,"*") -> 113.2762032 | BG91: =IFERROR('Level 2'!BD34/G149*T$141,"*") -> 102.1494941 | BH91: =IFERROR('Level 2'!BE34/H149*U$141,"*") -> 92.46729597 | BI91: =IFERROR('Level 2'!BF34/I149*V$141,"*") -> 93.96919874 | BJ91: =IFERROR('Level 2'!BG34/J149*W$141,"*") -> 105.4983232 | BK91: =IFERROR('Level 2'!BH34/K149*X$141,"*") -> 106.6832146 | BL91: =IFERROR('Level 2'!BI34/L149*Y$141,"*") -> 115.9212225 | BM91: =IFERROR('Level 2'!BJ34/M149*Z$141,"*") -> 127.8721664 | BN91: =IFERROR('Level 2'!BK34/N149*AA$141,"*") -> 115.361596 | BO91: =IFERROR('Level 2'!BL34/O149*AB$141,"*") -> *
D92: Kilde: Eurostat | Q92: Kilde: Eurostat | AD92: Kilde: Eurostat | AQ92: Kilde: Eurostat | BD92: Kilde: Eurostat
B97: Level 3: Elpris inkl. PSO afgifter og moms | D97: ="Figur XX: "&$B$97&" for forbrugsinterval "&D26&". Priserne er vist i "&$E$15&" / kWh i "&$E$13&" med basisår "&$E$14&". " -> Figur XX: Level 3: Elpris inkl. PSO afgifter og moms for forbrugsinterval IA: < 1000 kWh. Priserne er vist i DKK øre / kWh i faste priser med basisår 2016. | Q97: ="Figur XX: "&$B$97&" for forbrugsinterval "&Q26&". Priserne er vist i "&$E$15&" / kWh i "&$E$13&" med basisår "&$E$14&". " -> Figur XX: Level 3: Elpris inkl. PSO afgifter og moms for forbrugsinterval IB: 1000 < 2500 kWh. Priserne er vist i DKK øre / kWh i faste priser med basisår 2016. | AD97: ="Figur XX: "&$B$97&" for forbrugsinterval "&AD26&". Priserne er vist i "&$E$15&" / kWh i "&$E$13&" med basisår "&$E$14&". " -> Figur XX: Level 3: Elpris inkl. PSO afgifter og moms for forbrugsinterval IC: 2500 < 5 000 kWh. Priserne er vist i DKK øre / kWh i faste priser med basisår 2016. | AQ97: ="Figur XX: "&$B$97&" for forbrugsinterval "&AQ26&". Priserne er vist i "&$E$15&" / kWh i "&$E$13&" med basisår "&$E$14&". " -> Figur XX: Level 3: Elpris inkl. PSO afgifter og moms for forbrugsinterval ID: 5 000 < 15 000 kWh. Priserne er vist i DKK øre / kWh i faste priser med basisår 2016. | BD97: ="Figur XX: "&$B$97&" for forbrugsinterval "&BD26&". Priserne er vist i "&$E$15&" / kWh i "&$E$13&" med basisår "&$E$14&". " -> Figur XX: Level 3: Elpris inkl. PSO afgifter og moms for forbrugsinterval IE: > 15 000 kWh. Priserne er vist i DKK øre / kWh i faste priser med basisår 2016. | BQ97: =B97 -> Level 3: Elpris inkl. PSO afgifter og moms
D117: =$E$15&"/kWh" -> DKK øre/kWh | E117: ='Level 1'!B$5 -> 2007 | F117: ='Level 1'!C$5 -> 2008 | G117: ='Level 1'!D$5 -> 2009 | H117: ='Level 1'!E$5 -> 2010 | I117: ='Level 1'!F$5 -> 2011 | J117: ='Level 1'!G$5 -> 2012 | K117: ='Level 1'!H$5 -> 2013 | L117: ='Level 1'!I$5 -> 2014 | M117: ='Level 1'!J$5 -> 2015 | N117: ='Level 1'!K$5 -> 2016 | O117: ='Level 1'!L$5 -> 2017 | Q117: =$E$15&"/kWh" -> DKK øre/kWh | R117: ='Level 1'!O$5 -> 2007 | S117: ='Level 1'!P$5 -> 2008 | T117: ='Level 1'!Q$5 -> 2009 | U117: ='Level 1'!R$5 -> 2010 | V117: ='Level 1'!S$5 -> 2011 | W117: ='Level 1'!T$5 -> 2012 | X117: ='Level 1'!U$5 -> 2013 | Y117: ='Level 1'!V$5 -> 2014 | Z117: ='Level 1'!W$5 -> 2015 | AA117: ='Level 1'!X$5 -> 2016 | AB117: ='Level 1'!Y$5 -> 2017 | AD117: =$E$15&"/kWh" -> DKK øre/kWh | AE117: ='Level 1'!AB$5 -> 2007 | AF117: ='Level 1'!AC$5 -> 2008 | AG117: ='Level 1'!AD$5 -> 2009 | AH117: ='Level 1'!AE$5 -> 2010 | AI117: ='Level 1'!AF$5 -> 2011 | AJ117: ='Level 1'!AG$5 -> 2012 | AK117: ='Level 1'!AH$5 -> 2013 | AL117: ='Level 1'!AI$5 -> 2014 | AM117: ='Level 1'!AJ$5 -> 2015 | AN117: ='Level 1'!AK$5 -> 2016 | AO117: ='Level 1'!AL$5 -> 2017 | AQ117: =$E$15&"/kWh" -> DKK øre/kWh | AR117: ='Level 1'!AO$5 -> 2007 | AS117: ='Level 1'!AP$5 -> 2008 | AT117: ='Level 1'!AQ$5 -> 2009 | AU117: ='Level 1'!AR$5 -> 2010 | AV117: ='Level 1'!AS$5 -> 2011 | AW117: ='Level 1'!AT$5 -> 2012 | AX117: ='Level 1'!AU$5 -> 2013 | AY117: ='Level 1'!AV$5 -> 2014 | AZ117: ='Level 1'!AW$5 -> 2015 | BA117: ='Level 1'!AX$5 -> 2016 | BB117: ='Level 1'!AY$5 -> 2017 | BD117: =$E$15&"/kWh" -> DKK øre/kWh | BE117: ='Level 1'!BB$5 -> 2007 | BF117: ='Level 1'!BC$5 -> 2008 | BG117: ='Level 1'!BD$5 -> 2009 | BH117: ='Level 1'!BE$5 -> 2010 | BI117: ='Level 1'!BF$5 -> 2011 | BJ117: ='Level 1'!BG$5 -> 2012 | BK117: ='Level 1'!BH$5 -> 2013 | BL117: ='Level 1'!BI$5 -> 2014 | BM117: ='Level 1'!BJ$5 -> 2015 | BN117: ='Level 1'!BK$5 -> 2016 | BO117: ='Level 1'!BL$5 -> 2017
D118: ='Oversættelse af landenavne'!$B$6 -> EU-28 | E118: =IFERROR('Level 3'!B$6/E141*R$141,"*") -> 207.3525751 | F118: =IFERROR('Level 3'!C$6/F141*S$141,"*") -> 209.1406454 | G118: =IFERROR('Level 3'!D$6/G141*T$141,"*") -> 207.3577651 | H118: =IFERROR('Level 3'!E$6/H141*U$141,"*") -> 213.7716764 | I118: =IFERROR('Level 3'!F$6/I141*V$141,"*") -> 214.9636506 | J118: =IFERROR('Level 3'!G$6/J141*W$141,"*") -> 215.5653946 | K118: =IFERROR('Level 3'!H$6/K141*X$141,"*") -> 227.3831067 | L118: =IFERROR('Level 3'!I$6/L141*Y$141,"*") -> 234.2929224 | M118: =IFERROR('Level 3'!J$6/M141*Z$141,"*") -> 242.2991176 | N118: =IFERROR('Level 3'!K$6/N141*AA$141,"*") -> 246.4373926 | O118: =IFERROR('Level 3'!L$6/O141*AB$141,"*") -> * | Q118: ='Oversættelse af landenavne'!$B$6 -> EU-28 | R118: =IFERROR('Level 3'!O$6/E141*R$141,"*") -> 144.0283032 | S118: =IFERROR('Level 3'!P$6/F141*S$141,"*") -> 143.7375661 | T118: =IFERROR('Level 3'!Q$6/G141*T$141,"*") -> 143.6564089 | U118: =IFERROR('Level 3'!R$6/H141*U$141,"*") -> 146.6563777 | V118: =IFERROR('Level 3'!S$6/I141*V$141,"*") -> 151.7115036 | W118: =IFERROR('Level 3'!T$6/J141*W$141,"*") -> 156.3950484 | X118: =IFERROR('Level 3'!U$6/K141*X$141,"*") -> 161.4472537 | Y118: =IFERROR('Level 3'!V$6/L141*Y$141,"*") -> 164.2323698 | Z118: =IFERROR('Level 3'!W$6/M141*Z$141,"*") -> 168.9384001 | AA118: =IFERROR('Level 3'!X$6/N141*AA$141,"*") -> 167.9408644 | AB118: =IFERROR('Level 3'!Y$6/O141*AB$141,"*") -> * | AD118: ='Oversættelse af landenavne'!$B$6 -> EU-28 | AE118: =IFERROR('Level 3'!AB6/E141*R$141,"*") -> 134.3920009 | AF118: =IFERROR('Level 3'!AC6/F141*S$141,"*") -> 134.4120319 | AG118: =IFERROR('Level 3'!AD6/G141*T$141,"*") -> 134.3392647 | AH118: =IFERROR('Level 3'!AE6/H141*U$141,"*") -> 136.7640089 | AI118: =IFERROR('Level 3'!AF6/I141*V$141,"*") -> 142.1905142 | AJ118: =IFERROR('Level 3'!AG6/J141*W$141,"*") -> 146.0649238 | AK118: =IFERROR('Level 3'!AH6/K141*X$141,"*") -> 150.6891014 | AL118: =IFERROR('Level 3'!AI6/L141*Y$141,"*") -> 152.4935006 | AM118: =IFERROR('Level 3'!AJ6/M141*Z$141,"*") -> 156.0779085 | AN118: =IFERROR('Level 3'!AK6/N141*AA$141,"*") -> 153.2693122 | AO118: =IFERROR('Level 3'!AL6/O141*AB$141,"*") -> * | AQ118: ='Oversættelse af landenavne'!$B$6 -> EU-28 | AR118: =IFERROR('Level 3'!AO6/E141*R$141,"*") -> 126.3904285 | AS118: =IFERROR('Level 3'!AP6/F141*S$141,"*") -> 126.2055619 | AT118: =IFERROR('Level 3'!AQ6/G141*T$141,"*") -> 129.3728574 | AU118: =IFERROR('Level 3'!AR6/H141*U$141,"*") -> 130.7320767 | AV118: =IFERROR('Level 3'!AS6/I141*V$141,"*") -> 136.0252834 | AW118: =IFERROR('Level 3'!AT6/J141*W$141,"*") -> 139.6465743 | AX118: =IFERROR('Level 3'!AU6/K141*X$141,"*") -> 144.3541616 | AY118: =IFERROR('Level 3'!AV6/L141*Y$141,"*") -> 145.8601079 | AZ118: =IFERROR('Level 3'!AW6/M141*Z$141,"*") -> 149.1817029 | BA118: =IFERROR('Level 3'!AX6/N141*AA$141,"*") -> 145.0770749 | BB118: =IFERROR('Level 3'!AY6/O141*AB$141,"*") -> * | BD118: ='Oversættelse af landenavne'!$B$6 -> EU-28 | BE118: =IFERROR('Level 3'!BB6/E141*R$141,"*") -> 118.0447025 | BF118: =IFERROR('Level 3'!BC6/F141*S$141,"*") -> 120.3201137 | BG118: =IFERROR('Level 3'!BD6/G141*T$141,"*") -> 125.8840589 | BH118: =IFERROR('Level 3'!BE6/H141*U$141,"*") -> 125.9467439 | BI118: =IFERROR('Level 3'!BF6/I141*V$141,"*") -> 130.9526251 | BJ118: =IFERROR('Level 3'!BG6/J141*W$141,"*") -> 134.1397064 | BK118: =IFERROR('Level 3'!BH6/K141*X$141,"*") -> 136.5198277 | BL118: =IFERROR('Level 3'!BI6/L141*Y$141,"*") -> 138.8540526 | BM118: =IFERROR('Level 3'!BJ6/M141*Z$141,"*") -> 143.2174169 | BN118: =IFERROR('Level 3'!BK6/N141*AA$141,"*") -> 138.6722348 | BO118: =IFERROR('Level 3'!BL6/O141*AB$141,"*") -> *
D119: ='Oversættelse af landenavne'!$B$7 -> Belgien | E119: =IFERROR('Level 3'!B$7/E142*R$141,"*") -> 212.8013664 | F119: =IFERROR('Level 3'!C$7/F142*S$141,"*") -> 265.4915413 | G119: =IFERROR('Level 3'!D$7/G142*T$141,"*") -> 225.1391979 | H119: =IFERROR('Level 3'!E$7/H142*U$141,"*") -> 235.25525 | I119: =IFERROR('Level 3'!F$7/I142*V$141,"*") -> 236.2605893 | J119: =IFERROR('Level 3'!G$7/J142*W$141,"*") -> 230.9245263 | K119: =IFERROR('Level 3'!H$7/K142*X$141,"*") -> 221.4171898 | L119: =IFERROR('Level 3'!I$7/L142*Y$141,"*") -> 198.3626655 | M119: =IFERROR('Level 3'!J$7/M142*Z$141,"*") -> 214.6874495 | N119: =IFERROR('Level 3'!K$7/N142*AA$141,"*") -> 304.4533276 | O119: =IFERROR('Level 3'!L$7/O142*AB$141,"*") -> * | Q119: ='Oversættelse af landenavne'!$B$7 -> Belgien | R119: =IFERROR('Level 3'!O$7/E142*R$141,"*") -> 162.6279783 | S119: =IFERROR('Level 3'!P$7/F142*S$141,"*") -> 193.1036783 | T119: =IFERROR('Level 3'!Q$7/G142*T$141,"*") -> 176.680983 | U119: =IFERROR('Level 3'!R$7/H142*U$141,"*") -> 179.0657826 | V119: =IFERROR('Level 3'!S$7/I142*V$141,"*") -> 186.4800617 | W119: =IFERROR('Level 3'!T$7/J142*W$141,"*") -> 182.6155601 | X119: =IFERROR('Level 3'!U$7/K142*X$141,"*") -> 179.9488916 | Y119: =IFERROR('Level 3'!V$7/L142*Y$141,"*") -> 166.1325064 | Z119: =IFERROR('Level 3'!W$7/M142*Z$141,"*") -> 179.2000605 | AA119: =IFERROR('Level 3'!X$7/N142*AA$141,"*") -> 210.2425988 | AB119: =IFERROR('Level 3'!Y$7/O142*AB$141,"*") -> * | AD119: ='Oversættelse af landenavne'!$B$7 -> Belgien | AE119: =IFERROR('Level 3'!AB7/E142*R$141,"*") -> 146.6003683 | AF119: =IFERROR('Level 3'!AC7/F142*S$141,"*") -> 171.6662146 | AG119: =IFERROR('Level 3'!AD7/G142*T$141,"*") -> 157.3643062 | AH119: =IFERROR('Level 3'!AE7/H142*U$141,"*") -> 160.0240225 | AI119: =IFERROR('Level 3'!AF7/I142*V$141,"*") -> 167.5760639 | AJ119: =IFERROR('Level 3'!AG7/J142*W$141,"*") -> 174.4490444 | AK119: =IFERROR('Level 3'!AH7/K142*X$141,"*") -> 166.4802311 | AL119: =IFERROR('Level 3'!AI7/L142*Y$141,"*") -> 156.2445653 | AM119: =IFERROR('Level 3'!AJ7/M142*Z$141,"*") -> 167.9836448 | AN119: =IFERROR('Level 3'!AK7/N142*AA$141,"*") -> 189.464106 | AO119: =IFERROR('Level 3'!AL7/O142*AB$141,"*") -> * | AQ119: ='Oversættelse af landenavne'!$B$7 -> Belgien | AR119: =IFERROR('Level 3'!AO7/E142*R$141,"*") -> 141.1997605 | AS119: =IFERROR('Level 3'!AP7/F142*S$141,"*") -> 154.5578697 | AT119: =IFERROR('Level 3'!AQ7/G142*T$141,"*") -> 139.3381833 | AU119: =IFERROR('Level 3'!AR7/H142*U$141,"*") -> 142.2842631 | AV119: =IFERROR('Level 3'!AS7/I142*V$141,"*") -> 149.6566493 | AW119: =IFERROR('Level 3'!AT7/J142*W$141,"*") -> 149.1060074 | AX119: =IFERROR('Level 3'!AU7/K142*X$141,"*") -> 150.7731172 | AY119: =IFERROR('Level 3'!AV7/L142*Y$141,"*") -> 138.7330971 | AZ119: =IFERROR('Level 3'!AW7/M142*Z$141,"*") -> 151.2152908 | BA119: =IFERROR('Level 3'!AX7/N142*AA$141,"*") -> 173.5264808 | BB119: =IFERROR('Level 3'!AY7/O142*AB$141,"*") -> * | BD119: ='Oversættelse af landenavne'!$B$7 -> Belgien | BE119: =IFERROR('Level 3'!BB7/E142*R$141,"*") -> 136.0604725 | BF119: =IFERROR('Level 3'!BC7/F142*S$141,"*") -> 138.948066 | BG119: =IFERROR('Level 3'!BD7/G142*T$141,"*") -> 117.5652912 | BH119: =IFERROR('Level 3'!BE7/H142*U$141,"*") -> 120.2723139 | BI119: =IFERROR('Level 3'!BF7/I142*V$141,"*") -> 127.9170518 | BJ119: =IFERROR('Level 3'!BG7/J142*W$141,"*") -> 132.427912 | BK119: =IFERROR('Level 3'!BH7/K142*X$141,"*") -> 129.8302987 | BL119: =IFERROR('Level 3'!BI7/L142*Y$141,"*") -> 120.2026426 | BM119: =IFERROR('Level 3'!BJ7/M142*Z$141,"*") -> 127.131883 | BN119: =IFERROR('Level 3'!BK7/N142*AA$141,"*") -> 133.3100432 | BO119: =IFERROR('Level 3'!BL7/O142*AB$141,"*") -> *
D120: ='Oversættelse af landenavne'!$B$10 -> Danmark | E120: =IFERROR('Level 3'!B$10/E143*R$141,"*") -> 227.1837587 | F120: =IFERROR('Level 3'!C$10/F143*S$141,"*") -> 245.0242782 | G120: =IFERROR('Level 3'!D$10/G143*T$141,"*") -> 236.4730184 | H120: =IFERROR('Level 3'!E$10/H143*U$141,"*") -> 237.231055 | I120: =IFERROR('Level 3'!F$10/I143*V$141,"*") -> 251.0898476 | J120: =IFERROR('Level 3'!G$10/J143*W$141,"*") -> 248.3457516 | K120: =IFERROR('Level 3'!H$10/K143*X$141,"*") -> 245.1255661 | L120: =IFERROR('Level 3'!I$10/L143*Y$141,"*") -> 248.4529455 | M120: =IFERROR('Level 3'!J$10/M143*Z$141,"*") -> 248.8978672 | N120: =IFERROR('Level 3'!K$10/N143*AA$141,"*") -> 286.2069809 | O120: =IFERROR('Level 3'!L$10/O143*AB$141,"*") -> * | Q120: ='Oversættelse af landenavne'!$B$10 -> Danmark | R120: =IFERROR('Level 3'!O$10/E143*R$141,"*") -> 227.1837587 | S120: =IFERROR('Level 3'!P$10/F143*S$141,"*") -> 245.0242782 | T120: =IFERROR('Level 3'!Q$10/G143*T$141,"*") -> 236.4730184 | U120: =IFERROR('Level 3'!R$10/H143*U$141,"*") -> 237.231055 | V120: =IFERROR('Level 3'!S$10/I143*V$141,"*") -> 251.0898476 | W120: =IFERROR('Level 3'!T$10/J143*W$141,"*") -> 248.3457516 | X120: =IFERROR('Level 3'!U$10/K143*X$141,"*") -> 245.1255661 | Y120: =IFERROR('Level 3'!V$10/L143*Y$141,"*") -> 248.4529455 | Z120: =IFERROR('Level 3'!W$10/M143*Z$141,"*") -> 248.8978672 | AA120: =IFERROR('Level 3'!X$10/N143*AA$141,"*") -> 248.746114 | AB120: =IFERROR('Level 3'!Y$10/O143*AB$141,"*") -> * | AD120: ='Oversættelse af landenavne'!$B$10 -> Danmark | AE120: =IFERROR('Level 3'!AB10/E143*R$141,"*") -> 203.8371467 | AF120: =IFERROR('Level 3'!AC10/F143*S$141,"*") -> 221.7081115 | AG120: =IFERROR('Level 3'!AD10/G143*T$141,"*") -> 212.8176154 | AH120: =IFERROR('Level 3'!AE10/H143*U$141,"*") -> 213.2422888 | AI120: =IFERROR('Level 3'!AF10/I143*V$141,"*") -> 227.3642141 | AJ120: =IFERROR('Level 3'!AG10/J143*W$141,"*") -> 225.0798347 | AK120: =IFERROR('Level 3'!AH10/K143*X$141,"*") -> 223.1353106 | AL120: =IFERROR('Level 3'!AI10/L143*Y$141,"*") -> 227.4210799 | AM120: =IFERROR('Level 3'!AJ10/M143*Z$141,"*") -> 228.2404275 | AN120: =IFERROR('Level 3'!AK10/N143*AA$141,"*") -> 229.9784432 | AO120: =IFERROR('Level 3'!AL10/O143*AB$141,"*") -> * | AQ120: ='Oversættelse af landenavne'!$B$10 -> Danmark | AR120: =IFERROR('Level 3'!AO10/E143*R$141,"*") -> 180.3207412 | AS120: =IFERROR('Level 3'!AP10/F143*S$141,"*") -> 197.9010781 | AT120: =IFERROR('Level 3'!AQ10/G143*T$141,"*") -> 188.8381658 | AU120: =IFERROR('Level 3'!AR10/H143*U$141,"*") -> 184.535071 | AV120: =IFERROR('Level 3'!AS10/I143*V$141,"*") -> 198.9243668 | AW120: =IFERROR('Level 3'!AT10/J143*W$141,"*") -> 197.0626933 | AX120: =IFERROR('Level 3'!AU10/K143*X$141,"*") -> 168.7799098 | AY120: =IFERROR('Level 3'!AV10/L143*Y$141,"*") -> 171.9972492 | AZ120: =IFERROR('Level 3'!AW10/M143*Z$141,"*") -> 167.35141 | BA120: =IFERROR('Level 3'!AX10/N143*AA$141,"*") -> 181.122919 | BB120: =IFERROR('Level 3'!AY10/O143*AB$141,"*") -> * | BD120: ='Oversættelse af landenavne'!$B$10 -> Danmark | BE120: =IFERROR('Level 3'!BB10/E143*R$141,"*") -> 180.3207412 | BF120: =IFERROR('Level 3'!BC10/F143*S$141,"*") -> 197.9010781 | BG120: =IFERROR('Level 3'!BD10/G143*T$141,"*") -> 188.8381658 | BH120: =IFERROR('Level 3'!BE10/H143*U$141,"*") -> 184.535071 | BI120: =IFERROR('Level 3'!BF10/I143*V$141,"*") -> 198.9243668 | BJ120: =IFERROR('Level 3'!BG10/J143*W$141,"*") -> 197.0626933 | BK120: =IFERROR('Level 3'!BH10/K143*X$141,"*") -> 168.7799098 | BL120: =IFERROR('Level 3'!BI10/L143*Y$141,"*") -> 171.9972492 | BM120: =IFERROR('Level 3'!BJ10/M143*Z$141,"*") -> 167.35141 | BN120: =IFERROR('Level 3'!BK10/N143*AA$141,"*") -> 164.8129193 | BO120: =IFERROR('Level 3'!BL10/O143*AB$141,"*") -> *
D121: ='Oversættelse af landenavne'!$B$11 -> Tyskland | E121: =IFERROR('Level 3'!B$11/E144*R$141,"*") -> 274.3125972 | F121: =IFERROR('Level 3'!C$11/F144*S$141,"*") -> 279.6153098 | G121: =IFERROR('Level 3'!D$11/G144*T$141,"*") -> 289.9742015 | H121: =IFERROR('Level 3'!E$11/H144*U$141,"*") -> 295.5132567 | I121: =IFERROR('Level 3'!F$11/I144*V$141,"*") -> 299.3347028 | J121: =IFERROR('Level 3'!G$11/J144*W$141,"*") -> 303.5887256 | K121: =IFERROR('Level 3'!H$11/K144*X$141,"*") -> 321.066973 | L121: =IFERROR('Level 3'!I$11/L144*Y$141,"*") -> 323.6235774 | M121: =IFERROR('Level 3'!J$11/M144*Z$141,"*") -> 325.5607736 | N121: =IFERROR('Level 3'!K$11/N144*AA$141,"*") -> 339.2330986 | O121: =IFERROR('Level 3'!L$11/O144*AB$141,"*") -> * | Q121: ='Oversættelse af landenavne'!$B$11 -> Tyskland | R121: =IFERROR('Level 3'!O$11/E144*R$141,"*") -> 191.7144432 | S121: =IFERROR('Level 3'!P$11/F144*S$141,"*") -> 195.7915469 | T121: =IFERROR('Level 3'!Q$11/G144*T$141,"*") -> 204.8352509 | U121: =IFERROR('Level 3'!R$11/H144*U$141,"*") -> 212.6463643 | V121: =IFERROR('Level 3'!S$11/I144*V$141,"*") -> 216.7501873 | W121: =IFERROR('Level 3'!T$11/J144*W$141,"*") -> 220.5173739 | X121: =IFERROR('Level 3'!U$11/K144*X$141,"*") -> 238.9922505 | Y121: =IFERROR('Level 3'!V$11/L144*Y$141,"*") -> 241.1957372 | Z121: =IFERROR('Level 3'!W$11/M144*Z$141,"*") -> 239.543169 | AA121: =IFERROR('Level 3'!X$11/N144*AA$141,"*") -> 243.0115479 | AB121: =IFERROR('Level 3'!Y$11/O144*AB$141,"*") -> * | AD121: ='Oversættelse af landenavne'!$B$11 -> Tyskland | AE121: =IFERROR('Level 3'!AB11/E144*R$141,"*") -> 172.2010984 | AF121: =IFERROR('Level 3'!AC11/F144*S$141,"*") -> 176.1231748 | AG121: =IFERROR('Level 3'!AD11/G144*T$141,"*") -> 185.1691245 | AH121: =IFERROR('Level 3'!AE11/H144*U$141,"*") -> 192.4895526 | AI121: =IFERROR('Level 3'!AF11/I144*V$141,"*") -> 197.5390375 | AJ121: =IFERROR('Level 3'!AG11/J144*W$141,"*") -> 201.4117272 | AK121: =IFERROR('Level 3'!AH11/K144*X$141,"*") -> 219.9708027 | AL121: =IFERROR('Level 3'!AI11/L144*Y$141,"*") -> 222.4095099 | AM121: =IFERROR('Level 3'!AJ11/M144*Z$141,"*") -> 220.0632602 | AN121: =IFERROR('Level 3'!AK11/N144*AA$141,"*") -> 221.1159319 | AO121: =IFERROR('Level 3'!AL11/O144*AB$141,"*") -> * | AQ121: ='Oversættelse af landenavne'!$B$11 -> Tyskland | AR121: =IFERROR('Level 3'!AO11/E144*R$141,"*") -> 161.7773031 | AS121: =IFERROR('Level 3'!AP11/F144*S$141,"*") -> 163.308318 | AT121: =IFERROR('Level 3'!AQ11/G144*T$141,"*") -> 172.3820958 | AU121: =IFERROR('Level 3'!AR11/H144*U$141,"*") -> 181.2513303 | AV121: =IFERROR('Level 3'!AS11/I144*V$141,"*") -> 188.2848861 | AW121: =IFERROR('Level 3'!AT11/J144*W$141,"*") -> 191.3621571 | AX121: =IFERROR('Level 3'!AU11/K144*X$141,"*") -> 209.3865911 | AY121: =IFERROR('Level 3'!AV11/L144*Y$141,"*") -> 211.2423489 | AZ121: =IFERROR('Level 3'!AW11/M144*Z$141,"*") -> 208.9052282 | BA121: =IFERROR('Level 3'!AX11/N144*AA$141,"*") -> 209.4233751 | BB121: =IFERROR('Level 3'!AY11/O144*AB$141,"*") -> * | BD121: ='Oversættelse af landenavne'!$B$11 -> Tyskland | BE121: =IFERROR('Level 3'!BB11/E144*R$141,"*") -> 154.6057319 | BF121: =IFERROR('Level 3'!BC11/F144*S$141,"*") -> 157.2253163 | BG121: =IFERROR('Level 3'!BD11/G144*T$141,"*") -> 166.9192829 | BH121: =IFERROR('Level 3'!BE11/H144*U$141,"*") -> 175.5322349 | BI121: =IFERROR('Level 3'!BF11/I144*V$141,"*") -> 181.3345108 | BJ121: =IFERROR('Level 3'!BG11/J144*W$141,"*") -> 184.0255887 | BK121: =IFERROR('Level 3'!BH11/K144*X$141,"*") -> 202.6443354 | BL121: =IFERROR('Level 3'!BI11/L144*Y$141,"*") -> 201.8679095 | BM121: =IFERROR('Level 3'!BJ11/M144*Z$141,"*") -> 199.8369948 | BN121: =IFERROR('Level 3'!BK11/N144*AA$141,"*") -> 199.5926903 | BO121: =IFERROR('Level 3'!BL11/O144*AB$141,"*") -> *
D122: ='Oversættelse af landenavne'!$B$16 -> Frankrig | E122: =IFERROR('Level 3'!B$16/E145*R$141,"*") -> 192.7361512 | F122: =IFERROR('Level 3'!C$16/F145*S$141,"*") -> 186.0414741 | G122: =IFERROR('Level 3'!D$16/G145*T$141,"*") -> 182.6152247 | H122: =IFERROR('Level 3'!E$16/H145*U$141,"*") -> 185.1828332 | I122: =IFERROR('Level 3'!F$16/I145*V$141,"*") -> 189.4154595 | J122: =IFERROR('Level 3'!G$16/J145*W$141,"*") -> 189.9930789 | K122: =IFERROR('Level 3'!H$16/K145*X$141,"*") -> 211.8543711 | L122: =IFERROR('Level 3'!I$16/L145*Y$141,"*") -> 199.9231162 | M122: =IFERROR('Level 3'!J$16/M145*Z$141,"*") -> 209.2947739 | N122: =IFERROR('Level 3'!K$16/N145*AA$141,"*") -> 210.093649 | O122: =IFERROR('Level 3'!L$16/O145*AB$141,"*") -> * | Q122: ='Oversættelse af landenavne'!$B$16 -> Frankrig | R122: =IFERROR('Level 3'!O$16/E145*R$141,"*") -> 119.4597338 | S122: =IFERROR('Level 3'!P$16/F145*S$141,"*") -> 113.7637561 | T122: =IFERROR('Level 3'!Q$16/G145*T$141,"*") -> 113.2778767 | U122: =IFERROR('Level 3'!R$16/H145*U$141,"*") -> 119.2017895 | V122: =IFERROR('Level 3'!S$16/I145*V$141,"*") -> 122.7498998 | W122: =IFERROR('Level 3'!T$16/J145*W$141,"*") -> 124.073247 | X122: =IFERROR('Level 3'!U$16/K145*X$141,"*") -> 133.7948486 | Y122: =IFERROR('Level 3'!V$16/L145*Y$141,"*") -> 133.4936759 | Z122: =IFERROR('Level 3'!W$16/M145*Z$141,"*") -> 137.50245 | AA122: =IFERROR('Level 3'!X$16/N145*AA$141,"*") -> 138.3743353 | AB122: =IFERROR('Level 3'!Y$16/O145*AB$141,"*") -> * | AD122: ='Oversættelse af landenavne'!$B$16 -> Frankrig | AE122: =IFERROR('Level 3'!AB16/E145*R$141,"*") -> 101.8700591 | AF122: =IFERROR('Level 3'!AC16/F145*S$141,"*") -> 97.50026061 | AG122: =IFERROR('Level 3'!AD16/G145*T$141,"*") -> 97.27384927 | AH122: =IFERROR('Level 3'!AE16/H145*U$141,"*") -> 104.341194 | AI122: =IFERROR('Level 3'!AF16/I145*V$141,"*") -> 108.719125 | AJ122: =IFERROR('Level 3'!AG16/J145*W$141,"*") -> 109.6011919 | AK122: =IFERROR('Level 3'!AH16/K145*X$141,"*") -> 117.2584066 | AL122: =IFERROR('Level 3'!AI16/L145*Y$141,"*") -> 119.6775472 | AM122: =IFERROR('Level 3'!AJ16/M145*Z$141,"*") -> 123.0992083 | AN122: =IFERROR('Level 3'!AK16/N145*AA$141,"*") -> 125.4901803 | AO122: =IFERROR('Level 3'!AL16/O145*AB$141,"*") -> * | AQ122: ='Oversættelse af landenavne'!$B$16 -> Frankrig | AR122: =IFERROR('Level 3'!AO16/E145*R$141,"*") -> 89.61564123 | AS122: =IFERROR('Level 3'!AP16/F145*S$141,"*") -> 85.2320159 | AT122: =IFERROR('Level 3'!AQ16/G145*T$141,"*") -> 88.52605595 | AU122: =IFERROR('Level 3'!AR16/H145*U$141,"*") -> 94.07747613 | AV122: =IFERROR('Level 3'!AS16/I145*V$141,"*") -> 99.64950815 | AW122: =IFERROR('Level 3'!AT16/J145*W$141,"*") -> 100.5088013 | AX122: =IFERROR('Level 3'!AU16/K145*X$141,"*") -> 107.7875353 | AY122: =IFERROR('Level 3'!AV16/L145*Y$141,"*") -> 110.0809389 | AZ122: =IFERROR('Level 3'!AW16/M145*Z$141,"*") -> 114.0691966 | BA122: =IFERROR('Level 3'!AX16/N145*AA$141,"*") -> 116.9255686 | BB122: =IFERROR('Level 3'!AY16/O145*AB$141,"*") -> * | BD122: ='Oversættelse af landenavne'!$B$16 -> Frankrig | BE122: =IFERROR('Level 3'!BB16/E145*R$141,"*") -> 83.11329703 | BF122: =IFERROR('Level 3'!BC16/F145*S$141,"*") -> 82.64922754 | BG122: =IFERROR('Level 3'!BD16/G145*T$141,"*") -> 85.09950096 | BH122: =IFERROR('Level 3'!BE16/H145*U$141,"*") -> 91.22424181 | BI122: =IFERROR('Level 3'!BF16/I145*V$141,"*") -> 97.44024251 | BJ122: =IFERROR('Level 3'!BG16/J145*W$141,"*") -> 98.42512842 | BK122: =IFERROR('Level 3'!BH16/K145*X$141,"*") -> 98.12874988 | BL122: =IFERROR('Level 3'!BI16/L145*Y$141,"*") -> 102.9488292 | BM122: =IFERROR('Level 3'!BJ16/M145*Z$141,"*") -> 111.8676649 | BN122: =IFERROR('Level 3'!BK16/N145*AA$141,"*") -> 114.9147467 | BO122: =IFERROR('Level 3'!BL16/O145*AB$141,"*") -> *
D123: ='Oversættelse af landenavne'!$B$18 -> Italien | E123: =IFERROR('Level 3'!B$18/E146*R$141,"*") -> * | F123: =IFERROR('Level 3'!C$18/F146*S$141,"*") -> 227.0329193 | G123: =IFERROR('Level 3'!D$18/G146*T$141,"*") -> 233.1839562 | H123: =IFERROR('Level 3'!E$18/H146*U$141,"*") -> 224.852209 | I123: =IFERROR('Level 3'!F$18/I146*V$141,"*") -> 203.3925307 | J123: =IFERROR('Level 3'!G$18/J146*W$141,"*") -> 198.0929366 | K123: =IFERROR('Level 3'!H$18/K146*X$141,"*") -> 207.8269748 | L123: =IFERROR('Level 3'!I$18/L146*Y$141,"*") -> 218.4132349 | M123: =IFERROR('Level 3'!J$18/M146*Z$141,"*") -> 219.5034927 | N123: =IFERROR('Level 3'!K$18/N146*AA$141,"*") -> 234.9682604 | O123: =IFERROR('Level 3'!L$18/O146*AB$141,"*") -> * | Q123: ='Oversættelse af landenavne'!$B$18 -> Italien | R123: =IFERROR('Level 3'!O$18/E146*R$141,"*") -> * | S123: =IFERROR('Level 3'!P$18/F146*S$141,"*") -> 138.355271 | T123: =IFERROR('Level 3'!Q$18/G146*T$141,"*") -> 138.4376329 | U123: =IFERROR('Level 3'!R$18/H146*U$141,"*") -> 130.6606284 | V123: =IFERROR('Level 3'!S$18/I146*V$141,"*") -> 131.7082067 | W123: =IFERROR('Level 3'!T$18/J146*W$141,"*") -> 146.4873035 | X123: =IFERROR('Level 3'!U$18/K146*X$141,"*") -> 148.4103996 | Y123: =IFERROR('Level 3'!V$18/L146*Y$141,"*") -> 157.2739624 | Z123: =IFERROR('Level 3'!W$18/M146*Z$141,"*") -> 157.2200297 | AA123: =IFERROR('Level 3'!X$18/N146*AA$141,"*") -> 160.7168006 | AB123: =IFERROR('Level 3'!Y$18/O146*AB$141,"*") -> * | AD123: ='Oversættelse af landenavne'!$B$18 -> Italien | AE123: =IFERROR('Level 3'!AB18/E146*R$141,"*") -> * | AF123: =IFERROR('Level 3'!AC18/F146*S$141,"*") -> 175.541342 | AG123: =IFERROR('Level 3'!AD18/G146*T$141,"*") -> 167.5242633 | AH123: =IFERROR('Level 3'!AE18/H146*U$141,"*") -> 156.3821754 | AI123: =IFERROR('Level 3'!AF18/I146*V$141,"*") -> 158.5506992 | AJ123: =IFERROR('Level 3'!AG18/J146*W$141,"*") -> 167.6899113 | AK123: =IFERROR('Level 3'!AH18/K146*X$141,"*") -> 172.7835505 | AL123: =IFERROR('Level 3'!AI18/L146*Y$141,"*") -> 178.6745752 | AM123: =IFERROR('Level 3'!AJ18/M146*Z$141,"*") -> 182.0363886 | AN123: =IFERROR('Level 3'!AK18/N146*AA$141,"*") -> 179.7078962 | AO123: =IFERROR('Level 3'!AL18/O146*AB$141,"*") -> * | AQ123: ='Oversættelse af landenavne'!$B$18 -> Italien | AR123: =IFERROR('Level 3'!AO18/E146*R$141,"*") -> * | AS123: =IFERROR('Level 3'!AP18/F146*S$141,"*") -> 194.2992825 | AT123: =IFERROR('Level 3'!AQ18/G146*T$141,"*") -> 213.7110504 | AU123: =IFERROR('Level 3'!AR18/H146*U$141,"*") -> 197.4802967 | AV123: =IFERROR('Level 3'!AS18/I146*V$141,"*") -> 194.5885062 | AW123: =IFERROR('Level 3'!AT18/J146*W$141,"*") -> 207.1419067 | AX123: =IFERROR('Level 3'!AU18/K146*X$141,"*") -> 215.3523256 | AY123: =IFERROR('Level 3'!AV18/L146*Y$141,"*") -> 221.8866328 | AZ123: =IFERROR('Level 3'!AW18/M146*Z$141,"*") -> 227.1909663 | BA123: =IFERROR('Level 3'!AX18/N146*AA$141,"*") -> 210.8383979 | BB123: =IFERROR('Level 3'!AY18/O146*AB$141,"*") -> * | BD123: ='Oversættelse af landenavne'!$B$18 -> Italien | BE123: =IFERROR('Level 3'!BB18/E146*R$141,"*") -> * | BF123: =IFERROR('Level 3'!BC18/F146*S$141,"*") -> 185.724224 | BG123: =IFERROR('Level 3'!BD18/G146*T$141,"*") -> 247.0113557 | BH123: =IFERROR('Level 3'!BE18/H146*U$141,"*") -> 222.8395684 | BI123: =IFERROR('Level 3'!BF18/I146*V$141,"*") -> 224.2874156 | BJ123: =IFERROR('Level 3'!BG18/J146*W$141,"*") -> 231.7520766 | BK123: =IFERROR('Level 3'!BH18/K146*X$141,"*") -> 231.1518182 | BL123: =IFERROR('Level 3'!BI18/L146*Y$141,"*") -> 247.1341271 | BM123: =IFERROR('Level 3'!BJ18/M146*Z$141,"*") -> 249.7682552 | BN123: =IFERROR('Level 3'!BK18/N146*AA$141,"*") -> 213.966343 | BO123: =IFERROR('Level 3'!BL18/O146*AB$141,"*") -> *
D124: ='Oversættelse af landenavne'!$B$25 -> Holland | E124: =IFERROR('Level 3'!B$25/E147*R$141,"*") -> * | F124: =IFERROR('Level 3'!C$25/F147*S$141,"*") -> * | G124: =IFERROR('Level 3'!D$25/G147*T$141,"*") -> * | H124: =IFERROR('Level 3'!E$25/H147*U$141,"*") -> * | I124: =IFERROR('Level 3'!F$25/I147*V$141,"*") -> * | J124: =IFERROR('Level 3'!G$25/J147*W$141,"*") -> * | K124: =IFERROR('Level 3'!H$25/K147*X$141,"*") -> * | L124: =IFERROR('Level 3'!I$25/L147*Y$141,"*") -> * | M124: =IFERROR('Level 3'!J$25/M147*Z$141,"*") -> * | N124: =IFERROR('Level 3'!K$25/N147*AA$141,"*") -> * | O124: =IFERROR('Level 3'!L$25/O147*AB$141,"*") -> * | Q124: ='Oversættelse af landenavne'!$B$25 -> Holland | R124: =IFERROR('Level 3'!O$25/E147*R$141,"*") -> 115.6771959 | S124: =IFERROR('Level 3'!P$25/F147*S$141,"*") -> 112.9367366 | T124: =IFERROR('Level 3'!Q$25/G147*T$141,"*") -> 115.0788589 | U124: =IFERROR('Level 3'!R$25/H147*U$141,"*") -> 99.43961514 | V124: =IFERROR('Level 3'!S$25/I147*V$141,"*") -> 101.1246901 | W124: =IFERROR('Level 3'!T$25/J147*W$141,"*") -> 102.9813148 | X124: =IFERROR('Level 3'!U$25/K147*X$141,"*") -> 104.6254633 | Y124: =IFERROR('Level 3'!V$25/L147*Y$141,"*") -> 91.70533524 | Z124: =IFERROR('Level 3'!W$25/M147*Z$141,"*") -> 108.6772403 | AA124: =IFERROR('Level 3'!X$25/N147*AA$141,"*") -> 84.97584315 | AB124: =IFERROR('Level 3'!Y$25/O147*AB$141,"*") -> * | AD124: ='Oversættelse af landenavne'!$B$25 -> Holland | AE124: =IFERROR('Level 3'!AB25/E147*R$141,"*") -> 147.978869 | AF124: =IFERROR('Level 3'!AC25/F147*S$141,"*") -> 147.3465031 | AG124: =IFERROR('Level 3'!AD25/G147*T$141,"*") -> 158.9340089 | AH124: =IFERROR('Level 3'!AE25/H147*U$141,"*") -> 144.1529847 | AI124: =IFERROR('Level 3'!AF25/I147*V$141,"*") -> 142.6036236 | AJ124: =IFERROR('Level 3'!AG25/J147*W$141,"*") -> 142.8202401 | AK124: =IFERROR('Level 3'!AH25/K147*X$141,"*") -> 142.8691695 | AL124: =IFERROR('Level 3'!AI25/L147*Y$141,"*") -> 136.3227881 | AM124: =IFERROR('Level 3'!AJ25/M147*Z$141,"*") -> 143.1595686 | AN124: =IFERROR('Level 3'!AK25/N147*AA$141,"*") -> 120.6493128 | AO124: =IFERROR('Level 3'!AL25/O147*AB$141,"*") -> * | AQ124: ='Oversættelse af landenavne'!$B$25 -> Holland | AR124: =IFERROR('Level 3'!AO25/E147*R$141,"*") -> 162.9458746 | AS124: =IFERROR('Level 3'!AP25/F147*S$141,"*") -> 160.5238327 | AT124: =IFERROR('Level 3'!AQ25/G147*T$141,"*") -> 173.9069425 | AU124: =IFERROR('Level 3'!AR25/H147*U$141,"*") -> 159.3547196 | AV124: =IFERROR('Level 3'!AS25/I147*V$141,"*") -> 155.3481051 | AW124: =IFERROR('Level 3'!AT25/J147*W$141,"*") -> 154.5488813 | AX124: =IFERROR('Level 3'!AU25/K147*X$141,"*") -> 153.312932 | AY124: =IFERROR('Level 3'!AV25/L147*Y$141,"*") -> 150.1347345 | AZ124: =IFERROR('Level 3'!AW25/M147*Z$141,"*") -> 152.3872339 | BA124: =IFERROR('Level 3'!AX25/N147*AA$141,"*") -> 130.9268469 | BB124: =IFERROR('Level 3'!AY25/O147*AB$141,"*") -> * | BD124: ='Oversættelse af landenavne'!$B$25 -> Holland | BE124: =IFERROR('Level 3'!BB25/E147*R$141,"*") -> 149.6700561 | BF124: =IFERROR('Level 3'!BC25/F147*S$141,"*") -> * | BG124: =IFERROR('Level 3'!BD25/G147*T$141,"*") -> 189.4526113 | BH124: =IFERROR('Level 3'!BE25/H147*U$141,"*") -> 172.975474 | BI124: =IFERROR('Level 3'!BF25/I147*V$141,"*") -> 173.5149281 | BJ124: =IFERROR('Level 3'!BG25/J147*W$141,"*") -> 178.0061636 | BK124: =IFERROR('Level 3'!BH25/K147*X$141,"*") -> 178.0323413 | BL124: =IFERROR('Level 3'!BI25/L147*Y$141,"*") -> 177.1971661 | BM124: =IFERROR('Level 3'!BJ25/M147*Z$141,"*") -> 172.1874874 | BN124: =IFERROR('Level 3'!BK25/N147*AA$141,"*") -> 181.122919 | BO124: =IFERROR('Level 3'!BL25/O147*AB$141,"*") -> *
D125: ='Oversættelse af landenavne'!$B$33 -> Sverige | E125: =IFERROR('Level 3'!B$33/E148*R$141,"*") -> 234.9447124 | F125: =IFERROR('Level 3'!C$33/F148*S$141,"*") -> 236.0371076 | G125: =IFERROR('Level 3'!D$33/G148*T$141,"*") -> 209.7555806 | H125: =IFERROR('Level 3'!E$33/H148*U$141,"*") -> 263.1524776 | I125: =IFERROR('Level 3'!F$33/I148*V$141,"*") -> 269.6492674 | J125: =IFERROR('Level 3'!G$33/J148*W$141,"*") -> 271.0600158 | K125: =IFERROR('Level 3'!H$33/K148*X$141,"*") -> 273.9723466 | L125: =IFERROR('Level 3'!I$33/L148*Y$141,"*") -> 268.8789945 | M125: =IFERROR('Level 3'!J$33/M148*Z$141,"*") -> 257.2092732 | N125: =IFERROR('Level 3'!K$33/N148*AA$141,"*") -> 271.2375291 | O125: =IFERROR('Level 3'!L$33/O148*AB$141,"*") -> * | Q125: ='Oversættelse af landenavne'!$B$33 -> Sverige | R125: =IFERROR('Level 3'!O$33/E148*R$141,"*") -> 137.9741141 | S125: =IFERROR('Level 3'!P$33/F148*S$141,"*") -> 154.4096273 | T125: =IFERROR('Level 3'!Q$33/G148*T$141,"*") -> 143.1916638 | U125: =IFERROR('Level 3'!R$33/H148*U$141,"*") -> 159.8669773 | V125: =IFERROR('Level 3'!S$33/I148*V$141,"*") -> 172.9731352 | W125: =IFERROR('Level 3'!T$33/J148*W$141,"*") -> 170.1200772 | X125: =IFERROR('Level 3'!U$33/K148*X$141,"*") -> 172.3032171 | Y125: =IFERROR('Level 3'!V$33/L148*Y$141,"*") -> 164.2834402 | Z125: =IFERROR('Level 3'!W$33/M148*Z$141,"*") -> 155.9924872 | AA125: =IFERROR('Level 3'!X$33/N148*AA$141,"*") -> 159.3762527 | AB125: =IFERROR('Level 3'!Y$33/O148*AB$141,"*") -> * | AD125: ='Oversættelse af landenavne'!$B$33 -> Sverige | AE125: =IFERROR('Level 3'!AB33/E148*R$141,"*") -> 132.5404168 | AF125: =IFERROR('Level 3'!AC33/F148*S$141,"*") -> 139.1019505 | AG125: =IFERROR('Level 3'!AD33/G148*T$141,"*") -> 128.6902391 | AH125: =IFERROR('Level 3'!AE33/H148*U$141,"*") -> 147.6562668 | AI125: =IFERROR('Level 3'!AF33/I148*V$141,"*") -> 158.73461 | AJ125: =IFERROR('Level 3'!AG33/J148*W$141,"*") -> 156.1396868 | AK125: =IFERROR('Level 3'!AH33/K148*X$141,"*") -> 157.1456876 | AL125: =IFERROR('Level 3'!AI33/L148*Y$141,"*") -> 144.9292935 | AM125: =IFERROR('Level 3'!AJ33/M148*Z$141,"*") -> 139.8488604 | AN125: =IFERROR('Level 3'!AK33/N148*AA$141,"*") -> 141.0554311 | AO125: =IFERROR('Level 3'!AL33/O148*AB$141,"*") -> * | AQ125: ='Oversættelse af landenavne'!$B$33 -> Sverige | AR125: =IFERROR('Level 3'!AO33/E148*R$141,"*") -> 119.4995433 | AS125: =IFERROR('Level 3'!AP33/F148*S$141,"*") -> 121.0477774 | AT125: =IFERROR('Level 3'!AQ33/G148*T$141,"*") -> 110.8209971 | AU125: =IFERROR('Level 3'!AR33/H148*U$141,"*") -> 128.0569098 | AV125: =IFERROR('Level 3'!AS33/I148*V$141,"*") -> 136.7819512 | AW125: =IFERROR('Level 3'!AT33/J148*W$141,"*") -> 132.3578269 | AX125: =IFERROR('Level 3'!AU33/K148*X$141,"*") -> 133.3483662 | AY125: =IFERROR('Level 3'!AV33/L148*Y$141,"*") -> 122.286454 | AZ125: =IFERROR('Level 3'!AW33/M148*Z$141,"*") -> 115.4081602 | BA125: =IFERROR('Level 3'!AX33/N148*AA$141,"*") -> 114.0210481 | BB125: =IFERROR('Level 3'!AY33/O148*AB$141,"*") -> * | BD125: ='Oversættelse af landenavne'!$B$33 -> Sverige | BE125: =IFERROR('Level 3'!BB33/E148*R$141,"*") -> 106.6676581 | BF125: =IFERROR('Level 3'!BC33/F148*S$141,"*") -> 110.2233516 | BG125: =IFERROR('Level 3'!BD33/G148*T$141,"*") -> 102.5797503 | BH125: =IFERROR('Level 3'!BE33/H148*U$141,"*") -> 116.6239516 | BI125: =IFERROR('Level 3'!BF33/I148*V$141,"*") -> 123.1958651 | BJ125: =IFERROR('Level 3'!BG33/J148*W$141,"*") -> 118.6053776 | BK125: =IFERROR('Level 3'!BH33/K148*X$141,"*") -> 118.7213502 | BL125: =IFERROR('Level 3'!BI33/L148*Y$141,"*") -> 106.5612098 | BM125: =IFERROR('Level 3'!BJ33/M148*Z$141,"*") -> 100.5410062 | BN125: =IFERROR('Level 3'!BK33/N148*AA$141,"*") -> 99.5729205 | BO125: =IFERROR('Level 3'!BL33/O148*AB$141,"*") -> *
D126: ='Oversættelse af landenavne'!$B$34 -> UK | E126: =IFERROR('Level 3'!B$34/E149*R$141,"*") -> 153.9503678 | F126: =IFERROR('Level 3'!C$34/F149*S$141,"*") -> 144.0458355 | G126: =IFERROR('Level 3'!D$34/G149*T$141,"*") -> 142.6911494 | H126: =IFERROR('Level 3'!E$34/H149*U$141,"*") -> 126.7468386 | I126: =IFERROR('Level 3'!F$34/I149*V$141,"*") -> 130.1449471 | J126: =IFERROR('Level 3'!G$34/J149*W$141,"*") -> 148.7201032 | K126: =IFERROR('Level 3'!H$34/K149*X$141,"*") -> 161.3498441 | L126: =IFERROR('Level 3'!I$34/L149*Y$141,"*") -> 182.9020704 | M126: =IFERROR('Level 3'!J$34/M149*Z$141,"*") -> 195.2380571 | N126: =IFERROR('Level 3'!K$34/N149*AA$141,"*") -> 184.6977134 | O126: =IFERROR('Level 3'!L$34/O149*AB$141,"*") -> * | Q126: ='Oversættelse af landenavne'!$B$34 -> UK | R126: =IFERROR('Level 3'!O$34/E149*R$141,"*") -> 148.572587 | S126: =IFERROR('Level 3'!P$34/F149*S$141,"*") -> 140.1336965 | T126: =IFERROR('Level 3'!Q$34/G149*T$141,"*") -> 132.0720732 | U126: =IFERROR('Level 3'!R$34/H149*U$141,"*") -> 127.121706 | V126: =IFERROR('Level 3'!S$34/I149*V$141,"*") -> 129.9854069 | W126: =IFERROR('Level 3'!T$34/J149*W$141,"*") -> 146.7061852 | X126: =IFERROR('Level 3'!U$34/K149*X$141,"*") -> 145.7902979 | Y126: =IFERROR('Level 3'!V$34/L149*Y$141,"*") -> 162.4015327 | Z126: =IFERROR('Level 3'!W$34/M149*Z$141,"*") -> 178.0890202 | AA126: =IFERROR('Level 3'!X$34/N149*AA$141,"*") -> 165.4087184 | AB126: =IFERROR('Level 3'!Y$34/O149*AB$141,"*") -> * | AD126: ='Oversættelse af landenavne'!$B$34 -> UK | AE126: =IFERROR('Level 3'!AB34/E149*R$141,"*") -> 134.9914119 | AF126: =IFERROR('Level 3'!AC34/F149*S$141,"*") -> 134.5512061 | AG126: =IFERROR('Level 3'!AD34/G149*T$141,"*") -> 123.5166231 | AH126: =IFERROR('Level 3'!AE34/H149*U$141,"*") -> 118.0832361 | AI126: =IFERROR('Level 3'!AF34/I149*V$141,"*") -> 120.3332227 | AJ126: =IFERROR('Level 3'!AG34/J149*W$141,"*") -> 134.274114 | AK126: =IFERROR('Level 3'!AH34/K149*X$141,"*") -> 133.9408138 | AL126: =IFERROR('Level 3'!AI34/L149*Y$141,"*") -> 146.5229344 | AM126: =IFERROR('Level 3'!AJ34/M149*Z$141,"*") -> 160.6044586 | AN126: =IFERROR('Level 3'!AK34/N149*AA$141,"*") -> 145.3004996 | AO126: =IFERROR('Level 3'!AL34/O149*AB$141,"*") -> * | AQ126: ='Oversættelse af landenavne'!$B$34 -> UK | AR126: =IFERROR('Level 3'!AO34/E149*R$141,"*") -> 122.1394274 | AS126: =IFERROR('Level 3'!AP34/F149*S$141,"*") -> 120.8806981 | AT126: =IFERROR('Level 3'!AQ34/G149*T$141,"*") -> 110.0170688 | AU126: =IFERROR('Level 3'!AR34/H149*U$141,"*") -> 106.0041749 | AV126: =IFERROR('Level 3'!AS34/I149*V$141,"*") -> 106.8919578 | AW126: =IFERROR('Level 3'!AT34/J149*W$141,"*") -> 120.1766876 | AX126: =IFERROR('Level 3'!AU34/K149*X$141,"*") -> 122.0156141 | AY126: =IFERROR('Level 3'!AV34/L149*Y$141,"*") -> 132.0980105 | AZ126: =IFERROR('Level 3'!AW34/M149*Z$141,"*") -> 146.5124239 | BA126: =IFERROR('Level 3'!AX34/N149*AA$141,"*") -> 133.8313673 | BB126: =IFERROR('Level 3'!AY34/O149*AB$141,"*") -> * | BD126: ='Oversættelse af landenavne'!$B$34 -> UK | BE126: =IFERROR('Level 3'!BB34/E149*R$141,"*") -> 102.5424297 | BF126: =IFERROR('Level 3'!BC34/F149*S$141,"*") -> 118.814737 | BG126: =IFERROR('Level 3'!BD34/G149*T$141,"*") -> 107.4375361 | BH126: =IFERROR('Level 3'!BE34/H149*U$141,"*") -> 97.09066077 | BI126: =IFERROR('Level 3'!BF34/I149*V$141,"*") -> 98.63575063 | BJ126: =IFERROR('Level 3'!BG34/J149*W$141,"*") -> 110.7654935 | BK126: =IFERROR('Level 3'!BH34/K149*X$141,"*") -> 112.0968767 | BL126: =IFERROR('Level 3'!BI34/L149*Y$141,"*") -> 121.7731942 | BM126: =IFERROR('Level 3'!BJ34/M149*Z$141,"*") -> 134.284415 | BN126: =IFERROR('Level 3'!BK34/N149*AA$141,"*") -> 121.170637 | BO126: =IFERROR('Level 3'!BL34/O149*AB$141,"*") -> *
D127: Kilde: Eurostat | Q127: Kilde: Eurostat | AD127: Kilde: Eurostat | AQ127: Kilde: Eurostat | BD127: Kilde: Eurostat
D132: Baggrundstabeller
D133: Herunder vises de tabeller, der fremkommer som resultatet er valgene truffet øverst i valgmenuen. De ganges på rådata for at få resultattabellerne som kan ses længere oppe.
D136: Tabel B - HICP deflatoren | Q136: Tabel C - Valutakurs
D137: Tabel B fremkommer som resultat af valgene truffet for faste/løbende priser og basisår. HICP deflatoren vises for samtlige lande for det valgte år. Vælges løbende priser deflaterer man ikke, hvorfor der vil stå et 1-tal i alle celler. Formlen gør at "fejlværdien" svarer til at man har valgt løbende priser (gælder både for overskrift og formler). Med denne metode kan indeksværdien ganges direkte på rådata uanset hvilken valuta der vælges. | Q137: Tabel C viser hvilken kurs der ganges på rådata (opgivet i euro) for at få priserne vist i den valuta der er valgt i valgmenuen øverst. Kursen ændres efter valgt år og valuta.
D139: =IF($E$13="faste priser","HICP deflatoren for med basisåret "&$E$14&"","Prisindeks for løbende priser år "&E140&" til "&K140) -> HICP deflatoren for med basisåret 2016 | Q139: ="Valutakursen for "&E15&" i fht. Euro" -> Valutakursen for DKK øre i fht. Euro
E140: ='Baggrundsdata - HICP - deflator'!S19 -> 2007 | F140: ='Baggrundsdata - HICP - deflator'!T19 -> 2008 | G140: ='Baggrundsdata - HICP - deflator'!U19 -> 2009 | H140: ='Baggrundsdata - HICP - deflator'!V19 -> 2010 | I140: ='Baggrundsdata - HICP - deflator'!W19 -> 2011 | J140: ='Baggrundsdata - HICP - deflator'!X19 -> 2012 | K140: ='Baggrundsdata - HICP - deflator'!Y19 -> 2013 | L140: ='Baggrundsdata - HICP - deflator'!Z19 -> 2014 | M140: ='Baggrundsdata - HICP - deflator'!AA19 -> 2015 | N140: ='Baggrundsdata - HICP - deflator'!AB19 -> 2016 | O140: ='Baggrundsdata - HICP - deflator'!AC19 -> 2017 | R140: =Forside!E53 -> 2007 | S140: =Forside!F53 -> 2008 | T140: =Forside!G53 -> 2009 | U140: =Forside!H53 -> 2010 | V140: =Forside!I53 -> 2011 | W140: =Forside!J53 -> 2012 | X140: =Forside!K53 -> 2013 | Y140: =Forside!L53 -> 2014 | Z140: =Forside!M53 -> 2015 | AA140: =Forside!N53 -> 2016 | AB140: =Forside!O53 -> 2017
D141: ='Baggrundsdata - HICP - deflator'!R20 -> EU-28 | E141: =IF($E$13="faste priser",HLOOKUP(E$140,'Baggrundsdata - HICP - deflator'!$S$19:$AC$29,2,FALSE),1) -> 0.86658665 | F141: =IF($E$13="faste priser",HLOOKUP(F$140,'Baggrundsdata - HICP - deflator'!$S$19:$AC$29,2,FALSE),1) -> 0.89828982 | G141: =IF($E$13="faste priser",HLOOKUP(G$140,'Baggrundsdata - HICP - deflator'!$S$19:$AC$29,2,FALSE),1) -> 0.9070907 | H141: =IF($E$13="faste priser",HLOOKUP(H$140,'Baggrundsdata - HICP - deflator'!$S$19:$AC$29,2,FALSE),1) -> 0.92599259 | I141: =IF($E$13="faste priser",HLOOKUP(I$140,'Baggrundsdata - HICP - deflator'!$S$19:$AC$29,2,FALSE),1) -> 0.95469546 | J141: =IF($E$13="faste priser",HLOOKUP(J$140,'Baggrundsdata - HICP - deflator'!$S$19:$AC$29,2,FALSE),1) -> 0.97999799 | K141: =IF($E$13="faste priser",HLOOKUP(K$140,'Baggrundsdata - HICP - deflator'!$S$19:$AC$29,2,FALSE),1) -> 0.99479947 | L141: =IF($E$13="faste priser",HLOOKUP(L$140,'Baggrundsdata - HICP - deflator'!$S$19:$AC$29,2,FALSE),1) -> 1.00020001 | M141: =IF($E$13="faste priser",HLOOKUP(M$140,'Baggrundsdata - HICP - deflator'!$S$19:$AC$29,2,FALSE),1) -> 1.0001 | N141: =IF($E$13="faste priser",HLOOKUP(N$140,'Baggrundsdata - HICP - deflator'!$S$19:$AC$29,2,FALSE),1) -> 1 | O141: =IF($E$13="faste priser",HLOOKUP(O$140,'Baggrundsdata - HICP - deflator'!$S$19:$AC$29,2,FALSE),1) -> 0 | Q141: Alle lande | R141: =IF($E$15="Euro",1,IF($E$15="eurocent",100,IF($E$15="DKK øre",HLOOKUP(R140,Forside!$E$53:$O$54,2,FALSE),IF($E$15="DKK",((HLOOKUP(R140,Forside!$E$53:$O$54,2,FALSE))/100),"F")))) -> 745.5974 | S141: =IF($E$15="Euro",1,IF($E$15="eurocent",100,IF($E$15="DKK øre",HLOOKUP(S140,Forside!$E$53:$O$54,2,FALSE),IF($E$15="DKK",((HLOOKUP(S140,Forside!$E$53:$O$54,2,FALSE))/100),"F")))) -> 744.6251 | T141: =IF($E$15="Euro",1,IF($E$15="eurocent",100,IF($E$15="DKK øre",HLOOKUP(T140,Forside!$E$53:$O$54,2,FALSE),IF($E$15="DKK",((HLOOKUP(T140,Forside!$E$53:$O$54,2,FALSE))/100),"F")))) -> 744.6251 | U141: =IF($E$15="Euro",1,IF($E$15="eurocent",100,IF($E$15="DKK øre",HLOOKUP(U140,Forside!$E$53:$O$54,2,FALSE),IF($E$15="DKK",((HLOOKUP(U140,Forside!$E$53:$O$54,2,FALSE))/100),"F")))) -> 744.7366 | V141: =IF($E$15="Euro",1,IF($E$15="eurocent",100,IF($E$15="DKK øre",HLOOKUP(V140,Forside!$E$53:$O$54,2,FALSE),IF($E$15="DKK",((HLOOKUP(V140,Forside!$E$53:$O$54,2,FALSE))/100),"F")))) -> 745.0529 | W141: =IF($E$15="Euro",1,IF($E$15="eurocent",100,IF($E$15="DKK øre",HLOOKUP(W140,Forside!$E$53:$O$54,2,FALSE),IF($E$15="DKK",((HLOOKUP(W140,Forside!$E$53:$O$54,2,FALSE))/100),"F")))) -> 744.3751 | X141: =IF($E$15="Euro",1,IF($E$15="eurocent",100,IF($E$15="DKK øre",HLOOKUP(X140,Forside!$E$53:$O$54,2,FALSE),IF($E$15="DKK",((HLOOKUP(X140,Forside!$E$53:$O$54,2,FALSE))/100),"F")))) -> 745.7982 | Y141: =IF($E$15="Euro",1,IF($E$15="eurocent",100,IF($E$15="DKK øre",HLOOKUP(Y140,Forside!$E$53:$O$54,2,FALSE),IF($E$15="DKK",((HLOOKUP(Y140,Forside!$E$53:$O$54,2,FALSE))/100),"F")))) -> 745.4741 | Z141: =IF($E$15="Euro",1,IF($E$15="eurocent",100,IF($E$15="DKK øre",HLOOKUP(Z140,Forside!$E$53:$O$54,2,FALSE),IF($E$15="DKK",((HLOOKUP(Z140,Forside!$E$53:$O$54,2,FALSE))/100),"F")))) -> 745.6103 | AA141: =IF($E$15="Euro",1,IF($E$15="eurocent",100,IF($E$15="DKK øre",HLOOKUP(AA140,Forside!$E$53:$O$54,2,FALSE),IF($E$15="DKK",((HLOOKUP(AA140,Forside!$E$53:$O$54,2,FALSE))/100),"F")))) -> 744.7488444 | AB141: =IF($E$15="Euro",1,IF($E$15="eurocent",100,IF($E$15="DKK øre",HLOOKUP(AB140,Forside!$E$53:$O$54,2,FALSE),IF($E$15="DKK",((HLOOKUP(AB140,Forside!$E$53:$O$54,2,FALSE))/100),"F")))) -> 0
D142: ='Baggrundsdata - HICP - deflator'!R21 -> Belgien | E142: =IF($E$13="faste priser",HLOOKUP(E$140,'Baggrundsdata - HICP - deflator'!$S$19:$AC$29,3,FALSE),1) -> 0.85595994 | F142: =IF($E$13="faste priser",HLOOKUP(F$140,'Baggrundsdata - HICP - deflator'!$S$19:$AC$29,3,FALSE),1) -> 0.89442 | G142: =IF($E$13="faste priser",HLOOKUP(G$140,'Baggrundsdata - HICP - deflator'!$S$19:$AC$29,3,FALSE),1) -> 0.89432062 | H142: =IF($E$13="faste priser",HLOOKUP(H$140,'Baggrundsdata - HICP - deflator'!$S$19:$AC$29,3,FALSE),1) -> 0.91519042 | I142: =IF($E$13="faste priser",HLOOKUP(I$140,'Baggrundsdata - HICP - deflator'!$S$19:$AC$29,3,FALSE),1) -> 0.94589884 | J142: =IF($E$13="faste priser",HLOOKUP(J$140,'Baggrundsdata - HICP - deflator'!$S$19:$AC$29,3,FALSE),1) -> 0.97074384 | K142: =IF($E$13="faste priser",HLOOKUP(K$140,'Baggrundsdata - HICP - deflator'!$S$19:$AC$29,3,FALSE),1) -> 0.9828682 | L142: =IF($E$13="faste priser",HLOOKUP(L$140,'Baggrundsdata - HICP - deflator'!$S$19:$AC$29,3,FALSE),1) -> 0.98763844 | M142: =IF($E$13="faste priser",HLOOKUP(M$140,'Baggrundsdata - HICP - deflator'!$S$19:$AC$29,3,FALSE),1) -> 0.9938 | N142: =IF($E$13="faste priser",HLOOKUP(N$140,'Baggrundsdata - HICP - deflator'!$S$19:$AC$29,3,FALSE),1) -> 1 | O142: =IF($E$13="faste priser",HLOOKUP(O$140,'Baggrundsdata - HICP - deflator'!$S$19:$AC$29,3,FALSE),1) -> 0
D143: ='Baggrundsdata - HICP - deflator'!R22 -> Danmark | E143: =IF($E$13="faste priser",HLOOKUP(E$140,'Baggrundsdata - HICP - deflator'!$S$19:$AC$29,4,FALSE),1) -> 0.87824 | F143: =IF($E$13="faste priser",HLOOKUP(F$140,'Baggrundsdata - HICP - deflator'!$S$19:$AC$29,4,FALSE),1) -> 0.910176 | G143: =IF($E$13="faste priser",HLOOKUP(G$140,'Baggrundsdata - HICP - deflator'!$S$19:$AC$29,4,FALSE),1) -> 0.919158 | H143: =IF($E$13="faste priser",HLOOKUP(H$140,'Baggrundsdata - HICP - deflator'!$S$19:$AC$29,4,FALSE),1) -> 0.939118 | I143: =IF($E$13="faste priser",HLOOKUP(I$140,'Baggrundsdata - HICP - deflator'!$S$19:$AC$29,4,FALSE),1) -> 0.964068 | J143: =IF($E$13="faste priser",HLOOKUP(J$140,'Baggrundsdata - HICP - deflator'!$S$19:$AC$29,4,FALSE),1) -> 0.987022 | K143: =IF($E$13="faste priser",HLOOKUP(K$140,'Baggrundsdata - HICP - deflator'!$S$19:$AC$29,4,FALSE),1) -> 0.992012 | L143: =IF($E$13="faste priser",HLOOKUP(L$140,'Baggrundsdata - HICP - deflator'!$S$19:$AC$29,4,FALSE),1) -> 0.996004 | M143: =IF($E$13="faste priser",HLOOKUP(M$140,'Baggrundsdata - HICP - deflator'!$S$19:$AC$29,4,FALSE),1) -> 0.998 | N143: =IF($E$13="faste priser",HLOOKUP(N$140,'Baggrundsdata - HICP - deflator'!$S$19:$AC$29,4,FALSE),1) -> 1 | O143: =IF($E$13="faste priser",HLOOKUP(O$140,'Baggrundsdata - HICP - deflator'!$S$19:$AC$29,4,FALSE),1) -> 0
D144: ='Baggrundsdata - HICP - deflator'!R23 -> Tyskland | E144: =IF($E$13="faste priser",HLOOKUP(E$140,'Baggrundsdata - HICP - deflator'!$S$19:$AC$29,5,FALSE),1) -> 0.894105 | F144: =IF($E$13="faste priser",HLOOKUP(F$140,'Baggrundsdata - HICP - deflator'!$S$19:$AC$29,5,FALSE),1) -> 0.918081 | G144: =IF($E$13="faste priser",HLOOKUP(G$140,'Baggrundsdata - HICP - deflator'!$S$19:$AC$29,5,FALSE),1) -> 0.920079 | H144: =IF($E$13="faste priser",HLOOKUP(H$140,'Baggrundsdata - HICP - deflator'!$S$19:$AC$29,5,FALSE),1) -> 0.931068 | I144: =IF($E$13="faste priser",HLOOKUP(I$140,'Baggrundsdata - HICP - deflator'!$S$19:$AC$29,5,FALSE),1) -> 0.954045 | J144: =IF($E$13="faste priser",HLOOKUP(J$140,'Baggrundsdata - HICP - deflator'!$S$19:$AC$29,5,FALSE),1) -> 0.974025 | K144: =IF($E$13="faste priser",HLOOKUP(K$140,'Baggrundsdata - HICP - deflator'!$S$19:$AC$29,5,FALSE),1) -> 0.990009 | L144: =IF($E$13="faste priser",HLOOKUP(L$140,'Baggrundsdata - HICP - deflator'!$S$19:$AC$29,5,FALSE),1) -> 0.998001 | M144: =IF($E$13="faste priser",HLOOKUP(M$140,'Baggrundsdata - HICP - deflator'!$S$19:$AC$29,5,FALSE),1) -> 0.999 | N144: =IF($E$13="faste priser",HLOOKUP(N$140,'Baggrundsdata - HICP - deflator'!$S$19:$AC$29,5,FALSE),1) -> 1 | O144: =IF($E$13="faste priser",HLOOKUP(O$140,'Baggrundsdata - HICP - deflator'!$S$19:$AC$29,5,FALSE),1) -> 0
D145: ='Baggrundsdata - HICP - deflator'!R24 -> Frankrig | E145: =IF($E$13="faste priser",HLOOKUP(E$140,'Baggrundsdata - HICP - deflator'!$S$19:$AC$29,6,FALSE),1) -> 0.89439432 | F145: =IF($E$13="faste priser",HLOOKUP(F$140,'Baggrundsdata - HICP - deflator'!$S$19:$AC$29,6,FALSE),1) -> 0.92256894 | G145: =IF($E$13="faste priser",HLOOKUP(G$140,'Baggrundsdata - HICP - deflator'!$S$19:$AC$29,6,FALSE),1) -> 0.92356804 | H145: =IF($E$13="faste priser",HLOOKUP(H$140,'Baggrundsdata - HICP - deflator'!$S$19:$AC$29,6,FALSE),1) -> 0.93965355 | I145: =IF($E$13="faste priser",HLOOKUP(I$140,'Baggrundsdata - HICP - deflator'!$S$19:$AC$29,6,FALSE),1) -> 0.9611342 | J145: =IF($E$13="faste priser",HLOOKUP(J$140,'Baggrundsdata - HICP - deflator'!$S$19:$AC$29,6,FALSE),1) -> 0.98241503 | K145: =IF($E$13="faste priser",HLOOKUP(K$140,'Baggrundsdata - HICP - deflator'!$S$19:$AC$29,6,FALSE),1) -> 0.99220621 | L145: =IF($E$13="faste priser",HLOOKUP(L$140,'Baggrundsdata - HICP - deflator'!$S$19:$AC$29,6,FALSE),1) -> 0.99820081 | M145: =IF($E$13="faste priser",HLOOKUP(M$140,'Baggrundsdata - HICP - deflator'!$S$19:$AC$29,6,FALSE),1) -> 0.9991 | N145: =IF($E$13="faste priser",HLOOKUP(N$140,'Baggrundsdata - HICP - deflator'!$S$19:$AC$29,6,FALSE),1) -> 1 | O145: =IF($E$13="faste priser",HLOOKUP(O$140,'Baggrundsdata - HICP - deflator'!$S$19:$AC$29,6,FALSE),1) -> 0
D146: ='Baggrundsdata - HICP - deflator'!R25 -> Italien | E146: =IF($E$13="faste priser",HLOOKUP(E$140,'Baggrundsdata - HICP - deflator'!$S$19:$AC$29,7,FALSE),1) -> 0.872127 | F146: =IF($E$13="faste priser",HLOOKUP(F$140,'Baggrundsdata - HICP - deflator'!$S$19:$AC$29,7,FALSE),1) -> 0.903096 | G146: =IF($E$13="faste priser",HLOOKUP(G$140,'Baggrundsdata - HICP - deflator'!$S$19:$AC$29,7,FALSE),1) -> 0.910089 | H146: =IF($E$13="faste priser",HLOOKUP(H$140,'Baggrundsdata - HICP - deflator'!$S$19:$AC$29,7,FALSE),1) -> 0.925074 | I146: =IF($E$13="faste priser",HLOOKUP(I$140,'Baggrundsdata - HICP - deflator'!$S$19:$AC$29,7,FALSE),1) -> 0.952047 | J146: =IF($E$13="faste priser",HLOOKUP(J$140,'Baggrundsdata - HICP - deflator'!$S$19:$AC$29,7,FALSE),1) -> 0.983016 | K146: =IF($E$13="faste priser",HLOOKUP(K$140,'Baggrundsdata - HICP - deflator'!$S$19:$AC$29,7,FALSE),1) -> 0.996003 | L146: =IF($E$13="faste priser",HLOOKUP(L$140,'Baggrundsdata - HICP - deflator'!$S$19:$AC$29,7,FALSE),1) -> 0.998001 | M146: =IF($E$13="faste priser",HLOOKUP(M$140,'Baggrundsdata - HICP - deflator'!$S$19:$AC$29,7,FALSE),1) -> 0.999 | N146: =IF($E$13="faste priser",HLOOKUP(N$140,'Baggrundsdata - HICP - deflator'!$S$19:$AC$29,7,FALSE),1) -> 1 | O146: =IF($E$13="faste priser",HLOOKUP(O$140,'Baggrundsdata - HICP - deflator'!$S$19:$AC$29,7,FALSE),1) -> 0
D147: ='Baggrundsdata - HICP - deflator'!R26 -> Holland | E147: =IF($E$13="faste priser",HLOOKUP(E$140,'Baggrundsdata - HICP - deflator'!$S$19:$AC$29,8,FALSE),1) -> 0.88174444 | F147: =IF($E$13="faste priser",HLOOKUP(F$140,'Baggrundsdata - HICP - deflator'!$S$19:$AC$29,8,FALSE),1) -> 0.90130328 | G147: =IF($E$13="faste priser",HLOOKUP(G$140,'Baggrundsdata - HICP - deflator'!$S$19:$AC$29,8,FALSE),1) -> 0.9100848 | H147: =IF($E$13="faste priser",HLOOKUP(H$140,'Baggrundsdata - HICP - deflator'!$S$19:$AC$29,8,FALSE),1) -> 0.91856695 | I147: =IF($E$13="faste priser",HLOOKUP(I$140,'Baggrundsdata - HICP - deflator'!$S$19:$AC$29,8,FALSE),1) -> 0.94121928 | J147: =IF($E$13="faste priser",HLOOKUP(J$140,'Baggrundsdata - HICP - deflator'!$S$19:$AC$29,8,FALSE),1) -> 0.96786321 | K147: =IF($E$13="faste priser",HLOOKUP(K$140,'Baggrundsdata - HICP - deflator'!$S$19:$AC$29,8,FALSE),1) -> 0.99261113 | L147: =IF($E$13="faste priser",HLOOKUP(L$140,'Baggrundsdata - HICP - deflator'!$S$19:$AC$29,8,FALSE),1) -> 0.99580441 | M147: =IF($E$13="faste priser",HLOOKUP(M$140,'Baggrundsdata - HICP - deflator'!$S$19:$AC$29,8,FALSE),1) -> 0.9979 | N147: =IF($E$13="faste priser",HLOOKUP(N$140,'Baggrundsdata - HICP - deflator'!$S$19:$AC$29,8,FALSE),1) -> 1 | O147: =IF($E$13="faste priser",HLOOKUP(O$140,'Baggrundsdata - HICP - deflator'!$S$19:$AC$29,8,FALSE),1) -> 0
D148: ='Baggrundsdata - HICP - deflator'!R27 -> Sverige | E148: =IF($E$13="faste priser",HLOOKUP(E$140,'Baggrundsdata - HICP - deflator'!$S$19:$AC$29,9,FALSE),1) -> 0.8919126 | F148: =IF($E$13="faste priser",HLOOKUP(F$140,'Baggrundsdata - HICP - deflator'!$S$19:$AC$29,9,FALSE),1) -> 0.9218019 | G148: =IF($E$13="faste priser",HLOOKUP(G$140,'Baggrundsdata - HICP - deflator'!$S$19:$AC$29,9,FALSE),1) -> 0.9396759 | H148: =IF($E$13="faste priser",HLOOKUP(H$140,'Baggrundsdata - HICP - deflator'!$S$19:$AC$29,9,FALSE),1) -> 0.9575499 | I148: =IF($E$13="faste priser",HLOOKUP(I$140,'Baggrundsdata - HICP - deflator'!$S$19:$AC$29,9,FALSE),1) -> 0.9706575 | J148: =IF($E$13="faste priser",HLOOKUP(J$140,'Baggrundsdata - HICP - deflator'!$S$19:$AC$29,9,FALSE),1) -> 0.9796938 | K148: =IF($E$13="faste priser",HLOOKUP(K$140,'Baggrundsdata - HICP - deflator'!$S$19:$AC$29,9,FALSE),1) -> 0.984063 | L148: =IF($E$13="faste priser",HLOOKUP(L$140,'Baggrundsdata - HICP - deflator'!$S$19:$AC$29,9,FALSE),1) -> 0.986049 | M148: =IF($E$13="faste priser",HLOOKUP(M$140,'Baggrundsdata - HICP - deflator'!$S$19:$AC$29,9,FALSE),1) -> 0.993 | N148: =IF($E$13="faste priser",HLOOKUP(N$140,'Baggrundsdata - HICP - deflator'!$S$19:$AC$29,9,FALSE),1) -> 1 | O148: =IF($E$13="faste priser",HLOOKUP(O$140,'Baggrundsdata - HICP - deflator'!$S$19:$AC$29,9,FALSE),1) -> 0
D149: ='Baggrundsdata - HICP - deflator'!R28 -> UK | E149: =IF($E$13="faste priser",HLOOKUP(E$140,'Baggrundsdata - HICP - deflator'!$S$19:$AC$29,10,FALSE),1) -> 0.818 | F149: =IF($E$13="faste priser",HLOOKUP(F$140,'Baggrundsdata - HICP - deflator'!$S$19:$AC$29,10,FALSE),1) -> 0.847 | G149: =IF($E$13="faste priser",HLOOKUP(G$140,'Baggrundsdata - HICP - deflator'!$S$19:$AC$29,10,FALSE),1) -> 0.866 | H149: =IF($E$13="faste priser",HLOOKUP(H$140,'Baggrundsdata - HICP - deflator'!$S$19:$AC$29,10,FALSE),1) -> 0.894 | I149: =IF($E$13="faste priser",HLOOKUP(I$140,'Baggrundsdata - HICP - deflator'!$S$19:$AC$29,10,FALSE),1) -> 0.934 | J149: =IF($E$13="faste priser",HLOOKUP(J$140,'Baggrundsdata - HICP - deflator'!$S$19:$AC$29,10,FALSE),1) -> 0.961 | K149: =IF($E$13="faste priser",HLOOKUP(K$140,'Baggrundsdata - HICP - deflator'!$S$19:$AC$29,10,FALSE),1) -> 0.985 | L149: =IF($E$13="faste priser",HLOOKUP(L$140,'Baggrundsdata - HICP - deflator'!$S$19:$AC$29,10,FALSE),1) -> 1 | M149: =IF($E$13="faste priser",HLOOKUP(M$140,'Baggrundsdata - HICP - deflator'!$S$19:$AC$29,10,FALSE),1) -> 1 | N149: =IF($E$13="faste priser",HLOOKUP(N$140,'Baggrundsdata - HICP - deflator'!$S$19:$AC$29,10,FALSE),1) -> 1 | O149: =IF($E$13="faste priser",HLOOKUP(O$140,'Baggrundsdata - HICP - deflator'!$S$19:$AC$29,10,FALSE),1) -> 0

Sheet Alle lande, valgt år
D1: NAVN PÅ ARK: | F1: Alle lande, valgt år
D2: Data hentes fra: | F2: 'Baggrundstabeller for alle lande'
D4: Sådan bruges arket:
D5: Arket 'alle lande, valgt år' viser figurer og tabeller (de grå-blå) for elprisen for private forbrugere opdelt på level 1, 2 og 3 for hvert interval. Prisen vises i én valuta for ét år, enten i faste eller løbende priser. Priserne vises for alle lande tilgængelige i eurostat. Året, pristypen, basisået og valuta kan ændres efter ønske. Dette gøres i de farvede rullemenuer nedenfor. De valg man træffer ændrer resultattabellerne gennem en ændring af tabellerne i arket 'Baggrundstabeller for alle lande'.
D6: ="Rent teknisk styrer hver rullemenu en tabel i tilsvarende farve i arket '"&'Baggrundstabeller for alle land'!E1&"'. Data fra disse tabeller ganges sammen og heraf fremkommer resultattabellen." -> Rent teknisk styrer hver rullemenu en tabel i tilsvarende farve i arket 'Baggrundstabeller for alle lande, valgt år'. Data fra disse tabeller ganges sammen og heraf fremkommer resultattabellen.
D7: Hvis man ønsker at se hvordan de forskellige valg påvirker resultattabellen skal man kigge i 'Baggrundstabeller for alle lande'. Til hver resultattabel hører tre figurer. En for hvert level. I resultattabellen er totalprisen for hvert level opgjort i en seperat totalprissøjle. Hvis man ønsker at sortere figurerne efter stigende priser kan man kopiere de ønskede tabeller og figurer over i et seperat ark.
D11: Vælg | G11: Resultater vises i
D12: Vælg år | E12: 2015 | F12: ="Tabel A i '"&'Baggrundstabeller for alle land'!$E$1&"'" -> Tabel A i 'Baggrundstabeller for alle lande, valgt år'
D13: Vælg pristype | E13: faste priser | F13: ="Tabel B i '"&'Baggrundstabeller for alle land'!$E$1&"'" -> Tabel B i 'Baggrundstabeller for alle lande, valgt år'
D14: Vælg Basisår (kun ved fast pris) | E14: 2016 | F14: ="Tabel B i '"&'Baggrundstabeller for alle land'!$E$1&"'" -> Tabel B i 'Baggrundstabeller for alle lande, valgt år'
D15: Vælg valuta | E15: DKK | F15: ="Tabel C i '"&'Baggrundstabeller for alle land'!$E$1&"'" -> Tabel C i 'Baggrundstabeller for alle lande, valgt år'
D19: Resultatfigurer og -tabeller
D20: Valgene truffet ovenfor giver tabeller og figurer der er:
D21: ="Oppgjort for året "&E12&" i "&$E$13&" med basisår "&$E$14 -> Oppgjort for året 2015 i faste priser med basisår 2016
D22: ="Vist i "&E15&" / kWh." -> Vist i DKK / kWh.
D24: =D98 -> IA: < 1000 kWh | M24: =M98 -> IB: 1000 < 2500 kWh | V24: =V98 -> IC: 2500 < 5000 kWh | AE24: =AE98 -> ID: 5000 < 15000 kWh | AN24: =AN98 -> IE: > 15000 kWh
B26: Level 1: Elspris ekskl. PSO og afgifter | D26: ="Figur XX: "&$B$26&". Priserne er vist for år "&$E$12&" i "&$E$13&" med basisår "&$E$14&". Priserne er vist for intervallet "&D$24&" i "&$E$15&" / kWh. " -> Figur XX: Level 1: Elspris ekskl. PSO og afgifter. Priserne er vist for år 2015 i faste priser med basisår 2016. Priserne er vist for intervallet IA: < 1000 kWh i DKK / kWh. | M26: ="Figur XX: "&$B$26&". Priserne er vist for år "&$E$12&" i "&$E$13&" med basisår "&$E$14&". Priserne er vist for intervallet "&M$24&" i "&$E$15&" / kWh. " -> Figur XX: Level 1: Elspris ekskl. PSO og afgifter. Priserne er vist for år 2015 i faste priser med basisår 2016. Priserne er vist for intervallet IB: 1000 < 2500 kWh i DKK / kWh. | V26: ="Figur XX: "&$B$26&". Priserne er vist for år "&$E$12&" i "&$E$13&" med basisår "&$E$14&". Priserne er vist for intervallet "&V$24&" i "&$E$15&" / kWh. " -> Figur XX: Level 1: Elspris ekskl. PSO og afgifter. Priserne er vist for år 2015 i faste priser med basisår 2016. Priserne er vist for intervallet IC: 2500 < 5000 kWh i DKK / kWh. | AE26: ="Figur XX: "&$B$26&". Priserne er vist for år "&$E$12&" i "&$E$13&" med basisår "&$E$14&". Priserne er vist for intervallet "&AE$24&" i "&$E$15&" / kWh. " -> Figur XX: Level 1: Elspris ekskl. PSO og afgifter. Priserne er vist for år 2015 i faste priser med basisår 2016. Priserne er vist for intervallet ID: 5000 < 15000 kWh i DKK / kWh. | AN26: ="Figur XX: "&$B$26&". Priserne er vist for år "&$E$12&" i "&$E$13&" med basisår "&$E$14&". Priserne er vist for intervallet "&AN$24&" i "&$E$15&" / kWh. " -> Figur XX: Level 1: Elspris ekskl. PSO og afgifter. Priserne er vist for år 2015 i faste priser med basisår 2016. Priserne er vist for intervallet IE: > 15000 kWh i DKK / kWh. | AX26: =B26 -> Level 1: Elspris ekskl. PSO og afgifter
D45: Kilde: Eurostat | M45: Kilde: Eurostat | V45: Kilde: Eurostat | AE45: Kilde: Eurostat | AN45: Kilde: Eurostat
B49: Level 2: Elpris inkl. PSO og afgifter | D49: ="Figur XX: "&$B49&". Priserne er vist for år "&$E$12&" i "&$E$13&" med basisår "&$E$14&". Priserne er vist for intervallet "&D$24&" i "&$E$15&" / kWh. " -> Figur XX: Level 2: Elpris inkl. PSO og afgifter. Priserne er vist for år 2015 i faste priser med basisår 2016. Priserne er vist for intervallet IA: < 1000 kWh i DKK / kWh. | M49: ="Figur XX: "&$B49&". Priserne er vist for år "&$E$12&" i "&$E$13&" med basisår "&$E$14&". Priserne er vist for intervallet "&M$24&" i "&$E$15&" / kWh. " -> Figur XX: Level 2: Elpris inkl. PSO og afgifter. Priserne er vist for år 2015 i faste priser med basisår 2016. Priserne er vist for intervallet IB: 1000 < 2500 kWh i DKK / kWh. | V49: ="Figur XX: "&$B49&". Priserne er vist for år "&$E$12&" i "&$E$13&" med basisår "&$E$14&". Priserne er vist for intervallet "&V$24&" i "&$E$15&" / kWh. " -> Figur XX: Level 2: Elpris inkl. PSO og afgifter. Priserne er vist for år 2015 i faste priser med basisår 2016. Priserne er vist for intervallet IC: 2500 < 5000 kWh i DKK / kWh. | AE49: ="Figur XX: "&$B49&". Priserne er vist for år "&$E$12&" i "&$E$13&" med basisår "&$E$14&". Priserne er vist for intervallet "&AE$24&" i "&$E$15&" / kWh. " -> Figur XX: Level 2: Elpris inkl. PSO og afgifter. Priserne er vist for år 2015 i faste priser med basisår 2016. Priserne er vist for intervallet ID: 5000 < 15000 kWh i DKK / kWh. | AN49: ="Figur XX: "&$B49&". Priserne er vist for år "&$E$12&" i "&$E$13&" med basisår "&$E$14&". Priserne er vist for intervallet "&AN$24&" i "&$E$15&" / kWh. " -> Figur XX: Level 2: Elpris inkl. PSO og afgifter. Priserne er vist for år 2015 i faste priser med basisår 2016. Priserne er vist for intervallet IE: > 15000 kWh i DKK / kWh. | AX49: =B49 -> Level 2: Elpris inkl. PSO og afgifter
D68: Kilde: Eurostat | M68: Kilde: Eurostat | V68: Kilde: Eurostat | AE68: Kilde: Eurostat | AN68: Kilde: Eurostat
B72: Level 3: Elpris inkl. PSO, afgifter og moms | D72: ="Figur XX: "&$B$72&". Priserne er vist for år "&$E$12&" i "&$E$13&" med basisår "&$E$14&". Priserne er vist for intervallet "&D$24&" i "&$E$15&" / kWh. " -> Figur XX: Level 3: Elpris inkl. PSO, afgifter og moms. Priserne er vist for år 2015 i faste priser med basisår 2016. Priserne er vist for intervallet IA: < 1000 kWh i DKK / kWh. | M72: ="Figur XX: "&$B$72&". Priserne er vist for år "&$E$12&" i "&$E$13&" med basisår "&$E$14&". Priserne er vist for intervallet "&M$24&" i "&$E$15&" / kWh. " -> Figur XX: Level 3: Elpris inkl. PSO, afgifter og moms. Priserne er vist for år 2015 i faste priser med basisår 2016. Priserne er vist for intervallet IB: 1000 < 2500 kWh i DKK / kWh. | V72: ="Figur XX: "&$B$72&". Priserne er vist for år "&$E$12&" i "&$E$13&" med basisår "&$E$14&". Priserne er vist for intervallet "&V$24&" i "&$E$15&" / kWh. " -> Figur XX: Level 3: Elpris inkl. PSO, afgifter og moms. Priserne er vist for år 2015 i faste priser med basisår 2016. Priserne er vist for intervallet IC: 2500 < 5000 kWh i DKK / kWh. | AE72: ="Figur XX: "&$B$72&". Priserne er vist for år "&$E$12&" i "&$E$13&" med basisår "&$E$14&". Priserne er vist for intervallet "&AE$24&" i "&$E$15&" / kWh. " -> Figur XX: Level 3: Elpris inkl. PSO, afgifter og moms. Priserne er vist for år 2015 i faste priser med basisår 2016. Priserne er vist for intervallet ID: 5000 < 15000 kWh i DKK / kWh. | AN72: ="Figur XX: "&$B$72&". Priserne er vist for år "&$E$12&" i "&$E$13&" med basisår "&$E$14&". Priserne er vist for intervallet "&AN$24&" i "&$E$15&" / kWh. " -> Figur XX: Level 3: Elpris inkl. PSO, afgifter og moms. Priserne er vist for år 2015 i faste priser med basisår 2016. Priserne er vist for intervallet IE: > 15000 kWh i DKK / kWh. | AX72: =B72 -> Level 3: Elpris inkl. PSO, afgifter og moms
D91: Kilde: Eurostat | M91: Kilde: Eurostat | V91: Kilde: Eurostat | AE91: Kilde: Eurostat | AN91: Kilde: Eurostat
D98: ='Baggrundstabeller for alle land'!D26:J26 -> IA: < 1000 kWh | M98: ='Baggrundstabeller for alle land'!L26 -> IB: 1000 < 2500 kWh | V98: ='Baggrundstabeller for alle land'!T26 -> IC: 2500 < 5000 kWh | AE98: ='Baggrundstabeller for alle land'!AB26 -> ID: 5000 < 15000 kWh | AN98: ='Baggrundstabeller for alle land'!AJ26 -> IE: > 15000 kWh
D100: =$E$15 &" / kWh "&$E$12 -> DKK / kWh 2015 | M100: =$E$15 &" / kWh "&$E$12 -> DKK / kWh 2015 | V100: =$E$15 &" / kWh "&$E$12 -> DKK / kWh 2015 | AE100: =$E$15 &" / kWh "&$E$12 -> DKK / kWh 2015 | AN100: =$E$15 &" / kWh "&$E$12 -> DKK / kWh 2015
E101: original rækkefølge | F101: Elpris ekskl. PSO, eksl. afgifter | G101: PSO og afgifter | H101: Moms | I101: Total pris (level 1) | J101: Total pris (level 2) | K101: Total pris (level 3) | N101: original rækkefølge | O101: Elpris ekskl. PSO, eksl. afgifter | P101: PSO og afgifter | Q101: Moms | R101: Total pris (level 1) | S101: Total pris (level 2) | T101: Total pris (level 3) | W101: original rækkefølge | X101: Elpris ekskl. PSO, eksl. afgifter | Y101: PSO og afgifter | Z101: Moms | AA101: Total pris (level 1) | AB101: Total pris (level 2) | AC101: Total pris (level 3) | AF101: original rækkefølge | AG101: Elpris ekskl. PSO, eksl. afgifter | AH101: PSO og afgifter | AI101: Moms | AJ101: Total pris (level 1) | AK101: Total pris (level 2) | AL101: Total pris (level 3) | AO101: original rækkefølge | AP101: Elpris ekskl. PSO, eksl. afgifter | AQ101: PSO og afgifter | AR101: Moms | AS101: Total pris (level 1) | AT101: Total pris (level 2) | AU101: Total pris (level 3)
D102: ='Baggrundstabeller for alle land'!D29 -> EU-28 | E102: 1 | F102: ='Baggrundstabeller for alle land'!E29 -> 1.769156326 | G102: ='Baggrundstabeller for alle land'!F29 -> 0.3209531388 | H102: ='Baggrundstabeller for alle land'!G29 -> 0.3328817108 | I102: =F102 -> 1.769156326 | J102: =SUM(F102:G102) -> 2.090109465 | K102: =SUM(F102:H102) -> 2.422991176 | M102: ='Baggrundstabeller for alle land'!L29 -> EU-28 | N102: 1 | O102: ='Baggrundstabeller for alle land'!M29 -> 1.187638444 | P102: ='Baggrundstabeller for alle land'!N29 -> 0.2669017972 | Q102: ='Baggrundstabeller for alle land'!O29 -> 0.2348437601 | R102: =O102 -> 1.187638444 | S102: =SUM(O102:P102) -> 1.454540241 | T102: =SUM(O102:Q102) -> 1.689384001 | V102: ='Baggrundstabeller for alle land'!T29 -> EU-28 | W102: 1 | X102: ='Baggrundstabeller for alle land'!U29 -> 1.05157817 | Y102: ='Baggrundstabeller for alle land'!V29 -> 0.2915044769 | Z102: ='Baggrundstabeller for alle land'!W29 -> 0.217696438 | AA102: =X102 -> 1.05157817 | AB102: =SUM(X102:Y102) -> 1.343082647 | AC102: =SUM(X102:Z102) -> 1.560779085 | AE102: ='Baggrundstabeller for alle land'!AB29 -> EU-28 | AF102: 1 | AG102: ='Baggrundstabeller for alle land'!AC29 -> 0.9766518278 | AH102: ='Baggrundstabeller for alle land'!AD29 -> 0.3075334954 | AI102: ='Baggrundstabeller for alle land'!AE29 -> 0.2076317054 | AJ102: =AG102 -> 0.9766518278 | AK102: =SUM(AG102:AH102) -> 1.284185323 | AL102: =SUM(AG102:AI102) -> 1.491817029 | AN102: ='Baggrundstabeller for alle land'!AJ29 -> EU-28 | AO102: 1 | AP102: ='Baggrundstabeller for alle land'!AK29 -> 0.9334107545 | AQ102: ='Baggrundstabeller for alle land'!AL29 -> 0.2993326022 | AR102: ='Baggrundstabeller for alle land'!AM29 -> 0.1994308122 | AS102: =AP102 -> 0.9334107545 | AT102: =SUM(AP102:AQ102) -> 1.232743357 | AU102: =SUM(AP102:AR102) -> 1.432174169
D103: ='Baggrundstabeller for alle land'!D30 -> Belgien | E103: 2 | F103: ='Baggrundstabeller for alle land'!E30 -> 1.780371545 | G103: ='Baggrundstabeller for alle land'!F30 -> 0.1519280396 | H103: ='Baggrundstabeller for alle land'!G30 -> 0.2145749102 | I103: 1.780371545 | J103: 1.932299585 | K103: 2.146874495 | M103: ='Baggrundstabeller for alle land'!L30 -> Belgien | N103: 2 | O103: ='Baggrundstabeller for alle land'!M30 -> 1.47388955 | P103: ='Baggrundstabeller for alle land'!N30 -> 0.1463010752 | Q103: ='Baggrundstabeller for alle land'!O30 -> 0.1718099806 | R103: 1.47388955 | S103: 1.620190625 | T103: 1.792000605 | V103: ='Baggrundstabeller for alle land'!T30 -> Belgien | W103: 2 | X103: ='Baggrundstabeller for alle land'!U30 -> 1.37260419 | Y103: ='Baggrundstabeller for alle land'!V30 -> 0.1526783015 | Z103: ='Baggrundstabeller for alle land'!W30 -> 0.1545539563 | AA103: 1.37260419 | AB103: 1.525282491 | AC103: 1.679836448 | AE103: ='Baggrundstabeller for alle land'!AB30 -> Belgien | AF103: 2 | AG103: ='Baggrundstabeller for alle land'!AC30 -> 1.222551805 | AH103: ='Baggrundstabeller for alle land'!AD30 -> 0.1504275157 | AI103: ='Baggrundstabeller for alle land'!AE30 -> 0.1391735869 | AJ103: 1.222551805 | AK103: 1.372979321 | AL103: 1.512152908 | AN103: ='Baggrundstabeller for alle land'!AJ30 -> Belgien | AO103: 2 | AP103: ='Baggrundstabeller for alle land'!AK30 -> 1.010227681 | AQ103: ='Baggrundstabeller for alle land'!AL30 -> 0.1260440032 | AR103: ='Baggrundstabeller for alle land'!AM30 -> 0.1350471463 | AS103: 1.010227681 | AT103: 1.136271684 | AU103: 1.27131883
D104: ='Baggrundstabeller for alle land'!D31 -> Bulgarien | E104: 3 | F104: ='Baggrundstabeller for alle land'!E31 -> 0.5974914355 | G104: ='Baggrundstabeller for alle land'!F31 -> 0 | H104: ='Baggrundstabeller for alle land'!G31 -> 0.119867109 | I104: 0.5974914355 | J104: 0.5974914355 | K104: 0.7173585445 | M104: ='Baggrundstabeller for alle land'!L31 -> Bulgarien | N104: 3 | O104: ='Baggrundstabeller for alle land'!M31 -> 0.5886397105 | P104: ='Baggrundstabeller for alle land'!N31 -> 0 | Q104: ='Baggrundstabeller for alle land'!O31 -> 0.1176541777 | R104: 0.5886397105 | S104: 0.5886397105 | T104: 0.7062938883 | V104: ='Baggrundstabeller for alle land'!T31 -> Bulgarien | W104: 3 | X104: ='Baggrundstabeller for alle land'!U31 -> 0.5838450262 | Y104: ='Baggrundstabeller for alle land'!V31 -> 0 | Z104: ='Baggrundstabeller for alle land'!W31 -> 0.1165477121 | AA104: 0.5838450262 | AB104: 0.5838450262 | AC104: 0.7003927383 | AE104: ='Baggrundstabeller for alle land'!AB31 -> Bulgarien | AF104: 3 | AG104: ='Baggrundstabeller for alle land'!AC31 -> 0.5831073824 | AH104: ='Baggrundstabeller for alle land'!AD31 -> 0 | AI104: ='Baggrundstabeller for alle land'!AE31 -> 0.1165477121 | AJ104: 0.5831073824 | AK104: 0.5831073824 | AL104: 0.6996550945 | AN104: ='Baggrundstabeller for alle land'!AJ31 -> Bulgarien | AO104: 3 | AP104: ='Baggrundstabeller for alle land'!AK31 -> 0.5797879856 | AQ104: ='Baggrundstabeller for alle land'!AL31 -> 0 | AR104: ='Baggrundstabeller for alle land'!AM31 -> 0.1161788902 | AS104: 0.5797879856 | AT104: 0.5797879856 | AU104: 0.6959668758
D105: ='Baggrundstabeller for alle land'!D32 -> Tjekkiet | E105: 4 | F105: ='Baggrundstabeller for alle land'!E32 -> 1.596562336 | G105: ='Baggrundstabeller for alle land'!F32 -> 0.008218149599 | H105: ='Baggrundstabeller for alle land'!G32 -> 0.3369441336 | I105: 1.596562336 | J105: 1.604780485 | K105: 1.941724619 | M105: ='Baggrundstabeller for alle land'!L32 -> Tjekkiet | N105: 4 | O105: ='Baggrundstabeller for alle land'!M32 -> 1.131116227 | P105: ='Baggrundstabeller for alle land'!N32 -> 0.008218149599 | Q105: ='Baggrundstabeller for alle land'!O32 -> 0.2379527861 | R105: 1.131116227 | S105: 1.139334376 | T105: 1.377287162 | V105: ='Baggrundstabeller for alle land'!T32 -> Tjekkiet | W105: 4 | X105: ='Baggrundstabeller for alle land'!U32 -> 0.8543140061 | Y105: ='Baggrundstabeller for alle land'!V32 -> 0.008218149599 | Z105: ='Baggrundstabeller for alle land'!W32 -> 0.1807992912 | AA105: 0.8543140061 | AB105: 0.8625321557 | AC105: 1.043331447 | AE105: ='Baggrundstabeller for alle land'!AB32 -> Tjekkiet | AF105: 4 | AG105: ='Baggrundstabeller for alle land'!AC32 -> 0.6735147149 | AH105: ='Baggrundstabeller for alle land'!AD32 -> 0.008218149599 | AI105: ='Baggrundstabeller for alle land'!AE32 -> 0.142323409 | AJ105: 0.6735147149 | AK105: 0.6817328645 | AL105: 0.8240562734 | AN105: ='Baggrundstabeller for alle land'!AJ32 -> Tjekkiet | AO105: 4 | AP105: ='Baggrundstabeller for alle land'!AK32 -> 0.5752704719 | AQ105: ='Baggrundstabeller for alle land'!AL32 -> 0.008218149599 | AR105: ='Baggrundstabeller for alle land'!AM32 -> 0.1228986917 | AS105: 0.5752704719 | AT105: 0.5834886215 | AU105: 0.7063873133
D106: ='Baggrundstabeller for alle land'!D33 -> Danmark | E106: 5 | F106: ='Baggrundstabeller for alle land'!E33 -> 0.8868130522 | G106: ='Baggrundstabeller for alle land'!F33 -> 1.104594017 | H106: ='Baggrundstabeller for alle land'!G33 -> 0.497571603 | I106: 0.8868130522 | J106: 1.991407069 | K106: 2.488978672 | M106: ='Baggrundstabeller for alle land'!L33 -> Danmark | N106: 5 | O106: ='Baggrundstabeller for alle land'!M33 -> 0.8868130522 | P106: ='Baggrundstabeller for alle land'!N33 -> 1.104594017 | Q106: ='Baggrundstabeller for alle land'!O33 -> 0.497571603 | R106: 0.8868130522 | S106: 1.991407069 | T106: 2.488978672 | V106: ='Baggrundstabeller for alle land'!T33 -> Danmark | W106: 5 | X106: ='Baggrundstabeller for alle land'!U33 -> 0.7217029557 | Y106: ='Baggrundstabeller for alle land'!V33 -> 1.103846912 | Z106: ='Baggrundstabeller for alle land'!W33 -> 0.4568544073 | AA106: 0.7217029557 | AB106: 1.825549868 | AC106: 2.282404275 | AE106: ='Baggrundstabeller for alle land'!AB33 -> Danmark | AF106: 5 | AG106: ='Baggrundstabeller for alle land'!AC33 -> 0.598804264 | AH106: ='Baggrundstabeller for alle land'!AD33 -> 0.7385128072 | AI106: ='Baggrundstabeller for alle land'!AE33 -> 0.3361970291 | AJ106: 0.598804264 | AK106: 1.337317071 | AL106: 1.6735141 | AN106: ='Baggrundstabeller for alle land'!AJ33 -> Danmark | AO106: 5 | AP106: ='Baggrundstabeller for alle land'!AK33 -> 0.598804264 | AQ106: ='Baggrundstabeller for alle land'!AL33 -> 0.7385128072 | AR106: ='Baggrundstabeller for alle land'!AM33 -> 0.3361970291 | AS106: 0.598804264 | AT106: 1.337317071 | AU106: 1.6735141
D107: ='Baggrundstabeller for alle land'!D34 -> Tyskland | E107: 6 | F107: ='Baggrundstabeller for alle land'!E34 -> 1.947990874 | G107: ='Baggrundstabeller for alle land'!F34 -> 0.7877794511 | H107: ='Baggrundstabeller for alle land'!G34 -> 0.5198374114 | I107: 1.947990874 | J107: 2.735770325 | K107: 3.255607736 | M107: ='Baggrundstabeller for alle land'!L34 -> Tyskland | N107: 6 | O107: ='Baggrundstabeller for alle land'!M34 -> 1.227383522 | P107: ='Baggrundstabeller for alle land'!N34 -> 0.7855403811 | Q107: ='Baggrundstabeller for alle land'!O34 -> 0.3825077865 | R107: 1.227383522 | S107: 2.012923903 | T107: 2.39543169 | V107: ='Baggrundstabeller for alle land'!T34 -> Tyskland | W107: 6 | X107: ='Baggrundstabeller for alle land'!U34 -> 1.066543662 | Y107: ='Baggrundstabeller for alle land'!V34 -> 0.7829281328 | Z107: ='Baggrundstabeller for alle land'!W34 -> 0.351160807 | AA107: 1.066543662 | AB107: 1.849471795 | AC107: 2.200632602 | AE107: ='Baggrundstabeller for alle land'!AB34 -> Tyskland | AF107: 6 | AG107: ='Baggrundstabeller for alle land'!AC34 -> 0.9732490803 | AH107: ='Baggrundstabeller for alle land'!AD34 -> 0.7821817762 | AI107: ='Baggrundstabeller for alle land'!AE34 -> 0.3336214255 | AJ107: 0.9732490803 | AK107: 1.755430856 | AL107: 2.089052282 | AN107: ='Baggrundstabeller for alle land'!AJ34 -> Tyskland | AO107: 6 | AP107: ='Baggrundstabeller for alle land'!AK34 -> 0.9381703174 | AQ107: ='Baggrundstabeller for alle land'!AL34 -> 0.7411321601 | AR107: ='Baggrundstabeller for alle land'!AM34 -> 0.3190674707 | AS107: 0.9381703174 | AT107: 1.679302477 | AU107: 1.998369948
D108: ='Baggrundstabeller for alle land'!D35 -> Estland | E108: 7 | F108: ='Baggrundstabeller for alle land'!E35 -> 0.731209941 | G108: ='Baggrundstabeller for alle land'!F35 -> 0.09886256855 | H108: ='Baggrundstabeller for alle land'!G35 -> 0.1656414356 | I108: 0.731209941 | J108: 0.8300725095 | K108: 0.9957139451 | M108: ='Baggrundstabeller for alle land'!L35 -> Estland | N108: 7 | O108: ='Baggrundstabeller for alle land'!M35 -> 0.7349406039 | P108: ='Baggrundstabeller for alle land'!N35 -> 0.09960870114 | Q108: ='Baggrundstabeller for alle land'!O35 -> 0.1604185075 | R108: 0.7349406039 | S108: 0.8345493051 | T108: 0.9949678125 | V108: ='Baggrundstabeller for alle land'!T35 -> Estland | W108: 7 | X108: ='Baggrundstabeller for alle land'!U35 -> 0.7095720958 | Y108: ='Baggrundstabeller for alle land'!V35 -> 0.09998176744 | Z108: ='Baggrundstabeller for alle land'!W35 -> 0.1578070434 | AA108: 0.7095720958 | AB108: 0.8095538632 | AC108: 0.9673609066 | AE108: ='Baggrundstabeller for alle land'!AB35 -> Estland | AF108: 7 | AG108: ='Baggrundstabeller for alle land'!AC35 -> 0.667042538 | AH108: ='Baggrundstabeller for alle land'!AD35 -> 0.09998176744 | AI108: ='Baggrundstabeller for alle land'!AE35 -> 0.1533302478 | AJ108: 0.667042538 | AK108: 0.7670243054 | AL108: 0.9203545532 | AN108: ='Baggrundstabeller for alle land'!AJ35 -> Estland | AO108: 7 | AP108: ='Baggrundstabeller for alle land'!AK35 -> 0.616678588 | AQ108: ='Baggrundstabeller for alle land'!AL35 -> 0.1003548337 | AR108: ='Baggrundstabeller for alle land'!AM35 -> 0.1473611871 | AS108: 0.616678588 | AT108: 0.7170334217 | AU108: 0.8643946088
D109: ='Baggrundstabeller for alle land'!D36 -> Irland | E109: 8 | F109: ='Baggrundstabeller for alle land'!E36 -> 3.133427286 | G109: ='Baggrundstabeller for alle land'!F36 -> 0.7359173661 | H109: ='Baggrundstabeller for alle land'!G36 -> 0.5223000151 | I109: 3.133427286 | J109: 3.869344652 | K109: 4.391644667 | M109: ='Baggrundstabeller for alle land'!L36 -> Irland | N109: 8 | O109: ='Baggrundstabeller for alle land'!M36 -> 1.774552514 | P109: ='Baggrundstabeller for alle land'!N36 -> 0.2501522557 | Q109: ='Baggrundstabeller for alle land'!O36 -> 0.273266175 | R109: 1.774552514 | S109: 2.02470477 | T109: 2.297970945 | V109: ='Baggrundstabeller for alle land'!T36 -> Irland | W109: 8 | X109: ='Baggrundstabeller for alle land'!U36 -> 1.476681199 | Y109: ='Baggrundstabeller for alle land'!V36 -> 0.1260081407 | Z109: ='Baggrundstabeller for alle land'!W36 -> 0.2165997921 | AA109: 1.476681199 | AB109: 1.60268934 | AC109: 1.819289132 | AE109: ='Baggrundstabeller for alle land'!AB36 -> Irland | AF109: 8 | AG109: ='Baggrundstabeller for alle land'!AC36 -> 1.298107532 | AH109: ='Baggrundstabeller for alle land'!AD36 -> 0.06598651155 | AI109: ='Baggrundstabeller for alle land'!AE36 -> 0.1841657441 | AJ109: 1.298107532 | AK109: 1.364094044 | AL109: 1.548259788 | AN109: ='Baggrundstabeller for alle land'!AJ36 -> Irland | AO109: 8 | AP109: ='Baggrundstabeller for alle land'!AK36 -> 1.143393395 | AQ109: ='Baggrundstabeller for alle land'!AL36 -> 0.0216226987 | AR109: ='Baggrundstabeller for alle land'!AM36 -> 0.1569509682 | AS109: 1.143393395 | AT109: 1.165016094 | AU109: 1.321967062
D110: ='Baggrundstabeller for alle land'!D37 -> Grækenland | E110: 9 | F110: ='Baggrundstabeller for alle land'!E37 -> 1.355755649 | G110: ='Baggrundstabeller for alle land'!F37 -> 0.2370821001 | H110: ='Baggrundstabeller for alle land'!G37 -> 0.2068476799 | I110: 1.355755649 | J110: 1.592837749 | K110: 1.799685429 | M110: ='Baggrundstabeller for alle land'!L37 -> Grækenland | N110: 9 | O110: ='Baggrundstabeller for alle land'!M37 -> 0.9394793019 | P110: ='Baggrundstabeller for alle land'!N37 -> 0.2396630872 | Q110: ='Baggrundstabeller for alle land'!O37 -> 0.1537530883 | R110: 0.9394793019 | S110: 1.179142389 | T110: 1.332895477 | V110: ='Baggrundstabeller for alle land'!T37 -> Grækenland | W110: 9 | X110: ='Baggrundstabeller for alle land'!U37 -> 0.8989209333 | Y110: ='Baggrundstabeller for alle land'!V37 -> 0.2555177222 | Z110: ='Baggrundstabeller for alle land'!W37 -> 0.1500659639 | AA110: 0.8989209333 | AB110: 1.154438656 | AC110: 1.304504619 | AE110: ='Baggrundstabeller for alle land'!AB37 -> Grækenland | AF110: 9 | AG110: ='Baggrundstabeller for alle land'!AC37 -> 0.8756920495 | AH110: ='Baggrundstabeller for alle land'!AD37 -> 0.3561762189 | AI110: ='Baggrundstabeller for alle land'!AE37 -> 0.1600211998 | AJ110: 0.8756920495 | AK110: 1.231868268 | AL110: 1.391889468 | AN110: ='Baggrundstabeller for alle land'!AJ37 -> Grækenland | AO110: 9 | AP110: ='Baggrundstabeller for alle land'!AK37 -> 0.8340275436 | AQ110: ='Baggrundstabeller for alle land'!AL37 -> 0.4162763469 | AR110: ='Baggrundstabeller for alle land'!AM37 -> 0.1629708993 | AS110: 0.8340275436 | AT110: 1.25030389 | AU110: 1.41327479
D111: ='Baggrundstabeller for alle land'!D38 -> Spanien | E111: 10 | F111: ='Baggrundstabeller for alle land'!E38 -> 3.019710601 | G111: ='Baggrundstabeller for alle land'!F38 -> 0.1541160115 | H111: ='Baggrundstabeller for alle land'!G38 -> 0.6664776556 | I111: 3.019710601 | J111: 3.173826612 | K111: 3.840304268 | M111: ='Baggrundstabeller for alle land'!L38 -> Spanien | N111: 10 | O111: ='Baggrundstabeller for alle land'!M38 -> 1.621552362 | P111: ='Baggrundstabeller for alle land'!N38 -> 0.08298554467 | Q111: ='Baggrundstabeller for alle land'!O38 -> 0.3578751614 | R111: 1.621552362 | S111: 1.704537906 | T111: 2.062413068 | V111: ='Baggrundstabeller for alle land'!T38 -> Spanien | W111: 10 | X111: ='Baggrundstabeller for alle land'!U38 -> 1.362963477 | Y111: ='Baggrundstabeller for alle land'!V38 -> 0.06964858213 | Z111: ='Baggrundstabeller for alle land'!W38 -> 0.3008225994 | AA111: 1.362963477 | AB111: 1.432612059 | AC111: 1.733434659 | AE111: ='Baggrundstabeller for alle land'!AB38 -> Spanien | AF111: 10 | AG111: ='Baggrundstabeller for alle land'!AC38 -> 1.188101079 | AH111: ='Baggrundstabeller for alle land'!AD38 -> 0.06075727378 | AI111: ='Baggrundstabeller for alle land'!AE38 -> 0.2619231254 | AJ111: 1.188101079 | AK111: 1.248858353 | AL111: 1.510781478 | AN111: ='Baggrundstabeller for alle land'!AJ38 -> Spanien | AO111: 10 | AP111: ='Baggrundstabeller for alle land'!AK38 -> 1.119193439 | AQ111: ='Baggrundstabeller for alle land'!AL38 -> 0.05705256196 | AR111: ='Baggrundstabeller for alle land'!AM38 -> 0.2471042781 | AS111: 1.119193439 | AT111: 1.176246001 | AU111: 1.42335028
D112: ='Baggrundstabeller for alle land'!D39 -> Frankrig | E112: 11 | F112: ='Baggrundstabeller for alle land'!E39 -> 1.620178122 | G112: ='Baggrundstabeller for alle land'!F39 -> 0.2529895823 | H112: ='Baggrundstabeller for alle land'!G39 -> 0.2197800354 | I112: 1.620178122 | J112: 1.873167704 | K112: 2.092947739 | M112: ='Baggrundstabeller for alle land'!L39 -> Frankrig | N112: 11 | O112: ='Baggrundstabeller for alle land'!M39 -> 0.9466586583 | P112: ='Baggrundstabeller for alle land'!N39 -> 0.2410490711 | Q112: ='Baggrundstabeller for alle land'!O39 -> 0.1873167704 | R112: 0.9466586583 | S112: 1.187707729 | T112: 1.3750245 | V112: ='Baggrundstabeller for alle land'!T39 -> Frankrig | W112: 11 | X112: ='Baggrundstabeller for alle land'!U39 -> 0.8112084837 | Y112: ='Baggrundstabeller for alle land'!V39 -> 0.2380639432 | Z112: ='Baggrundstabeller for alle land'!W39 -> 0.1817196557 | AA112: 0.8112084837 | AB112: 1.049272427 | AC112: 1.230992083 | AE112: ='Baggrundstabeller for alle land'!AB39 -> Frankrig | AF112: 11 | AG112: ='Baggrundstabeller for alle land'!AC39 -> 0.7279980459 | AH112: ='Baggrundstabeller for alle land'!AD39 -> 0.2361982384 | AI112: ='Baggrundstabeller for alle land'!AE39 -> 0.1764956821 | AJ112: 0.7279980459 | AK112: 0.9641962843 | AL112: 1.140691966 | AN112: ='Baggrundstabeller for alle land'!AJ39 -> Frankrig | AO112: 11 | AP112: ='Baggrundstabeller for alle land'!AK39 -> 0.7044901643 | AQ112: ='Baggrundstabeller for alle land'!AL39 -> 0.2369445203 | AR112: ='Baggrundstabeller for alle land'!AM39 -> 0.177241964 | AS112: 0.7044901643 | AT112: 0.9414346847 | AU112: 1.118676649
D113: ='Baggrundstabeller for alle land'!D40 -> Kroatien | E113: 12 | F113: ='Baggrundstabeller for alle land'!E40 -> 1.215911471 | G113: ='Baggrundstabeller for alle land'!F40 -> 0.03420913006 | H113: ='Baggrundstabeller for alle land'!G40 -> 0.312344231 | I113: 1.215911471 | J113: 1.250120601 | K113: 1.562464832 | M113: ='Baggrundstabeller for alle land'!L40 -> Kroatien | N113: 12 | O113: ='Baggrundstabeller for alle land'!M40 -> 0.8117231622 | P113: ='Baggrundstabeller for alle land'!N40 -> 0.03383729169 | Q113: ='Baggrundstabeller for alle land'!O40 -> 0.2115760327 | R113: 0.8117231622 | S113: 0.8455604539 | T113: 1.057136487 | V113: ='Baggrundstabeller for alle land'!T40 -> Kroatien | W113: 12 | X113: ='Baggrundstabeller for alle land'!U40 -> 0.7477669625 | Y113: ='Baggrundstabeller for alle land'!V40 -> 0.03420913006 | Z113: ='Baggrundstabeller for alle land'!W40 -> 0.1955869827 | AA113: 0.7477669625 | AB113: 0.7819760926 | AC113: 0.9775630754 | AE113: ='Baggrundstabeller for alle land'!AB40 -> Kroatien | AF113: 12 | AG113: ='Baggrundstabeller for alle land'!AC40 -> 0.715045186 | AH113: ='Baggrundstabeller for alle land'!AD40 -> 0.03383729169 | AI113: ='Baggrundstabeller for alle land'!AE40 -> 0.1874065386 | AJ113: 0.715045186 | AK113: 0.7488824777 | AL113: 0.9362890163 | AN113: ='Baggrundstabeller for alle land'!AJ40 -> Kroatien | AO113: 12 | AP113: ='Baggrundstabeller for alle land'!AK40 -> 0.6908756919 | AQ113: ='Baggrundstabeller for alle land'!AL40 -> 0.03420913006 | AR113: ='Baggrundstabeller for alle land'!AM40 -> 0.1810852863 | AS113: 0.6908756919 | AT113: 0.725084822 | AU113: 0.9061701083
D114: ='Baggrundstabeller for alle land'!D41 -> Italien | E114: 13 | F114: ='Baggrundstabeller for alle land'!E41 -> 1.521448045 | G114: ='Baggrundstabeller for alle land'!F41 -> 0.4720705853 | H114: ='Baggrundstabeller for alle land'!G41 -> 0.2015162973 | I114: 1.521448045 | J114: 1.99351863 | K114: 2.195034927 | M114: ='Baggrundstabeller for alle land'!L41 -> Italien | N114: 13 | O114: ='Baggrundstabeller for alle land'!M41 -> 1.033703969 | P114: ='Baggrundstabeller for alle land'!N41 -> 0.395569028 | Q114: ='Baggrundstabeller for alle land'!O41 -> 0.1429272997 | R114: 1.033703969 | S114: 1.429272997 | T114: 1.572200297 | V114: ='Baggrundstabeller for alle land'!T41 -> Italien | W114: 13 | X114: ='Baggrundstabeller for alle land'!U41 -> 1.114310488 | Y114: ='Baggrundstabeller for alle land'!V41 -> 0.5403622194 | Z114: ='Baggrundstabeller for alle land'!W41 -> 0.1656911778 | AA114: 1.114310488 | AB114: 1.654672708 | AC114: 1.820363886 | AE114: ='Baggrundstabeller for alle land'!AB41 -> Italien | AF114: 13 | AG114: ='Baggrundstabeller for alle land'!AC41 -> 1.368818108 | AH114: ='Baggrundstabeller for alle land'!AD41 -> 0.6963507607 | AI114: ='Baggrundstabeller for alle land'!AE41 -> 0.2067407939 | AJ114: 1.368818108 | AK114: 2.065168869 | AL114: 2.271909663 | AN114: ='Baggrundstabeller for alle land'!AJ41 -> Italien | AO114: 13 | AP114: ='Baggrundstabeller for alle land'!AK41 -> 1.540106961 | AQ114: ='Baggrundstabeller for alle land'!AL41 -> 0.7280709186 | AR114: ='Baggrundstabeller for alle land'!AM41 -> 0.2295046719 | AS114: 1.540106961 | AT114: 2.26817788 | AU114: 2.497682552
D115: ='Baggrundstabeller for alle land'!D42 -> Cypern | E115: 14 | F115: ='Baggrundstabeller for alle land'!E42 -> 1.271802545 | G115: ='Baggrundstabeller for alle land'!F42 -> 0.08185049567 | H115: ='Baggrundstabeller for alle land'!G42 -> 0.2639036161 | I115: 1.271802545 | J115: 1.35365304 | K115: 1.617556657 | M115: ='Baggrundstabeller for alle land'!L42 -> Cypern | N115: 14 | O115: ='Baggrundstabeller for alle land'!M42 -> 1.104431128 | P115: ='Baggrundstabeller for alle land'!N42 -> 0.06349836659 | Q115: ='Baggrundstabeller for alle land'!O42 -> 0.2154539953 | R115: 1.104431128 | S115: 1.167929494 | T115: 1.38338349 | V115: ='Baggrundstabeller for alle land'!T42 -> Cypern | W115: 14 | X115: ='Baggrundstabeller for alle land'!U42 -> 1.11470832 | Y115: ='Baggrundstabeller for alle land'!V42 -> 0.06203019627 | Z115: ='Baggrundstabeller for alle land'!W42 -> 0.2161880805 | AA115: 1.11470832 | AB115: 1.176738516 | AC115: 1.392926597 | AE115: ='Baggrundstabeller for alle land'!AB42 -> Cypern | AF115: 14 | AG115: ='Baggrundstabeller for alle land'!AC42 -> 1.099659574 | AH115: ='Baggrundstabeller for alle land'!AD42 -> 0.06166315369 | AI115: ='Baggrundstabeller for alle land'!AE42 -> 0.2125176547 | AJ115: 1.099659574 | AK115: 1.161322728 | AL115: 1.373840382 | AN115: ='Baggrundstabeller for alle land'!AJ42 -> Cypern | AO115: 14 | AP115: ='Baggrundstabeller for alle land'!AK42 -> 1.044603187 | AQ115: ='Baggrundstabeller for alle land'!AL42 -> 0.06203019627 | AR115: ='Baggrundstabeller for alle land'!AM42 -> 0.198202994 | AS115: 1.044603187 | AT115: 1.106633383 | AU115: 1.304836377
D116: ='Baggrundstabeller for alle land'!D43 -> Letland | E116: 15 | F116: ='Baggrundstabeller for alle land'!E43 -> 0.7722098858 | G116: ='Baggrundstabeller for alle land'!F43 -> 0.1998704833 | H116: ='Baggrundstabeller for alle land'!G43 -> 0.2039799698 | I116: 0.7722098858 | J116: 0.9720803691 | K116: 1.176060339 | M116: ='Baggrundstabeller for alle land'!L43 -> Letland | N116: 15 | O116: ='Baggrundstabeller for alle land'!M43 -> 0.8174142381 | P116: ='Baggrundstabeller for alle land'!N43 -> 0.200244073 | Q116: ='Baggrundstabeller for alle land'!O43 -> 0.2140668914 | R116: 0.8174142381 | S116: 1.017658311 | T116: 1.231725202 | V116: ='Baggrundstabeller for alle land'!T43 -> Letland | W116: 15 | X116: ='Baggrundstabeller for alle land'!U43 -> 0.8140519309 | Y116: ='Baggrundstabeller for alle land'!V43 -> 0.200244073 | Z116: ='Baggrundstabeller for alle land'!W43 -> 0.2129461224 | AA116: 0.8140519309 | AB116: 1.014296004 | AC116: 1.227242126 | AE116: ='Baggrundstabeller for alle land'!AB43 -> Letland | AF116: 15 | AG116: ='Baggrundstabeller for alle land'!AC43 -> 0.8088216753 | AH116: ='Baggrundstabeller for alle land'!AD43 -> 0.1998704833 | AI116: ='Baggrundstabeller for alle land'!AE43 -> 0.2118253533 | AJ116: 0.8088216753 | AK116: 1.008692159 | AL116: 1.220517512 | AN116: ='Baggrundstabeller for alle land'!AJ43 -> Letland | AO116: 15 | AP116: ='Baggrundstabeller for alle land'!AK43 -> 0.7946252671 | AQ116: ='Baggrundstabeller for alle land'!AL43 -> 0.200244073 | AR116: ='Baggrundstabeller for alle land'!AM43 -> 0.2088366358 | AS116: 0.7946252671 | AT116: 0.9948693401 | AU116: 1.203705976
D117: ='Baggrundstabeller for alle land'!D44 -> Litaun | E117: 16 | F117: ='Baggrundstabeller for alle land'!E44 -> 0.6624437955 | G117: ='Baggrundstabeller for alle land'!F44 -> 0.1218244878 | H117: ='Baggrundstabeller for alle land'!G44 -> 0.1644075155 | I117: 0.6624437955 | J117: 0.7842682834 | K117: 0.9486757989 | M117: ='Baggrundstabeller for alle land'!L44 -> Litaun | N117: 16 | O117: ='Baggrundstabeller for alle land'!M44 -> 0.6561489132 | P117: ='Baggrundstabeller for alle land'!N44 -> 0.1214542006 | Q117: ='Baggrundstabeller for alle land'!O44 -> 0.1632966539 | R117: 0.6561489132 | S117: 0.7776031138 | T117: 0.9408997677 | V117: ='Baggrundstabeller for alle land'!T44 -> Litaun | W117: 16 | X117: ='Baggrundstabeller for alle land'!U44 -> 0.6431888613 | Y117: ='Baggrundstabeller for alle land'!V44 -> 0.1214542006 | Z117: ='Baggrundstabeller for alle land'!W44 -> 0.1607046435 | AA117: 0.6431888613 | AB117: 0.7646430619 | AC117: 0.9253477055 | AE117: ='Baggrundstabeller for alle land'!AB44 -> Litaun | AF117: 16 | AG117: ='Baggrundstabeller for alle land'!AC44 -> 0.6168984703 | AH117: ='Baggrundstabeller for alle land'!AD44 -> 0.1218244878 | AI117: ='Baggrundstabeller for alle land'!AE44 -> 0.1551503356 | AJ117: 0.6168984703 | AK117: 0.7387229581 | AL117: 0.8938732937 | AN117: ='Baggrundstabeller for alle land'!AJ44 -> Litaun | AO117: 16 | AP117: ='Baggrundstabeller for alle land'!AK44 -> 0.5706125707 | AQ117: ='Baggrundstabeller for alle land'!AL44 -> 0.1218244878 | AR117: ='Baggrundstabeller for alle land'!AM44 -> 0.1455228684 | AS117: 0.5706125707 | AT117: 0.6924370585 | AU117: 0.8379599269
D118: ='Baggrundstabeller for alle land'!D45 -> Luxembourg | E118: 17 | F118: ='Baggrundstabeller for alle land'!E45 -> 1.428700945 | G118: ='Baggrundstabeller for alle land'!F45 -> 0.2275476701 | H118: ='Baggrundstabeller for alle land'!G45 -> 0.1320522545 | I118: 1.428700945 | J118: 1.656248615 | K118: 1.78830087 | M118: ='Baggrundstabeller for alle land'!L45 -> Luxembourg | N118: 17 | O118: ='Baggrundstabeller for alle land'!M45 -> 1.10192757 | P118: ='Baggrundstabeller for alle land'!N45 -> 0.2275476701 | Q118: ='Baggrundstabeller for alle land'!O45 -> 0.1059402267 | R118: 1.10192757 | S118: 1.32947524 | T118: 1.435415466 | V118: ='Baggrundstabeller for alle land'!T45 -> Luxembourg | W118: 17 | X118: ='Baggrundstabeller for alle land'!U45 -> 0.9930031112 | Y118: ='Baggrundstabeller for alle land'!V45 -> 0.2275476701 | Z118: ='Baggrundstabeller for alle land'!W45 -> 0.09773358945 | AA118: 0.9930031112 | AB118: 1.220550781 | AC118: 1.318284371 | AE118: ='Baggrundstabeller for alle land'!AB45 -> Luxembourg | AF118: 17 | AG118: ='Baggrundstabeller for alle land'!AC45 -> 0.8982537535 | AH118: ='Baggrundstabeller for alle land'!AD45 -> 0.2275476701 | AI118: ='Baggrundstabeller for alle land'!AE45 -> 0.08952695217 | AJ118: 0.8982537535 | AK118: 1.125801424 | AL118: 1.215328376 | AN118: ='Baggrundstabeller for alle land'!AJ45 -> Luxembourg | AO118: 17 | AP118: ='Baggrundstabeller for alle land'!AK45 -> 0.823274931 | AQ118: ='Baggrundstabeller for alle land'!AL45 -> 0.2275476701 | AR118: ='Baggrundstabeller for alle land'!AM45 -> 0.08355848869 | AS118: 0.823274931 | AT118: 1.050822601 | AU118: 1.13438109
D119: ='Baggrundstabeller for alle land'!D46 -> Ungarn | E119: 18 | F119: ='Baggrundstabeller for alle land'!E46 -> 0.754637601 | G119: ='Baggrundstabeller for alle land'!F46 -> 0 | H119: ='Baggrundstabeller for alle land'!G46 -> 0.2036738162 | I119: 0.754637601 | J119: 0.754637601 | K119: 0.9583114172 | M119: ='Baggrundstabeller for alle land'!L46 -> Ungarn | N119: 18 | O119: ='Baggrundstabeller for alle land'!M46 -> 0.6912226766 | P119: ='Baggrundstabeller for alle land'!N46 -> 0 | Q119: ='Baggrundstabeller for alle land'!O46 -> 0.1865144837 | R119: 0.6912226766 | S119: 0.6912226766 | T119: 0.8777371602 | V119: ='Baggrundstabeller for alle land'!T46 -> Ungarn | W119: 18 | X119: ='Baggrundstabeller for alle land'!U46 -> 0.6673488226 | Y119: ='Baggrundstabeller for alle land'!V46 -> 0 | Z119: ='Baggrundstabeller for alle land'!W46 -> 0.1801729912 | AA119: 0.6673488226 | AB119: 0.6673488226 | AC119: 0.8475218139 | AE119: ='Baggrundstabeller for alle land'!AB46 -> Ungarn | AF119: 18 | AG119: ='Baggrundstabeller for alle land'!AC46 -> 0.651681606 | AH119: ='Baggrundstabeller for alle land'!AD46 -> 0 | AI119: ='Baggrundstabeller for alle land'!AE46 -> 0.1764427016 | AJ119: 0.651681606 | AK119: 0.651681606 | AL119: 0.8281243076 | AN119: ='Baggrundstabeller for alle land'!AJ46 -> Ungarn | AO119: 18 | AP119: ='Baggrundstabeller for alle land'!AK46 -> 0.6800318075 | AQ119: ='Baggrundstabeller for alle land'!AL46 -> 0 | AR119: ='Baggrundstabeller for alle land'!AM46 -> 0.183157223 | AS119: 0.6800318075 | AT119: 0.6800318075 | AU119: 0.8631890305
D120: ='Baggrundstabeller for alle land'!D47 -> Malta | E120: 19 | F120: ='Baggrundstabeller for alle land'!E47 -> 2.673454981 | G120: ='Baggrundstabeller for alle land'!F47 -> 0 | H120: ='Baggrundstabeller for alle land'!G47 -> 0.1335218769 | I120: 2.673454981 | J120: 2.673454981 | K120: 2.806976858 | M120: ='Baggrundstabeller for alle land'!L47 -> Malta | N120: 19 | O120: ='Baggrundstabeller for alle land'!M47 -> 1.034983136 | P120: ='Baggrundstabeller for alle land'!N47 -> 0 | Q120: ='Baggrundstabeller for alle land'!O47 -> 0.05167372071 | R120: 1.034983136 | S120: 1.034983136 | T120: 1.086656857 | V120: ='Baggrundstabeller for alle land'!T47 -> Malta | W120: 19 | X120: ='Baggrundstabeller for alle land'!U47 -> 0.9074961462 | Y120: ='Baggrundstabeller for alle land'!V47 -> 0 | Z120: ='Baggrundstabeller for alle land'!W47 -> 0.04526165318 | AA120: 0.9074961462 | AB120: 0.9074961462 | AC120: 0.9527577994 | AE120: ='Baggrundstabeller for alle land'!AB47 -> Malta | AF120: 19 | AG120: ='Baggrundstabeller for alle land'!AC47 -> 1.065157571 | AH120: ='Baggrundstabeller for alle land'!AD47 -> 0 | AI120: ='Baggrundstabeller for alle land'!AE47 -> 0.05318244248 | AJ120: 1.065157571 | AK120: 1.065157571 | AL120: 1.118340014 | AN120: ='Baggrundstabeller for alle land'!AJ47 -> Malta | AO120: 19 | AP120: ='Baggrundstabeller for alle land'!AK47 -> 2.547476713 | AQ120: ='Baggrundstabeller for alle land'!AL47 -> 0 | AR120: ='Baggrundstabeller for alle land'!AM47 -> 0.1274869898 | AS120: 2.547476713 | AT120: 2.547476713 | AU120: 2.674963703
D121: ='Baggrundstabeller for alle land'!D48 -> Holland | E121: 20 | F121: ='Baggrundstabeller for alle land'!E48 -> 2.694702422 | G121: ='Baggrundstabeller for alle land'!F48 -> * | H121: ='Baggrundstabeller for alle land'!G48 -> * | I121: 2.694702422 | J121: 2.694702422 | K121: 2.694702422 | M121: ='Baggrundstabeller for alle land'!L48 -> Holland | N121: 20 | O121: ='Baggrundstabeller for alle land'!M48 -> 1.321386728 | P121: ='Baggrundstabeller for alle land'!N48 -> -0.4229035272 | Q121: ='Baggrundstabeller for alle land'!O48 -> 0.1882892029 | R121: 1.321386728 | S121: 0.8984832005 | T121: 1.086772403 | V121: ='Baggrundstabeller for alle land'!T48 -> Holland | W121: 20 | X121: ='Baggrundstabeller for alle land'!U48 -> 0.9425667837 | Y121: ='Baggrundstabeller for alle land'!V48 -> 0.2405917593 | Z121: ='Baggrundstabeller for alle land'!W48 -> 0.2484371427 | AA121: 0.9425667837 | AB121: 1.183158543 | AC121: 1.431595686 | AE121: ='Baggrundstabeller for alle land'!AB48 -> Holland | AF121: 20 | AG121: ='Baggrundstabeller for alle land'!AC48 -> 0.684416309 | AH121: ='Baggrundstabeller for alle land'!AD48 -> 0.5753281201 | AI121: ='Baggrundstabeller for alle land'!AE48 -> 0.2641279097 | AJ121: 0.684416309 | AK121: 1.259744429 | AL121: 1.523872339 | AN121: ='Baggrundstabeller for alle land'!AJ48 -> Holland | AO121: 20 | AP121: ='Baggrundstabeller for alle land'!AK48 -> 0.9466762703 | AQ121: ='Baggrundstabeller for alle land'!AL48 -> 0.4763268526 | AR121: ='Baggrundstabeller for alle land'!AM48 -> 0.2988717507 | AS121: 0.9466762703 | AT121: 1.423003123 | AU121: 1.721874874
D122: ='Baggrundstabeller for alle land'!D49 -> Østrig | E122: 21 | F122: ='Baggrundstabeller for alle land'!E49 -> 1.543082607 | G122: ='Baggrundstabeller for alle land'!F49 -> 0.6730786529 | H122: ='Baggrundstabeller for alle land'!G49 -> 0.4434577389 | I122: 1.543082607 | J122: 2.21616126 | K122: 2.659618999 | M122: ='Baggrundstabeller for alle land'!L49 -> Østrig | N122: 21 | O122: ='Baggrundstabeller for alle land'!M49 -> 1.092108635 | P122: ='Baggrundstabeller for alle land'!N49 -> 0.4152718657 | Q122: ='Baggrundstabeller for alle land'!O49 -> 0.3010251262 | R122: 1.092108635 | S122: 1.507380501 | T122: 1.808405627 | V122: ='Baggrundstabeller for alle land'!T49 -> Østrig | W122: 21 | X122: ='Baggrundstabeller for alle land'!U49 -> 0.9395291079 | Y122: ='Baggrundstabeller for alle land'!V49 -> 0.3104204172 | Z122: ='Baggrundstabeller for alle land'!W49 -> 0.2502905543 | AA122: 0.9395291079 | AB122: 1.249949525 | AC122: 1.500240079 | AE122: ='Baggrundstabeller for alle land'!AB49 -> Østrig | AF122: 21 | AG122: ='Baggrundstabeller for alle land'!AC49 -> 0.8425697039 | AH122: ='Baggrundstabeller for alle land'!AD49 -> 0.2638197735 | AI122: ='Baggrundstabeller for alle land'!AE49 -> 0.2213530578 | AJ122: 0.8425697039 | AK122: 1.106389477 | AL122: 1.327742535 | AN122: ='Baggrundstabeller for alle land'!AJ49 -> Østrig | AO122: 21 | AP122: ='Baggrundstabeller for alle land'!AK49 -> 0.7253164713 | AQ122: ='Baggrundstabeller for alle land'!AL49 -> 0.2168433181 | AR122: ='Baggrundstabeller for alle land'!AM49 -> 0.1886574449 | AS122: 0.7253164713 | AT122: 0.9421597894 | AU122: 1.130817234
D123: ='Baggrundstabeller for alle land'!D50 -> Polen | E123: 22 | F123: ='Baggrundstabeller for alle land'!E50 -> 1.055849342 | G123: ='Baggrundstabeller for alle land'!F50 -> 0.03517029717 | H123: ='Baggrundstabeller for alle land'!G50 -> 0.2513750714 | I123: 1.055849342 | J123: 1.09101964 | K123: 1.342394711 | M123: ='Baggrundstabeller for alle land'!L50 -> Polen | N123: 22 | O123: ='Baggrundstabeller for alle land'!M50 -> 0.8777765746 | P123: ='Baggrundstabeller for alle land'!N50 -> 0.03554051082 | Q123: ='Baggrundstabeller for alle land'!O50 -> 0.2102813557 | R123: 0.8777765746 | S123: 0.9133170855 | T123: 1.123598441 | V123: ='Baggrundstabeller for alle land'!T50 -> Polen | W123: 22 | X123: ='Baggrundstabeller for alle land'!U50 -> 0.8255764494 | Y123: ='Baggrundstabeller for alle land'!V50 -> 0.03591072448 | Z123: ='Baggrundstabeller for alle land'!W50 -> 0.1980643051 | AA123: 0.8255764494 | AB123: 0.8614871738 | AC123: 1.059551479 | AE123: ='Baggrundstabeller for alle land'!AB50 -> Polen | AF123: 22 | AG123: ='Baggrundstabeller for alle land'!AC50 -> 0.7915167931 | AH123: ='Baggrundstabeller for alle land'!AD50 -> 0.03554051082 | AI123: ='Baggrundstabeller for alle land'!AE50 -> 0.1899196047 | AJ123: 0.7915167931 | AK123: 0.827057304 | AL123: 1.016976909 | AN123: ='Baggrundstabeller for alle land'!AJ50 -> Polen | AO123: 22 | AP123: ='Baggrundstabeller for alle land'!AK50 -> 0.7807805972 | AQ123: ='Baggrundstabeller for alle land'!AL50 -> 0.03591072448 | AR123: ='Baggrundstabeller for alle land'!AM50 -> 0.1876983228 | AS123: 0.7807805972 | AT123: 0.8166913216 | AU123: 1.004389644
D124: ='Baggrundstabeller for alle land'!D51 -> Portugal | E124: 23 | F124: ='Baggrundstabeller for alle land'!E51 -> 1.382189144 | G124: ='Baggrundstabeller for alle land'!F51 -> 1.01050803 | H124: ='Baggrundstabeller for alle land'!G51 -> 0.5466559938 | I124: 1.382189144 | J124: 2.392697174 | K124: 2.939353168 | M124: ='Baggrundstabeller for alle land'!L51 -> Portugal | N124: 23 | O124: ='Baggrundstabeller for alle land'!M51 -> 0.9228332507 | P124: ='Baggrundstabeller for alle land'!N51 -> 0.587495955 | Q124: ='Baggrundstabeller for alle land'!O51 -> 0.3450789378 | R124: 0.9228332507 | S124: 1.510329206 | T124: 1.855408144 | V124: ='Baggrundstabeller for alle land'!T51 -> Portugal | W124: 23 | X124: ='Baggrundstabeller for alle land'!U51 -> 0.8628846839 | Y124: ='Baggrundstabeller for alle land'!V51 -> 0.5294207809 | Z124: ='Baggrundstabeller for alle land'!W51 -> 0.3177274042 | AA124: 0.8628846839 | AB124: 1.392305465 | AC124: 1.710032869 | AE124: ='Baggrundstabeller for alle land'!AB51 -> Portugal | AF124: 23 | AG124: ='Baggrundstabeller for alle land'!AC51 -> 0.829163615 | AH124: ='Baggrundstabeller for alle land'!AD51 -> 0.4930769622 | AI124: ='Baggrundstabeller for alle land'!AE51 -> 0.302365584 | AJ124: 0.829163615 | AK124: 1.322240577 | AL124: 1.624606161 | AN124: ='Baggrundstabeller for alle land'!AJ51 -> Portugal | AO124: 23 | AP124: ='Baggrundstabeller for alle land'!AK51 -> 0.8164245446 | AQ124: ='Baggrundstabeller for alle land'!AL51 -> 0.4522370011 | AR124: ='Baggrundstabeller for alle land'!AM51 -> 0.2911252277 | AS124: 0.8164245446 | AT124: 1.268661546 | AU124: 1.559786773
D125: ='Baggrundstabeller for alle land'!D52 -> Rumænien | E125: 24 | F125: ='Baggrundstabeller for alle land'!E52 -> 0.7247442016 | G125: ='Baggrundstabeller for alle land'!F52 -> 0.09207815676 | H125: ='Baggrundstabeller for alle land'!G52 -> 0.196037366 | I125: 0.7247442016 | J125: 0.8168223583 | K125: 1.012859724 | M125: ='Baggrundstabeller for alle land'!L52 -> Rumænien | N125: 24 | O125: ='Baggrundstabeller for alle land'!M52 -> 0.7076651886 | P125: ='Baggrundstabeller for alle land'!N52 -> 0.09244943965 | Q125: ='Baggrundstabeller for alle land'!O52 -> 0.1923245371 | R125: 0.7076651886 | S125: 0.8001146283 | T125: 0.9924391654 | V125: ='Baggrundstabeller for alle land'!T52 -> Rumænien | W125: 24 | X125: ='Baggrundstabeller for alle land'!U52 -> 0.6924425901 | Y125: ='Baggrundstabeller for alle land'!V52 -> 0.09244943965 | Z125: ='Baggrundstabeller for alle land'!W52 -> 0.1886117082 | AA125: 0.6924425901 | AB125: 0.7848920298 | AC125: 0.973503738 | AE125: ='Baggrundstabeller for alle land'!AB52 -> Rumænien | AF125: 24 | AG125: ='Baggrundstabeller for alle land'!AC52 -> 0.682789235 | AH125: ='Baggrundstabeller for alle land'!AD52 -> 0.09244943965 | AI125: ='Baggrundstabeller for alle land'!AE52 -> 0.186012728 | AJ125: 0.682789235 | AK125: 0.7752386746 | AL125: 0.9612514026 | AN125: ='Baggrundstabeller for alle land'!AJ52 -> Rumænien | AO125: 24 | AP125: ='Baggrundstabeller for alle land'!AK52 -> 0.6649676563 | AQ125: ='Baggrundstabeller for alle land'!AL52 -> 0.09096430809 | AR125: ='Baggrundstabeller for alle land'!AM52 -> 0.1815573333 | AS125: 0.6649676563 | AT125: 0.7559319643 | AU125: 0.9374892976
D126: ='Baggrundstabeller for alle land'!D53 -> Slovenien | E126: 25 | F126: ='Baggrundstabeller for alle land'!E53 -> 0.8620841599 | G126: ='Baggrundstabeller for alle land'!F53 -> 0.4769212369 | H126: ='Baggrundstabeller for alle land'!G53 -> 0.2945145885 | I126: 0.8620841599 | J126: 1.339005397 | K126: 1.633519985 | M126: ='Baggrundstabeller for alle land'!L53 -> Slovenien | N126: 25 | O126: ='Baggrundstabeller for alle land'!M53 -> 0.941262705 | P126: ='Baggrundstabeller for alle land'!N53 -> 0.2282858054 | Q126: ='Baggrundstabeller for alle land'!O53 -> 0.2575152684 | R126: 0.941262705 | S126: 1.16954851 | T126: 1.427063779 | V126: ='Baggrundstabeller for alle land'!T53 -> Slovenien | W126: 25 | X126: ='Baggrundstabeller for alle land'!U53 -> 0.8321147105 | Y126: ='Baggrundstabeller for alle land'!V53 -> 0.1442973487 | Z126: ='Baggrundstabeller for alle land'!W53 -> 0.2149660502 | AA126: 0.8321147105 | AB126: 0.9764120592 | AC126: 1.191378109 | AE126: ='Baggrundstabeller for alle land'!AB53 -> Slovenien | AF126: 25 | AG126: ='Baggrundstabeller for alle land'!AC53 -> 0.7625559886 | AH126: ='Baggrundstabeller for alle land'!AD53 -> 0.09360828002 | AI126: ='Baggrundstabeller for alle land'!AE53 -> 0.1886965329 | AJ126: 0.7625559886 | AK126: 0.8561642687 | AL126: 1.044860802 | AN126: ='Baggrundstabeller for alle land'!AJ53 -> Slovenien | AO126: 25 | AP126: ='Baggrundstabeller for alle land'!AK53 -> 0.7159368452 | AQ126: ='Baggrundstabeller for alle land'!AL53 -> 0.05993889867 | AR126: ='Baggrundstabeller for alle land'!AM53 -> 0.1713068524 | AS126: 0.7159368452 | AT126: 0.7758757439 | AU126: 0.9471825963
D127: ='Baggrundstabeller for alle land'!D54 -> Slovakiet | E127: 26 | F127: ='Baggrundstabeller for alle land'!E54 -> 1.512767883 | G127: ='Baggrundstabeller for alle land'!F54 -> 0.02377631251 | H127: ='Baggrundstabeller for alle land'!G54 -> 0.3072345382 | I127: 1.512767883 | J127: 1.536544196 | K127: 1.843778734 | M127: ='Baggrundstabeller for alle land'!L54 -> Slovakiet | N127: 26 | O127: ='Baggrundstabeller for alle land'!M54 -> 1.056931392 | P127: ='Baggrundstabeller for alle land'!N54 -> 0.02377631251 | Q127: ='Baggrundstabeller for alle land'!O54 -> 0.215844337 | R127: 1.056931392 | S127: 1.080707704 | T127: 1.296552041 | V127: ='Baggrundstabeller for alle land'!T54 -> Slovakiet | W127: 26 | X127: ='Baggrundstabeller for alle land'!U54 -> 0.9120444875 | Y127: ='Baggrundstabeller for alle land'!V54 -> 0.02377631251 | Z127: ='Baggrundstabeller for alle land'!W54 -> 0.187238461 | AA127: 0.9120444875 | AB127: 0.9358208 | AC127: 1.123059261 | AE127: ='Baggrundstabeller for alle land'!AB54 -> Slovakiet | AF127: 26 | AG127: ='Baggrundstabeller for alle land'!AC54 -> 0.7916769055 | AH127: ='Baggrundstabeller for alle land'!AD54 -> 0.02377631251 | AI127: ='Baggrundstabeller for alle land'!AE54 -> 0.1630906436 | AJ127: 0.7916769055 | AK127: 0.815453218 | AL127: 0.9785438616 | AN127: ='Baggrundstabeller for alle land'!AJ54 -> Slovakiet | AO127: 26 | AP127: ='Baggrundstabeller for alle land'!AK54 -> 0.6969431603 | AQ127: ='Baggrundstabeller for alle land'!AL54 -> 0.02377631251 | AR127: ='Baggrundstabeller for alle land'!AM54 -> 0.1441438946 | AS127: 0.6969431603 | AT127: 0.7207194728 | AU127: 0.8648633674
D128: ='Baggrundstabeller for alle land'!D55 -> Finland | E128: 27 | F128: ='Baggrundstabeller for alle land'!E55 -> 1.649633012 | G128: ='Baggrundstabeller for alle land'!F55 -> 0.1678665362 | H128: ='Baggrundstabeller for alle land'!G55 -> 0.4362296683 | I128: 1.649633012 | J128: 1.817499548 | K128: 2.253729217 | M128: ='Baggrundstabeller for alle land'!L55 -> Finland | N128: 27 | O128: ='Baggrundstabeller for alle land'!M55 -> 1.039953663 | P128: ='Baggrundstabeller for alle land'!N55 -> 0.1678665362 | Q128: ='Baggrundstabeller for alle land'!O55 -> 0.2899512898 | R128: 1.039953663 | S128: 1.207820199 | T128: 1.497771489 | V128: ='Baggrundstabeller for alle land'!T55 -> Finland | W128: 27 | X128: ='Baggrundstabeller for alle land'!U55 -> 0.7574465657 | Y128: ='Baggrundstabeller for alle land'!V55 -> 0.1678665362 | Z128: ='Baggrundstabeller for alle land'!W55 -> 0.2218369303 | AA128: 0.7574465657 | AB128: 0.9253131019 | AC128: 1.147150032 | AE128: ='Baggrundstabeller for alle land'!AB55 -> Finland | AF128: 27 | AG128: ='Baggrundstabeller for alle land'!AC55 -> 0.6402005371 | AH128: ='Baggrundstabeller for alle land'!AD55 -> 0.1678665362 | AI128: ='Baggrundstabeller for alle land'!AE55 -> 0.1939212092 | AJ128: 0.6402005371 | AK128: 0.8080670733 | AL128: 1.001988283 | AN128: ='Baggrundstabeller for alle land'!AJ55 -> Finland | AO128: 27 | AP128: ='Baggrundstabeller for alle land'!AK55 -> 0.524443347 | AQ128: ='Baggrundstabeller for alle land'!AL55 -> 0.1674943266 | AR128: ='Baggrundstabeller for alle land'!AM55 -> 0.1660054881 | AS128: 0.524443347 | AT128: 0.6919376736 | AU128: 0.8579431617
D129: ='Baggrundstabeller for alle land'!D56 -> Sverige | E129: 28 | F129: ='Baggrundstabeller for alle land'!E56 -> 1.834741962 | G129: ='Baggrundstabeller for alle land'!F56 -> 0.2233827435 | H129: ='Baggrundstabeller for alle land'!G56 -> 0.5139680265 | I129: 1.834741962 | J129: 2.058124705 | K129: 2.572092732 | M129: ='Baggrundstabeller for alle land'!L56 -> Sverige | N129: 28 | O129: ='Baggrundstabeller for alle land'!M56 -> 1.024557154 | P129: ='Baggrundstabeller for alle land'!N56 -> 0.2230073103 | Q129: ='Baggrundstabeller for alle land'!O56 -> 0.3123604077 | R129: 1.024557154 | S129: 1.247564465 | T129: 1.559924872 | V129: ='Baggrundstabeller for alle land'!T56 -> Sverige | W129: 28 | X129: ='Baggrundstabeller for alle land'!U56 -> 0.8954081397 | Y129: ='Baggrundstabeller for alle land'!V56 -> 0.2233827435 | Z129: ='Baggrundstabeller for alle land'!W56 -> 0.2796977208 | AA129: 0.8954081397 | AB129: 1.118790883 | AC129: 1.398488604 | AE129: ='Baggrundstabeller for alle land'!AB56 -> Sverige | AF129: 28 | AG129: ='Baggrundstabeller for alle land'!AC56 -> 0.7001828849 | AH129: ='Baggrundstabeller for alle land'!AD56 -> 0.2233827435 | AI129: ='Baggrundstabeller for alle land'!AE56 -> 0.2305159739 | AJ129: 0.7001828849 | AK129: 0.9235656284 | AL129: 1.154081602 | AN129: ='Baggrundstabeller for alle land'!AJ56 -> Sverige | AO129: 28 | AP129: ='Baggrundstabeller for alle land'!AK56 -> 0.5811705662 | AQ129: ='Baggrundstabeller for alle land'!AL56 -> 0.2230073103 | AR129: ='Baggrundstabeller for alle land'!AM56 -> 0.2012321857 | AS129: 0.5811705662 | AT129: 0.8041778764 | AU129: 1.005410062
D130: ='Baggrundstabeller for alle land'!D57 -> UK | E130: 29 | F130: ='Baggrundstabeller for alle land'!E57 -> 1.858060868 | G130: ='Baggrundstabeller for alle land'!F57 -> 0 | H130: ='Baggrundstabeller for alle land'!G57 -> 0.09431970295 | I130: 1.858060868 | J130: 1.858060868 | K130: 1.952380571 | M130: ='Baggrundstabeller for alle land'!L57 -> UK | N130: 29 | O130: ='Baggrundstabeller for alle land'!M57 -> 1.695517822 | P130: ='Baggrundstabeller for alle land'!N57 -> 0 | Q130: ='Baggrundstabeller for alle land'!O57 -> 0.08537237935 | R130: 1.695517822 | S130: 1.695517822 | T130: 1.780890202 | V130: ='Baggrundstabeller for alle land'!T57 -> UK | W130: 29 | X130: ='Baggrundstabeller for alle land'!U57 -> 1.52961953 | Y130: ='Baggrundstabeller for alle land'!V57 -> 0 | Z130: ='Baggrundstabeller for alle land'!W57 -> 0.07642505575 | AA130: 1.52961953 | AB130: 1.52961953 | AC130: 1.606044586 | AE130: ='Baggrundstabeller for alle land'!AB57 -> UK | AF130: 29 | AG130: ='Baggrundstabeller for alle land'!AC57 -> 1.395036871 | AH130: ='Baggrundstabeller for alle land'!AD57 -> 0 | AI130: ='Baggrundstabeller for alle land'!AE57 -> 0.0700873682 | AJ130: 1.395036871 | AK130: 1.395036871 | AL130: 1.465124239 | AN130: ='Baggrundstabeller for alle land'!AJ57 -> UK | AO130: 29 | AP130: ='Baggrundstabeller for alle land'!AK57 -> 1.278721664 | AQ130: ='Baggrundstabeller for alle land'!AL57 -> 0 | AR130: ='Baggrundstabeller for alle land'!AM57 -> 0.0641224858 | AS130: 1.278721664 | AT130: 1.278721664 | AU130: 1.34284415
D131: Level 1 | M131: Level 1 | V131: Level 1 | AE131: Level 1 | AN131: Level 1
D132: Level 2 | M132: Level 2 | V132: Level 2 | AE132: Level 2 | AN132: Level 2
D133: Level 3 | M133: Level 3 | V133: Level 3 | AE133: Level 3 | AN133: Level 3

Sheet Baggrundstabeller for alle land
D1: NAVN PÅ ARK: | E1: Baggrundstabeller for alle lande, valgt år
D2: Data hentes fra: | E2: 'Level 1', 'Level 2', Level 3', 'Afgifter og moms' og 'Baggrundsdata -HICP-deflator'
D4: Sådan bruges arket:
D5: Arket 'Baggrundstabeller for alle lande, valgt år' skal give et indblik i hvordan de grå-blå resultatfigurer og -tabeller i arket 'Alle lande, valgt år' fremkommer. Værdierne i resultattabellerne er ens for de to ark, men i dette ark ses udregningen. Nedenstående resultattabeller (de grå-blå) viser elprisen for industrielle forbrugere opdelt på level 1, 2 og 3 for hvert forbrugsintervalinterval. Prisen vises for alle lande i det valgte år. Resultattabellerne er fremkommet ved at gange tabel A, B, C og D sammen. Disse tabeller ses nedenfor resultattabellerne. Taballerne A, B, C og D er et resultat af valgene truffet i rullemenuerne i arket 'Alle lande, valgt år', disse valg kan ses i de farvede kasser nedenfor. Hvis år, pristype, basiså, valuta eller enhed ønskes ændret, gøres det i arket 'Alle lande, valgt år'.
D11: ="Valg truffet i arket: "&'Baggrundstabeller for alle land'!E1 -> Valg truffet i arket: Baggrundstabeller for alle lande, valgt år
D12: Valgt år | E12: ='Alle lande, valgt år'!E12 -> 2015 | F12: Tabel A
D13: Valgt pristype | E13: ='Alle lande, valgt år'!E13 -> faste priser | F13: Tabel B
D14: Valgt basisår | E14: ='Alle lande, valgt år'!E14 -> 2016 | F14: Tabel B
D15: Valgt valuta | E15: ='Alle lande, valgt år'!E15 -> DKK | F15: Tabel C
D19: Resultattabeller:
D20: Valgene truffet ovenfor giver tabeller og figurer der er:
D21: ="Oppgjort for året "&E12&" i "&$E$13&" med basisår "&$E$14 -> Oppgjort for året 2015 i faste priser med basisår 2016
D22: ="Vist i "&E15&" / kWh" -> Vist i DKK / kWh
D26: =D71 -> IA: < 1000 kWh | L26: =L71 -> IB: 1000 < 2500 kWh | T26: =T71 -> IC: 2500 < 5000 kWh | AB26: =AB71 -> ID: 5000 < 15000 kWh | AJ26: =AJ71 -> IE: > 15000 kWh
D28: =$E$15&" / kWh år "&$E$12 -> DKK / kWh år 2015 | E28: Elpris eksl. PSO og afgifter | F28: PSO og afgifter | G28: Moms | L28: =$E$15&" / kWh år "&$E$12 -> DKK / kWh år 2015 | M28: Elpris eksl. PSO og afgifter | N28: PSO og afgifter | O28: Moms | T28: =$E$15&" / kWh år "&$E$12 -> DKK / kWh år 2015 | U28: Elpris eksl. PSO og afgifter | V28: PSO og afgifter | W28: Moms | AB28: =$E$15&" / kWh år "&$E$12 -> DKK / kWh år 2015 | AC28: Elpris eksl. PSO og afgifter | AD28: PSO og afgifter | AE28: Moms | AJ28: =$E$15&" / kWh år "&$E$12 -> DKK / kWh år 2015 | AK28: Elpris eksl. PSO og afgifter | AL28: PSO og afgifter | AM28: Moms
D29: =D74 -> EU-28 | E29: =IFERROR(E74/$E118*$G$118,"*") -> 1.769156326 | F29: =IFERROR(F74/$E118*$G$118,"*") -> 0.3209531388 | G29: 0.3328817108 | J29: =SUM(E29:G29) -> 2.422991176 | L29: =L74 -> EU-28 | M29: =IFERROR(M74/$E118*$G$118,"*") -> 1.187638444 | N29: =IFERROR(N74/$E118*$G$118,"*") -> 0.2669017972 | O29: 0.2348437601 | P29: 0 | Q29: 0 | R29: =SUM(M29:O29) -> 1.689384001 | T29: =T74 -> EU-28 | U29: =IFERROR(U74/$E118*$G$118,"*") -> 1.05157817 | V29: =IFERROR(V74/$E118*$G$118,"*") -> 0.2915044769 | W29: 0.217696438 | Z29: =SUM(U29:W29) -> 1.560779085 | AB29: =AB74 -> EU-28 | AC29: =IFERROR(AC74/$E118*$G$118,"*") -> 0.9766518278 | AD29: =IFERROR(AD74/$E118*$G$118,"*") -> 0.3075334954 | AE29: 0.2076317054 | AH29: =SUM(AC29:AE29) -> 1.491817029 | AJ29: =AJ74 -> EU-28 | AK29: =IFERROR(AK74/$E118*$G$118,"*") -> 0.9334107545 | AL29: =IFERROR(AL74/$E118*$G$118,"*") -> 0.2993326022 | AM29: 0.1994308122 | AP29: =SUM(AK29:AM29) -> 1.432174169
D30: Belgien | E30: =IFERROR(E75/$E119*$G$118,"*") -> 1.780371545 | F30: 0.1519280396 | G30: 0.2145749102 | J30: 2.146874495 | L30: Belgien | M30: =IFERROR(M75/$E119*$G$118,"*") -> 1.47388955 | N30: 0.1463010752 | O30: 0.1718099806 | P30: 0 | Q30: 0 | R30: =SUM(M30:O30) -> 1.792000605 | T30: Belgien | U30: =IFERROR(U75/$E119*$G$118,"*") -> 1.37260419 | V30: 0.1526783015 | W30: 0.1545539563 | Z30: =SUM(U30:W30) -> 1.679836448 | AB30: Belgien | AC30: =IFERROR(AC75/$E119*$G$118,"*") -> 1.222551805 | AD30: 0.1504275157 | AE30: 0.1391735869 | AH30: =SUM(AC30:AE30) -> 1.512152908 | AJ30: Belgien | AK30: =IFERROR(AK75/$E119*$G$118,"*") -> 1.010227681 | AL30: 0.1260440032 | AM30: 0.1350471463 | AP30: =SUM(AK30:AM30) -> 1.27131883
D31: Bulgarien | E31: =IFERROR(E76/$E120*$G$118,"*") -> 0.5974914355 | F31: 0 | G31: 0.119867109 | J31: 0.7173585445 | L31: Bulgarien | M31: =IFERROR(M76/$E120*$G$118,"*") -> 0.5886397105 | N31: 0 | O31: 0.1176541777 | P31: 0 | Q31: 0 | R31: =SUM(M31:O31) -> 0.7062938883 | T31: Bulgarien | U31: =IFERROR(U76/$E120*$G$118,"*") -> 0.5838450262 | V31: 0 | W31: 0.1165477121 | Z31: 0.7003927383 | AB31: Bulgarien | AC31: =IFERROR(AC76/$E120*$G$118,"*") -> 0.5831073824 | AD31: 0 | AE31: 0.1165477121 | AH31: =SUM(AC31:AE31) -> 0.6996550945 | AJ31: Bulgarien | AK31: =IFERROR(AK76/$E120*$G$118,"*") -> 0.5797879856 | AL31: 0 | AM31: 0.1161788902 | AP31: =SUM(AK31:AM31) -> 0.6959668758
D32: Tjekkiet | E32: =IFERROR(E77/$E121*$G$118,"*") -> 1.596562336 | F32: 0.008218149599 | G32: 0.3369441336 | J32: 1.941724619 | L32: Tjekkiet | M32: =IFERROR(M77/$E121*$G$118,"*") -> 1.131116227 | N32: 0.008218149599 | O32: 0.2379527861 | P32: 0 | Q32: 0 | R32: 1.377287162 | T32: Tjekkiet | U32: =IFERROR(U77/$E121*$G$118,"*") -> 0.8543140061 | V32: 0.008218149599 | W32: 0.1807992912 | Z32: 1.043331447 | AB32: Tjekkiet | AC32: =IFERROR(AC77/$E121*$G$118,"*") -> 0.6735147149 | AD32: 0.008218149599 | AE32: 0.142323409 | AH32: 0.8240562734 | AJ32: Tjekkiet | AK32: =IFERROR(AK77/$E121*$G$118,"*") -> 0.5752704719 | AL32: 0.008218149599 | AM32: 0.1228986917 | AP32: 0.7063873133
D33: Danmark | E33: =IFERROR(E78/$E122*$G$118,"*") -> 0.8868130522 | F33: 1.104594017 | G33: 0.497571603 | J33: 2.488978672 | L33: Danmark | M33: =IFERROR(M78/$E122*$G$118,"*") -> 0.8868130522 | N33: 1.104594017 | O33: 0.497571603 | P33: 0 | Q33: 0 | R33: 2.488978672 | T33: Danmark | U33: =IFERROR(U78/$E122*$G$118,"*") -> 0.7217029557 | V33: 1.103846912 | W33: 0.4568544073 | Z33: =SUM(U33:W33) -> 2.282404275 | AB33: Danmark | AC33: =IFERROR(AC78/$E122*$G$118,"*") -> 0.598804264 | AD33: 0.7385128072 | AE33: 0.3361970291 | AH33: 1.6735141 | AJ33: Danmark | AK33: =IFERROR(AK78/$E122*$G$118,"*") -> 0.598804264 | AL33: 0.7385128072 | AM33: 0.3361970291 | AP33: 1.6735141
D34: Tyskland | E34: =IFERROR(E79/$E123*$G$118,"*") -> 1.947990874 | F34: 0.7877794511 | G34: 0.5198374114 | J34: 3.255607736 | L34: Tyskland | M34: =IFERROR(M79/$E123*$G$118,"*") -> 1.227383522 | N34: 0.7855403811 | O34: 0.3825077865 | P34: 0 | Q34: 0 | R34: 2.39543169 | T34: Tyskland | U34: =IFERROR(U79/$E123*$G$118,"*") -> 1.066543662 | V34: 0.7829281328 | W34: 0.351160807 | Z34: 2.200632602 | AB34: Tyskland | AC34: =IFERROR(AC79/$E123*$G$118,"*") -> 0.9732490803 | AD34: 0.7821817762 | AE34: 0.3336214255 | AH34: 2.089052282 | AJ34: Tyskland | AK34: =IFERROR(AK79/$E123*$G$118,"*") -> 0.9381703174 | AL34: 0.7411321601 | AM34: 0.3190674707 | AP34: 1.998369948
D35: Estland | E35: =IFERROR(E80/$E124*$G$118,"*") -> 0.731209941 | F35: 0.09886256855 | G35: 0.1656414356 | J35: 0.9957139451 | L35: Estland | M35: =IFERROR(M80/$E124*$G$118,"*") -> 0.7349406039 | N35: 0.09960870114 | O35: 0.1604185075 | P35: 0 | Q35: 0 | R35: 0.9949678125 | T35: Estland | U35: =IFERROR(U80/$E124*$G$118,"*") -> 0.7095720958 | V35: 0.09998176744 | W35: 0.1578070434 | Z35: 0.9673609066 | AB35: Estland | AC35: =IFERROR(AC80/$E124*$G$118,"*") -> 0.667042538 | AD35: 0.09998176744 | AE35: 0.1533302478 | AH35: 0.9203545532 | AJ35: Estland | AK35: =IFERROR(AK80/$E124*$G$118,"*") -> 0.616678588 | AL35: 0.1003548337 | AM35: 0.1473611871 | AP35: 0.8643946088
D36: Irland | E36: =IFERROR(E81/$E125*$G$118,"*") -> 3.133427286 | F36: 0.7359173661 | G36: 0.5223000151 | J36: 4.391644667 | L36: Irland | M36: =IFERROR(M81/$E125*$G$118,"*") -> 1.774552514 | N36: 0.2501522557 | O36: 0.273266175 | P36: 0 | Q36: 0 | R36: 2.297970945 | T36: Irland | U36: =IFERROR(U81/$E125*$G$118,"*") -> 1.476681199 | V36: 0.1260081407 | W36: 0.2165997921 | Z36: 1.819289132 | AB36: Irland | AC36: =IFERROR(AC81/$E125*$G$118,"*") -> 1.298107532 | AD36: 0.06598651155 | AE36: 0.1841657441 | AH36: 1.548259788 | AJ36: Irland | AK36: =IFERROR(AK81/$E125*$G$118,"*") -> 1.143393395 | AL36: 0.0216226987 | AM36: 0.1569509682 | AP36: 1.321967062
D37: Grækenland | E37: =IFERROR(E82/$E126*$G$118,"*") -> 1.355755649 | F37: 0.2370821001 | G37: 0.2068476799 | J37: 1.799685429 | L37: Grækenland | M37: =IFERROR(M82/$E126*$G$118,"*") -> 0.9394793019 | N37: 0.2396630872 | O37: 0.1537530883 | P37: 0 | Q37: 0 | R37: 1.332895477 | T37: Grækenland | U37: =IFERROR(U82/$E126*$G$118,"*") -> 0.8989209333 | V37: 0.2555177222 | W37: 0.1500659639 | Z37: 1.304504619 | AB37: Grækenland | AC37: =IFERROR(AC82/$E126*$G$118,"*") -> 0.8756920495 | AD37: 0.3561762189 | AE37: 0.1600211998 | AH37: 1.391889468 | AJ37: Grækenland | AK37: =IFERROR(AK82/$E126*$G$118,"*") -> 0.8340275436 | AL37: 0.4162763469 | AM37: 0.1629708993 | AP37: 1.41327479
D38: Spanien | E38: =IFERROR(E83/$E127*$G$118,"*") -> 3.019710601 | F38: 0.1541160115 | G38: 0.6664776556 | J38: 3.840304268 | L38: Spanien | M38: =IFERROR(M83/$E127*$G$118,"*") -> 1.621552362 | N38: 0.08298554467 | O38: 0.3578751614 | P38: 0 | Q38: 0 | R38: 2.062413068 | T38: Spanien | U38: =IFERROR(U83/$E127*$G$118,"*") -> 1.362963477 | V38: 0.06964858213 | W38: 0.3008225994 | Z38: 1.733434659 | AB38: Spanien | AC38: =IFERROR(AC83/$E127*$G$118,"*") -> 1.188101079 | AD38: 0.06075727378 | AE38: 0.2619231254 | AH38: 1.510781478 | AJ38: Spanien | AK38: =IFERROR(AK83/$E127*$G$118,"*") -> 1.119193439 | AL38: 0.05705256196 | AM38: 0.2471042781 | AP38: 1.42335028
D39: Frankrig | E39: =IFERROR(E84/$E128*$G$118,"*") -> 1.620178122 | F39: 0.2529895823 | G39: 0.2197800354 | J39: 2.092947739 | L39: Frankrig | M39: =IFERROR(M84/$E128*$G$118,"*") -> 0.9466586583 | N39: 0.2410490711 | O39: 0.1873167704 | P39: 0 | Q39: 0 | R39: 1.3750245 | T39: Frankrig | U39: =IFERROR(U84/$E128*$G$118,"*") -> 0.8112084837 | V39: 0.2380639432 | W39: 0.1817196557 | Z39: 1.230992083 | AB39: Frankrig | AC39: =IFERROR(AC84/$E128*$G$118,"*") -> 0.7279980459 | AD39: 0.2361982384 | AE39: 0.1764956821 | AH39: 1.140691966 | AJ39: Frankrig | AK39: =IFERROR(AK84/$E128*$G$118,"*") -> 0.7044901643 | AL39: 0.2369445203 | AM39: 0.177241964 | AP39: 1.118676649
D40: Kroatien | E40: =IFERROR(E85/$E129*$G$118,"*") -> 1.215911471 | F40: =IFERROR(F85/$E129*$G$118,"*") -> 0.03420913006 | G40: 0.312344231 | J40: 1.562464832 | L40: Kroatien | M40: =IFERROR(M85/$E129*$G$118,"*") -> 0.8117231622 | N40: 0.03383729169 | O40: 0.2115760327 | P40: 0 | Q40: 0 | R40: 1.057136487 | T40: Kroatien | U40: =IFERROR(U85/$E129*$G$118,"*") -> 0.7477669625 | V40: 0.03420913006 | W40: 0.1955869827 | Z40: 0.9775630754 | AB40: Kroatien | AC40: =IFERROR(AC85/$E129*$G$118,"*") -> 0.715045186 | AD40: 0.03383729169 | AE40: 0.1874065386 | AH40: 0.9362890163 | AJ40: Kroatien | AK40: =IFERROR(AK85/$E129*$G$118,"*") -> 0.6908756919 | AL40: 0.03420913006 | AM40: 0.1810852863 | AP40: 0.9061701083
D41: Italien | E41: =IFERROR(E86/$E130*$G$118,"*") -> 1.521448045 | F41: 0.4720705853 | G41: 0.2015162973 | J41: 2.195034927 | L41: Italien | M41: =IFERROR(M86/$E130*$G$118,"*") -> 1.033703969 | N41: 0.395569028 | O41: 0.1429272997 | P41: 0 | Q41: 0 | R41: 1.572200297 | T41: Italien | U41: =IFERROR(U86/$E130*$G$118,"*") -> 1.114310488 | V41: 0.5403622194 | W41: 0.1656911778 | Z41: 1.820363886 | AB41: Italien | AC41: =IFERROR(AC86/$E130*$G$118,"*") -> 1.368818108 | AD41: 0.6963507607 | AE41: 0.2067407939 | AH41: 2.271909663 | AJ41: Italien | AK41: =IFERROR(AK86/$E130*$G$118,"*") -> 1.540106961 | AL41: 0.7280709186 | AM41: 0.2295046719 | AP41: 2.497682552
D42: Cypern | E42: =IFERROR(E87/$E131*$G$118,"*") -> 1.271802545 | F42: 0.08185049567 | G42: 0.2639036161 | J42: 1.617556657 | L42: Cypern | M42: =IFERROR(M87/$E131*$G$118,"*") -> 1.104431128 | N42: 0.06349836659 | O42: 0.2154539953 | P42: 0 | Q42: 0 | R42: 1.38338349 | T42: Cypern | U42: =IFERROR(U87/$E131*$G$118,"*") -> 1.11470832 | V42: 0.06203019627 | W42: 0.2161880805 | Z42: 1.392926597 | AB42: Cypern | AC42: =IFERROR(AC87/$E131*$G$118,"*") -> 1.099659574 | AD42: 0.06166315369 | AE42: 0.2125176547 | AH42: 1.373840382 | AJ42: Cypern | AK42: =IFERROR(AK87/$E131*$G$118,"*") -> 1.044603187 | AL42: 0.06203019627 | AM42: 0.198202994 | AP42: 1.304836377
D43: Letland | E43: =IFERROR(E88/$E132*$G$118,"*") -> 0.7722098858 | F43: 0.1998704833 | G43: 0.2039799698 | J43: 1.176060339 | L43: Letland | M43: =IFERROR(M88/$E132*$G$118,"*") -> 0.8174142381 | N43: 0.200244073 | O43: 0.2140668914 | P43: 0 | Q43: 0 | R43: 1.231725202 | T43: Letland | U43: =IFERROR(U88/$E132*$G$118,"*") -> 0.8140519309 | V43: 0.200244073 | W43: 0.2129461224 | Z43: 1.227242126 | AB43: Letland | AC43: =IFERROR(AC88/$E132*$G$118,"*") -> 0.8088216753 | AD43: 0.1998704833 | AE43: 0.2118253533 | AH43: 1.220517512 | AJ43: Letland | AK43: =IFERROR(AK88/$E132*$G$118,"*") -> 0.7946252671 | AL43: 0.200244073 | AM43: 0.2088366358 | AP43: 1.203705976
D44: Litaun | E44: =IFERROR(E89/$E133*$G$118,"*") -> 0.6624437955 | F44: 0.1218244878 | G44: 0.1644075155 | J44: 0.9486757989 | L44: Litaun | M44: =IFERROR(M89/$E133*$G$118,"*") -> 0.6561489132 | N44: 0.1214542006 | O44: 0.1632966539 | P44: 0 | Q44: 0 | R44: 0.9408997677 | T44: Litaun | U44: =IFERROR(U89/$E133*$G$118,"*") -> 0.6431888613 | V44: 0.1214542006 | W44: 0.1607046435 | Z44: 0.9253477055 | AB44: Litaun | AC44: =IFERROR(AC89/$E133*$G$118,"*") -> 0.6168984703 | AD44: 0.1218244878 | AE44: 0.1551503356 | AH44: 0.8938732937 | AJ44: Litaun | AK44: =IFERROR(AK89/$E133*$G$118,"*") -> 0.5706125707 | AL44: 0.1218244878 | AM44: 0.1455228684 | AP44: 0.8379599269
D45: Luxembourg | E45: =IFERROR(E90/$E134*$G$118,"*") -> 1.428700945 | F45: 0.2275476701 | G45: 0.1320522545 | J45: 1.78830087 | L45: Luxembourg | M45: =IFERROR(M90/$E134*$G$118,"*") -> 1.10192757 | N45: 0.2275476701 | O45: 0.1059402267 | P45: 0 | Q45: 0 | R45: 1.435415466 | T45: Luxembourg | U45: =IFERROR(U90/$E134*$G$118,"*") -> 0.9930031112 | V45: 0.2275476701 | W45: 0.09773358945 | Z45: 1.318284371 | AB45: Luxembourg | AC45: =IFERROR(AC90/$E134*$G$118,"*") -> 0.8982537535 | AD45: 0.2275476701 | AE45: 0.08952695217 | AH45: 1.215328376 | AJ45: Luxembourg | AK45: =IFERROR(AK90/$E134*$G$118,"*") -> 0.823274931 | AL45: 0.2275476701 | AM45: 0.08355848869 | AP45: 1.13438109
D46: Ungarn | E46: =IFERROR(E91/$E135*$G$118,"*") -> 0.754637601 | F46: 0 | G46: 0.2036738162 | J46: 0.9583114172 | L46: Ungarn | M46: =IFERROR(M91/$E135*$G$118,"*") -> 0.6912226766 | N46: 0 | O46: 0.1865144837 | P46: 0 | Q46: 0 | R46: 0.8777371602 | T46: Ungarn | U46: =IFERROR(U91/$E135*$G$118,"*") -> 0.6673488226 | V46: 0 | W46: 0.1801729912 | Z46: 0.8475218139 | AB46: Ungarn | AC46: =IFERROR(AC91/$E135*$G$118,"*") -> 0.651681606 | AD46: 0 | AE46: 0.1764427016 | AH46: 0.8281243076 | AJ46: Ungarn | AK46: =IFERROR(AK91/$E135*$G$118,"*") -> 0.6800318075 | AL46: 0 | AM46: 0.183157223 | AP46: 0.8631890305
D47: Malta | E47: =IFERROR(E92/$E136*$G$118,"*") -> 2.673454981 | F47: 0 | G47: 0.1335218769 | J47: 2.806976858 | L47: Malta | M47: =IFERROR(M92/$E136*$G$118,"*") -> 1.034983136 | N47: 0 | O47: 0.05167372071 | P47: 0 | Q47: 0 | R47: 1.086656857 | T47: Malta | U47: 0.9074961462 | V47: 0 | W47: 0.04526165318 | Z47: 0.9527577994 | AB47: Malta | AC47: =IFERROR(AC92/$E136*$G$118,"*") -> 1.065157571 | AD47: 0 | AE47: 0.05318244248 | AH47: 1.118340014 | AJ47: Malta | AK47: =IFERROR(AK92/$E136*$G$118,"*") -> 2.547476713 | AL47: 0 | AM47: 0.1274869898 | AP47: 2.674963703
D48: Holland | E48: =IFERROR(E93/$E137*$G$118,"*") -> 2.694702422 | F48: * | G48: * | J48: 2.694702422 | L48: Holland | M48: =IFERROR(M93/$E137*$G$118,"*") -> 1.321386728 | N48: -0.4229035272 | O48: 0.1882892029 | P48: 0 | Q48: 0 | R48: 1.086772403 | T48: Holland | U48: 0.9425667837 | V48: 0.2405917593 | W48: 0.2484371427 | Z48: 1.431595686 | AB48: Holland | AC48: =IFERROR(AC93/$E137*$G$118,"*") -> 0.684416309 | AD48: 0.5753281201 | AE48: 0.2641279097 | AH48: 1.523872339 | AJ48: Holland | AK48: =IFERROR(AK93/$E137*$G$118,"*") -> 0.9466762703 | AL48: 0.4763268526 | AM48: 0.2988717507 | AP48: 1.721874874
D49: Østrig | E49: =IFERROR(E94/$E138*$G$118,"*") -> 1.543082607 | F49: 0.6730786529 | G49: 0.4434577389 | J49: 2.659618999 | L49: Østrig | M49: =IFERROR(M94/$E138*$G$118,"*") -> 1.092108635 | N49: 0.4152718657 | O49: 0.3010251262 | P49: 0 | Q49: 0 | R49: 1.808405627 | T49: Østrig | U49: 0.9395291079 | V49: 0.3104204172 | W49: 0.2502905543 | Z49: 1.500240079 | AB49: Østrig | AC49: =IFERROR(AC94/$E138*$G$118,"*") -> 0.8425697039 | AD49: 0.2638197735 | AE49: 0.2213530578 | AH49: 1.327742535 | AJ49: Østrig | AK49: =IFERROR(AK94/$E138*$G$118,"*") -> 0.7253164713 | AL49: 0.2168433181 | AM49: 0.1886574449 | AP49: 1.130817234
D50: Polen | E50: =IFERROR(E95/$E139*$G$118,"*") -> 1.055849342 | F50: 0.03517029717 | G50: 0.2513750714 | J50: 1.342394711 | L50: Polen | M50: =IFERROR(M95/$E139*$G$118,"*") -> 0.8777765746 | N50: 0.03554051082 | O50: 0.2102813557 | P50: 0 | Q50: 0 | R50: 1.123598441 | T50: Polen | U50: 0.8255764494 | V50: 0.03591072448 | W50: 0.1980643051 | Z50: 1.059551479 | AB50: Polen | AC50: =IFERROR(AC95/$E139*$G$118,"*") -> 0.7915167931 | AD50: 0.03554051082 | AE50: 0.1899196047 | AH50: 1.016976909 | AJ50: Polen | AK50: =IFERROR(AK95/$E139*$G$118,"*") -> 0.7807805972 | AL50: 0.03591072448 | AM50: 0.1876983228 | AP50: 1.004389644
D51: Portugal | E51: =IFERROR(E96/$E140*$G$118,"*") -> 1.382189144 | F51: 1.01050803 | G51: 0.5466559938 | J51: 2.939353168 | L51: Portugal | M51: =IFERROR(M96/$E140*$G$118,"*") -> 0.9228332507 | N51: 0.587495955 | O51: 0.3450789378 | P51: 0 | Q51: 0 | R51: 1.855408144 | T51: Portugal | U51: 0.8628846839 | V51: 0.5294207809 | W51: 0.3177274042 | Z51: 1.710032869 | AB51: Portugal | AC51: =IFERROR(AC96/$E140*$G$118,"*") -> 0.829163615 | AD51: 0.4930769622 | AE51: 0.302365584 | AH51: 1.624606161 | AJ51: Portugal | AK51: =IFERROR(AK96/$E140*$G$118,"*") -> 0.8164245446 | AL51: 0.4522370011 | AM51: 0.2911252277 | AP51: 1.559786773
D52: Rumænien | E52: =IFERROR(E97/$E141*$G$118,"*") -> 0.7247442016 | F52: 0.09207815676 | G52: 0.196037366 | J52: 1.012859724 | L52: Rumænien | M52: =IFERROR(M97/$E141*$G$118,"*") -> 0.7076651886 | N52: 0.09244943965 | O52: 0.1923245371 | P52: 0 | Q52: 0 | R52: 0.9924391654 | T52: Rumænien | U52: 0.6924425901 | V52: 0.09244943965 | W52: 0.1886117082 | Z52: 0.973503738 | AB52: Rumænien | AC52: =IFERROR(AC97/$E141*$G$118,"*") -> 0.682789235 | AD52: 0.09244943965 | AE52: 0.186012728 | AH52: 0.9612514026 | AJ52: Rumænien | AK52: =IFERROR(AK97/$E141*$G$118,"*") -> 0.6649676563 | AL52: 0.09096430809 | AM52: 0.1815573333 | AP52: 0.9374892976
D53: Slovenien | E53: =IFERROR(E98/$E142*$G$118,"*") -> 0.8620841599 | F53: 0.4769212369 | G53: 0.2945145885 | J53: 1.633519985 | L53: Slovenien | M53: =IFERROR(M98/$E142*$G$118,"*") -> 0.941262705 | N53: 0.2282858054 | O53: 0.2575152684 | P53: 0 | Q53: 0 | R53: 1.427063779 | T53: Slovenien | U53: 0.8321147105 | V53: 0.1442973487 | W53: 0.2149660502 | Z53: 1.191378109 | AB53: Slovenien | AC53: =IFERROR(AC98/$E142*$G$118,"*") -> 0.7625559886 | AD53: 0.09360828002 | AE53: 0.1886965329 | AH53: 1.044860802 | AJ53: Slovenien | AK53: =IFERROR(AK98/$E142*$G$118,"*") -> 0.7159368452 | AL53: 0.05993889867 | AM53: 0.1713068524 | AP53: 0.9471825963
D54: Slovakiet | E54: =IFERROR(E99/$E143*$G$118,"*") -> 1.512767883 | F54: 0.02377631251 | G54: 0.3072345382 | J54: 1.843778734 | L54: Slovakiet | M54: =IFERROR(M99/$E143*$G$118,"*") -> 1.056931392 | N54: 0.02377631251 | O54: 0.215844337 | P54: 0 | Q54: 0 | R54: 1.296552041 | T54: Slovakiet | U54: 0.9120444875 | V54: 0.02377631251 | W54: 0.187238461 | Z54: 1.123059261 | AB54: Slovakiet | AC54: =IFERROR(AC99/$E143*$G$118,"*") -> 0.7916769055 | AD54: 0.02377631251 | AE54: 0.1630906436 | AH54: 0.9785438616 | AJ54: Slovakiet | AK54: =IFERROR(AK99/$E143*$G$118,"*") -> 0.6969431603 | AL54: 0.02377631251 | AM54: 0.1441438946 | AP54: 0.8648633674
D55: Finland | E55: =IFERROR(E100/$E144*$G$118,"*") -> 1.649633012 | F55: 0.1678665362 | G55: 0.4362296683 | J55: 2.253729217 | L55: Finland | M55: =IFERROR(M100/$E144*$G$118,"*") -> 1.039953663 | N55: 0.1678665362 | O55: 0.2899512898 | P55: 0 | Q55: 0 | R55: 1.497771489 | T55: Finland | U55: 0.7574465657 | V55: 0.1678665362 | W55: 0.2218369303 | Z55: 1.147150032 | AB55: Finland | AC55: =IFERROR(AC100/$E144*$G$118,"*") -> 0.6402005371 | AD55: 0.1678665362 | AE55: 0.1939212092 | AH55: 1.001988283 | AJ55: Finland | AK55: =IFERROR(AK100/$E144*$G$118,"*") -> 0.524443347 | AL55: 0.1674943266 | AM55: 0.1660054881 | AP55: 0.8579431617
D56: Sverige | E56: =IFERROR(E101/$E145*$G$118,"*") -> 1.834741962 | F56: 0.2233827435 | G56: 0.5139680265 | J56: 2.572092732 | L56: Sverige | M56: =IFERROR(M101/$E145*$G$118,"*") -> 1.024557154 | N56: 0.2230073103 | O56: 0.3123604077 | P56: 0 | Q56: 0 | R56: 1.559924872 | T56: Sverige | U56: 0.8954081397 | V56: 0.2233827435 | W56: 0.2796977208 | Z56: 1.398488604 | AB56: Sverige | AC56: =IFERROR(AC101/$E145*$G$118,"*") -> 0.7001828849 | AD56: 0.2233827435 | AE56: 0.2305159739 | AH56: 1.154081602 | AJ56: Sverige | AK56: =IFERROR(AK101/$E145*$G$118,"*") -> 0.5811705662 | AL56: 0.2230073103 | AM56: 0.2012321857 | AP56: 1.005410062
D57: UK | E57: =IFERROR(E102/$E146*$G$118,"*") -> 1.858060868 | F57: 0 | G57: 0.09431970295 | J57: 1.952380571 | L57: UK | M57: =IFERROR(M102/$E146*$G$118,"*") -> 1.695517822 | N57: 0 | O57: 0.08537237935 | P57: 0 | Q57: 0 | R57: 1.780890202 | T57: UK | U57: 1.52961953 | V57: 0 | W57: 0.07642505575 | Z57: 1.606044586 | AB57: UK | AC57: =IFERROR(AC102/$E146*$G$118,"*") -> 1.395036871 | AD57: 0 | AE57: 0.0700873682 | AH57: 1.465124239 | AJ57: UK | AK57: =IFERROR(AK102/$E146*$G$118,"*") -> 1.278721664 | AL57: 0 | AM57: 0.0641224858 | AP57: 1.34284415
D58: Level 1 | L58: Level 1 | T58: Level 1 | AB58: Level 1 | AJ58: Level 1
D59: Level 2 | L59: Level 2 | T59: Level 2 | AB59: Level 2 | AJ59: Level 2
D60: Level 3 | L60: Level 3 | T60: Level 3 | AB60: Level 3 | AJ60: Level 3
D64: Baggrundstabeller
D66: Tabel A
D67: Nedenstående tabeller (de orange) henter data fra 'Level 1' og 'Afgifter og moms', der hentes data fra det år der er valgt i valgmenuen øverst. Priserne vises i original enheden i Eurostat EURO / kWh.
D68: 'Elpris inkl. PSO, eksl. afgifter' udgør level 1 prisen. 'Ikke refundrebare afgifter' svarer til level 2 prisen fratrukket level 1 prisen. 'Ikke refunderbare afgifter' er level 3 prisen fratrukket level 2 prisen. Beregningen er foretaget i arket "Afgifter og moms".
D70: Data er hentet for år 2014
D71: ='Udvalgte lande, 10 års oversigt'!D26:K26 -> IA: < 1000 kWh | L71: IB: 1000 < 2500 kWh | T71: IC: 2500 < 5000 kWh | AB71: ID: 5000 < 15000 kWh | AJ71: IE: > 15000 kWh
D73: ="Euro/kWH år "&$E$12 -> Euro/kWH år 2015 | E73: Elpris inkl. PSO, eksl. afgifter | F73: Afgifter | G73: Moms | L73: ="Euro/kWH år "&$E$12 -> Euro/kWH år 2015 | M73: Elpris inkl. PSO, eksl. afgifter | N73: Afgifter | O73: Moms | T73: ="Euro/kWH år "&$E$12 -> Euro/kWH år 2015 | U73: Elpris inkl. PSO, eksl. afgifter | V73: Afgifter | W73: Moms | AB73: ="Euro/kWH år "&$E$12 -> Euro/kWH år 2015 | AC73: Elpris inkl. PSO, eksl. afgifter | AD73: Afgifter | AE73: Moms | AJ73: ="Euro/kWH år "&$E$12 -> Euro/kWH år 2015 | AK73: Elpris inkl. PSO, eksl. afgifter | AL73: Afgifter | AM73: Moms
D74: ='Oversættelse af landenavne'!$B6 -> EU-28 | E74: =HLOOKUP($E$12,'Level 1'!$B$5:$L$35,'Oversættelse af landenavne'!$C6,FALSE) -> 0.2373 | F74: =HLOOKUP($E$12,'Afgifter og Moms'!A$5:L$35,'Oversættelse af landenavne'!$C6,FALSE) -> 0.04305 | G74: =HLOOKUP($E$12,'Afgifter og Moms'!A$41:L$70,'Oversættelse af landenavne'!$C6,FALSE) -> 0.04465 | L74: ='Oversættelse af landenavne'!$B6 -> EU-28 | M74: =HLOOKUP($E$12,'Level 1'!$O$5:$Y$35,'Oversættelse af landenavne'!$C6,FALSE) -> 0.1593 | N74: =HLOOKUP($E$12,'Afgifter og Moms'!$O$5:$Y$34,'Oversættelse af landenavne'!$C6,FALSE) -> 0.0358 | O74: =HLOOKUP($E$12,'Afgifter og Moms'!O$41:Y$70,'Oversættelse af landenavne'!$C6,FALSE) -> 0.0315 | T74: ='Oversættelse af landenavne'!$B6 -> EU-28 | U74: =HLOOKUP($E$12,'Level 1'!$AA$5:$AL$35,'Oversættelse af landenavne'!C6,FALSE) -> 0.14105 | V74: =HLOOKUP($E$12,'Afgifter og Moms'!$AA$5:$AL$34,'Oversættelse af landenavne'!C6,FALSE) -> 0.0391 | W74: =HLOOKUP($E$12,'Afgifter og Moms'!$AA$41:$AL$70,'Oversættelse af landenavne'!C6,FALSE) -> 0.0292 | AB74: ='Oversættelse af landenavne'!$B6 -> EU-28 | AC74: =HLOOKUP($E$12,'Level 1'!$AN$5:$AY$35,'Oversættelse af landenavne'!C6,FALSE) -> 0.131 | AD74: =HLOOKUP($E$12,'Afgifter og Moms'!$AN$5:$AY$34,'Oversættelse af landenavne'!C6,FALSE) -> 0.04125 | AE74: =HLOOKUP($E$12,'Afgifter og Moms'!$AN$41:AY70,'Oversættelse af landenavne'!C6,FALSE) -> 0.02785 | AJ74: ='Oversættelse af landenavne'!$B6 -> EU-28 | AK74: =HLOOKUP($E$12,'Level 1'!$BA$5:$BL$35,'Oversættelse af landenavne'!$C6,FALSE) -> 0.1252 | AL74: =HLOOKUP($E$12,'Afgifter og Moms'!$BA$5:$BL$34,'Oversættelse af landenavne'!$C6,FALSE) -> 0.04015 | AM74: =HLOOKUP($E$12,'Afgifter og Moms'!$BA$41:$BL$70,'Oversættelse af landenavne'!$C6,FALSE) -> 0.02675
D75: ='Oversættelse af landenavne'!$B7 -> Belgien | E75: =HLOOKUP($E$12,'Level 1'!$B$5:$L$35,'Oversættelse af landenavne'!$C7,FALSE) -> 0.2373 | F75: =HLOOKUP($E$12,'Afgifter og Moms'!A$5:L$35,'Oversættelse af landenavne'!$C7,FALSE) -> 0.02025 | G75: =HLOOKUP($E$12,'Afgifter og Moms'!A$41:L$70,'Oversættelse af landenavne'!$C7,FALSE) -> 0.0286 | L75: ='Oversættelse af landenavne'!$B7 -> Belgien | M75: =HLOOKUP($E$12,'Level 1'!$O$5:$Y$35,'Oversættelse af landenavne'!$C7,FALSE) -> 0.19645 | N75: =HLOOKUP($E$12,'Afgifter og Moms'!$O$5:$Y$34,'Oversættelse af landenavne'!$C7,FALSE) -> 0.0195 | O75: =HLOOKUP($E$12,'Afgifter og Moms'!O$41:Y$70,'Oversættelse af landenavne'!$C7,FALSE) -> 0.0229 | T75: ='Oversættelse af landenavne'!$B7 -> Belgien | U75: =HLOOKUP($E$12,'Level 1'!$AA$5:$AL$35,'Oversættelse af landenavne'!C7,FALSE) -> 0.18295 | V75: =HLOOKUP($E$12,'Afgifter og Moms'!$AA$5:$AL$34,'Oversættelse af landenavne'!C7,FALSE) -> 0.02035 | W75: =HLOOKUP($E$12,'Afgifter og Moms'!$AA$41:$AL$70,'Oversættelse af landenavne'!C7,FALSE) -> 0.0206 | AB75: ='Oversættelse af landenavne'!$B7 -> Belgien | AC75: =HLOOKUP($E$12,'Level 1'!$AN$5:$AY$35,'Oversættelse af landenavne'!C7,FALSE) -> 0.16295 | AD75: =HLOOKUP($E$12,'Afgifter og Moms'!$AN$5:$AY$34,'Oversættelse af landenavne'!C7,FALSE) -> 0.02005 | AE75: =HLOOKUP($E$12,'Afgifter og Moms'!$AN$41:AY70,'Oversættelse af landenavne'!C7,FALSE) -> 0.01855 | AJ75: ='Oversættelse af landenavne'!$B7 -> Belgien | AK75: =HLOOKUP($E$12,'Level 1'!$BA$5:$BL$35,'Oversættelse af landenavne'!$C7,FALSE) -> 0.13465 | AL75: =HLOOKUP($E$12,'Afgifter og Moms'!$BA$5:$BL$34,'Oversættelse af landenavne'!$C7,FALSE) -> 0.0168 | AM75: =HLOOKUP($E$12,'Afgifter og Moms'!$BA$41:$BL$70,'Oversættelse af landenavne'!$C7,FALSE) -> 0.018
D76: ='Oversættelse af landenavne'!$B8 -> Bulgarien | E76: =HLOOKUP($E$12,'Level 1'!$B$5:$L$35,'Oversættelse af landenavne'!$C8,FALSE) -> 0.081 | F76: =HLOOKUP($E$12,'Afgifter og Moms'!A$5:L$35,'Oversættelse af landenavne'!$C8,FALSE) -> 0 | G76: =HLOOKUP($E$12,'Afgifter og Moms'!A$41:L$70,'Oversættelse af landenavne'!$C8,FALSE) -> 0.01625 | L76: ='Oversættelse af landenavne'!$B8 -> Bulgarien | M76: =HLOOKUP($E$12,'Level 1'!$O$5:$Y$35,'Oversættelse af landenavne'!$C8,FALSE) -> 0.0798 | N76: =HLOOKUP($E$12,'Afgifter og Moms'!$O$5:$Y$34,'Oversættelse af landenavne'!$C8,FALSE) -> 0 | O76: =HLOOKUP($E$12,'Afgifter og Moms'!O$41:Y$70,'Oversættelse af landenavne'!$C8,FALSE) -> 0.01595 | T76: ='Oversættelse af landenavne'!$B8 -> Bulgarien | U76: =HLOOKUP($E$12,'Level 1'!$AA$5:$AL$35,'Oversættelse af landenavne'!C8,FALSE) -> 0.07915 | V76: =HLOOKUP($E$12,'Afgifter og Moms'!$AA$5:$AL$34,'Oversættelse af landenavne'!C8,FALSE) -> 0 | W76: =HLOOKUP($E$12,'Afgifter og Moms'!$AA$41:$AL$70,'Oversættelse af landenavne'!C8,FALSE) -> 0.0158 | AB76: ='Oversættelse af landenavne'!$B8 -> Bulgarien | AC76: =HLOOKUP($E$12,'Level 1'!$AN$5:$AY$35,'Oversættelse af landenavne'!C8,FALSE) -> 0.07905 | AD76: =HLOOKUP($E$12,'Afgifter og Moms'!$AN$5:$AY$34,'Oversættelse af landenavne'!C8,FALSE) -> 0 | AE76: =HLOOKUP($E$12,'Afgifter og Moms'!$AN$41:AY71,'Oversættelse af landenavne'!C8,FALSE) -> 0.0158 | AJ76: ='Oversættelse af landenavne'!$B8 -> Bulgarien | AK76: =HLOOKUP($E$12,'Level 1'!$BA$5:$BL$35,'Oversættelse af landenavne'!$C8,FALSE) -> 0.0786 | AL76: =HLOOKUP($E$12,'Afgifter og Moms'!$BA$5:$BL$34,'Oversættelse af landenavne'!$C8,FALSE) -> 0 | AM76: =HLOOKUP($E$12,'Afgifter og Moms'!$BA$41:$BL$70,'Oversættelse af landenavne'!$C8,FALSE) -> 0.01575
D77: ='Oversættelse af landenavne'!$B9 -> Tjekkiet | E77: =HLOOKUP($E$12,'Level 1'!$B$5:$L$35,'Oversættelse af landenavne'!$C9,FALSE) -> 0.2137 | F77: =HLOOKUP($E$12,'Afgifter og Moms'!A$5:L$35,'Oversættelse af landenavne'!$C9,FALSE) -> 0.0011 | G77: =HLOOKUP($E$12,'Afgifter og Moms'!A$41:L$70,'Oversættelse af landenavne'!$C9,FALSE) -> 0.0451 | L77: ='Oversættelse af landenavne'!$B9 -> Tjekkiet | M77: =HLOOKUP($E$12,'Level 1'!$O$5:$Y$35,'Oversættelse af landenavne'!$C9,FALSE) -> 0.1514 | N77: =HLOOKUP($E$12,'Afgifter og Moms'!$O$5:$Y$34,'Oversættelse af landenavne'!$C9,FALSE) -> 0.0011 | O77: =HLOOKUP($E$12,'Afgifter og Moms'!O$41:Y$70,'Oversættelse af landenavne'!$C9,FALSE) -> 0.03185 | T77: ='Oversættelse af landenavne'!$B9 -> Tjekkiet | U77: =HLOOKUP($E$12,'Level 1'!$AA$5:$AL$35,'Oversættelse af landenavne'!C9,FALSE) -> 0.11435 | V77: =HLOOKUP($E$12,'Afgifter og Moms'!$AA$5:$AL$34,'Oversættelse af landenavne'!C9,FALSE) -> 0.0011 | W77: =HLOOKUP($E$12,'Afgifter og Moms'!$AA$41:$AL$70,'Oversættelse af landenavne'!C9,FALSE) -> 0.0242 | AB77: ='Oversættelse af landenavne'!$B9 -> Tjekkiet | AC77: =HLOOKUP($E$12,'Level 1'!$AN$5:$AY$35,'Oversættelse af landenavne'!C9,FALSE) -> 0.09015 | AD77: =HLOOKUP($E$12,'Afgifter og Moms'!$AN$5:$AY$34,'Oversættelse af landenavne'!C9,FALSE) -> 0.0011 | AE77: =HLOOKUP($E$12,'Afgifter og Moms'!$AN$41:AY72,'Oversættelse af landenavne'!C9,FALSE) -> 0.01905 | AJ77: ='Oversættelse af landenavne'!$B9 -> Tjekkiet | AK77: =HLOOKUP($E$12,'Level 1'!$BA$5:$BL$35,'Oversættelse af landenavne'!$C9,FALSE) -> 0.077 | AL77: =HLOOKUP($E$12,'Afgifter og Moms'!$BA$5:$BL$34,'Oversættelse af landenavne'!$C9,FALSE) -> 0.0011 | AM77: =HLOOKUP($E$12,'Afgifter og Moms'!$BA$41:$BL$70,'Oversættelse af landenavne'!$C9,FALSE) -> 0.01645
D78: ='Oversættelse af landenavne'!$B10 -> Danmark | E78: =HLOOKUP($E$12,'Level 1'!$B$5:$L$35,'Oversættelse af landenavne'!$C10,FALSE) -> 0.1187 | F78: =HLOOKUP($E$12,'Afgifter og Moms'!A$5:L$35,'Oversættelse af landenavne'!$C10,FALSE) -> 0.14785 | G78: =HLOOKUP($E$12,'Afgifter og Moms'!A$41:L$70,'Oversættelse af landenavne'!$C10,FALSE) -> 0.0666 | L78: ='Oversættelse af landenavne'!$B10 -> Danmark | M78: =HLOOKUP($E$12,'Level 1'!$O$5:$Y$35,'Oversættelse af landenavne'!$C10,FALSE) -> 0.1187 | N78: =HLOOKUP($E$12,'Afgifter og Moms'!$O$5:$Y$34,'Oversættelse af landenavne'!$C10,FALSE) -> 0.14785 | O78: =HLOOKUP($E$12,'Afgifter og Moms'!O$41:Y$70,'Oversættelse af landenavne'!$C10,FALSE) -> 0.0666 | T78: ='Oversættelse af landenavne'!$B10 -> Danmark | U78: =HLOOKUP($E$12,'Level 1'!$AA$5:$AL$35,'Oversættelse af landenavne'!C10,FALSE) -> 0.0966 | V78: =HLOOKUP($E$12,'Afgifter og Moms'!$AA$5:$AL$34,'Oversættelse af landenavne'!C10,FALSE) -> 0.14775 | W78: =HLOOKUP($E$12,'Afgifter og Moms'!$AA$41:$AL$70,'Oversættelse af landenavne'!C10,FALSE) -> 0.06115 | AB78: ='Oversættelse af landenavne'!$B10 -> Danmark | AC78: =HLOOKUP($E$12,'Level 1'!$AN$5:$AY$35,'Oversættelse af landenavne'!C10,FALSE) -> 0.08015 | AD78: =HLOOKUP($E$12,'Afgifter og Moms'!$AN$5:$AY$34,'Oversættelse af landenavne'!C10,FALSE) -> 0.09885 | AE78: =HLOOKUP($E$12,'Afgifter og Moms'!$AN$41:AY73,'Oversættelse af landenavne'!C10,FALSE) -> 0.045 | AJ78: ='Oversættelse af landenavne'!$B10 -> Danmark | AK78: =HLOOKUP($E$12,'Level 1'!$BA$5:$BL$35,'Oversættelse af landenavne'!$C10,FALSE) -> 0.08015 | AL78: =HLOOKUP($E$12,'Afgifter og Moms'!$BA$5:$BL$34,'Oversættelse af landenavne'!$C10,FALSE) -> 0.09885 | AM78: =HLOOKUP($E$12,'Afgifter og Moms'!$BA$41:$BL$70,'Oversættelse af landenavne'!$C10,FALSE) -> 0.045
D79: ='Oversættelse af landenavne'!$B11 -> Tyskland | E79: =HLOOKUP($E$12,'Level 1'!$B$5:$L$35,'Oversættelse af landenavne'!$C11,FALSE) -> 0.261 | F79: =HLOOKUP($E$12,'Afgifter og Moms'!A$5:L$35,'Oversættelse af landenavne'!$C11,FALSE) -> 0.10555 | G79: =HLOOKUP($E$12,'Afgifter og Moms'!A$41:L$70,'Oversættelse af landenavne'!$C11,FALSE) -> 0.06965 | L79: ='Oversættelse af landenavne'!$B11 -> Tyskland | M79: =HLOOKUP($E$12,'Level 1'!$O$5:$Y$35,'Oversættelse af landenavne'!$C11,FALSE) -> 0.16445 | N79: =HLOOKUP($E$12,'Afgifter og Moms'!$O$5:$Y$34,'Oversættelse af landenavne'!$C11,FALSE) -> 0.10525 | O79: =HLOOKUP($E$12,'Afgifter og Moms'!O$41:Y$70,'Oversættelse af landenavne'!$C11,FALSE) -> 0.05125 | T79: ='Oversættelse af landenavne'!$B11 -> Tyskland | U79: =HLOOKUP($E$12,'Level 1'!$AA$5:$AL$35,'Oversættelse af landenavne'!C11,FALSE) -> 0.1429 | V79: =HLOOKUP($E$12,'Afgifter og Moms'!$AA$5:$AL$34,'Oversættelse af landenavne'!C11,FALSE) -> 0.1049 | W79: =HLOOKUP($E$12,'Afgifter og Moms'!$AA$41:$AL$70,'Oversættelse af landenavne'!C11,FALSE) -> 0.04705 | AB79: ='Oversættelse af landenavne'!$B11 -> Tyskland | AC79: =HLOOKUP($E$12,'Level 1'!$AN$5:$AY$35,'Oversættelse af landenavne'!C11,FALSE) -> 0.1304 | AD79: =HLOOKUP($E$12,'Afgifter og Moms'!$AN$5:$AY$34,'Oversættelse af landenavne'!C11,FALSE) -> 0.1048 | AE79: =HLOOKUP($E$12,'Afgifter og Moms'!$AN$41:AY74,'Oversættelse af landenavne'!C11,FALSE) -> 0.0447 | AJ79: ='Oversættelse af landenavne'!$B11 -> Tyskland | AK79: =HLOOKUP($E$12,'Level 1'!$BA$5:$BL$35,'Oversættelse af landenavne'!$C11,FALSE) -> 0.1257 | AL79: =HLOOKUP($E$12,'Afgifter og Moms'!$BA$5:$BL$34,'Oversættelse af landenavne'!$C11,FALSE) -> 0.0993 | AM79: =HLOOKUP($E$12,'Afgifter og Moms'!$BA$41:$BL$70,'Oversættelse af landenavne'!$C11,FALSE) -> 0.04275
D80: ='Oversættelse af landenavne'!$B12 -> Estland | E80: =HLOOKUP($E$12,'Level 1'!$B$5:$L$35,'Oversættelse af landenavne'!$C12,FALSE) -> 0.098 | F80: =HLOOKUP($E$12,'Afgifter og Moms'!A$5:L$35,'Oversættelse af landenavne'!$C12,FALSE) -> 0.01325 | G80: =HLOOKUP($E$12,'Afgifter og Moms'!A$41:L$70,'Oversættelse af landenavne'!$C12,FALSE) -> 0.0222 | L80: ='Oversættelse af landenavne'!$B12 -> Estland | M80: =HLOOKUP($E$12,'Level 1'!$O$5:$Y$35,'Oversættelse af landenavne'!$C12,FALSE) -> 0.0985 | N80: =HLOOKUP($E$12,'Afgifter og Moms'!$O$5:$Y$34,'Oversættelse af landenavne'!$C12,FALSE) -> 0.01335 | O80: =HLOOKUP($E$12,'Afgifter og Moms'!O$41:Y$70,'Oversættelse af landenavne'!$C12,FALSE) -> 0.0215 | T80: ='Oversættelse af landenavne'!$B12 -> Estland | U80: =HLOOKUP($E$12,'Level 1'!$AA$5:$AL$35,'Oversættelse af landenavne'!C12,FALSE) -> 0.0951 | V80: =HLOOKUP($E$12,'Afgifter og Moms'!$AA$5:$AL$34,'Oversættelse af landenavne'!C12,FALSE) -> 0.0134 | W80: =HLOOKUP($E$12,'Afgifter og Moms'!$AA$41:$AL$70,'Oversættelse af landenavne'!C12,FALSE) -> 0.02115 | AB80: ='Oversættelse af landenavne'!$B12 -> Estland | AC80: =HLOOKUP($E$12,'Level 1'!$AN$5:$AY$35,'Oversættelse af landenavne'!C12,FALSE) -> 0.0894 | AD80: =HLOOKUP($E$12,'Afgifter og Moms'!$AN$5:$AY$34,'Oversættelse af landenavne'!C12,FALSE) -> 0.0134 | AE80: =HLOOKUP($E$12,'Afgifter og Moms'!$AN$41:AY75,'Oversættelse af landenavne'!C12,FALSE) -> 0.02055 | AJ80: ='Oversættelse af landenavne'!$B12 -> Estland | AK80: =HLOOKUP($E$12,'Level 1'!$BA$5:$BL$35,'Oversættelse af landenavne'!$C12,FALSE) -> 0.08265 | AL80: =HLOOKUP($E$12,'Afgifter og Moms'!$BA$5:$BL$34,'Oversættelse af landenavne'!$C12,FALSE) -> 0.01345 | AM80: =HLOOKUP($E$12,'Afgifter og Moms'!$BA$41:$BL$70,'Oversættelse af landenavne'!$C12,FALSE) -> 0.01975
D81: ='Oversættelse af landenavne'!$B13 -> Irland | E81: =HLOOKUP($E$12,'Level 1'!$B$5:$L$35,'Oversættelse af landenavne'!$C13,FALSE) -> 0.42025 | F81: =HLOOKUP($E$12,'Afgifter og Moms'!A$5:L$35,'Oversættelse af landenavne'!$C13,FALSE) -> 0.0987 | G81: =HLOOKUP($E$12,'Afgifter og Moms'!A$41:L$70,'Oversættelse af landenavne'!$C13,FALSE) -> 0.07005 | L81: ='Oversættelse af landenavne'!$B13 -> Irland | M81: =HLOOKUP($E$12,'Level 1'!$O$5:$Y$35,'Oversættelse af landenavne'!$C13,FALSE) -> 0.238 | N81: =HLOOKUP($E$12,'Afgifter og Moms'!$O$5:$Y$34,'Oversættelse af landenavne'!$C13,FALSE) -> 0.03355 | O81: =HLOOKUP($E$12,'Afgifter og Moms'!O$41:Y$70,'Oversættelse af landenavne'!$C13,FALSE) -> 0.03665 | T81: ='Oversættelse af landenavne'!$B13 -> Irland | U81: =HLOOKUP($E$12,'Level 1'!$AA$5:$AL$35,'Oversættelse af landenavne'!C13,FALSE) -> 0.19805 | V81: =HLOOKUP($E$12,'Afgifter og Moms'!$AA$5:$AL$34,'Oversættelse af landenavne'!C13,FALSE) -> 0.0169 | W81: =HLOOKUP($E$12,'Afgifter og Moms'!$AA$41:$AL$70,'Oversættelse af landenavne'!C13,FALSE) -> 0.02905 | AB81: ='Oversættelse af landenavne'!$B13 -> Irland | AC81: =HLOOKUP($E$12,'Level 1'!$AN$5:$AY$35,'Oversættelse af landenavne'!C13,FALSE) -> 0.1741 | AD81: =HLOOKUP($E$12,'Afgifter og Moms'!$AN$5:$AY$34,'Oversættelse af landenavne'!C13,FALSE) -> 0.00885 | AE81: =HLOOKUP($E$12,'Afgifter og Moms'!$AN$41:AY76,'Oversættelse af landenavne'!C13,FALSE) -> 0.0247 | AJ81: ='Oversættelse af landenavne'!$B13 -> Irland | AK81: =HLOOKUP($E$12,'Level 1'!$BA$5:$BL$35,'Oversættelse af landenavne'!$C13,FALSE) -> 0.15335 | AL81: =HLOOKUP($E$12,'Afgifter og Moms'!$BA$5:$BL$34,'Oversættelse af landenavne'!$C13,FALSE) -> 0.0029 | AM81: =HLOOKUP($E$12,'Afgifter og Moms'!$BA$41:$BL$70,'Oversættelse af landenavne'!$C13,FALSE) -> 0.02105
D82: ='Oversættelse af landenavne'!$B14 -> Grækenland | E82: =HLOOKUP($E$12,'Level 1'!$B$5:$L$35,'Oversættelse af landenavne'!$C14,FALSE) -> 0.18385 | F82: =HLOOKUP($E$12,'Afgifter og Moms'!A$5:L$35,'Oversættelse af landenavne'!$C14,FALSE) -> 0.03215 | G82: =HLOOKUP($E$12,'Afgifter og Moms'!A$41:L$70,'Oversættelse af landenavne'!$C14,FALSE) -> 0.02805 | L82: ='Oversættelse af landenavne'!$B14 -> Grækenland | M82: =HLOOKUP($E$12,'Level 1'!$O$5:$Y$35,'Oversættelse af landenavne'!$C14,FALSE) -> 0.1274 | N82: =HLOOKUP($E$12,'Afgifter og Moms'!$O$5:$Y$34,'Oversættelse af landenavne'!$C14,FALSE) -> 0.0325 | O82: =HLOOKUP($E$12,'Afgifter og Moms'!O$41:Y$70,'Oversættelse af landenavne'!$C14,FALSE) -> 0.02085 | T82: ='Oversættelse af landenavne'!$B14 -> Grækenland | U82: =HLOOKUP($E$12,'Level 1'!$AA$5:$AL$35,'Oversættelse af landenavne'!C14,FALSE) -> 0.1219 | V82: =HLOOKUP($E$12,'Afgifter og Moms'!$AA$5:$AL$34,'Oversættelse af landenavne'!C14,FALSE) -> 0.03465 | W82: =HLOOKUP($E$12,'Afgifter og Moms'!$AA$41:$AL$70,'Oversættelse af landenavne'!C14,FALSE) -> 0.02035 | AB82: ='Oversættelse af landenavne'!$B14 -> Grækenland | AC82: =HLOOKUP($E$12,'Level 1'!$AN$5:$AY$35,'Oversættelse af landenavne'!C14,FALSE) -> 0.11875 | AD82: =HLOOKUP($E$12,'Afgifter og Moms'!$AN$5:$AY$34,'Oversættelse af landenavne'!C14,FALSE) -> 0.0483 | AE82: =HLOOKUP($E$12,'Afgifter og Moms'!$AN$41:AY77,'Oversættelse af landenavne'!C14,FALSE) -> 0.0217 | AJ82: ='Oversættelse af landenavne'!$B14 -> Grækenland | AK82: =HLOOKUP($E$12,'Level 1'!$BA$5:$BL$35,'Oversættelse af landenavne'!$C14,FALSE) -> 0.1131 | AL82: =HLOOKUP($E$12,'Afgifter og Moms'!$BA$5:$BL$34,'Oversættelse af landenavne'!$C14,FALSE) -> 0.05645 | AM82: =HLOOKUP($E$12,'Afgifter og Moms'!$BA$41:$BL$70,'Oversættelse af landenavne'!$C14,FALSE) -> 0.0221
D83: ='Oversættelse af landenavne'!$B15 -> Spanien | E83: =HLOOKUP($E$12,'Level 1'!$B$5:$L$35,'Oversættelse af landenavne'!$C15,FALSE) -> 0.40755 | F83: =HLOOKUP($E$12,'Afgifter og Moms'!A$5:L$35,'Oversættelse af landenavne'!$C15,FALSE) -> 0.0208 | G83: =HLOOKUP($E$12,'Afgifter og Moms'!A$41:L$70,'Oversættelse af landenavne'!$C15,FALSE) -> 0.08995 | L83: ='Oversættelse af landenavne'!$B15 -> Spanien | M83: =HLOOKUP($E$12,'Level 1'!$O$5:$Y$35,'Oversættelse af landenavne'!$C15,FALSE) -> 0.21885 | N83: =HLOOKUP($E$12,'Afgifter og Moms'!$O$5:$Y$34,'Oversættelse af landenavne'!$C15,FALSE) -> 0.0112 | O83: =HLOOKUP($E$12,'Afgifter og Moms'!O$41:Y$70,'Oversættelse af landenavne'!$C15,FALSE) -> 0.0483 | T83: ='Oversættelse af landenavne'!$B15 -> Spanien | U83: =HLOOKUP($E$12,'Level 1'!$AA$5:$AL$35,'Oversættelse af landenavne'!C15,FALSE) -> 0.18395 | V83: =HLOOKUP($E$12,'Afgifter og Moms'!$AA$5:$AL$34,'Oversættelse af landenavne'!C15,FALSE) -> 0.0094 | W83: =HLOOKUP($E$12,'Afgifter og Moms'!$AA$41:$AL$70,'Oversættelse af landenavne'!C15,FALSE) -> 0.0406 | AB83: ='Oversættelse af landenavne'!$B15 -> Spanien | AC83: =HLOOKUP($E$12,'Level 1'!$AN$5:$AY$35,'Oversættelse af landenavne'!C15,FALSE) -> 0.16035 | AD83: =HLOOKUP($E$12,'Afgifter og Moms'!$AN$5:$AY$34,'Oversættelse af landenavne'!C15,FALSE) -> 0.0082 | AE83: =HLOOKUP($E$12,'Afgifter og Moms'!$AN$41:AY78,'Oversættelse af landenavne'!C15,FALSE) -> 0.03535 | AJ83: ='Oversættelse af landenavne'!$B15 -> Spanien | AK83: =HLOOKUP($E$12,'Level 1'!$BA$5:$BL$35,'Oversættelse af landenavne'!$C15,FALSE) -> 0.15105 | AL83: =HLOOKUP($E$12,'Afgifter og Moms'!$BA$5:$BL$34,'Oversættelse af landenavne'!$C15,FALSE) -> 0.0077 | AM83: =HLOOKUP($E$12,'Afgifter og Moms'!$BA$41:$BL$70,'Oversættelse af landenavne'!$C15,FALSE) -> 0.03335
D84: ='Oversættelse af landenavne'!$B16 -> Frankrig | E84: =HLOOKUP($E$12,'Level 1'!$B$5:$L$35,'Oversættelse af landenavne'!$C16,FALSE) -> 0.2171 | F84: =HLOOKUP($E$12,'Afgifter og Moms'!A$5:L$35,'Oversættelse af landenavne'!$C16,FALSE) -> 0.0339 | G84: =HLOOKUP($E$12,'Afgifter og Moms'!A$41:L$70,'Oversættelse af landenavne'!$C16,FALSE) -> 0.02945 | L84: ='Oversættelse af landenavne'!$B16 -> Frankrig | M84: =HLOOKUP($E$12,'Level 1'!$O$5:$Y$35,'Oversættelse af landenavne'!$C16,FALSE) -> 0.12685 | N84: =HLOOKUP($E$12,'Afgifter og Moms'!$O$5:$Y$34,'Oversættelse af landenavne'!$C16,FALSE) -> 0.0323 | O84: =HLOOKUP($E$12,'Afgifter og Moms'!O$41:Y$70,'Oversættelse af landenavne'!$C16,FALSE) -> 0.0251 | T84: ='Oversættelse af landenavne'!$B16 -> Frankrig | U84: =HLOOKUP($E$12,'Level 1'!$AA$5:$AL$35,'Oversættelse af landenavne'!C16,FALSE) -> 0.1087 | V84: =HLOOKUP($E$12,'Afgifter og Moms'!$AA$5:$AL$34,'Oversættelse af landenavne'!C16,FALSE) -> 0.0319 | W84: =HLOOKUP($E$12,'Afgifter og Moms'!$AA$41:$AL$70,'Oversættelse af landenavne'!C16,FALSE) -> 0.02435 | AB84: ='Oversættelse af landenavne'!$B16 -> Frankrig | AC84: =HLOOKUP($E$12,'Level 1'!$AN$5:$AY$35,'Oversættelse af landenavne'!C16,FALSE) -> 0.09755 | AD84: =HLOOKUP($E$12,'Afgifter og Moms'!$AN$5:$AY$34,'Oversættelse af landenavne'!C16,FALSE) -> 0.03165 | AE84: =HLOOKUP($E$12,'Afgifter og Moms'!$AN$41:AY79,'Oversættelse af landenavne'!C16,FALSE) -> 0.02365 | AJ84: ='Oversættelse af landenavne'!$B16 -> Frankrig | AK84: =HLOOKUP($E$12,'Level 1'!$BA$5:$BL$35,'Oversættelse af landenavne'!$C16,FALSE) -> 0.0944 | AL84: =HLOOKUP($E$12,'Afgifter og Moms'!$BA$5:$BL$34,'Oversættelse af landenavne'!$C16,FALSE) -> 0.03175 | AM84: =HLOOKUP($E$12,'Afgifter og Moms'!$BA$41:$BL$70,'Oversættelse af landenavne'!$C16,FALSE) -> 0.02375
D85: ='Oversættelse af landenavne'!$B17 -> Kroatien | E85: =HLOOKUP($E$12,'Level 1'!$B$5:$L$35,'Oversættelse af landenavne'!$C17,FALSE) -> 0.1635 | F85: =HLOOKUP($E$12,'Afgifter og Moms'!A$5:L$35,'Oversættelse af landenavne'!$C17,FALSE) -> 0.0046 | G85: =HLOOKUP($E$12,'Afgifter og Moms'!A$41:L$70,'Oversættelse af landenavne'!$C17,FALSE) -> 0.042 | L85: ='Oversættelse af landenavne'!$B17 -> Kroatien | M85: =HLOOKUP($E$12,'Level 1'!$O$5:$Y$35,'Oversættelse af landenavne'!$C17,FALSE) -> 0.10915 | N85: =HLOOKUP($E$12,'Afgifter og Moms'!$O$5:$Y$34,'Oversættelse af landenavne'!$C17,FALSE) -> 0.00455 | O85: =HLOOKUP($E$12,'Afgifter og Moms'!O$41:Y$70,'Oversættelse af landenavne'!$C17,FALSE) -> 0.02845 | T85: ='Oversættelse af landenavne'!$B17 -> Kroatien | U85: =HLOOKUP($E$12,'Level 1'!$AA$5:$AL$35,'Oversættelse af landenavne'!C17,FALSE) -> 0.10055 | V85: =HLOOKUP($E$12,'Afgifter og Moms'!$AA$5:$AL$34,'Oversættelse af landenavne'!C17,FALSE) -> 0.0046 | W85: =HLOOKUP($E$12,'Afgifter og Moms'!$AA$41:$AL$70,'Oversættelse af landenavne'!C17,FALSE) -> 0.0263 | AB85: ='Oversættelse af landenavne'!$B17 -> Kroatien | AC85: =HLOOKUP($E$12,'Level 1'!$AN$5:$AY$35,'Oversættelse af landenavne'!C17,FALSE) -> 0.09615 | AD85: =HLOOKUP($E$12,'Afgifter og Moms'!$AN$5:$AY$34,'Oversættelse af landenavne'!C17,FALSE) -> 0.00455 | AE85: =HLOOKUP($E$12,'Afgifter og Moms'!$AN$41:AY80,'Oversættelse af landenavne'!C17,FALSE) -> 0.0252 | AJ85: ='Oversættelse af landenavne'!$B17 -> Kroatien | AK85: =HLOOKUP($E$12,'Level 1'!$BA$5:$BL$35,'Oversættelse af landenavne'!$C17,FALSE) -> 0.0929 | AL85: =HLOOKUP($E$12,'Afgifter og Moms'!$BA$5:$BL$34,'Oversættelse af landenavne'!$C17,FALSE) -> 0.0046 | AM85: =HLOOKUP($E$12,'Afgifter og Moms'!$BA$41:$BL$70,'Oversættelse af landenavne'!$C17,FALSE) -> 0.02435
D86: ='Oversættelse af landenavne'!$B18 -> Italien | E86: =HLOOKUP($E$12,'Level 1'!$B$5:$L$35,'Oversættelse af landenavne'!$C18,FALSE) -> 0.20385 | F86: =HLOOKUP($E$12,'Afgifter og Moms'!A$5:L$35,'Oversættelse af landenavne'!$C18,FALSE) -> 0.06325 | G86: =HLOOKUP($E$12,'Afgifter og Moms'!A$41:L$70,'Oversættelse af landenavne'!$C18,FALSE) -> 0.027 | L86: ='Oversættelse af landenavne'!$B18 -> Italien | M86: =HLOOKUP($E$12,'Level 1'!$O$5:$Y$35,'Oversættelse af landenavne'!$C18,FALSE) -> 0.1385 | N86: =HLOOKUP($E$12,'Afgifter og Moms'!$O$5:$Y$34,'Oversættelse af landenavne'!$C18,FALSE) -> 0.053 | O86: =HLOOKUP($E$12,'Afgifter og Moms'!O$41:Y$70,'Oversættelse af landenavne'!$C18,FALSE) -> 0.01915 | T86: ='Oversættelse af landenavne'!$B18 -> Italien | U86: =HLOOKUP($E$12,'Level 1'!$AA$5:$AL$35,'Oversættelse af landenavne'!C18,FALSE) -> 0.1493 | V86: =HLOOKUP($E$12,'Afgifter og Moms'!$AA$5:$AL$34,'Oversættelse af landenavne'!C18,FALSE) -> 0.0724 | W86: =HLOOKUP($E$12,'Afgifter og Moms'!$AA$41:$AL$70,'Oversættelse af landenavne'!C18,FALSE) -> 0.0222 | AB86: ='Oversættelse af landenavne'!$B18 -> Italien | AC86: =HLOOKUP($E$12,'Level 1'!$AN$5:$AY$35,'Oversættelse af landenavne'!C18,FALSE) -> 0.1834 | AD86: =HLOOKUP($E$12,'Afgifter og Moms'!$AN$5:$AY$34,'Oversættelse af landenavne'!C18,FALSE) -> 0.0933 | AE86: =HLOOKUP($E$12,'Afgifter og Moms'!$AN$41:AY81,'Oversættelse af landenavne'!C18,FALSE) -> 0.0277 | AJ86: ='Oversættelse af landenavne'!$B18 -> Italien | AK86: =HLOOKUP($E$12,'Level 1'!$BA$5:$BL$35,'Oversættelse af landenavne'!$C18,FALSE) -> 0.20635 | AL86: =HLOOKUP($E$12,'Afgifter og Moms'!$BA$5:$BL$34,'Oversættelse af landenavne'!$C18,FALSE) -> 0.09755 | AM86: =HLOOKUP($E$12,'Afgifter og Moms'!$BA$41:$BL$70,'Oversættelse af landenavne'!$C18,FALSE) -> 0.03075
D87: ='Oversættelse af landenavne'!$B19 -> Cypern | E87: =HLOOKUP($E$12,'Level 1'!$B$5:$L$35,'Oversættelse af landenavne'!$C19,FALSE) -> 0.17325 | F87: =HLOOKUP($E$12,'Afgifter og Moms'!A$5:L$35,'Oversættelse af landenavne'!$C19,FALSE) -> 0.01115 | G87: =HLOOKUP($E$12,'Afgifter og Moms'!A$41:L$70,'Oversættelse af landenavne'!$C19,FALSE) -> 0.03595 | L87: ='Oversættelse af landenavne'!$B19 -> Cypern | M87: =HLOOKUP($E$12,'Level 1'!$O$5:$Y$35,'Oversættelse af landenavne'!$C19,FALSE) -> 0.15045 | N87: =HLOOKUP($E$12,'Afgifter og Moms'!$O$5:$Y$34,'Oversættelse af landenavne'!$C19,FALSE) -> 0.00865 | O87: =HLOOKUP($E$12,'Afgifter og Moms'!O$41:Y$70,'Oversættelse af landenavne'!$C19,FALSE) -> 0.02935 | T87: ='Oversættelse af landenavne'!$B19 -> Cypern | U87: =HLOOKUP($E$12,'Level 1'!$AA$5:$AL$35,'Oversættelse af landenavne'!C19,FALSE) -> 0.15185 | V87: =HLOOKUP($E$12,'Afgifter og Moms'!$AA$5:$AL$34,'Oversættelse af landenavne'!C19,FALSE) -> 0.00845 | W87: =HLOOKUP($E$12,'Afgifter og Moms'!$AA$41:$AL$70,'Oversættelse af landenavne'!C19,FALSE) -> 0.02945 | AB87: ='Oversættelse af landenavne'!$B19 -> Cypern | AC87: =HLOOKUP($E$12,'Level 1'!$AN$5:$AY$35,'Oversættelse af landenavne'!C19,FALSE) -> 0.1498 | AD87: =HLOOKUP($E$12,'Afgifter og Moms'!$AN$5:$AY$34,'Oversættelse af landenavne'!C19,FALSE) -> 0.0084 | AE87: =HLOOKUP($E$12,'Afgifter og Moms'!$AN$41:AY82,'Oversættelse af landenavne'!C19,FALSE) -> 0.02895 | AJ87: ='Oversættelse af landenavne'!$B19 -> Cypern | AK87: =HLOOKUP($E$12,'Level 1'!$BA$5:$BL$35,'Oversættelse af landenavne'!$C19,FALSE) -> 0.1423 | AL87: =HLOOKUP($E$12,'Afgifter og Moms'!$BA$5:$BL$34,'Oversættelse af landenavne'!$C19,FALSE) -> 0.00845 | AM87: =HLOOKUP($E$12,'Afgifter og Moms'!$BA$41:$BL$70,'Oversættelse af landenavne'!$C19,FALSE) -> 0.027
D88: ='Oversættelse af landenavne'!$B20 -> Letland | E88: =HLOOKUP($E$12,'Level 1'!$B$5:$L$35,'Oversættelse af landenavne'!$C20,FALSE) -> 0.10335 | F88: =HLOOKUP($E$12,'Afgifter og Moms'!A$5:L$35,'Oversættelse af landenavne'!$C20,FALSE) -> 0.02675 | G88: =HLOOKUP($E$12,'Afgifter og Moms'!A$41:L$70,'Oversættelse af landenavne'!$C20,FALSE) -> 0.0273 | L88: ='Oversættelse af landenavne'!$B20 -> Letland | M88: =HLOOKUP($E$12,'Level 1'!$O$5:$Y$35,'Oversættelse af landenavne'!$C20,FALSE) -> 0.1094 | N88: =HLOOKUP($E$12,'Afgifter og Moms'!$O$5:$Y$34,'Oversættelse af landenavne'!$C20,FALSE) -> 0.0268 | O88: =HLOOKUP($E$12,'Afgifter og Moms'!O$41:Y$70,'Oversættelse af landenavne'!$C20,FALSE) -> 0.02865 | T88: ='Oversættelse af landenavne'!$B20 -> Letland | U88: =HLOOKUP($E$12,'Level 1'!$AA$5:$AL$35,'Oversættelse af landenavne'!C20,FALSE) -> 0.10895 | V88: =HLOOKUP($E$12,'Afgifter og Moms'!$AA$5:$AL$34,'Oversættelse af landenavne'!C20,FALSE) -> 0.0268 | W88: =HLOOKUP($E$12,'Afgifter og Moms'!$AA$41:$AL$70,'Oversættelse af landenavne'!C20,FALSE) -> 0.0285 | AB88: ='Oversættelse af landenavne'!$B20 -> Letland | AC88: =HLOOKUP($E$12,'Level 1'!$AN$5:$AY$35,'Oversættelse af landenavne'!C20,FALSE) -> 0.10825 | AD88: =HLOOKUP($E$12,'Afgifter og Moms'!$AN$5:$AY$34,'Oversættelse af landenavne'!C20,FALSE) -> 0.02675 | AE88: =HLOOKUP($E$12,'Afgifter og Moms'!$AN$41:AY83,'Oversættelse af landenavne'!C20,FALSE) -> 0.02835 | AJ88: ='Oversættelse af landenavne'!$B20 -> Letland | AK88: =HLOOKUP($E$12,'Level 1'!$BA$5:$BL$35,'Oversættelse af landenavne'!$C20,FALSE) -> 0.10635 | AL88: =HLOOKUP($E$12,'Afgifter og Moms'!$BA$5:$BL$34,'Oversættelse af landenavne'!$C20,FALSE) -> 0.0268 | AM88: =HLOOKUP($E$12,'Afgifter og Moms'!$BA$41:$BL$70,'Oversættelse af landenavne'!$C20,FALSE) -> 0.02795
D89: ='Oversættelse af landenavne'!$B21 -> Litaun | E89: =HLOOKUP($E$12,'Level 1'!$B$5:$L$35,'Oversættelse af landenavne'!$C21,FALSE) -> 0.08945 | F89: =HLOOKUP($E$12,'Afgifter og Moms'!A$5:L$35,'Oversættelse af landenavne'!$C21,FALSE) -> 0.01645 | G89: =HLOOKUP($E$12,'Afgifter og Moms'!A$41:L$70,'Oversættelse af landenavne'!$C21,FALSE) -> 0.0222 | L89: ='Oversættelse af landenavne'!$B21 -> Litaun | M89: =HLOOKUP($E$12,'Level 1'!$O$5:$Y$35,'Oversættelse af landenavne'!$C21,FALSE) -> 0.0886 | N89: =HLOOKUP($E$12,'Afgifter og Moms'!$O$5:$Y$34,'Oversættelse af landenavne'!$C21,FALSE) -> 0.0164 | O89: =HLOOKUP($E$12,'Afgifter og Moms'!O$41:Y$70,'Oversættelse af landenavne'!$C21,FALSE) -> 0.02205 | T89: ='Oversættelse af landenavne'!$B21 -> Litaun | U89: =HLOOKUP($E$12,'Level 1'!$AA$5:$AL$35,'Oversættelse af landenavne'!C21,FALSE) -> 0.08685 | V89: =HLOOKUP($E$12,'Afgifter og Moms'!$AA$5:$AL$34,'Oversættelse af landenavne'!C21,FALSE) -> 0.0164 | W89: =HLOOKUP($E$12,'Afgifter og Moms'!$AA$41:$AL$70,'Oversættelse af landenavne'!C21,FALSE) -> 0.0217 | AB89: ='Oversættelse af landenavne'!$B21 -> Litaun | AC89: =HLOOKUP($E$12,'Level 1'!$AN$5:$AY$35,'Oversættelse af landenavne'!C21,FALSE) -> 0.0833 | AD89: =HLOOKUP($E$12,'Afgifter og Moms'!$AN$5:$AY$34,'Oversættelse af landenavne'!C21,FALSE) -> 0.01645 | AE89: =HLOOKUP($E$12,'Afgifter og Moms'!$AN$41:AY84,'Oversættelse af landenavne'!C21,FALSE) -> 0.02095 | AJ89: ='Oversættelse af landenavne'!$B21 -> Litaun | AK89: =HLOOKUP($E$12,'Level 1'!$BA$5:$BL$35,'Oversættelse af landenavne'!$C21,FALSE) -> 0.07705 | AL89: =HLOOKUP($E$12,'Afgifter og Moms'!$BA$5:$BL$34,'Oversættelse af landenavne'!$C21,FALSE) -> 0.01645 | AM89: =HLOOKUP($E$12,'Afgifter og Moms'!$BA$41:$BL$70,'Oversættelse af landenavne'!$C21,FALSE) -> 0.01965
D90: ='Oversættelse af landenavne'!$B22 -> Luxembourg | E90: =HLOOKUP($E$12,'Level 1'!$B$5:$L$35,'Oversættelse af landenavne'!$C22,FALSE) -> 0.1915 | F90: =HLOOKUP($E$12,'Afgifter og Moms'!A$5:L$35,'Oversættelse af landenavne'!$C22,FALSE) -> 0.0305 | G90: =HLOOKUP($E$12,'Afgifter og Moms'!A$41:L$70,'Oversættelse af landenavne'!$C22,FALSE) -> 0.0177 | L90: ='Oversættelse af landenavne'!$B22 -> Luxembourg | M90: =HLOOKUP($E$12,'Level 1'!$O$5:$Y$35,'Oversættelse af landenavne'!$C22,FALSE) -> 0.1477 | N90: =HLOOKUP($E$12,'Afgifter og Moms'!$O$5:$Y$34,'Oversættelse af landenavne'!$C22,FALSE) -> 0.0305 | O90: =HLOOKUP($E$12,'Afgifter og Moms'!O$41:Y$70,'Oversættelse af landenavne'!$C22,FALSE) -> 0.0142 | T90: ='Oversættelse af landenavne'!$B22 -> Luxembourg | U90: =HLOOKUP($E$12,'Level 1'!$AA$5:$AL$35,'Oversættelse af landenavne'!C22,FALSE) -> 0.1331 | V90: =HLOOKUP($E$12,'Afgifter og Moms'!$AA$5:$AL$34,'Oversættelse af landenavne'!C22,FALSE) -> 0.0305 | W90: =HLOOKUP($E$12,'Afgifter og Moms'!$AA$41:$AL$70,'Oversættelse af landenavne'!C22,FALSE) -> 0.0131 | AB90: ='Oversættelse af landenavne'!$B22 -> Luxembourg | AC90: =HLOOKUP($E$12,'Level 1'!$AN$5:$AY$35,'Oversættelse af landenavne'!C22,FALSE) -> 0.1204 | AD90: =HLOOKUP($E$12,'Afgifter og Moms'!$AN$5:$AY$34,'Oversættelse af landenavne'!C22,FALSE) -> 0.0305 | AE90: =HLOOKUP($E$12,'Afgifter og Moms'!$AN$41:AY85,'Oversættelse af landenavne'!C22,FALSE) -> 0.012 | AJ90: ='Oversættelse af landenavne'!$B22 -> Luxembourg | AK90: =HLOOKUP($E$12,'Level 1'!$BA$5:$BL$35,'Oversættelse af landenavne'!$C22,FALSE) -> 0.11035 | AL90: =HLOOKUP($E$12,'Afgifter og Moms'!$BA$5:$BL$34,'Oversættelse af landenavne'!$C22,FALSE) -> 0.0305 | AM90: =HLOOKUP($E$12,'Afgifter og Moms'!$BA$41:$BL$70,'Oversættelse af landenavne'!$C22,FALSE) -> 0.0112
D91: ='Oversættelse af landenavne'!$B23 -> Ungarn | E91: =HLOOKUP($E$12,'Level 1'!$B$5:$L$35,'Oversættelse af landenavne'!$C23,FALSE) -> 0.10115 | F91: =HLOOKUP($E$12,'Afgifter og Moms'!A$5:L$35,'Oversættelse af landenavne'!$C23,FALSE) -> 0 | G91: =HLOOKUP($E$12,'Afgifter og Moms'!A$41:L$70,'Oversættelse af landenavne'!$C23,FALSE) -> 0.0273 | L91: ='Oversættelse af landenavne'!$B23 -> Ungarn | M91: =HLOOKUP($E$12,'Level 1'!$O$5:$Y$35,'Oversættelse af landenavne'!$C23,FALSE) -> 0.09265 | N91: =HLOOKUP($E$12,'Afgifter og Moms'!$O$5:$Y$34,'Oversættelse af landenavne'!$C23,FALSE) -> 0 | O91: =HLOOKUP($E$12,'Afgifter og Moms'!O$41:Y$70,'Oversættelse af landenavne'!$C23,FALSE) -> 0.025 | T91: ='Oversættelse af landenavne'!$B23 -> Ungarn | U91: =HLOOKUP($E$12,'Level 1'!$AA$5:$AL$35,'Oversættelse af landenavne'!C23,FALSE) -> 0.08945 | V91: =HLOOKUP($E$12,'Afgifter og Moms'!$AA$5:$AL$34,'Oversættelse af landenavne'!C23,FALSE) -> 0 | W91: =HLOOKUP($E$12,'Afgifter og Moms'!$AA$41:$AL$70,'Oversættelse af landenavne'!C23,FALSE) -> 0.02415 | AB91: ='Oversættelse af landenavne'!$B23 -> Ungarn | AC91: =HLOOKUP($E$12,'Level 1'!$AN$5:$AY$35,'Oversættelse af landenavne'!C23,FALSE) -> 0.08735 | AD91: =HLOOKUP($E$12,'Afgifter og Moms'!$AN$5:$AY$34,'Oversættelse af landenavne'!C23,FALSE) -> 0 | AE91: =HLOOKUP($E$12,'Afgifter og Moms'!$AN$41:AY86,'Oversættelse af landenavne'!C23,FALSE) -> 0.02365 | AJ91: ='Oversættelse af landenavne'!$B23 -> Ungarn | AK91: =HLOOKUP($E$12,'Level 1'!$BA$5:$BL$35,'Oversættelse af landenavne'!$C23,FALSE) -> 0.09115 | AL91: =HLOOKUP($E$12,'Afgifter og Moms'!$BA$5:$BL$34,'Oversættelse af landenavne'!$C23,FALSE) -> 0 | AM91: =HLOOKUP($E$12,'Afgifter og Moms'!$BA$41:$BL$70,'Oversættelse af landenavne'!$C23,FALSE) -> 0.02455
D92: ='Oversættelse af landenavne'!$B24 -> Malta | E92: =HLOOKUP($E$12,'Level 1'!$B$5:$L$35,'Oversættelse af landenavne'!$C24,FALSE) -> 0.3544 | F92: =HLOOKUP($E$12,'Afgifter og Moms'!A$5:L$35,'Oversættelse af landenavne'!$C24,FALSE) -> 0 | G92: =HLOOKUP($E$12,'Afgifter og Moms'!A$41:L$70,'Oversættelse af landenavne'!$C24,FALSE) -> 0.0177 | L92: ='Oversættelse af landenavne'!$B24 -> Malta | M92: =HLOOKUP($E$12,'Level 1'!$O$5:$Y$35,'Oversættelse af landenavne'!$C24,FALSE) -> 0.1372 | N92: =HLOOKUP($E$12,'Afgifter og Moms'!$O$5:$Y$34,'Oversættelse af landenavne'!$C24,FALSE) -> 0 | O92: =HLOOKUP($E$12,'Afgifter og Moms'!O$41:Y$70,'Oversættelse af landenavne'!$C24,FALSE) -> 0.00685 | T92: ='Oversættelse af landenavne'!$B24 -> Malta | U92: =HLOOKUP($E$12,'Level 1'!$AA$5:$AL$35,'Oversættelse af landenavne'!C24,FALSE) -> 0.1203 | V92: =HLOOKUP($E$12,'Afgifter og Moms'!$AA$5:$AL$34,'Oversættelse af landenavne'!C24,FALSE) -> 0 | W92: =HLOOKUP($E$12,'Afgifter og Moms'!$AA$41:$AL$70,'Oversættelse af landenavne'!C24,FALSE) -> 0.006 | AB92: ='Oversættelse af landenavne'!$B24 -> Malta | AC92: =HLOOKUP($E$12,'Level 1'!$AN$5:$AY$35,'Oversættelse af landenavne'!C24,FALSE) -> 0.1412 | AD92: =HLOOKUP($E$12,'Afgifter og Moms'!$AN$5:$AY$34,'Oversættelse af landenavne'!C24,FALSE) -> 0 | AE92: =HLOOKUP($E$12,'Afgifter og Moms'!$AN$41:AY87,'Oversættelse af landenavne'!C24,FALSE) -> 0.00705 | AJ92: ='Oversættelse af landenavne'!$B24 -> Malta | AK92: =HLOOKUP($E$12,'Level 1'!$BA$5:$BL$35,'Oversættelse af landenavne'!$C24,FALSE) -> 0.3377 | AL92: =HLOOKUP($E$12,'Afgifter og Moms'!$BA$5:$BL$34,'Oversættelse af landenavne'!$C24,FALSE) -> 0 | AM92: =HLOOKUP($E$12,'Afgifter og Moms'!$BA$41:$BL$70,'Oversættelse af landenavne'!$C24,FALSE) -> 0.0169
D93: ='Oversættelse af landenavne'!$B25 -> Holland | E93: =HLOOKUP($E$12,'Level 1'!$B$5:$L$35,'Oversættelse af landenavne'!$C25,FALSE) -> 0.36065 | F93: =HLOOKUP($E$12,'Afgifter og Moms'!A$5:L$35,'Oversættelse af landenavne'!$C25,FALSE) -> * | G93: =HLOOKUP($E$12,'Afgifter og Moms'!A$41:L$70,'Oversættelse af landenavne'!$C25,FALSE) -> * | L93: ='Oversættelse af landenavne'!$B25 -> Holland | M93: =HLOOKUP($E$12,'Level 1'!$O$5:$Y$35,'Oversættelse af landenavne'!$C25,FALSE) -> 0.17685 | N93: =HLOOKUP($E$12,'Afgifter og Moms'!$O$5:$Y$34,'Oversættelse af landenavne'!$C25,FALSE) -> -0.0566 | O93: =HLOOKUP($E$12,'Afgifter og Moms'!O$41:Y$70,'Oversættelse af landenavne'!$C25,FALSE) -> 0.0252 | T93: ='Oversættelse af landenavne'!$B25 -> Holland | U93: =HLOOKUP($E$12,'Level 1'!$AA$5:$AL$35,'Oversættelse af landenavne'!C25,FALSE) -> 0.12615 | V93: =HLOOKUP($E$12,'Afgifter og Moms'!$AA$5:$AL$34,'Oversættelse af landenavne'!C25,FALSE) -> 0.0322 | W93: =HLOOKUP($E$12,'Afgifter og Moms'!$AA$41:$AL$70,'Oversættelse af landenavne'!C25,FALSE) -> 0.03325 | AB93: ='Oversættelse af landenavne'!$B25 -> Holland | AC93: =HLOOKUP($E$12,'Level 1'!$AN$5:$AY$35,'Oversættelse af landenavne'!C25,FALSE) -> 0.0916 | AD93: =HLOOKUP($E$12,'Afgifter og Moms'!$AN$5:$AY$34,'Oversættelse af landenavne'!C25,FALSE) -> 0.077 | AE93: =HLOOKUP($E$12,'Afgifter og Moms'!$AN$41:AY88,'Oversættelse af landenavne'!C25,FALSE) -> 0.03535 | AJ93: ='Oversættelse af landenavne'!$B25 -> Holland | AK93: =HLOOKUP($E$12,'Level 1'!$BA$5:$BL$35,'Oversættelse af landenavne'!$C25,FALSE) -> 0.1267 | AL93: =HLOOKUP($E$12,'Afgifter og Moms'!$BA$5:$BL$34,'Oversættelse af landenavne'!$C25,FALSE) -> 0.06375 | AM93: =HLOOKUP($E$12,'Afgifter og Moms'!$BA$41:$BL$70,'Oversættelse af landenavne'!$C25,FALSE) -> 0.04
D94: ='Oversættelse af landenavne'!$B26 -> Østrig | E94: =HLOOKUP($E$12,'Level 1'!$B$5:$L$35,'Oversættelse af landenavne'!$C26,FALSE) -> 0.2053 | F94: =HLOOKUP($E$12,'Afgifter og Moms'!A$5:L$35,'Oversættelse af landenavne'!$C26,FALSE) -> 0.08955 | G94: =HLOOKUP($E$12,'Afgifter og Moms'!A$41:L$70,'Oversættelse af landenavne'!$C26,FALSE) -> 0.059 | L94: ='Oversættelse af landenavne'!$B26 -> Østrig | M94: =HLOOKUP($E$12,'Level 1'!$O$5:$Y$35,'Oversættelse af landenavne'!$C26,FALSE) -> 0.1453 | N94: =HLOOKUP($E$12,'Afgifter og Moms'!$O$5:$Y$34,'Oversættelse af landenavne'!$C26,FALSE) -> 0.05525 | O94: =HLOOKUP($E$12,'Afgifter og Moms'!O$41:Y$70,'Oversættelse af landenavne'!$C26,FALSE) -> 0.04005 | T94: ='Oversættelse af landenavne'!$B26 -> Østrig | U94: =HLOOKUP($E$12,'Level 1'!$AA$5:$AL$35,'Oversættelse af landenavne'!C26,FALSE) -> 0.125 | V94: =HLOOKUP($E$12,'Afgifter og Moms'!$AA$5:$AL$34,'Oversættelse af landenavne'!C26,FALSE) -> 0.0413 | W94: =HLOOKUP($E$12,'Afgifter og Moms'!$AA$41:$AL$70,'Oversættelse af landenavne'!C26,FALSE) -> 0.0333 | AB94: ='Oversættelse af landenavne'!$B26 -> Østrig | AC94: =HLOOKUP($E$12,'Level 1'!$AN$5:$AY$35,'Oversættelse af landenavne'!C26,FALSE) -> 0.1121 | AD94: =HLOOKUP($E$12,'Afgifter og Moms'!$AN$5:$AY$34,'Oversættelse af landenavne'!C26,FALSE) -> 0.0351 | AE94: =HLOOKUP($E$12,'Afgifter og Moms'!$AN$41:AY89,'Oversættelse af landenavne'!C26,FALSE) -> 0.02945 | AJ94: ='Oversættelse af landenavne'!$B26 -> Østrig | AK94: =HLOOKUP($E$12,'Level 1'!$BA$5:$BL$35,'Oversættelse af landenavne'!$C26,FALSE) -> 0.0965 | AL94: =HLOOKUP($E$12,'Afgifter og Moms'!$BA$5:$BL$34,'Oversættelse af landenavne'!$C26,FALSE) -> 0.02885 | AM94: =HLOOKUP($E$12,'Afgifter og Moms'!$BA$41:$BL$70,'Oversættelse af landenavne'!$C26,FALSE) -> 0.0251
D95: ='Oversættelse af landenavne'!$B27 -> Polen | E95: =HLOOKUP($E$12,'Level 1'!$B$5:$L$35,'Oversættelse af landenavne'!$C27,FALSE) -> 0.1426 | F95: =HLOOKUP($E$12,'Afgifter og Moms'!A$5:L$35,'Oversættelse af landenavne'!$C27,FALSE) -> 0.00475 | G95: =HLOOKUP($E$12,'Afgifter og Moms'!A$41:L$70,'Oversættelse af landenavne'!$C27,FALSE) -> 0.03395 | L95: ='Oversættelse af landenavne'!$B27 -> Polen | M95: =HLOOKUP($E$12,'Level 1'!$O$5:$Y$35,'Oversættelse af landenavne'!$C27,FALSE) -> 0.11855 | N95: =HLOOKUP($E$12,'Afgifter og Moms'!$O$5:$Y$34,'Oversættelse af landenavne'!$C27,FALSE) -> 0.0048 | O95: =HLOOKUP($E$12,'Afgifter og Moms'!O$41:Y$70,'Oversættelse af landenavne'!$C27,FALSE) -> 0.0284 | T95: ='Oversættelse af landenavne'!$B27 -> Polen | U95: =HLOOKUP($E$12,'Level 1'!$AA$5:$AL$35,'Oversættelse af landenavne'!C27,FALSE) -> 0.1115 | V95: =HLOOKUP($E$12,'Afgifter og Moms'!$AA$5:$AL$34,'Oversættelse af landenavne'!C27,FALSE) -> 0.00485 | W95: =HLOOKUP($E$12,'Afgifter og Moms'!$AA$41:$AL$70,'Oversættelse af landenavne'!C27,FALSE) -> 0.02675 | AB95: ='Oversættelse af landenavne'!$B27 -> Polen | AC95: =HLOOKUP($E$12,'Level 1'!$AN$5:$AY$35,'Oversættelse af landenavne'!C27,FALSE) -> 0.1069 | AD95: =HLOOKUP($E$12,'Afgifter og Moms'!$AN$5:$AY$34,'Oversættelse af landenavne'!C27,FALSE) -> 0.0048 | AE95: =HLOOKUP($E$12,'Afgifter og Moms'!$AN$41:AY90,'Oversættelse af landenavne'!C27,FALSE) -> 0.02565 | AJ95: ='Oversættelse af landenavne'!$B27 -> Polen | AK95: =HLOOKUP($E$12,'Level 1'!$BA$5:$BL$35,'Oversættelse af landenavne'!$C27,FALSE) -> 0.10545 | AL95: =HLOOKUP($E$12,'Afgifter og Moms'!$BA$5:$BL$34,'Oversættelse af landenavne'!$C27,FALSE) -> 0.00485 | AM95: =HLOOKUP($E$12,'Afgifter og Moms'!$BA$41:$BL$70,'Oversættelse af landenavne'!$C27,FALSE) -> 0.02535
D96: ='Oversættelse af landenavne'!$B28 -> Portugal | E96: =HLOOKUP($E$12,'Level 1'!$B$5:$L$35,'Oversættelse af landenavne'!$C28,FALSE) -> 0.18445 | F96: =HLOOKUP($E$12,'Afgifter og Moms'!A$5:L$35,'Oversættelse af landenavne'!$C28,FALSE) -> 0.13485 | G96: =HLOOKUP($E$12,'Afgifter og Moms'!A$41:L$70,'Oversættelse af landenavne'!$C28,FALSE) -> 0.07295 | L96: ='Oversættelse af landenavne'!$B28 -> Portugal | M96: =HLOOKUP($E$12,'Level 1'!$O$5:$Y$35,'Oversættelse af landenavne'!$C28,FALSE) -> 0.12315 | N96: =HLOOKUP($E$12,'Afgifter og Moms'!$O$5:$Y$34,'Oversættelse af landenavne'!$C28,FALSE) -> 0.0784 | O96: =HLOOKUP($E$12,'Afgifter og Moms'!O$41:Y$70,'Oversættelse af landenavne'!$C28,FALSE) -> 0.04605 | T96: ='Oversættelse af landenavne'!$B28 -> Portugal | U96: =HLOOKUP($E$12,'Level 1'!$AA$5:$AL$35,'Oversættelse af landenavne'!C28,FALSE) -> 0.11515 | V96: =HLOOKUP($E$12,'Afgifter og Moms'!$AA$5:$AL$34,'Oversættelse af landenavne'!C28,FALSE) -> 0.07065 | W96: =HLOOKUP($E$12,'Afgifter og Moms'!$AA$41:$AL$70,'Oversættelse af landenavne'!C28,FALSE) -> 0.0424 | AB96: ='Oversættelse af landenavne'!$B28 -> Portugal | AC96: =HLOOKUP($E$12,'Level 1'!$AN$5:$AY$35,'Oversættelse af landenavne'!C28,FALSE) -> 0.11065 | AD96: =HLOOKUP($E$12,'Afgifter og Moms'!$AN$5:$AY$34,'Oversættelse af landenavne'!C28,FALSE) -> 0.0658 | AE96: =HLOOKUP($E$12,'Afgifter og Moms'!$AN$41:AY91,'Oversættelse af landenavne'!C28,FALSE) -> 0.04035 | AJ96: ='Oversættelse af landenavne'!$B28 -> Portugal | AK96: =HLOOKUP($E$12,'Level 1'!$BA$5:$BL$35,'Oversættelse af landenavne'!$C28,FALSE) -> 0.10895 | AL96: =HLOOKUP($E$12,'Afgifter og Moms'!$BA$5:$BL$34,'Oversættelse af landenavne'!$C28,FALSE) -> 0.06035 | AM96: =HLOOKUP($E$12,'Afgifter og Moms'!$BA$41:$BL$70,'Oversættelse af landenavne'!$C28,FALSE) -> 0.03885
D97: ='Oversættelse af landenavne'!$B29 -> Rumænien | E97: =HLOOKUP($E$12,'Level 1'!$B$5:$L$35,'Oversættelse af landenavne'!$C29,FALSE) -> 0.0976 | F97: =HLOOKUP($E$12,'Afgifter og Moms'!A$5:L$35,'Oversættelse af landenavne'!$C29,FALSE) -> 0.0124 | G97: =HLOOKUP($E$12,'Afgifter og Moms'!A$41:L$70,'Oversættelse af landenavne'!$C29,FALSE) -> 0.0264 | L97: ='Oversættelse af landenavne'!$B29 -> Rumænien | M97: =HLOOKUP($E$12,'Level 1'!$O$5:$Y$35,'Oversættelse af landenavne'!$C29,FALSE) -> 0.0953 | N97: =HLOOKUP($E$12,'Afgifter og Moms'!$O$5:$Y$34,'Oversættelse af landenavne'!$C29,FALSE) -> 0.01245 | O97: =HLOOKUP($E$12,'Afgifter og Moms'!O$41:Y$70,'Oversættelse af landenavne'!$C29,FALSE) -> 0.0259 | T97: ='Oversættelse af landenavne'!$B29 -> Rumænien | U97: =HLOOKUP($E$12,'Level 1'!$AA$5:$AL$35,'Oversættelse af landenavne'!C29,FALSE) -> 0.09325 | V97: =HLOOKUP($E$12,'Afgifter og Moms'!$AA$5:$AL$34,'Oversættelse af landenavne'!C29,FALSE) -> 0.01245 | W97: =HLOOKUP($E$12,'Afgifter og Moms'!$AA$41:$AL$70,'Oversættelse af landenavne'!C29,FALSE) -> 0.0254 | AB97: ='Oversættelse af landenavne'!$B29 -> Rumænien | AC97: =HLOOKUP($E$12,'Level 1'!$AN$5:$AY$35,'Oversættelse af landenavne'!C29,FALSE) -> 0.09195 | AD97: =HLOOKUP($E$12,'Afgifter og Moms'!$AN$5:$AY$34,'Oversættelse af landenavne'!C29,FALSE) -> 0.01245 | AE97: =HLOOKUP($E$12,'Afgifter og Moms'!$AN$41:AY92,'Oversættelse af landenavne'!C29,FALSE) -> 0.02505 | AJ97: ='Oversættelse af landenavne'!$B29 -> Rumænien | AK97: =HLOOKUP($E$12,'Level 1'!$BA$5:$BL$35,'Oversættelse af landenavne'!$C29,FALSE) -> 0.08955 | AL97: =HLOOKUP($E$12,'Afgifter og Moms'!$BA$5:$BL$34,'Oversættelse af landenavne'!$C29,FALSE) -> 0.01225 | AM97: =HLOOKUP($E$12,'Afgifter og Moms'!$BA$41:$BL$70,'Oversættelse af landenavne'!$C29,FALSE) -> 0.02445
D98: ='Oversættelse af landenavne'!$B30 -> Slovenien | E98: =HLOOKUP($E$12,'Level 1'!$B$5:$L$35,'Oversættelse af landenavne'!$C30,FALSE) -> 0.1165 | F98: =HLOOKUP($E$12,'Afgifter og Moms'!A$5:L$35,'Oversættelse af landenavne'!$C30,FALSE) -> 0.06445 | G98: =HLOOKUP($E$12,'Afgifter og Moms'!A$41:L$70,'Oversættelse af landenavne'!$C30,FALSE) -> 0.0398 | L98: ='Oversættelse af landenavne'!$B30 -> Slovenien | M98: =HLOOKUP($E$12,'Level 1'!$O$5:$Y$35,'Oversættelse af landenavne'!$C30,FALSE) -> 0.1272 | N98: =HLOOKUP($E$12,'Afgifter og Moms'!$O$5:$Y$34,'Oversættelse af landenavne'!$C30,FALSE) -> 0.03085 | O98: =HLOOKUP($E$12,'Afgifter og Moms'!O$41:Y$70,'Oversættelse af landenavne'!$C30,FALSE) -> 0.0348 | T98: ='Oversættelse af landenavne'!$B30 -> Slovenien | U98: =HLOOKUP($E$12,'Level 1'!$AA$5:$AL$35,'Oversættelse af landenavne'!C30,FALSE) -> 0.11245 | V98: =HLOOKUP($E$12,'Afgifter og Moms'!$AA$5:$AL$34,'Oversættelse af landenavne'!C30,FALSE) -> 0.0195 | W98: =HLOOKUP($E$12,'Afgifter og Moms'!$AA$41:$AL$70,'Oversættelse af landenavne'!C30,FALSE) -> 0.02905 | AB98: ='Oversættelse af landenavne'!$B30 -> Slovenien | AC98: =HLOOKUP($E$12,'Level 1'!$AN$5:$AY$35,'Oversættelse af landenavne'!C30,FALSE) -> 0.10305 | AD98: =HLOOKUP($E$12,'Afgifter og Moms'!$AN$5:$AY$34,'Oversættelse af landenavne'!C30,FALSE) -> 0.01265 | AE98: =HLOOKUP($E$12,'Afgifter og Moms'!$AN$41:AY93,'Oversættelse af landenavne'!C30,FALSE) -> 0.0255 | AJ98: ='Oversættelse af landenavne'!$B30 -> Slovenien | AK98: =HLOOKUP($E$12,'Level 1'!$BA$5:$BL$35,'Oversættelse af landenavne'!$C30,FALSE) -> 0.09675 | AL98: =HLOOKUP($E$12,'Afgifter og Moms'!$BA$5:$BL$34,'Oversættelse af landenavne'!$C30,FALSE) -> 0.0081 | AM98: =HLOOKUP($E$12,'Afgifter og Moms'!$BA$41:$BL$70,'Oversættelse af landenavne'!$C30,FALSE) -> 0.02315
D99: ='Oversættelse af landenavne'!$B31 -> Slovakiet | E99: =HLOOKUP($E$12,'Level 1'!$B$5:$L$35,'Oversættelse af landenavne'!$C31,FALSE) -> 0.2036 | F99: =HLOOKUP($E$12,'Afgifter og Moms'!A$5:L$35,'Oversættelse af landenavne'!$C31,FALSE) -> 0.0032 | G99: =HLOOKUP($E$12,'Afgifter og Moms'!A$41:L$70,'Oversættelse af landenavne'!$C31,FALSE) -> 0.04135 | L99: ='Oversættelse af landenavne'!$B31 -> Slovakiet | M99: =HLOOKUP($E$12,'Level 1'!$O$5:$Y$35,'Oversættelse af landenavne'!$C31,FALSE) -> 0.14225 | N99: =HLOOKUP($E$12,'Afgifter og Moms'!$O$5:$Y$34,'Oversættelse af landenavne'!$C31,FALSE) -> 0.0032 | O99: =HLOOKUP($E$12,'Afgifter og Moms'!O$41:Y$70,'Oversættelse af landenavne'!$C31,FALSE) -> 0.02905 | T99: ='Oversættelse af landenavne'!$B31 -> Slovakiet | U99: =HLOOKUP($E$12,'Level 1'!$AA$5:$AL$35,'Oversættelse af landenavne'!C31,FALSE) -> 0.12275 | V99: =HLOOKUP($E$12,'Afgifter og Moms'!$AA$5:$AL$34,'Oversættelse af landenavne'!C31,FALSE) -> 0.0032 | W99: =HLOOKUP($E$12,'Afgifter og Moms'!$AA$41:$AL$70,'Oversættelse af landenavne'!C31,FALSE) -> 0.0252 | AB99: ='Oversættelse af landenavne'!$B31 -> Slovakiet | AC99: =HLOOKUP($E$12,'Level 1'!$AN$5:$AY$35,'Oversættelse af landenavne'!C31,FALSE) -> 0.10655 | AD99: =HLOOKUP($E$12,'Afgifter og Moms'!$AN$5:$AY$34,'Oversættelse af landenavne'!C31,FALSE) -> 0.0032 | AE99: =HLOOKUP($E$12,'Afgifter og Moms'!$AN$41:AY94,'Oversættelse af landenavne'!C31,FALSE) -> 0.02195 | AJ99: ='Oversættelse af landenavne'!$B31 -> Slovakiet | AK99: =HLOOKUP($E$12,'Level 1'!$BA$5:$BL$35,'Oversættelse af landenavne'!$C31,FALSE) -> 0.0938 | AL99: =HLOOKUP($E$12,'Afgifter og Moms'!$BA$5:$BL$34,'Oversættelse af landenavne'!$C31,FALSE) -> 0.0032 | AM99: =HLOOKUP($E$12,'Afgifter og Moms'!$BA$41:$BL$70,'Oversættelse af landenavne'!$C31,FALSE) -> 0.0194
D100: ='Oversættelse af landenavne'!$B32 -> Finland | E100: =HLOOKUP($E$12,'Level 1'!$B$5:$L$35,'Oversættelse af landenavne'!$C32,FALSE) -> 0.2216 | F100: =HLOOKUP($E$12,'Afgifter og Moms'!A$5:L$35,'Oversættelse af landenavne'!$C32,FALSE) -> 0.02255 | G100: =HLOOKUP($E$12,'Afgifter og Moms'!A$41:L$70,'Oversættelse af landenavne'!$C32,FALSE) -> 0.0586 | L100: ='Oversættelse af landenavne'!$B32 -> Finland | M100: =HLOOKUP($E$12,'Level 1'!$O$5:$Y$35,'Oversættelse af landenavne'!$C32,FALSE) -> 0.1397 | N100: =HLOOKUP($E$12,'Afgifter og Moms'!$O$5:$Y$34,'Oversættelse af landenavne'!$C32,FALSE) -> 0.02255 | O100: =HLOOKUP($E$12,'Afgifter og Moms'!O$41:Y$70,'Oversættelse af landenavne'!$C32,FALSE) -> 0.03895 | T100: ='Oversættelse af landenavne'!$B32 -> Finland | U100: =HLOOKUP($E$12,'Level 1'!$AA$5:$AL$35,'Oversættelse af landenavne'!C32,FALSE) -> 0.10175 | V100: =HLOOKUP($E$12,'Afgifter og Moms'!$AA$5:$AL$34,'Oversættelse af landenavne'!C32,FALSE) -> 0.02255 | W100: =HLOOKUP($E$12,'Afgifter og Moms'!$AA$41:$AL$70,'Oversættelse af landenavne'!C32,FALSE) -> 0.0298 | AB100: ='Oversættelse af landenavne'!$B32 -> Finland | AC100: =HLOOKUP($E$12,'Level 1'!$AN$5:$AY$35,'Oversættelse af landenavne'!C32,FALSE) -> 0.086 | AD100: =HLOOKUP($E$12,'Afgifter og Moms'!$AN$5:$AY$34,'Oversættelse af landenavne'!C32,FALSE) -> 0.02255 | AE100: =HLOOKUP($E$12,'Afgifter og Moms'!$AN$41:AY95,'Oversættelse af landenavne'!C32,FALSE) -> 0.02605 | AJ100: ='Oversættelse af landenavne'!$B32 -> Finland | AK100: =HLOOKUP($E$12,'Level 1'!$BA$5:$BL$35,'Oversættelse af landenavne'!$C32,FALSE) -> 0.07045 | AL100: =HLOOKUP($E$12,'Afgifter og Moms'!$BA$5:$BL$34,'Oversættelse af landenavne'!$C32,FALSE) -> 0.0225 | AM100: =HLOOKUP($E$12,'Afgifter og Moms'!$BA$41:$BL$70,'Oversættelse af landenavne'!$C32,FALSE) -> 0.0223
D101: ='Oversættelse af landenavne'!$B33 -> Sverige | E101: =HLOOKUP($E$12,'Level 1'!$B$5:$L$35,'Oversættelse af landenavne'!$C33,FALSE) -> 0.24435 | F101: =HLOOKUP($E$12,'Afgifter og Moms'!A$5:L$35,'Oversættelse af landenavne'!$C33,FALSE) -> 0.02975 | G101: =HLOOKUP($E$12,'Afgifter og Moms'!A$41:L$70,'Oversættelse af landenavne'!$C33,FALSE) -> 0.06845 | L101: ='Oversættelse af landenavne'!$B33 -> Sverige | M101: =HLOOKUP($E$12,'Level 1'!$O$5:$Y$35,'Oversættelse af landenavne'!$C33,FALSE) -> 0.13645 | N101: =HLOOKUP($E$12,'Afgifter og Moms'!$O$5:$Y$34,'Oversættelse af landenavne'!$C33,FALSE) -> 0.0297 | O101: =HLOOKUP($E$12,'Afgifter og Moms'!O$41:Y$70,'Oversættelse af landenavne'!$C33,FALSE) -> 0.0416 | T101: ='Oversættelse af landenavne'!$B33 -> Sverige | U101: =HLOOKUP($E$12,'Level 1'!$AA$5:$AL$35,'Oversættelse af landenavne'!C33,FALSE) -> 0.11925 | V101: =HLOOKUP($E$12,'Afgifter og Moms'!$AA$5:$AL$34,'Oversættelse af landenavne'!C33,FALSE) -> 0.02975 | W101: =HLOOKUP($E$12,'Afgifter og Moms'!$AA$41:$AL$70,'Oversættelse af landenavne'!C33,FALSE) -> 0.03725 | AB101: ='Oversættelse af landenavne'!$B33 -> Sverige | AC101: =HLOOKUP($E$12,'Level 1'!$AN$5:$AY$35,'Oversættelse af landenavne'!C33,FALSE) -> 0.09325 | AD101: =HLOOKUP($E$12,'Afgifter og Moms'!$AN$5:$AY$34,'Oversættelse af landenavne'!C33,FALSE) -> 0.02975 | AE101: =HLOOKUP($E$12,'Afgifter og Moms'!$AN$41:AY96,'Oversættelse af landenavne'!C33,FALSE) -> 0.0307 | AJ101: ='Oversættelse af landenavne'!$B33 -> Sverige | AK101: =HLOOKUP($E$12,'Level 1'!$BA$5:$BL$35,'Oversættelse af landenavne'!$C33,FALSE) -> 0.0774 | AL101: =HLOOKUP($E$12,'Afgifter og Moms'!$BA$5:$BL$34,'Oversættelse af landenavne'!$C33,FALSE) -> 0.0297 | AM101: =HLOOKUP($E$12,'Afgifter og Moms'!$BA$41:$BL$70,'Oversættelse af landenavne'!$C33,FALSE) -> 0.0268
D102: ='Oversættelse af landenavne'!$B34 -> UK | E102: =HLOOKUP($E$12,'Level 1'!$B$5:$L$35,'Oversættelse af landenavne'!$C34,FALSE) -> 0.2492 | F102: =HLOOKUP($E$12,'Afgifter og Moms'!A$5:L$35,'Oversættelse af landenavne'!$C34,FALSE) -> 0 | G102: =HLOOKUP($E$12,'Afgifter og Moms'!A$41:L$70,'Oversættelse af landenavne'!$C34,FALSE) -> 0.01265 | L102: ='Oversættelse af landenavne'!$B34 -> UK | M102: =HLOOKUP($E$12,'Level 1'!$O$5:$Y$35,'Oversættelse af landenavne'!$C34,FALSE) -> 0.2274 | N102: =HLOOKUP($E$12,'Afgifter og Moms'!$O$5:$Y$34,'Oversættelse af landenavne'!$C34,FALSE) -> 0 | O102: =HLOOKUP($E$12,'Afgifter og Moms'!O$41:Y$70,'Oversættelse af landenavne'!$C34,FALSE) -> 0.01145 | T102: ='Oversættelse af landenavne'!$B34 -> UK | U102: =HLOOKUP($E$12,'Level 1'!$AA$5:$AL$35,'Oversættelse af landenavne'!C34,FALSE) -> 0.20515 | V102: =HLOOKUP($E$12,'Afgifter og Moms'!$AA$5:$AL$34,'Oversættelse af landenavne'!C34,FALSE) -> 0 | W102: =HLOOKUP($E$12,'Afgifter og Moms'!$AA$41:$AL$70,'Oversættelse af landenavne'!C34,FALSE) -> 0.01025 | AB102: ='Oversættelse af landenavne'!$B34 -> UK | AC102: =HLOOKUP($E$12,'Level 1'!$AN$5:$AY$35,'Oversættelse af landenavne'!C34,FALSE) -> 0.1871 | AD102: =HLOOKUP($E$12,'Afgifter og Moms'!$AN$5:$AY$34,'Oversættelse af landenavne'!C34,FALSE) -> 0 | AE102: =HLOOKUP($E$12,'Afgifter og Moms'!$AN$41:AY97,'Oversættelse af landenavne'!C34,FALSE) -> 0.0094 | AJ102: ='Oversættelse af landenavne'!$B34 -> UK | AK102: =HLOOKUP($E$12,'Level 1'!$BA$5:$BL$35,'Oversættelse af landenavne'!$C34,FALSE) -> 0.1715 | AL102: =HLOOKUP($E$12,'Afgifter og Moms'!$BA$5:$BL$34,'Oversættelse af landenavne'!$C34,FALSE) -> 0 | AM102: =HLOOKUP($E$12,'Afgifter og Moms'!$BA$41:$BL$70,'Oversættelse af landenavne'!$C34,FALSE) -> 0.0086
D103: Level 1 | L103: Level 1 | T103: Level 1 | AB103: Level 1 | AJ103: Level 1
D104: Level 2 | L104: Level 2 | T104: Level 2 | AB104: Level 2 | AJ104: Level 2
D105: Level 3 | L105: Level 3 | T105: Level 3 | AB105: Level 3 | AJ105: Level 3
D111: Herunder vises de tabeller der er resultatet er valgene truffet øverst i valgmenuen
D114: Tabel B - HICP deflatoren | G114: Tabel C
D115: Tabel B fremkommer som resultat af valgene truffet for faste/løbende priser og basisår. HICP deflatoren vises for samtlige lande for det valgte år. Væles løbende priser deflaterer man ikke, hvorfor der vil stå et 1-tal i alle celler. Formlen gør at "fejlværdien" svarer til at man har valgt løbende priser (gælder både for overskrift og formler). Med denne metode kan indeksværdien ganges direkte på rådata uanset hvilken valuta der vælges. | G115: Tabel C viser hvilken kurs der ganges på rådata (opgivet i euro) for at få priserne vist i den valuta der er valgt i valgmenuen øverst. Kursen ændres efter valgt år og valuta.
E117: =IF(E13="faste priser","HICP deflatoenfor år "&E12&" med basisåret "&E14&"","Prisindeks for løbende priser år "&E12) -> HICP deflatoenfor år 2015 med basisåret 2016 | G117: ="Valutakursen for "&E15&" i fht. Euro år "&E12 -> Valutakursen for DKK i fht. Euro år 2015
D118: ='Baggrundsdata - HICP - deflator'!B20 -> EU-28 | E118: =IF($E$13="faste priser",HLOOKUP($E$12,'Baggrundsdata - HICP - deflator'!$B$19:$M$48,'Oversættelse af landenavne'!$C6,FALSE),1) -> 1.0001 | G118: =IF(E15="Euro",1,IF(E15="eurocent",100,IF(E15="DKK øre",HLOOKUP(E12,Forside!$E$53:$O$54,2,FALSE),IF(E15="DKK",((HLOOKUP(E12,Forside!$E$53:$O$54,2,FALSE))/100),"F")))) -> 7.456103
D119: ='Baggrundsdata - HICP - deflator'!B21 -> Belgien | E119: =IF($E$13="faste priser",HLOOKUP($E$12,'Baggrundsdata - HICP - deflator'!$B$19:$M$48,'Oversættelse af landenavne'!$C7,FALSE),1) -> 0.9938
D120: ='Baggrundsdata - HICP - deflator'!B22 -> Bulgarien | E120: =IF($E$13="faste priser",HLOOKUP($E$12,'Baggrundsdata - HICP - deflator'!$B$19:$M$48,'Oversættelse af landenavne'!$C8,FALSE),1) -> 1.0108
D121: ='Baggrundsdata - HICP - deflator'!B23 -> Tjekkiet | E121: =IF($E$13="faste priser",HLOOKUP($E$12,'Baggrundsdata - HICP - deflator'!$B$19:$M$48,'Oversættelse af landenavne'!$C9,FALSE),1) -> 0.998
D122: ='Baggrundsdata - HICP - deflator'!B24 -> Danmark | E122: =IF($E$13="faste priser",HLOOKUP($E$12,'Baggrundsdata - HICP - deflator'!$B$19:$M$48,'Oversættelse af landenavne'!$C10,FALSE),1) -> 0.998
D123: ='Baggrundsdata - HICP - deflator'!B25 -> Tyskland | E123: =IF($E$13="faste priser",HLOOKUP($E$12,'Baggrundsdata - HICP - deflator'!$B$19:$M$48,'Oversættelse af landenavne'!$C11,FALSE),1) -> 0.999
D124: ='Baggrundsdata - HICP - deflator'!B26 -> Estland | E124: =IF($E$13="faste priser",HLOOKUP($E$12,'Baggrundsdata - HICP - deflator'!$B$19:$M$48,'Oversættelse af landenavne'!$C12,FALSE),1) -> 0.9993
D125: ='Baggrundsdata - HICP - deflator'!B27 -> Irland | E125: =IF($E$13="faste priser",HLOOKUP($E$12,'Baggrundsdata - HICP - deflator'!$B$19:$M$48,'Oversættelse af landenavne'!$C13,FALSE),1) -> 1
D126: ='Baggrundsdata - HICP - deflator'!B28 -> Grækenland | E126: =IF($E$13="faste priser",HLOOKUP($E$12,'Baggrundsdata - HICP - deflator'!$B$19:$M$48,'Oversættelse af landenavne'!$C14,FALSE),1) -> 1.0111
D127: ='Baggrundsdata - HICP - deflator'!B29 -> Spanien | E127: =IF($E$13="faste priser",HLOOKUP($E$12,'Baggrundsdata - HICP - deflator'!$B$19:$M$48,'Oversættelse af landenavne'!$C15,FALSE),1) -> 1.0063
D128: ='Baggrundsdata - HICP - deflator'!B30 -> Frankrig | E128: =IF($E$13="faste priser",HLOOKUP($E$12,'Baggrundsdata - HICP - deflator'!$B$19:$M$48,'Oversættelse af landenavne'!$C16,FALSE),1) -> 0.9991
D129: ='Baggrundsdata - HICP - deflator'!B31 -> Kroatien | E129: =IF($E$13="faste priser",HLOOKUP($E$12,'Baggrundsdata - HICP - deflator'!$B$19:$M$48,'Oversættelse af landenavne'!$C17,FALSE),1) -> 1.0026
D130: ='Baggrundsdata - HICP - deflator'!B32 -> Italien | E130: =IF($E$13="faste priser",HLOOKUP($E$12,'Baggrundsdata - HICP - deflator'!$B$19:$M$48,'Oversættelse af landenavne'!$C18,FALSE),1) -> 0.999
D131: ='Baggrundsdata - HICP - deflator'!B33 -> Cypern | E131: =IF($E$13="faste priser",HLOOKUP($E$12,'Baggrundsdata - HICP - deflator'!$B$19:$M$48,'Oversættelse af landenavne'!$C19,FALSE),1) -> 1.0157
D132: ='Baggrundsdata - HICP - deflator'!B34 -> Letland | E132: =IF($E$13="faste priser",HLOOKUP($E$12,'Baggrundsdata - HICP - deflator'!$B$19:$M$48,'Oversættelse af landenavne'!$C20,FALSE),1) -> 0.9979
D133: ='Baggrundsdata - HICP - deflator'!B35 -> Litaun | E133: =IF($E$13="faste priser",HLOOKUP($E$12,'Baggrundsdata - HICP - deflator'!$B$19:$M$48,'Oversættelse af landenavne'!$C21,FALSE),1) -> 1.0068
D134: ='Baggrundsdata - HICP - deflator'!B36 -> luxembourg | E134: =IF($E$13="faste priser",HLOOKUP($E$12,'Baggrundsdata - HICP - deflator'!$B$19:$M$48,'Oversættelse af landenavne'!$C22,FALSE),1) -> 0.9994
D135: ='Baggrundsdata - HICP - deflator'!B37 -> Ungarn | E135: =IF($E$13="faste priser",HLOOKUP($E$12,'Baggrundsdata - HICP - deflator'!$B$19:$M$48,'Oversættelse af landenavne'!$C23,FALSE),1) -> 0.9994
D136: ='Baggrundsdata - HICP - deflator'!B38 -> Malta | E136: =IF($E$13="faste priser",HLOOKUP($E$12,'Baggrundsdata - HICP - deflator'!$B$19:$M$48,'Oversættelse af landenavne'!$C24,FALSE),1) -> 0.9884
D137: ='Baggrundsdata - HICP - deflator'!B39 -> Holland | E137: =IF($E$13="faste priser",HLOOKUP($E$12,'Baggrundsdata - HICP - deflator'!$B$19:$M$48,'Oversættelse af landenavne'!$C25,FALSE),1) -> 0.9979
D138: ='Baggrundsdata - HICP - deflator'!B40 -> Østrig | E138: =IF($E$13="faste priser",HLOOKUP($E$12,'Baggrundsdata - HICP - deflator'!$B$19:$M$48,'Oversættelse af landenavne'!$C26,FALSE),1) -> 0.992
D139: ='Baggrundsdata - HICP - deflator'!B41 -> Polen | E139: =IF($E$13="faste priser",HLOOKUP($E$12,'Baggrundsdata - HICP - deflator'!$B$19:$M$48,'Oversættelse af landenavne'!$C27,FALSE),1) -> 1.007
D140: ='Baggrundsdata - HICP - deflator'!B42 -> Portugal | E140: =IF($E$13="faste priser",HLOOKUP($E$12,'Baggrundsdata - HICP - deflator'!$B$19:$M$48,'Oversættelse af landenavne'!$C28,FALSE),1) -> 0.995
D141: ='Baggrundsdata - HICP - deflator'!B43 -> Rumænien | E141: =IF($E$13="faste priser",HLOOKUP($E$12,'Baggrundsdata - HICP - deflator'!$B$19:$M$48,'Oversættelse af landenavne'!$C29,FALSE),1) -> 1.0041
D142: ='Baggrundsdata - HICP - deflator'!B44 -> Slovenien | E142: =IF($E$13="faste priser",HLOOKUP($E$12,'Baggrundsdata - HICP - deflator'!$B$19:$M$48,'Oversættelse af landenavne'!$C30,FALSE),1) -> 1.0076
D143: ='Baggrundsdata - HICP - deflator'!B45 -> Slovakiet | E143: =IF($E$13="faste priser",HLOOKUP($E$12,'Baggrundsdata - HICP - deflator'!$B$19:$M$48,'Oversættelse af landenavne'!$C31,FALSE),1) -> 1.0035
D144: ='Baggrundsdata - HICP - deflator'!B46 -> Finland | E144: =IF($E$13="faste priser",HLOOKUP($E$12,'Baggrundsdata - HICP - deflator'!$B$19:$M$48,'Oversættelse af landenavne'!$C32,FALSE),1) -> 1.0016
D145: ='Baggrundsdata - HICP - deflator'!B47 -> Sverige | E145: =IF($E$13="faste priser",HLOOKUP($E$12,'Baggrundsdata - HICP - deflator'!$B$19:$M$48,'Oversættelse af landenavne'!$C33,FALSE),1) -> 0.993
D146: ='Baggrundsdata - HICP - deflator'!B48 -> UK | E146: =IF($E$13="faste priser",HLOOKUP($E$12,'Baggrundsdata - HICP - deflator'!$B$19:$M$48,'Oversættelse af landenavne'!$C34,FALSE),1) -> 1

Sheet Baggrundsdata - HICP - deflator
B1: Det EU harmoniserede forbrugerprisindekset HICP for forskellige basisår
B2: NAVN PÅ ARK: | C2: Baggrundsdata - HICP deflator
B3: Data hentes fra: | C3: Kun baggrundsdata længere nede på HICP arket benyttes
B5: Sådan bruges arket:
B6: ="Arket 'Baggrundsdata -HICP deflator' viser deflatoren for det enkelte land i det enkte år for "&C19&" til "&I19&". Basisået retter sig efter de valg der er truffuet i akrene '"&'Alle lande, valgt år'!F1&"' og ' "&'Udvalgte lande, 10 års oversigt'!E1 &"'" -> Arket 'Baggrundsdata -HICP deflator' viser deflatoren for det enkelte land i det enkte år for 2007 til 2013. Basisået retter sig efter de valg der er truffuet i akrene 'Alle lande, valgt år' og ' Udvalgte lande, 10 års oversigt'
B7: Nederst i arket er der en baggrundsdata tabel men rådata for eurostat. De øverste tabeller er bearbejdet og fungerer som baggrundsdata for deflatortabellerne (de røde) i ovennævnte ark. Der træffes ingen valg i arket, det bruges som baggrundsdata og til at kontrollere at man har trukket korrekt data.
B9: HICP er hentet for samtlige varergrupper for hvert enkelt land for alle forbrugere
B10: Bemærk:
B11: Indtil nu fungerer HICP-deflatoren for et interval på 7 år. Dvs. at man kan hente ny data hvis man ønsker 7 andre år og indsætte dem i baggrundsdata. Deflatoren vil automatisk opdatere. Ønsker man et længere tidsinterval må man udvide formlen for deflator tabellen.
B14: Baggrundsdata til tabel B i arket 'Baggrundstabeller for alle lande, valgt år' | R14: Baggrundsdata til tabel B i arket 'Udvalgte lande, 7 års oversigt'
B15: Baggrundstal til tabel B: Forbrugerprisindeks HICP-deflator for forskellige basisår | R15: Baggrundstal til tabel B: Forbrugerprisindeks HICP-deflator for forskellige basisår
B17: Vælg Basisår | C17: ='Alle lande, valgt år'!E14 -> 2016 | R17: Valgt Basisår | S17: ='Udvalgte lande, 10 års oversigt'!E14 -> 2016
C19: ='Baggrundsdata - HICP - deflator'!B68+0 -> 2007 | D19: ='Baggrundsdata - HICP - deflator'!C68+0 -> 2008 | E19: ='Baggrundsdata - HICP - deflator'!D68+0 -> 2009 | F19: ='Baggrundsdata - HICP - deflator'!E68+0 -> 2010 | G19: ='Baggrundsdata - HICP - deflator'!F68+0 -> 2011 | H19: ='Baggrundsdata - HICP - deflator'!G68+0 -> 2012 | I19: ='Baggrundsdata - HICP - deflator'!H68+0 -> 2013 | J19: ='Baggrundsdata - HICP - deflator'!I68+0 -> 2014 | K19: ='Baggrundsdata - HICP - deflator'!J68+0 -> 2015 | L19: ='Baggrundsdata - HICP - deflator'!K68+0 -> 2016 | M19: ='Baggrundsdata - HICP - deflator'!L68+0 -> 2017 | O19: Tjek: Er HICP trukket for de korrekte lande (jf. level 1) | S19: ='Baggrundsdata - HICP - deflator'!C19+0 -> 2007 | T19: ='Baggrundsdata - HICP - deflator'!D19+0 -> 2008 | U19: ='Baggrundsdata - HICP - deflator'!E19+0 -> 2009 | V19: ='Baggrundsdata - HICP - deflator'!F19+0 -> 2010 | W19: ='Baggrundsdata - HICP - deflator'!G19+0 -> 2011 | X19: ='Baggrundsdata - HICP - deflator'!H19+0 -> 2012 | Y19: ='Baggrundsdata - HICP - deflator'!I19+0 -> 2013 | Z19: ='Baggrundsdata - HICP - deflator'!J19+0 -> 2014 | AA19: ='Baggrundsdata - HICP - deflator'!K19+0 -> 2015 | AB19: ='Baggrundsdata - HICP - deflator'!L19+0 -> 2016 | AC19: ='Baggrundsdata - HICP - deflator'!M19+0 -> 2017 | AE19: Tjek: Er BVT trukket for de korrekte lande (jf liste på forsiden)
B20: =IF(A69="European Union (28 countries)","EU-28",IF(A69="European Union (27 countries)","EU-27",IF(A69="Euro area (EA11-2000, EA12-2006, EA13-2007, EA15-2008, EA16-2010, EA17-2013, EA18-2014, EA19)","EU-området",IF(A69="Belgium","Belgien",IF(A69="Bulgaria","Bulgarien",IF(A69="czech republic","Tjekkiet",IF(A69="Denmark","Danmark",IF(A69="Germany (until 1990 former territory of the FRG)","Tyskland",IF(A69="Estonia","Estland",IF(A69="Ireland","Irland",IF(A69="Greece","Grækenland",IF(A69="Spain","Spanien",IF(A69="france","Frankrig",IF(A69="Croatia","Kroatien",IF(A69="italy","Italien",IF(A69="Cyprus","Cypern",IF(A69="Latvia","Letland",IF(A69="Lithuania","Litaun",IF(A69="Luxembourg","luxembourg",IF(A69="Hungary","Ungarn",IF(A69="Malta","Malta",IF(A69="Netherlands","Holland",IF(A69="Austria","Østrig",IF(A69="Poland","Polen",IF(A69="portugal","Portugal",IF(A69="Romania","Rumænien",IF(A69="Slovenia","Slovenien",IF(A69="slovakia","Slovakiet",IF(A69="Finland","Finland",IF(A69="sweden","Sverige",IF(A69="United kingdom","UK",IF(A69="liechtenstein","Liechtenstein",IF(A69="Norway","Norge",IF(A69="Montenegro","Montenegro",IF(A69="Former Yugoslav Republic of Macedonia, the","Republikken Makedonien",IF(A69="Serbia","Serbien",IF(A69="Turkey","Tyrkiet",IF(A69="Bosnia and Herzegovina","Bosnien-Hercegovina",IF(A69="Kosovo (under United Nations Security Council Resolution 1244/99)","Kosovo",IF(A69="Iceland","Island",IF(A69="albania","Albanien",IF(A69="New Country","Nyt land",0)))))))))))))))))))))))))))))))))))))))))) -> EU-28 | C20: =IFERROR('Baggrundsdata - HICP - deflator'!B69/IF($M$19=$C$17,$L69,IF($L$19=$C$17,$K69,IF($K$19=$C$17,$J69,IF($J$19=$C$17,$I69,IF($I$19=$C$17,'Baggrundsdata - HICP - deflator'!$H69,IF($H$19=$C$17,'Baggrundsdata - HICP - deflator'!$G69,IF($C$17=$G$19,'Baggrundsdata - HICP - deflator'!$F69,IF($F$19=$C$17,'Baggrundsdata - HICP - deflator'!$E69,IF($E$19=$C$17,'Baggrundsdata - HICP - deflator'!$D69,IF($D$19=$C$17,'Baggrundsdata - HICP - deflator'!$C69,IF('Baggrundsdata - HICP - deflator'!$C$19='Baggrundsdata - HICP - deflator'!$C$17,'Baggrundsdata - HICP - deflator'!$B69,"*"))))))))))),"*") -> 0.86658665 | D20: =IFERROR('Baggrundsdata - HICP - deflator'!C69/IF($M$19=$C$17,$L69,IF($L$19=$C$17,$K69,IF($K$19=$C$17,$J69,IF($J$19=$C$17,$I69,IF($I$19=$C$17,'Baggrundsdata - HICP - deflator'!$H69,IF($H$19=$C$17,'Baggrundsdata - HICP - deflator'!$G69,IF($C$17=$G$19,'Baggrundsdata - HICP - deflator'!$F69,IF($F$19=$C$17,'Baggrundsdata - HICP - deflator'!$E69,IF($E$19=$C$17,'Baggrundsdata - HICP - deflator'!$D69,IF($D$19=$C$17,'Baggrundsdata - HICP - deflator'!$C69,IF('Baggrundsdata - HICP - deflator'!$C$19='Baggrundsdata - HICP - deflator'!$C$17,'Baggrundsdata - HICP - deflator'!$B69,"*"))))))))))),"*") -> 0.89828982 | E20: =IFERROR('Baggrundsdata - HICP - deflator'!D69/IF($M$19=$C$17,$L69,IF($L$19=$C$17,$K69,IF($K$19=$C$17,$J69,IF($J$19=$C$17,$I69,IF($I$19=$C$17,'Baggrundsdata - HICP - deflator'!$H69,IF($H$19=$C$17,'Baggrundsdata - HICP - deflator'!$G69,IF($C$17=$G$19,'Baggrundsdata - HICP - deflator'!$F69,IF($F$19=$C$17,'Baggrundsdata - HICP - deflator'!$E69,IF($E$19=$C$17,'Baggrundsdata - HICP - deflator'!$D69,IF($D$19=$C$17,'Baggrundsdata - HICP - deflator'!$C69,IF('Baggrundsdata - HICP - deflator'!$C$19='Baggrundsdata - HICP - deflator'!$C$17,'Baggrundsdata - HICP - deflator'!$B69,"*"))))))))))),"*") -> 0.9070907 | F20: =IFERROR('Baggrundsdata - HICP - deflator'!E69/IF($M$19=$C$17,$L69,IF($L$19=$C$17,$K69,IF($K$19=$C$17,$J69,IF($J$19=$C$17,$I69,IF($I$19=$C$17,'Baggrundsdata - HICP - deflator'!$H69,IF($H$19=$C$17,'Baggrundsdata - HICP - deflator'!$G69,IF($C$17=$G$19,'Baggrundsdata - HICP - deflator'!$F69,IF($F$19=$C$17,'Baggrundsdata - HICP - deflator'!$E69,IF($E$19=$C$17,'Baggrundsdata - HICP - deflator'!$D69,IF($D$19=$C$17,'Baggrundsdata - HICP - deflator'!$C69,IF('Baggrundsdata - HICP - deflator'!$C$19='Baggrundsdata - HICP - deflator'!$C$17,'Baggrundsdata - HICP - deflator'!$B69,"*"))))))))))),"*") -> 0.92599259 | G20: =IFERROR('Baggrundsdata - HICP - deflator'!F69/IF($M$19=$C$17,$L69,IF($L$19=$C$17,$K69,IF($K$19=$C$17,$J69,IF($J$19=$C$17,$I69,IF($I$19=$C$17,'Baggrundsdata - HICP - deflator'!$H69,IF($H$19=$C$17,'Baggrundsdata - HICP - deflator'!$G69,IF($C$17=$G$19,'Baggrundsdata - HICP - deflator'!$F69,IF($F$19=$C$17,'Baggrundsdata - HICP - deflator'!$E69,IF($E$19=$C$17,'Baggrundsdata - HICP - deflator'!$D69,IF($D$19=$C$17,'Baggrundsdata - HICP - deflator'!$C69,IF('Baggrundsdata - HICP - deflator'!$C$19='Baggrundsdata - HICP - deflator'!$C$17,'Baggrundsdata - HICP - deflator'!$B69,"*"))))))))))),"*") -> 0.95469546 | H20: =IFERROR('Baggrundsdata - HICP - deflator'!G69/IF($M$19=$C$17,$L69,IF($L$19=$C$17,$K69,IF($K$19=$C$17,$J69,IF($J$19=$C$17,$I69,IF($I$19=$C$17,'Baggrundsdata - HICP - deflator'!$H69,IF($H$19=$C$17,'Baggrundsdata - HICP - deflator'!$G69,IF($C$17=$G$19,'Baggrundsdata - HICP - deflator'!$F69,IF($F$19=$C$17,'Baggrundsdata - HICP - deflator'!$E69,IF($E$19=$C$17,'Baggrundsdata - HICP - deflator'!$D69,IF($D$19=$C$17,'Baggrundsdata - HICP - deflator'!$C69,IF('Baggrundsdata - HICP - deflator'!$C$19='Baggrundsdata - HICP - deflator'!$C$17,'Baggrundsdata - HICP - deflator'!$B69,"*"))))))))))),"*") -> 0.97999799 | I20: =IFERROR('Baggrundsdata - HICP - deflator'!H69/IF($M$19=$C$17,$L69,IF($L$19=$C$17,$K69,IF($K$19=$C$17,$J69,IF($J$19=$C$17,$I69,IF($I$19=$C$17,'Baggrundsdata - HICP - deflator'!$H69,IF($H$19=$C$17,'Baggrundsdata - HICP - deflator'!$G69,IF($C$17=$G$19,'Baggrundsdata - HICP - deflator'!$F69,IF($F$19=$C$17,'Baggrundsdata - HICP - deflator'!$E69,IF($E$19=$C$17,'Baggrundsdata - HICP - deflator'!$D69,IF($D$19=$C$17,'Baggrundsdata - HICP - deflator'!$C69,IF('Baggrundsdata - HICP - deflator'!$C$19='Baggrundsdata - HICP - deflator'!$C$17,'Baggrundsdata - HICP - deflator'!$B69,"*"))))))))))),"*") -> 0.99479947 | J20: =IFERROR('Baggrundsdata - HICP - deflator'!I69/IF($M$19=$C$17,$L69,IF($L$19=$C$17,$K69,IF($K$19=$C$17,$J69,IF($J$19=$C$17,$I69,IF($I$19=$C$17,'Baggrundsdata - HICP - deflator'!$H69,IF($H$19=$C$17,'Baggrundsdata - HICP - deflator'!$G69,IF($C$17=$G$19,'Baggrundsdata - HICP - deflator'!$F69,IF($F$19=$C$17,'Baggrundsdata - HICP - deflator'!$E69,IF($E$19=$C$17,'Baggrundsdata - HICP - deflator'!$D69,IF($D$19=$C$17,'Baggrundsdata - HICP - deflator'!$C69,IF('Baggrundsdata - HICP - deflator'!$C$19='Baggrundsdata - HICP - deflator'!$C$17,'Baggrundsdata - HICP - deflator'!$B69,"*"))))))))))),"*") -> 1.00020001 | K20: =IFERROR('Baggrundsdata - HICP - deflator'!J69/IF($M$19=$C$17,$L69,IF($L$19=$C$17,$K69,IF($K$19=$C$17,$J69,IF($J$19=$C$17,$I69,IF($I$19=$C$17,'Baggrundsdata - HICP - deflator'!$H69,IF($H$19=$C$17,'Baggrundsdata - HICP - deflator'!$G69,IF($C$17=$G$19,'Baggrundsdata - HICP - deflator'!$F69,IF($F$19=$C$17,'Baggrundsdata - HICP - deflator'!$E69,IF($E$19=$C$17,'Baggrundsdata - HICP - deflator'!$D69,IF($D$19=$C$17,'Baggrundsdata - HICP - deflator'!$C69,IF('Baggrundsdata - HICP - deflator'!$C$19='Baggrundsdata - HICP - deflator'!$C$17,'Baggrundsdata - HICP - deflator'!$B69,"*"))))))))))),"*") -> 1.0001 | L20: =IFERROR('Baggrundsdata - HICP - deflator'!K69/IF($M$19=$C$17,$L69,IF($L$19=$C$17,$K69,IF($K$19=$C$17,$J69,IF($J$19=$C$17,$I69,IF($I$19=$C$17,'Baggrundsdata - HICP - deflator'!$H69,IF($H$19=$C$17,'Baggrundsdata - HICP - deflator'!$G69,IF($C$17=$G$19,'Baggrundsdata - HICP - deflator'!$F69,IF($F$19=$C$17,'Baggrundsdata - HICP - deflator'!$E69,IF($E$19=$C$17,'Baggrundsdata - HICP - deflator'!$D69,IF($D$19=$C$17,'Baggrundsdata - HICP - deflator'!$C69,IF('Baggrundsdata - HICP - deflator'!$C$19='Baggrundsdata - HICP - deflator'!$C$17,'Baggrundsdata - HICP - deflator'!$B69,"*"))))))))))),"*") -> 1 | M20: =IFERROR('Baggrundsdata - HICP - deflator'!L69/IF($M$19=$C$17,$L69,IF($L$19=$C$17,$K69,IF($K$19=$C$17,$J69,IF($J$19=$C$17,$I69,IF($I$19=$C$17,'Baggrundsdata - HICP - deflator'!$H69,IF($H$19=$C$17,'Baggrundsdata - HICP - deflator'!$G69,IF($C$17=$G$19,'Baggrundsdata - HICP - deflator'!$F69,IF($F$19=$C$17,'Baggrundsdata - HICP - deflator'!$E69,IF($E$19=$C$17,'Baggrundsdata - HICP - deflator'!$D69,IF($D$19=$C$17,'Baggrundsdata - HICP - deflator'!$C69,IF('Baggrundsdata - HICP - deflator'!$C$19='Baggrundsdata - HICP - deflator'!$C$17,'Baggrundsdata - HICP - deflator'!$B69,"*"))))))))))),"*") -> 0 | O20: =IF(A69='Level 1'!A53,"sand","falsk") -> sand | R20: =IF(A69="European Union (28 countries)","EU-28",IF(A69="Belgium","Belgien",IF(A69="Denmark","Danmark",IF(A69="Germany (until 1990 former territory of the FRG)","Tyskland",IF(A69="Spain","Spanien",IF(A69="france","Frankrig",IF(A69="italy","Italien",IF(A69="Netherlands","Holland",IF(A69="sweden","Sverige",IF(A69="United kingdom","UK",IF(A69="Norway","Norge",IF(A69="New Country","Nyt land",0)))))))))))) -> EU-28 | S20: =IFERROR('Baggrundsdata - HICP - deflator'!B69/IF($AC$19=$S$17,$L69,IF($AB$19=$S$17,$K69,IF($AA$19=$S$17,$J69,IF($Z$19=$S$17,$I69,IF($Y$19=$S$17,'Baggrundsdata - HICP - deflator'!$H69,IF($X$19=$S$17,'Baggrundsdata - HICP - deflator'!$G69,IF($S$17=$W$19,'Baggrundsdata - HICP - deflator'!$F69,IF($V$19=$S$17,'Baggrundsdata - HICP - deflator'!$E69,IF($U$19=$S$17,'Baggrundsdata - HICP - deflator'!$D69,IF($T$19=$S$17,'Baggrundsdata - HICP - deflator'!$C69,IF($S$19=$S$17,'Baggrundsdata - HICP - deflator'!$B69,"*"))))))))))),"*") -> 0.86658665 | T20: =IFERROR('Baggrundsdata - HICP - deflator'!C69/IF($AC$19=$S$17,$L69,IF($AB$19=$S$17,$K69,IF($AA$19=$S$17,$J69,IF($Z$19=$S$17,$I69,IF($Y$19=$S$17,'Baggrundsdata - HICP - deflator'!$H69,IF($X$19=$S$17,'Baggrundsdata - HICP - deflator'!$G69,IF($S$17=$W$19,'Baggrundsdata - HICP - deflator'!$F69,IF($V$19=$S$17,'Baggrundsdata - HICP - deflator'!$E69,IF($U$19=$S$17,'Baggrundsdata - HICP - deflator'!$D69,IF($T$19=$S$17,'Baggrundsdata - HICP - deflator'!$C69,IF($S$19=$S$17,'Baggrundsdata - HICP - deflator'!$B69,"*"))))))))))),"*") -> 0.89828982 | U20: =IFERROR('Baggrundsdata - HICP - deflator'!D69/IF($AC$19=$S$17,$L69,IF($AB$19=$S$17,$K69,IF($AA$19=$S$17,$J69,IF($Z$19=$S$17,$I69,IF($Y$19=$S$17,'Baggrundsdata - HICP - deflator'!$H69,IF($X$19=$S$17,'Baggrundsdata - HICP - deflator'!$G69,IF($S$17=$W$19,'Baggrundsdata - HICP - deflator'!$F69,IF($V$19=$S$17,'Baggrundsdata - HICP - deflator'!$E69,IF($U$19=$S$17,'Baggrundsdata - HICP - deflator'!$D69,IF($T$19=$S$17,'Baggrundsdata - HICP - deflator'!$C69,IF($S$19=$S$17,'Baggrundsdata - HICP - deflator'!$B69,"*"))))))))))),"*") -> 0.9070907 | V20: =IFERROR('Baggrundsdata - HICP - deflator'!E69/IF($AC$19=$S$17,$L69,IF($AB$19=$S$17,$K69,IF($AA$19=$S$17,$J69,IF($Z$19=$S$17,$I69,IF($Y$19=$S$17,'Baggrundsdata - HICP - deflator'!$H69,IF($X$19=$S$17,'Baggrundsdata - HICP - deflator'!$G69,IF($S$17=$W$19,'Baggrundsdata - HICP - deflator'!$F69,IF($V$19=$S$17,'Baggrundsdata - HICP - deflator'!$E69,IF($U$19=$S$17,'Baggrundsdata - HICP - deflator'!$D69,IF($T$19=$S$17,'Baggrundsdata - HICP - deflator'!$C69,IF($S$19=$S$17,'Baggrundsdata - HICP - deflator'!$B69,"*"))))))))))),"*") -> 0.92599259 | W20: =IFERROR('Baggrundsdata - HICP - deflator'!F69/IF($AC$19=$S$17,$L69,IF($AB$19=$S$17,$K69,IF($AA$19=$S$17,$J69,IF($Z$19=$S$17,$I69,IF($Y$19=$S$17,'Baggrundsdata - HICP - deflator'!$H69,IF($X$19=$S$17,'Baggrundsdata - HICP - deflator'!$G69,IF($S$17=$W$19,'Baggrundsdata - HICP - deflator'!$F69,IF($V$19=$S$17,'Baggrundsdata - HICP - deflator'!$E69,IF($U$19=$S$17,'Baggrundsdata - HICP - deflator'!$D69,IF($T$19=$S$17,'Baggrundsdata - HICP - deflator'!$C69,IF($S$19=$S$17,'Baggrundsdata - HICP - deflator'!$B69,"*"))))))))))),"*") -> 0.95469546 | X20: =IFERROR('Baggrundsdata - HICP - deflator'!G69/IF($AC$19=$S$17,$L69,IF($AB$19=$S$17,$K69,IF($AA$19=$S$17,$J69,IF($Z$19=$S$17,$I69,IF($Y$19=$S$17,'Baggrundsdata - HICP - deflator'!$H69,IF($X$19=$S$17,'Baggrundsdata - HICP - deflator'!$G69,IF($S$17=$W$19,'Baggrundsdata - HICP - deflator'!$F69,IF($V$19=$S$17,'Baggrundsdata - HICP - deflator'!$E69,IF($U$19=$S$17,'Baggrundsdata - HICP - deflator'!$D69,IF($T$19=$S$17,'Baggrundsdata - HICP - deflator'!$C69,IF($S$19=$S$17,'Baggrundsdata - HICP - deflator'!$B69,"*"))))))))))),"*") -> 0.97999799 | Y20: =IFERROR('Baggrundsdata - HICP - deflator'!H69/IF($AC$19=$S$17,$L69,IF($AB$19=$S$17,$K69,IF($AA$19=$S$17,$J69,IF($Z$19=$S$17,$I69,IF($Y$19=$S$17,'Baggrundsdata - HICP - deflator'!$H69,IF($X$19=$S$17,'Baggrundsdata - HICP - deflator'!$G69,IF($S$17=$W$19,'Baggrundsdata - HICP - deflator'!$F69,IF($V$19=$S$17,'Baggrundsdata - HICP - deflator'!$E69,IF($U$19=$S$17,'Baggrundsdata - HICP - deflator'!$D69,IF($T$19=$S$17,'Baggrundsdata - HICP - deflator'!$C69,IF($S$19=$S$17,'Baggrundsdata - HICP - deflator'!$B69,"*"))))))))))),"*") -> 0.99479947 | Z20: =IFERROR('Baggrundsdata - HICP - deflator'!I69/IF($AC$19=$S$17,$L69,IF($AB$19=$S$17,$K69,IF($AA$19=$S$17,$J69,IF($Z$19=$S$17,$I69,IF($Y$19=$S$17,'Baggrundsdata - HICP - deflator'!$H69,IF($X$19=$S$17,'Baggrundsdata - HICP - deflator'!$G69,IF($S$17=$W$19,'Baggrundsdata - HICP - deflator'!$F69,IF($V$19=$S$17,'Baggrundsdata - HICP - deflator'!$E69,IF($U$19=$S$17,'Baggrundsdata - HICP - deflator'!$D69,IF($T$19=$S$17,'Baggrundsdata - HICP - deflator'!$C69,IF($S$19=$S$17,'Baggrundsdata - HICP - deflator'!$B69,"*"))))))))))),"*") -> 1.00020001 | AA20: =IFERROR('Baggrundsdata - HICP - deflator'!J69/IF($AC$19=$S$17,$L69,IF($AB$19=$S$17,$K69,IF($AA$19=$S$17,$J69,IF($Z$19=$S$17,$I69,IF($Y$19=$S$17,'Baggrundsdata - HICP - deflator'!$H69,IF($X$19=$S$17,'Baggrundsdata - HICP - deflator'!$G69,IF($S$17=$W$19,'Baggrundsdata - HICP - deflator'!$F69,IF($V$19=$S$17,'Baggrundsdata - HICP - deflator'!$E69,IF($U$19=$S$17,'Baggrundsdata - HICP - deflator'!$D69,IF($T$19=$S$17,'Baggrundsdata - HICP - deflator'!$C69,IF($S$19=$S$17,'Baggrundsdata - HICP - deflator'!$B69,"*"))))))))))),"*") -> 1.0001 | AB20: =IFERROR('Baggrundsdata - HICP - deflator'!K69/IF($AC$19=$S$17,$L69,IF($AB$19=$S$17,$K69,IF($AA$19=$S$17,$J69,IF($Z$19=$S$17,$I69,IF($Y$19=$S$17,'Baggrundsdata - HICP - deflator'!$H69,IF($X$19=$S$17,'Baggrundsdata - HICP - deflator'!$G69,IF($S$17=$W$19,'Baggrundsdata - HICP - deflator'!$F69,IF($V$19=$S$17,'Baggrundsdata - HICP - deflator'!$E69,IF($U$19=$S$17,'Baggrundsdata - HICP - deflator'!$D69,IF($T$19=$S$17,'Baggrundsdata - HICP - deflator'!$C69,IF($S$19=$S$17,'Baggrundsdata - HICP - deflator'!$B69,"*"))))))))))),"*") -> 1 | AC20: =IFERROR('Baggrundsdata - HICP - deflator'!L69/IF($AC$19=$S$17,$L69,IF($AB$19=$S$17,$K69,IF($AA$19=$S$17,$J69,IF($Z$19=$S$17,$I69,IF($Y$19=$S$17,'Baggrundsdata - HICP - deflator'!$H69,IF($X$19=$S$17,'Baggrundsdata - HICP - deflator'!$G69,IF($S$17=$W$19,'Baggrundsdata - HICP - deflator'!$F69,IF($V$19=$S$17,'Baggrundsdata - HICP - deflator'!$E69,IF($U$19=$S$17,'Baggrundsdata - HICP - deflator'!$D69,IF($T$19=$S$17,'Baggrundsdata - HICP - deflator'!$C69,IF($S$19=$S$17,'Baggrundsdata - HICP - deflator'!$B69,"*"))))))))))),"*") -> 0 | AE20: =IF(R20=Forside!B37,"sand","falsk") -> sand
